Workbook

Sheet Contents

Sheet Input
B1: Model to Calculate the Temperature Increase for a CO2 Emissions Pathway | Q1: 42 | R1: 42 | S1: 42 | T1: =U1+$AH$1 -> 38.31818182 | U1: =V1+$AH$1 -> 34.63636364 | V1: 30.95454545 | W1: 27.27272727 | X1: 23.59090909 | Y1: 19.90909091 | Z1: 16.22727273 | AA1: 12.54545455 | AB1: 8.863636364 | AC1: 5.181818182 | AD1: 1.5 | AE1: 0 | AF1: 0 | AH1: =(S1-AD1)/11 -> 3.681818182
B2: 2025-06-04
B3: Enter "Parameter Values" and "Scenario Values" and then click "Run Model"
B5: Parameter Values (User input) | AK5: GTCO2/PPM | AN5: 7.81
B6: Feedback Emissions in 2025 (GTCO2) | E6: 2 | F6: GTCO2 | I6: Temperature Increase Goal | N6: 1.5 | O6: °C | U6: 2025 | V6: 2100 | Z6: CO2 PPM in 2024 | AC6: 424.6 | AK6: ="CDR (GtCO2) To Meet Desired " & N6 & "°C Temperature Increase" -> CDR (GtCO2) To Meet Desired 1.5°C Temperature Increase
B7: Carbon Feedbacks per °C in 2100 | E7: 5 | F7: GTCO2 | I7: CDR Start Year | N7: 2040 | R7: SLR in 2100 per °C | V7: 1.5 | W7: Feet | Z7: CO2 PPM increase in 2025 | AC7: 3.6 | AE7: Assume same as 2024 | AK7: ="SRM (W/m-2) To Meet Desired " & Input!$N$6 & "°C Temperature Increase" -> SRM (W/m-2) To Meet Desired 1.5°C Temperature Increase
B8: Albedo Adjustment in 2023 | E8: 0 | F8: W/m-2 | I8: CDR Peak Year | N8: 2070 | R8: SLR Cost Per Foot | U8: 100 | V8: 250 | W8: $Billion | Z8: Climate Factor in 2025 | AC8: 0.455 | AE8: The average value for the "Climate Factor" in 2025 for the AR6 data is about 0.455. The value used by the model can be adjusted here.
B9: Additional Albedo Adjustment per °C of warming | E9: 0 | F9: W/m-2 | I9: SRM Start Year | N9: 2035 | R9: CCS Cost Per Ton | U9: 70 | V9: 40 | W9: $ | AE9: A value of 0.42 will result in 2025 value that aligns better with the current "expected value"
B10: Temp increase to start albedo adjustment | E10: 0 | F10: °C | I10: RF reduction/year for SRM | N10: 0.08 | O10: W/m-2 | R10: CDR Cost Per Ton | U10: 400 | V10: 100 | W10: $ | AE10: See 'Notes' worksheet
I11: °C cooling per airplane per year | N11: 0.003 | O11: °C | R11: Disasters Cost per °C | U11: 150 | V11: 200 | W11: $Billion
I12: Airplanes added per year | N12: 8 | Z12: Temp Incr 2025 | AC12: =D48 -> 1.429245091
T13: Select a CO2 Emissions Pathway | Z13: Temp Incr 2100 | AC13: =S48 -> 3.497370452
B14: Scenario Values (User input) | Z14: CO2 in 2100 | AC14: ='Model Calcs'!S36 -> 5.266752803
D15: 2025 | E15: =D15+5 -> 2030 | F15: =E15+5 -> 2035 | G15: 2040 | H15: 2045 | I15: 2050 | J15: 2055 | K15: 2060 | L15: 2065 | M15: 2070 | N15: 2075 | O15: 2080 | P15: 2085 | Q15: 2090 | R15: 2095 | S15: 2100 | Z15: TotalRF 2100 | AC15: ='Model Calcs'!S43 -> 6.23264711
B16: CO2 Emissions and Removals
B17: Gross Anthro. CO2 | C17: GTCO2 | D17: 42 | E17: 42 | F17: 42 | G17: 42 | H17: 41.33333333 | I17: 40.66666667 | J17: 40 | K17: 39.33333333 | L17: 38.66666667 | M17: 38 | N17: 37.33333333 | O17: 36.66666667 | P17: 36 | Q17: 35.33333333 | R17: 34.66666667 | S17: 34 | Z17: Notes
B18: Crb Cpt&Str (CCS) | C18: GtCO2 | D18: 0 | E18: 0 | F18: 0 | G18: 0 | H18: 0 | I18: 0 | J18: 0 | K18: 0 | L18: 0 | M18: 0 | N18: 0 | O18: 0 | P18: 0 | Q18: 0 | R18: 0 | S18: 0 | Z18: Carbon Feedbacks
B19: Dir Air Capt (DAC) | C19: GtCO2 | D19: 0 | E19: 0 | F19: 0 | G19: 0 | H19: 0 | I19: 0 | J19: 0 | K19: 0 | L19: 0 | M19: 0 | N19: 0 | O19: 0 | P19: 0 | Q19: 0 | R19: 0 | S19: 0 | AA19: If left emissions at 0, the calculated 2025 valueis set to the parameter value, the 2100 value is set to the 'Carbon Feedbacks per °C in 2100' * 'Temperature in 2100' as calculated from cumulated anthropogenic emissions and the IPCC carbon budget, andoter values interpolated
B20: Carbon Feedbacks | C20: GtCO2 | D20: 0 | E20: 0 | F20: 0 | G20: 0 | H20: 0 | I20: 0 | J20: 0 | K20: 0 | L20: 0 | M20: 0 | N20: 0 | O20: 0 | P20: 0 | Q20: 0 | R20: 0 | S20: 0
B21: Net CO2 Emiss & Removals | C21: GtCO2 | D21: =SUM(D17:D20) -> 42 | E21: =SUM(E17:E20) -> 42 | F21: 42 | G21: 42 | H21: 41.33333333 | I21: 40.66666667 | J21: 40 | K21: 39.33333333 | L21: 38.66666667 | M21: 38 | N21: 37.33333333 | O21: 36.66666667 | P21: 36 | Q21: 35.33333333 | R21: 34.66666667 | S21: 34
B22: Radiative Forcing (RF) (if left at 0, caclulated based on CO2 RF - see 'RF Calcs' worksheet)
B23: CH4 | C23: W/m-2 | D23: 0 | E23: 0 | F23: 0 | G23: 0 | H23: 0 | I23: 0 | J23: 0 | K23: 0 | L23: 0 | M23: 0 | N23: 0 | O23: 0 | P23: 0 | Q23: 0 | R23: 0 | S23: 0 | Z23: Albedo Adjustment in 2023
B24: N2O | C24: W/m-2 | D24: 0 | E24: 0 | F24: 0 | G24: 0 | H24: 0 | I24: 0 | J24: 0 | K24: 0 | L24: 0 | M24: 0 | N24: 0 | O24: 0 | P24: 0 | Q24: 0 | R24: 0 | S24: 0 | AA24: A value 0.4 results in a 0.2DC increase in temperature above that expected by the models, which is what happened
B25: Total Other GHGs | C25: W/m-2 | D25: 0 | E25: 0 | F25: 0 | G25: 0 | H25: 0 | I25: 0 | J25: 0 | K25: 0 | L25: 0 | M25: 0 | N25: 0 | O25: 0 | P25: 0 | Q25: 0 | R25: 0 | S25: 0
B26: Aerosol | C26: W/m-2 | D26: 0 | E26: 0 | F26: 0 | G26: 0 | H26: 0 | I26: 0 | J26: 0 | K26: 0 | L26: 0 | M26: 0 | N26: 0 | O26: 0 | P26: 0 | Q26: 0 | R26: 0 | S26: 0 | Z26: Additional Albedo Adjustment per °C of warming
B27: Albedo (Calculated based on 'Albedo Adjustment in 2023' and 'Albedo Adjustment per DC of warming' | AA27: A value of 0.15, when combined with the above albedo adjustments, results ina 0.36 DC/decate temperature increase, which Jim Hansen expects
B28: Albedo | C28: W/m-2 | D28: =Input!$E$8 -> 0 | E28: =Input!$E$8 + ('Model Calcs'!E57-Input!$E$10)*Input!$E$9 -> 0 | F28: =Input!$E$8 + ('Model Calcs'!F57-Input!$E$10)*Input!$E$9 -> 0 | G28: =Input!$E$8 + ('Model Calcs'!G57-Input!$E$10)*Input!$E$9 -> 0 | H28: =Input!$E$8 + ('Model Calcs'!H57-Input!$E$10)*Input!$E$9 -> 0 | I28: =Input!$E$8 + ('Model Calcs'!I57-Input!$E$10)*Input!$E$9 -> 0 | J28: =Input!$E$8 + ('Model Calcs'!J57-Input!$E$10)*Input!$E$9 -> 0 | K28: =Input!$E$8 + ('Model Calcs'!K57-Input!$E$10)*Input!$E$9 -> 0 | L28: =Input!$E$8 + ('Model Calcs'!L57-Input!$E$10)*Input!$E$9 -> 0 | M28: =Input!$E$8 + ('Model Calcs'!M57-Input!$E$10)*Input!$E$9 -> 0 | N28: =Input!$E$8 + ('Model Calcs'!N57-Input!$E$10)*Input!$E$9 -> 0 | O28: =Input!$E$8 + ('Model Calcs'!O57-Input!$E$10)*Input!$E$9 -> 0 | P28: =Input!$E$8 + ('Model Calcs'!P57-Input!$E$10)*Input!$E$9 -> 0 | Q28: =Input!$E$8 + ('Model Calcs'!Q57-Input!$E$10)*Input!$E$9 -> 0 | R28: =Input!$E$8 + ('Model Calcs'!R57-Input!$E$10)*Input!$E$9 -> 0 | S28: =Input!$E$8 + ('Model Calcs'!S57-Input!$E$10)*Input!$E$9 -> 0
Z29: Degrees C Cooling per airplane per year
AA30: Assumes roughly 10 flight hour/day/plane and 25 ton payload/plane
AA31: Stratospheric aerosol injection tactics and costs in the first 15 years of deployment Temperature Incr.
AA32: Wake Smith and Gernot Wagner Published 23 November 2018 DOI 10.1088/1748-9326/aae98d
AA33: https://iopscience.iop.org/article/10.1088/1748-9326/aae98d
AA34: In 2047, SO2 from 95 airplanes reduced the temperature by 0.3°C
D47: 2025 | E47: =D47+5 -> 2030 | F47: =E47+5 -> 2035 | G47: =F47+5 -> 2040 | H47: =G47+5 -> 2045 | I47: =H47+5 -> 2050 | J47: =I47+5 -> 2055 | K47: =J47+5 -> 2060 | L47: =K47+5 -> 2065 | M47: =L47+5 -> 2070 | N47: =M47+5 -> 2075 | O47: =N47+5 -> 2080 | P47: =O47+5 -> 2085 | Q47: =P47+5 -> 2090 | R47: =Q47+5 -> 2095 | S47: =R47+5 -> 2100
B48: Temp Incr w/o Albedo | C48: °C | D48: ='Model Calcs'!D57 -> 1.429245091 | E48: ='Model Calcs'!E57 -> 1.505325755 | F48: ='Model Calcs'!F57 -> 1.671884866 | G48: ='Model Calcs'!G57 -> 1.759499623 | H48: ='Model Calcs'!H57 -> 1.898065702 | I48: ='Model Calcs'!I57 -> 2.018144518 | J48: ='Model Calcs'!J57 -> 2.130036786 | K48: ='Model Calcs'!K57 -> 2.274480654 | L48: ='Model Calcs'!L57 -> 2.386941587 | M48: ='Model Calcs'!M57 -> 2.562729414 | N48: ='Model Calcs'!N57 -> 2.664418077 | O48: ='Model Calcs'!O57 -> 2.859041021 | P48: ='Model Calcs'!P57 -> 2.982790101 | Q48: ='Model Calcs'!Q57 -> 3.174321839 | R48: ='Model Calcs'!R57 -> 3.334762547 | S48: ='Model Calcs'!S57 -> 3.497370452
B49: Temp Incr with Albedo | C49: °C | D49: ='Model Calcs'!D62 -> 1.429245091 | E49: ='Model Calcs'!E62 -> 1.505325755 | F49: ='Model Calcs'!F62 -> 1.671884866 | G49: ='Model Calcs'!G62 -> 1.759499623 | H49: ='Model Calcs'!H62 -> 1.898065702 | I49: ='Model Calcs'!I62 -> 2.018144518 | J49: ='Model Calcs'!J62 -> 2.130036786 | K49: ='Model Calcs'!K62 -> 2.274480654 | L49: ='Model Calcs'!L62 -> 2.386941587 | M49: ='Model Calcs'!M62 -> 2.562729414 | N49: ='Model Calcs'!N62 -> 2.664418077 | O49: ='Model Calcs'!O62 -> 2.859041021 | P49: ='Model Calcs'!P62 -> 2.982790101 | Q49: ='Model Calcs'!Q62 -> 3.174321839 | R49: ='Model Calcs'!R62 -> 3.334762547 | S49: ='Model Calcs'!S62 -> 3.497370452
B50: Temp Incr Per Decade | C50: °C | F50: =F49-D49 -> 0.2426397746 | G50: =G49-E49 -> 0.2541738684 | H50: 0.2261808362 | I50: 0.258644895 | J50: 0.2319710835 | K50: 0.2563361357 | L50: 0.2569048012 | M50: 0.2882487603 | N50: 0.2774764904 | O50: 0.2963116065 | P50: 0.318372024 | Q50: 0.3152808184 | R50: 0.3519724456 | S50: 0.3230486127
B51: Temp Incr with CDR | C51: °C | D51: ='Model Calcs'!D76 -> 1.429245091 | E51: ='Model Calcs'!E76 -> 1.524604771 | F51: ='Model Calcs'!F76 -> 1.716159403 | G51: ='Model Calcs'!G76 -> 1.832185904 | H51: ='Model Calcs'!H76 -> 1.974390378 | I51: ='Model Calcs'!I76 -> 2.04564461 | J51: ='Model Calcs'!J76 -> 2.069315862 | K51: ='Model Calcs'!K76 -> 2.093834988 | L51: ='Model Calcs'!L76 -> 2.045737327 | M51: ='Model Calcs'!M76 -> 2.022483186 | N51: ='Model Calcs'!N76 -> 1.888686148 | O51: ='Model Calcs'!O76 -> 1.848990836 | P51: ='Model Calcs'!P76 -> 1.721799237 | Q51: ='Model Calcs'!Q76 -> 1.662879674 | R51: ='Model Calcs'!R76 -> 1.561324727 | S51: ='Model Calcs'!S76 -> 1.4550331
B52: Temp Incr with SRM - W/m-2 | C52: °C | D52: ='Model Calcs'!D92 -> 1.429245091 | E52: ='Model Calcs'!E92 -> 1.525104421 | F52: ='Model Calcs'!F92 -> 1.717672223 | G52: ='Model Calcs'!G92 -> 1.5 | H52: ='Model Calcs'!H92 -> 1.5 | I52: ='Model Calcs'!I92 -> 1.5 | J52: ='Model Calcs'!J92 -> 1.5 | K52: ='Model Calcs'!K92 -> 1.5 | L52: ='Model Calcs'!L92 -> 1.5 | M52: ='Model Calcs'!M92 -> 1.5 | N52: ='Model Calcs'!N92 -> 1.5 | O52: ='Model Calcs'!O92 -> 1.5 | P52: ='Model Calcs'!P92 -> 1.5 | Q52: ='Model Calcs'!Q92 -> 1.5 | R52: ='Model Calcs'!R92 -> 1.5 | S52: ='Model Calcs'!S92 -> 1.5
B53: Temp Incr with SRM -Planes | C53: °C | D53: ='Model Calcs'!D100 -> 1.429245091 | E53: ='Model Calcs'!E100 -> 1.525104421 | F53: ='Model Calcs'!F100 -> 1.717672223 | G53: ='Model Calcs'!G100 -> 1.714723748 | H53: ='Model Calcs'!H100 -> 1.769521624 | I53: ='Model Calcs'!I100 -> 1.810234556 | J53: ='Model Calcs'!J100 -> 1.847185898 | K53: ='Model Calcs'!K100 -> 1.923951013 | L53: ='Model Calcs'!L100 -> 1.971112094 | M53: ='Model Calcs'!M100 -> 2.092202565 | N53: ='Model Calcs'!N100 -> 2.136556603 | O53: ='Model Calcs'!O100 -> 2.288365104 | P53: ='Model Calcs'!P100 -> 2.36537084 | Q53: ='Model Calcs'!Q100 -> 2.522590608 | R53: ='Model Calcs'!R100 -> 2.648268929 | S53: ='Model Calcs'!S100 -> 2.77935555
B54: CDR | C54: GtCO2 | D54: =0-'Model Calcs'!D68 -> 0 | E54: =0-'Model Calcs'!E68 -> 0 | F54: =0-'Model Calcs'!F68 -> 0 | G54: =0-'Model Calcs'!G68 -> 0 | H54: =0-'Model Calcs'!H68 -> 15.01851852 | I54: =0-'Model Calcs'!I68 -> 30.03703704 | J54: =0-'Model Calcs'!J68 -> 45.05555556 | K54: =0-'Model Calcs'!K68 -> 60.07407407 | L54: =0-'Model Calcs'!L68 -> 75.09259259 | M54: =0-'Model Calcs'!M68 -> 90.11111111 | N54: =0-'Model Calcs'!N68 -> 90.11111111 | O54: =0-'Model Calcs'!O68 -> 90.11111111 | P54: =0-'Model Calcs'!P68 -> 90.11111111 | Q54: =0-'Model Calcs'!Q68 -> 90.11111111 | R54: =0-'Model Calcs'!R68 -> 90.11111111 | S54: =0-'Model Calcs'!S68 -> 90.11111111
B55: SRM From W/m-2 | C55: W/m-2 | D55: ='Model Calcs'!D90:S90 -> 0 | E55: 0 | F55: 0 | G55: 0.6786515255 | H55: 1.007042298 | I55: 1.292147595 | J55: 1.556505665 | K55: 1.88164929 | L55: 2.138760425 | M55: 2.514150508 | N55: 2.741357823 | O55: 3.139392318 | P55: 3.397687043 | Q55: 3.77462675 | R55: 4.086601935 | S55: 4.394644885
B56: Number of Planes | D56: ='Model Calcs'!D98 -> 0 | E56: ='Model Calcs'!E98 -> 0 | F56: ='Model Calcs'!F98 -> 0 | G56: ='Model Calcs'!G98 -> 40 | H56: ='Model Calcs'!H98 -> 80 | I56: ='Model Calcs'!I98 -> 120 | J56: ='Model Calcs'!J98 -> 160 | K56: ='Model Calcs'!K98 -> 200 | L56: ='Model Calcs'!L98 -> 240 | M56: ='Model Calcs'!M98 -> 280 | N56: ='Model Calcs'!N98 -> 320 | O56: ='Model Calcs'!O98 -> 360 | P56: ='Model Calcs'!P98 -> 400 | Q56: ='Model Calcs'!Q98 -> 440 | R56: ='Model Calcs'!R98 -> 480 | S56: ='Model Calcs'!S98 -> 520
D58: 2025 | E58: =D58+5 -> 2030 | F58: =E58+5 -> 2035 | G58: =F58+5 -> 2040 | H58: =G58+5 -> 2045 | I58: =H58+5 -> 2050 | J58: =I58+5 -> 2055 | K58: =J58+5 -> 2060 | L58: =K58+5 -> 2065 | M58: =L58+5 -> 2070 | N58: =M58+5 -> 2075 | O58: =N58+5 -> 2080 | P58: =O58+5 -> 2085 | Q58: =P58+5 -> 2090 | R58: =Q58+5 -> 2095 | S58: =R58+5 -> 2100
B59: Cost w/o Albedo | C59: $Billions | D59: ='Model Calcs'!D113 -> 285.0867637 | E59: ='Model Calcs'!E113 -> 342.1574277 | F59: ='Model Calcs'!F113 -> 419.9716606 | G59: ='Model Calcs'!G113 -> 492.3265984 | H59: ='Model Calcs'!H113 -> 579.6490915 | I59: ='Model Calcs'!I113 -> 670.8755554 | J59: ='Model Calcs'!J113 -> 767.5722392 | K59: ='Model Calcs'!K113 -> 876.7185564 | L59: ='Model Calcs'!L113 -> 987.2389218 | M59: ='Model Calcs'!M113 -> 1115.969275 | N59: ='Model Calcs'!N113 -> 1238.348108 | O59: ='Model Calcs'!O113 -> 1384.814006 | P59: ='Model Calcs'!P113 -> 1525.172763 | Q59: ='Model Calcs'!Q113 -> 1685.522569 | R59: ='Model Calcs'!R113 -> 1847.096091 | S59: ='Model Calcs'!S113 -> 2016.234065
B60: Cost with Albedo | C60: $Billions | D60: ='Model Calcs'!D120 -> 285.0867637 | E60: ='Model Calcs'!E120 -> 342.1574277 | F60: ='Model Calcs'!F120 -> 419.9716606 | G60: ='Model Calcs'!G120 -> 492.3265984 | H60: ='Model Calcs'!H120 -> 579.6490915 | I60: ='Model Calcs'!I120 -> 670.8755554 | J60: ='Model Calcs'!J120 -> 767.5722392 | K60: ='Model Calcs'!K120 -> 876.7185564 | L60: ='Model Calcs'!L120 -> 987.2389218 | M60: ='Model Calcs'!M120 -> 1115.969275 | N60: ='Model Calcs'!N120 -> 1238.348108 | O60: ='Model Calcs'!O120 -> 1384.814006 | P60: ='Model Calcs'!P120 -> 1525.172763 | Q60: ='Model Calcs'!Q120 -> 1685.522569 | R60: ='Model Calcs'!R120 -> 1847.096091 | S60: ='Model Calcs'!S120 -> 2016.234065
B61: Cost with Albedo and CDR | C61: $Billions | D61: ='Model Calcs'!D128 -> 285.0867637 | E61: ='Model Calcs'!E128 -> 322.443599 | F61: ='Model Calcs'!F128 -> 377.4834408 | G61: ='Model Calcs'!G128 -> 423.6925455 | H61: ='Model Calcs'!H128 -> 5282.853554 | I61: ='Model Calcs'!I128 -> 9532.373545 | J61: ='Model Calcs'!J128 -> 13175.51545 | K61: ='Model Calcs'!K128 -> 16220.19812 | L61: ='Model Calcs'!L128 -> 18653.45128 | M61: ='Model Calcs'!M128 -> 20492.09161 | N61: ='Model Calcs'!N128 -> 18707.843 | O61: ='Model Calcs'!O128 -> 16942.24481 | P61: ='Model Calcs'!P128 -> 15161.73441 | Q61: ='Model Calcs'!Q128 -> 13395.55207 | R61: ='Model Calcs'!R128 -> 11622.5687 | S61: ='Model Calcs'!S128 -> 9849.937693

Sheet Model Calcs
B3: Calculated Paramerters
B4: Cum CO2 in 2100 wo/ feedbacks | E4: =S24 -> 2952
B5: DC in 2100 w/o feedbacks | E5: =FeedbackTemp(E4,0) -> 3.335684 | F5: (IPCC ARC 67% of meeting goal = Cum CO2 in 2100 w/ feedbacks *0.000667 + 1.3667) | U5: ="=FeedbackTemp(F2,0)" -> =FeedbackTemp(F2,0)
B6: Calculated feedbacks | D6: =Input!E6 -> 2 | E6: =D6+($S6-$D6)/15 -> 2.978561333 | F6: =E6+($S6-$D6)/15 -> 3.957122667 | G6: 4.935684 | H6: 5.914245333 | I6: 6.892806667 | J6: 7.871368 | K6: 8.849929333 | L6: 9.828490667 | M6: 10.807052 | N6: 11.78561333 | O6: 12.76417467 | P6: 13.742736 | Q6: 14.72129733 | R6: 15.69985867 | S6: =E5*Input!E7 -> 16.67842 | U6: Use if not supplied | X6: From the 'Input' worksheet | AA6: Linear Intgerplation | AC6: ="='DC in 2100 w/o feedbacks' * Feedbacks per Degree C" -> ='DC in 2100 w/o feedbacks' * Feedbacks per Degree C
B7: Mitigation Factor | D7: =MitigationAggressiveness(S36,0) -> 7.521929022 | F7: (-1.607142857 * CO2RF in 2100 + 13.05357143) | U7: ="=MitigationAggressiveness(T47,0)" -> =MitigationAggressiveness(T47,0)
B8: Climate Factor in 2100
B9: Calculated RF if not supplied (values from the 'Non-CO2 RF Calcs' worksheet)
B10: CH4 | D10: ='Non-CO2 RF Calcs'!D3 -> 0.5939121384 | E10: ='Non-CO2 RF Calcs'!E3 -> 0.5904369974 | F10: ='Non-CO2 RF Calcs'!F3 -> 0.5843328119 | G10: ='Non-CO2 RF Calcs'!G3 -> 0.5754416382 | H10: ='Non-CO2 RF Calcs'!H3 -> 0.5674838949 | I10: ='Non-CO2 RF Calcs'!I3 -> 0.5595754692 | J10: ='Non-CO2 RF Calcs'!J3 -> 0.5521802009 | K10: ='Non-CO2 RF Calcs'!K3 -> 0.5454822028 | L10: ='Non-CO2 RF Calcs'!L3 -> 0.5387466796 | M10: ='Non-CO2 RF Calcs'!M3 -> 0.5329547233 | N10: ='Non-CO2 RF Calcs'!N3 -> 0.5272411292 | O10: ='Non-CO2 RF Calcs'!O3 -> 0.5222015114 | P10: ='Non-CO2 RF Calcs'!P3 -> 0.5174025851 | Q10: ='Non-CO2 RF Calcs'!Q3 -> 0.5127718845 | R10: ='Non-CO2 RF Calcs'!R3 -> 0.5078572167 | S10: ='Non-CO2 RF Calcs'!S3 -> 0.502609264
B11: N2O | D11: ='Non-CO2 RF Calcs'!D4 -> 0.2289707279 | E11: ='Non-CO2 RF Calcs'!E4 -> 0.2414303342 | F11: ='Non-CO2 RF Calcs'!F4 -> 0.2533580206 | G11: ='Non-CO2 RF Calcs'!G4 -> 0.2649161165 | H11: ='Non-CO2 RF Calcs'!H4 -> 0.2763394171 | I11: ='Non-CO2 RF Calcs'!I4 -> 0.2875554565 | J11: ='Non-CO2 RF Calcs'!J4 -> 0.2985091666 | K11: ='Non-CO2 RF Calcs'!K4 -> 0.3090556155 | L11: ='Non-CO2 RF Calcs'!L4 -> 0.3192846668 | M11: ='Non-CO2 RF Calcs'!M4 -> 0.3290963204 | N11: ='Non-CO2 RF Calcs'!N4 -> 0.3385630423 | O11: ='Non-CO2 RF Calcs'!O4 -> 0.347674696 | P11: ='Non-CO2 RF Calcs'!P4 -> 0.3564414179 | Q11: ='Non-CO2 RF Calcs'!Q4 -> 0.3648806056 | R11: ='Non-CO2 RF Calcs'!R4 -> 0.3730473275 | S11: ='Non-CO2 RF Calcs'!S4 -> 0.3807140494
B12: Other GHG RF | D12: ='Non-CO2 RF Calcs'!D5 -> 0.4175603619 | E12: ='Non-CO2 RF Calcs'!E5 -> 0.3354790676 | F12: ='Non-CO2 RF Calcs'!F5 -> 0.3561327142 | G12: ='Non-CO2 RF Calcs'!G5 -> 0.2918269068 | H12: ='Non-CO2 RF Calcs'!H5 -> 0.2784589156 | I12: ='Non-CO2 RF Calcs'!I5 -> 0.2497515977 | J12: ='Non-CO2 RF Calcs'!J5 -> 0.2215533425 | K12: ='Non-CO2 RF Calcs'!K5 -> 0.2216376898 | L12: ='Non-CO2 RF Calcs'!L5 -> 0.1905441116 | M12: ='Non-CO2 RF Calcs'!M5 -> 0.2168538455 | N12: ='Non-CO2 RF Calcs'!N5 -> 0.1682042709 | O12: ='Non-CO2 RF Calcs'!O5 -> 0.2059227764 | P12: ='Non-CO2 RF Calcs'!P5 -> 0.1767671599 | Q12: ='Non-CO2 RF Calcs'!Q5 -> 0.2071275763 | R12: ='Non-CO2 RF Calcs'!R5 -> 0.2079477378 | S12: ='Non-CO2 RF Calcs'!S5 -> 0.2093128311
B13: Aerosols | D13: ='Non-CO2 RF Calcs'!D6 -> -0.9193793022 | E13: ='Non-CO2 RF Calcs'!E6 -> -0.847407901 | F13: ='Non-CO2 RF Calcs'!F6 -> -0.7676980465 | G13: ='Non-CO2 RF Calcs'!G6 -> -0.6976739609 | H13: ='Non-CO2 RF Calcs'!H6 -> -0.6331345704 | I13: ='Non-CO2 RF Calcs'!I6 -> -0.5832035148 | J13: ='Non-CO2 RF Calcs'!J6 -> -0.5571046702 | K13: ='Non-CO2 RF Calcs'!K6 -> -0.5284737602 | L13: ='Non-CO2 RF Calcs'!L6 -> -0.5060721859 | M13: ='Non-CO2 RF Calcs'!M6 -> -0.4810695378 | N13: ='Non-CO2 RF Calcs'!N6 -> -0.453775807 | O13: ='Non-CO2 RF Calcs'!O6 -> -0.4277167258 | P13: ='Non-CO2 RF Calcs'!P6 -> -0.4057764072 | Q13: ='Non-CO2 RF Calcs'!Q6 -> -0.3814492459 | R13: ='Non-CO2 RF Calcs'!R6 -> -0.3589178444 | S13: ='Non-CO2 RF Calcs'!S6 -> -0.3360546686
B14: Other NonGHG RF | D14: ='Non-CO2 RF Calcs'!D7 -> 0.4175603619 | E14: ='Non-CO2 RF Calcs'!E7 -> 0.3354790676 | F14: ='Non-CO2 RF Calcs'!F7 -> 0.3561327142 | G14: ='Non-CO2 RF Calcs'!G7 -> 0.2918269068 | H14: ='Non-CO2 RF Calcs'!H7 -> 0.2784589156 | I14: ='Non-CO2 RF Calcs'!I7 -> 0.2497515977 | J14: ='Non-CO2 RF Calcs'!J7 -> 0.2215533425 | K14: ='Non-CO2 RF Calcs'!K7 -> 0.2216376898 | L14: ='Non-CO2 RF Calcs'!L7 -> 0.1905441116 | M14: ='Non-CO2 RF Calcs'!M7 -> 0.2168538455 | N14: ='Non-CO2 RF Calcs'!N7 -> 0.1682042709 | O14: ='Non-CO2 RF Calcs'!O7 -> 0.2059227764 | P14: ='Non-CO2 RF Calcs'!P7 -> 0.1767671599 | Q14: ='Non-CO2 RF Calcs'!Q7 -> 0.2071275763 | R14: ='Non-CO2 RF Calcs'!R7 -> 0.2079477378 | S14: ='Non-CO2 RF Calcs'!S7 -> 0.2093128311
D16: 2025 | E16: =D16+5 -> 2030 | F16: =E16+5 -> 2035 | G16: 2040 | H16: 2045 | I16: 2050 | J16: 2055 | K16: 2060 | L16: 2065 | M16: 2070 | N16: 2075 | O16: 2080 | P16: 2085 | Q16: 2090 | R16: 2095 | S16: 2100
A17: 1 | B17: CO2 - Emissions and Removals
A18: =A17+1 -> 2 | B18: Gross Anthro. CO2 | C18: GTCO2 | D18: =Input!D17 -> 42 | E18: =Input!E17 -> 42 | F18: =Input!F17 -> 42 | G18: =Input!G17 -> 42 | H18: =Input!H17 -> 41.33333333 | I18: =Input!I17 -> 40.66666667 | J18: =Input!J17 -> 40 | K18: =Input!K17 -> 39.33333333 | L18: =Input!L17 -> 38.66666667 | M18: =Input!M17 -> 38 | N18: =Input!N17 -> 37.33333333 | O18: =Input!O17 -> 36.66666667 | P18: =Input!P17 -> 36 | Q18: =Input!Q17 -> 35.33333333 | R18: =Input!R17 -> 34.66666667 | S18: =Input!S17 -> 34
A19: 3 | B19: Crb Cpt&Str (CCS) | C19: GtCO2 | D19: =Input!D18 -> 0 | E19: =Input!E18 -> 0 | F19: =Input!F18 -> 0 | G19: =Input!G18 -> 0 | H19: =Input!H18 -> 0 | I19: =Input!I18 -> 0 | J19: =Input!J18 -> 0 | K19: =Input!K18 -> 0 | L19: =Input!L18 -> 0 | M19: =Input!M18 -> 0 | N19: =Input!N18 -> 0 | O19: =Input!O18 -> 0 | P19: =Input!P18 -> 0 | Q19: =Input!Q18 -> 0 | R19: =Input!R18 -> 0 | S19: =Input!S18 -> 0
A20: 4 | B20: Dir Air Capt (DAC) | C20: GtCO2 | D20: =Input!D19 -> 0 | E20: =Input!E19 -> 0 | F20: =Input!F19 -> 0 | G20: =Input!G19 -> 0 | H20: =Input!H19 -> 0 | I20: =Input!I19 -> 0 | J20: =Input!J19 -> 0 | K20: =Input!K19 -> 0 | L20: =Input!L19 -> 0 | M20: =Input!M19 -> 0 | N20: =Input!N19 -> 0 | O20: =Input!O19 -> 0 | P20: =Input!P19 -> 0 | Q20: =Input!Q19 -> 0 | R20: =Input!R19 -> 0 | S20: =Input!S19 -> 0
A21: 5 | B21: Total Carbon Removal | C21: GtCO2 | D21: =SUM(D19:D20) -> 0 | E21: =SUM(E19:E20) -> 0 | F21: 0 | G21: 0 | H21: 0 | I21: 0 | J21: 0 | K21: 0 | L21: 0 | M21: 0 | N21: 0 | O21: 0 | P21: 0 | Q21: 0 | R21: 0 | S21: 0 | U21: 1000 | V21: =U21+100 -> 1100 | W21: =V21+100 -> 1200 | X21: 1300 | Y21: 1400 | Z21: 1500 | AA21: 1600 | AB21: 1700
A22: 6 | B22: Cumultative Carbon Removal | D22: =D21 -> 0 | E22: =E21 -> 0 | F22: =E22+F21 -> 0 | G22: =F22+G21 -> 0 | H22: 0 | I22: 0 | J22: 0 | K22: 0 | L22: 0 | M22: 0 | N22: 0 | O22: 0 | P22: 0 | Q22: 0 | R22: 0 | S22: 0
A23: 7 | B23: Total Net CO2 w/o Feedbacks | C23: GtCO2 | D23: =SUM(D18:D20) -> 42 | E23: 42 | F23: 42 | G23: 42 | H23: 41.33333333 | I23: 40.66666667 | J23: 40 | K23: 39.33333333 | L23: 38.66666667 | M23: 38 | N23: 37.33333333 | O23: 36.66666667 | P23: 36 | Q23: 35.33333333 | R23: 34.66666667 | S23: 34 | U23: =-0.0000072875 *U21 * U21 + 0.018987517 * U21 - 4.390914936 -> 7.309102064 | V23: =-0.0000072875 *V21 * V21 + 0.018987517 * V21 - 4.390914936 -> 7.677478764 | W23: 7.900105464 | X23: 7.976982164 | Y23: 7.908108864 | Z23: 7.693485564 | AA23: 7.333112264 | AB23: 6.826988964
A24: 8 | B24: Cumultative CO2 w/o Feedbacks | C24: GtCO2 | D24: =D23 -> 42 | E24: =D24+(D23+E23)*2.5 -> 252 | F24: =E24+(E23+F23)*2.5 -> 462 | G24: 672 | H24: 880.3333333 | I24: 1085.333333 | J24: 1287 | K24: 1485.333333 | L24: 1680.333333 | M24: 1872 | N24: 2060.333333 | O24: 2245.333333 | P24: 2427 | Q24: 2605.333333 | R24: 2780.333333 | S24: 2952
A25: 9 | B25: Carbon Feedbacks | C25: GtCO2 | D25: =IF(Input!$D$20>0,Input!D20,D6) -> 2 | E25: =IF(Input!$D$20>0,Input!E20,E6) -> 2.978561333 | F25: =IF(Input!$D$20>0,Input!F20,F6) -> 3.957122667 | G25: =IF(Input!$D$20>0,Input!G20,G6) -> 4.935684 | H25: =IF(Input!$D$20>0,Input!H20,H6) -> 5.914245333 | I25: =IF(Input!$D$20>0,Input!I20,I6) -> 6.892806667 | J25: =IF(Input!$D$20>0,Input!J20,J6) -> 7.871368 | K25: =IF(Input!$D$20>0,Input!K20,K6) -> 8.849929333 | L25: =IF(Input!$D$20>0,Input!L20,L6) -> 9.828490667 | M25: =IF(Input!$D$20>0,Input!M20,M6) -> 10.807052 | N25: =IF(Input!$D$20>0,Input!N20,N6) -> 11.78561333 | O25: =IF(Input!$D$20>0,Input!O20,O6) -> 12.76417467 | P25: =IF(Input!$D$20>0,Input!P20,P6) -> 13.742736 | Q25: =IF(Input!$D$20>0,Input!Q20,Q6) -> 14.72129733 | R25: =IF(Input!$D$20>0,Input!R20,R6) -> 15.69985867 | S25: =IF(Input!$D$20>0,Input!S20,S6) -> 16.67842
A26: 10 | B26: Cumultative Feedbacks | C26: GtCO2 | D26: =D25 -> 2 | E26: =D26+(D25+E25)*2.5 -> 14.44640333 | F26: 31.78561333 | G26: =F26+(F25+G25)*2.5 -> 54.01763 | H26: 81.14245333 | I26: 113.1600833 | J26: 150.07052 | K26: 191.8737633 | L26: 238.5698133 | M26: 290.15867 | N26: 346.6403333 | O26: 408.0148033 | P26: 474.28208 | Q26: 545.4421633 | R26: 621.4950533 | S26: 702.44075
A27: 11 | B27: Total Net CO2 | C27: GtCO2 | D27: =D24+D25 -> 44 | E27: =E23+E25 -> 44.97856133 | F27: =F23+F25 -> 45.95712267 | G27: =G23+G25 -> 46.935684 | H27: =H23+H25 -> 47.24757867 | I27: =I23+I25 -> 47.55947333 | J27: 47.871368 | K27: 48.18326267 | L27: 48.49515733 | M27: 48.807052 | N27: 49.11894667 | O27: 49.43084133 | P27: 49.742736 | Q27: 50.05463067 | R27: 50.36652533 | S27: 50.67842 | U27: =CO2RFFromCO2PPM(R32) -> 5.080877394
A28: 12 | B28: Cumultative CO2 | C28: GtCO2 | D28: =D27 -> 44 | E28: =D28+(D27+E27)*2.5 -> 266.4464033 | F28: =E28+(E27+F27)*2.5 -> 493.7856133 | G28: =F28+(F27+G27)*2.5 -> 726.01763 | H28: 961.4757867 | I28: 1198.493417 | J28: 1437.07052 | K28: 1677.207097 | L28: 1918.903147 | M28: 2162.15867 | N28: 2406.973667 | O28: 2653.348137 | P28: 2901.28208 | Q28: 3150.775497 | R28: 3401.828387 | S28: 3654.44075
A29: 13 | B29: CO2 - Atmosphere Calculations
A30: 14 | B30: CO2 To Atmosphere | C30: GtCO2 | D30: =D31*7.81 -> 27.5693 | E30: =CO2AddedToAtmosphere(E27,E16) -> 21.83124617 | F30: =CO2AddedToAtmosphere(F27,F16) -> 23.2343744 | G30: =CO2AddedToAtmosphere(G27,G16) -> 24.65664136 | H30: =CO2AddedToAtmosphere(H27,H16) -> 25.29565207 | I30: =CO2AddedToAtmosphere(I27,I16) -> 25.93660704 | J30: =CO2AddedToAtmosphere(J27,J16) -> 26.57950626 | K30: =CO2AddedToAtmosphere(K27,K16) -> 27.22434973 | L30: =CO2AddedToAtmosphere(L27,L16) -> 27.87113746 | M30: =CO2AddedToAtmosphere(M27,M16) -> 28.51986944 | N30: =CO2AddedToAtmosphere(N27,N16) -> 29.17054567 | O30: =CO2AddedToAtmosphere(O27,O16) -> 29.82316616 | P30: =CO2AddedToAtmosphere(P27,P16) -> 30.4777309 | Q30: =CO2AddedToAtmosphere(Q27,Q16) -> 31.1342399 | R30: =CO2AddedToAtmosphere(R27,R16) -> 31.79269314 | S30: =CO2AddedToAtmosphere(S27,S16) -> 32.45309064 | U30: ="=CO2AddedToAtmosphere(Total Net CO2,Year)" -> =CO2AddedToAtmosphere(Total Net CO2,Year)
A31: 15 | B31: PPM Added/Yr | C31: PPM | D31: 3.53 | E31: =E30/Input!$AN$5 -> 2.795294003 | F31: =F30/Input!$AN$5 -> 2.974951908 | G31: =G30/Input!$AN$5 -> 3.157060353 | H31: =H30/Input!$AN$5 -> 3.238879907 | I31: =I30/Input!$AN$5 -> 3.320948404 | J31: =J30/Input!$AN$5 -> 3.403265846 | K31: =K30/Input!$AN$5 -> 3.485832232 | L31: =L30/Input!$AN$5 -> 3.568647562 | M31: =M30/Input!$AN$5 -> 3.651711836 | N31: =N30/Input!$AN$5 -> 3.735025054 | O31: =O30/Input!$AN$5 -> 3.818587216 | P31: =P30/Input!$AN$5 -> 3.902398323 | Q31: =Q30/Input!$AN$5 -> 3.986458373 | R31: =R30/Input!$AN$5 -> 4.070767368 | S31: =S30/Input!$AN$5 -> 4.155325306 | U31: ="=CO2 To Atmosphere/7.81" -> =CO2 To Atmosphere/7.81
A32: 16 | B32: CO2 PPM | C32: PPM | D32: 428.14 | E32: =D32+(D31+E31)*2.5 -> 443.953235 | F32: =E32+(E31+F31)*2.5 -> 458.3788498 | G32: =F32+(F31+G31)*2.5 -> 473.7088804 | H32: =G32+(G31+H31)*2.5 -> 489.6987311 | I32: 506.0983019 | J32: 522.9088375 | K32: 540.1315827 | L32: 557.7677822 | M32: 575.8186807 | N32: 594.2855229 | O32: 613.1695536 | P32: 632.4720174 | Q32: 652.1941592 | R32: 672.3372235 | S32: 692.9024552
A33: 17 | B33: Ocean & Land Sink | C33: GtCO2 | D33: =D27-D30 -> 16.4307 | E33: =E27-E30 -> 23.14731517 | F33: 22.72274827 | G33: 22.27904264 | H33: 21.9519266 | I33: 21.6228663 | J33: 21.29186174 | K33: 20.95891294 | L33: 20.62401987 | M33: 20.28718256 | N33: 19.94840099 | O33: 19.60767517 | P33: 19.2650051 | Q33: 18.92039077 | R33: 18.57383219 | S33: 18.22532936 | U33: ="=Total Net CO2 - CO2 To Atmosphere" -> =Total Net CO2 - CO2 To Atmosphere
A34: 18 | B34: Airborne Fraction | C34: Percent | D34: =100 * IF(D30<0,0,D30/D27) -> 62.6575 | E34: =100 * IF(E30<0,0,E30/E27) -> 48.53700412 | F34: 50.55663421 | G34: 52.53282632 | H34: 53.53851517 | I34: 54.53510146 | J34: 55.52276312 | K34: 56.50167345 | L34: 57.47200131 | M34: 58.43391123 | N34: 59.38756356 | O34: 60.33311462 | P34: 61.2707168 | Q34: 62.20051867 | R34: 63.12266517 | S34: 64.03729762
A35: 19 | B35: Radiative Forcing
A36: 20 | B36: CO2 | C36: W/m-2 | D36: =CO2RFFromCO2PPM(D32) -> 2.402573716 | E36: =CO2RFFromCO2PPM(E32) -> 2.602328675 | F36: =CO2RFFromCO2PPM(F32) -> 2.781376116 | G36: =CO2RFFromCO2PPM(G32) -> 2.968324731 | H36: =CO2RFFromCO2PPM(H32) -> 3.159670221 | I36: =CO2RFFromCO2PPM(I32) -> 3.352047783 | J36: =CO2RFFromCO2PPM(J32) -> 3.545177764 | K36: =CO2RFFromCO2PPM(K32) -> 3.738771925 | L36: =CO2RFFromCO2PPM(L32) -> 3.93253336 | M36: =CO2RFFromCO2PPM(M32) -> 4.126156425 | N36: =CO2RFFromCO2PPM(N32) -> 4.31932666 | O36: =CO2RFFromCO2PPM(O32) -> 4.511720717 | P36: =CO2RFFromCO2PPM(P32) -> 4.703006282 | Q36: =CO2RFFromCO2PPM(Q32) -> 4.892841998 | R36: =CO2RFFromCO2PPM(R32) -> 5.080877394 | S36: =CO2RFFromCO2PPM(S32) -> 5.266752803 | U36: =" CO2RFFromCO2PPM = -0.0000072875 * ppm * ppm + 0.018987517 * ppm - 4.390914936" -> CO2RFFromCO2PPM = -0.0000072875 * ppm * ppm + 0.018987517 * ppm - 4.390914936
A37: 21 | B37: CH4 | C37: W/m-2 | D37: =IF(Input!$D23<>0,Input!D23,'Model Calcs'!D10) -> 0.5939121384 | E37: =IF(Input!$D23<>0,Input!E23,'Model Calcs'!E10) -> 0.5904369974 | F37: =IF(Input!$D23<>0,Input!F23,'Model Calcs'!F10) -> 0.5843328119 | G37: =IF(Input!$D23<>0,Input!G23,'Model Calcs'!G10) -> 0.5754416382 | H37: =IF(Input!$D23<>0,Input!H23,'Model Calcs'!H10) -> 0.5674838949 | I37: =IF(Input!$D23<>0,Input!I23,'Model Calcs'!I10) -> 0.5595754692 | J37: =IF(Input!$D23<>0,Input!J23,'Model Calcs'!J10) -> 0.5521802009 | K37: =IF(Input!$D23<>0,Input!K23,'Model Calcs'!K10) -> 0.5454822028 | L37: =IF(Input!$D23<>0,Input!L23,'Model Calcs'!L10) -> 0.5387466796 | M37: =IF(Input!$D23<>0,Input!M23,'Model Calcs'!M10) -> 0.5329547233 | N37: =IF(Input!$D23<>0,Input!N23,'Model Calcs'!N10) -> 0.5272411292 | O37: =IF(Input!$D23<>0,Input!O23,'Model Calcs'!O10) -> 0.5222015114 | P37: =IF(Input!$D23<>0,Input!P23,'Model Calcs'!P10) -> 0.5174025851 | Q37: =IF(Input!$D23<>0,Input!Q23,'Model Calcs'!Q10) -> 0.5127718845 | R37: =IF(Input!$D23<>0,Input!R23,'Model Calcs'!R10) -> 0.5078572167 | S37: =IF(Input!$D23<>0,Input!S23,'Model Calcs'!S10) -> 0.502609264
A38: 22 | B38: N2O | C38: W/m-2 | D38: =IF(Input!$D24<>0,Input!D24,'Model Calcs'!D11) -> 0.2289707279 | E38: =IF(Input!$D24<>0,Input!E24,'Model Calcs'!E11) -> 0.2414303342 | F38: =IF(Input!$D24<>0,Input!F24,'Model Calcs'!F11) -> 0.2533580206 | G38: =IF(Input!$D24<>0,Input!G24,'Model Calcs'!G11) -> 0.2649161165 | H38: =IF(Input!$D24<>0,Input!H24,'Model Calcs'!H11) -> 0.2763394171 | I38: =IF(Input!$D24<>0,Input!I24,'Model Calcs'!I11) -> 0.2875554565 | J38: =IF(Input!$D24<>0,Input!J24,'Model Calcs'!J11) -> 0.2985091666 | K38: =IF(Input!$D24<>0,Input!K24,'Model Calcs'!K11) -> 0.3090556155 | L38: =IF(Input!$D24<>0,Input!L24,'Model Calcs'!L11) -> 0.3192846668 | M38: =IF(Input!$D24<>0,Input!M24,'Model Calcs'!M11) -> 0.3290963204 | N38: =IF(Input!$D24<>0,Input!N24,'Model Calcs'!N11) -> 0.3385630423 | O38: =IF(Input!$D24<>0,Input!O24,'Model Calcs'!O11) -> 0.347674696 | P38: =IF(Input!$D24<>0,Input!P24,'Model Calcs'!P11) -> 0.3564414179 | Q38: =IF(Input!$D24<>0,Input!Q24,'Model Calcs'!Q11) -> 0.3648806056 | R38: =IF(Input!$D24<>0,Input!R24,'Model Calcs'!R11) -> 0.3730473275 | S38: =IF(Input!$D24<>0,Input!S24,'Model Calcs'!S11) -> 0.3807140494
A39: 23 | B39: Other GHGs | C39: W/m-2 | D39: =IF(Input!$D25<>0,Input!D25,'Model Calcs'!D12) -> 0.4175603619 | E39: =IF(Input!$D25<>0,Input!E25,'Model Calcs'!E12) -> 0.3354790676 | F39: =IF(Input!$D25<>0,Input!F25,'Model Calcs'!F12) -> 0.3561327142 | G39: =IF(Input!$D25<>0,Input!G25,'Model Calcs'!G12) -> 0.2918269068 | H39: =IF(Input!$D25<>0,Input!H25,'Model Calcs'!H12) -> 0.2784589156 | I39: =IF(Input!$D25<>0,Input!I25,'Model Calcs'!I12) -> 0.2497515977 | J39: =IF(Input!$D25<>0,Input!J25,'Model Calcs'!J12) -> 0.2215533425 | K39: =IF(Input!$D25<>0,Input!K25,'Model Calcs'!K12) -> 0.2216376898 | L39: =IF(Input!$D25<>0,Input!L25,'Model Calcs'!L12) -> 0.1905441116 | M39: =IF(Input!$D25<>0,Input!M25,'Model Calcs'!M12) -> 0.2168538455 | N39: =IF(Input!$D25<>0,Input!N25,'Model Calcs'!N12) -> 0.1682042709 | O39: =IF(Input!$D25<>0,Input!O25,'Model Calcs'!O12) -> 0.2059227764 | P39: =IF(Input!$D25<>0,Input!P25,'Model Calcs'!P12) -> 0.1767671599 | Q39: =IF(Input!$D25<>0,Input!Q25,'Model Calcs'!Q12) -> 0.2071275763 | R39: =IF(Input!$D25<>0,Input!R25,'Model Calcs'!R12) -> 0.2079477378 | S39: =IF(Input!$D25<>0,Input!S25,'Model Calcs'!S12) -> 0.2093128311
A40: 24 | B40: Total GHG | C40: W/m-2 | D40: =SUM(D36:D39) -> 3.643016944 | E40: 3.769675075 | F40: 3.975199663 | G40: 4.100509392 | H40: 4.281952449 | I40: 4.448930306 | J40: 4.617420474 | K40: 4.814947433 | L40: 4.981108818 | M40: 5.205061314 | N40: 5.353335102 | O40: 5.587519701 | P40: 5.753617445 | Q40: 5.977622065 | R40: 6.169729676 | S40: =SUM(S36:S39) -> 6.359388948 | U40: 2.359906635 | V40: 0.5691770817 | W40: 0.2289707279 | X40: 0.4175603619 | Y40: -0.9193793022 | Z40: 0.4639200725 | AA40: 3.120155577
A41: 25 | B41: Aerosol | C41: W/m-2 | D41: =IF(Input!$D26<>0,Input!D26,'Model Calcs'!D13) -> -0.9193793022 | E41: =IF(Input!$D26<>0,Input!E26,'Model Calcs'!E13) -> -0.847407901 | F41: =IF(Input!$D26<>0,Input!F26,'Model Calcs'!F13) -> -0.7676980465 | G41: =IF(Input!$D26<>0,Input!G26,'Model Calcs'!G13) -> -0.6976739609 | H41: =IF(Input!$D26<>0,Input!H26,'Model Calcs'!H13) -> -0.6331345704 | I41: =IF(Input!$D26<>0,Input!I26,'Model Calcs'!I13) -> -0.5832035148 | J41: =IF(Input!$D26<>0,Input!J26,'Model Calcs'!J13) -> -0.5571046702 | K41: =IF(Input!$D26<>0,Input!K26,'Model Calcs'!K13) -> -0.5284737602 | L41: =IF(Input!$D26<>0,Input!L26,'Model Calcs'!L13) -> -0.5060721859 | M41: =IF(Input!$D26<>0,Input!M26,'Model Calcs'!M13) -> -0.4810695378 | N41: =IF(Input!$D26<>0,Input!N26,'Model Calcs'!N13) -> -0.453775807 | O41: =IF(Input!$D26<>0,Input!O26,'Model Calcs'!O13) -> -0.4277167258 | P41: =IF(Input!$D26<>0,Input!P26,'Model Calcs'!P13) -> -0.4057764072 | Q41: =IF(Input!$D26<>0,Input!Q26,'Model Calcs'!Q13) -> -0.3814492459 | R41: =IF(Input!$D26<>0,Input!R26,'Model Calcs'!R13) -> -0.3589178444 | S41: =IF(Input!$D26<>0,Input!S26,'Model Calcs'!S13) -> -0.3360546686
A42: 26 | B42: Other Non GHGs | C42: W/m-2 | D42: =IF(Input!$D27<>0,Input!D27,'Model Calcs'!D14) -> 0.4175603619 | E42: =IF(Input!$D27<>0,Input!E27,'Model Calcs'!E14) -> 0.3354790676 | F42: =IF(Input!$D27<>0,Input!F27,'Model Calcs'!F14) -> 0.3561327142 | G42: =IF(Input!$D27<>0,Input!G27,'Model Calcs'!G14) -> 0.2918269068 | H42: =IF(Input!$D27<>0,Input!H27,'Model Calcs'!H14) -> 0.2784589156 | I42: =IF(Input!$D27<>0,Input!I27,'Model Calcs'!I14) -> 0.2497515977 | J42: =IF(Input!$D27<>0,Input!J27,'Model Calcs'!J14) -> 0.2215533425 | K42: =IF(Input!$D27<>0,Input!K27,'Model Calcs'!K14) -> 0.2216376898 | L42: =IF(Input!$D27<>0,Input!L27,'Model Calcs'!L14) -> 0.1905441116 | M42: =IF(Input!$D27<>0,Input!M27,'Model Calcs'!M14) -> 0.2168538455 | N42: =IF(Input!$D27<>0,Input!N27,'Model Calcs'!N14) -> 0.1682042709 | O42: =IF(Input!$D27<>0,Input!O27,'Model Calcs'!O14) -> 0.2059227764 | P42: =IF(Input!$D27<>0,Input!P27,'Model Calcs'!P14) -> 0.1767671599 | Q42: =IF(Input!$D27<>0,Input!Q27,'Model Calcs'!Q14) -> 0.2071275763 | R42: =IF(Input!$D27<>0,Input!R27,'Model Calcs'!R14) -> 0.2079477378 | S42: =IF(Input!$D27<>0,Input!S27,'Model Calcs'!S14) -> 0.2093128311
A43: 27 | B43: Total RF w/o Albedo | C43: W/m-2 | D43: =SUM(D36:D42)-D40 -> 3.141198003 | E43: =SUM(E36:E42)-E40 -> 3.257746241 | F43: 3.56363433 | G43: 3.694662338 | H43: 3.927276794 | I43: 4.115478389 | J43: 4.281869146 | K43: 4.508111362 | L43: 4.665580743 | M43: 4.940845621 | N43: 5.067763566 | O43: 5.365725751 | P43: 5.524608198 | Q43: 5.803300395 | R43: 6.01875957 | S43: 6.23264711 | U43: "RF in 2100" used in "row" 39
A44: 28 | B44: CO2 Equivalents
A45: 29 | B45: CO2 | C45: GtCO2 | D45: 44 | E45: 48 | F45: 46 | G45: 44 | H45: 40 | I45: 35 | J45: 31 | K45: 27 | L45: 22 | M45: 18 | N45: 14 | O45: 14 | P45: 15 | Q45: 16 | R45: 16 | S45: 17
A46: 30 | B46: CH4 | C46: GtCO2e | D46: =D$45*D37/D$36 -> 10.87672521 | E46: 10.89062121 | F46: 9.664032561 | G46: 8.529872699 | H46: 7.184090177 | I46: 5.842739332 | J46: 4.828414079 | K46: 3.939266628 | L46: 3.013941871 | M46: 2.324968817 | N46: 1.708918169 | O46: 1.620406408 | P46: 1.650229303 | Q46: 1.676806681 | R46: 1.599274069 | S46: 1.622319825
A47: 31 | B47: N2O | C47: GtCO2e | D47: =D$45*D38/D$36 -> 4.193299861 | E47: 4.453186929 | F47: 4.190180854 | G47: 3.926898228 | H47: 3.498332392 | I47: 3.002475391 | J47: 2.61024546 | K47: 2.231883032 | L47: 1.786192774 | M47: 1.435654192 | N47: 1.097366086 | O47: 1.078844647 | P47: 1.136851824 | Q47: 1.193189907 | R47: 1.174749315 | S47: 1.228867023
A48: 32 | B48: Other GHG | C48: GtCO2e | D48: =D$45*D39/D$36 -> 7.647072721 | E48: 6.187917537 | F48: 5.889927925 | G48: 4.32580161 | H48: 3.525164287 | I48: 2.607750988 | J48: 1.937322774 | K48: 1.60058376 | L48: 1.065972001 | M48: 0.9460061172 | N48: 0.54519141 | O48: 0.6389843365 | P48: 0.563789891 | Q48: 0.6773243896 | R48: 0.6548404038 | S48: 0.6756189745
A49: 33 | B49: Total GHG | C49: GtCO2e | D49: =D$45*D40/D$36 -> 66.71709779 | E49: 69.53172568 | F49: 65.74414134 | G49: 60.78257254 | H49: 54.20758686 | I49: 46.45296571 | J49: 40.37598231 | K49: 34.77173342 | L49: 27.86610665 | M49: 22.70662913 | N49: 17.35147567 | O49: 17.33823539 | P49: 18.35087102 | Q49: 19.54732098 | R49: 19.42886379 | S49: 20.52680582
A50: 34 | B50: Aerosol | C50: GtCO2e | D50: =D$45*D41/D$36 -> -16.83723127 | E50: -15.63045423 | F50: -12.69663241 | G50: -10.34174393 | H50: -8.01519812 | I50: -6.089448702 | J50: -4.87147498 | K50: -3.816438074 | L50: -2.831149051 | M50: -2.098624189 | N50: -1.470798992 | O50: -1.327217383 | P50: -1.29420327 | Q50: -1.247370738 | R50: -1.130254691 | S50: -1.084715683
A51: 35 | B51: Other Non GHGs | C51: GtCO2e | D51: 7.647072721 | E51: 6.187917537 | F51: 5.889927925 | G51: 4.32580161 | H51: 3.525164287 | I51: 2.607750988 | J51: 1.937322774 | K51: 1.60058376 | L51: 1.065972001 | M51: 0.9460061172 | N51: 0.54519141 | O51: 0.6389843365 | P51: 0.563789891 | Q51: 0.6773243896 | R51: 0.6548404038 | S51: 0.6756189745
A52: 36 | B52: Albedo CO2e | C52: GtCO2e | D52: =D$45*D59/D$36 -> 0 | E52: 0 | F52: 0 | G52: 0 | H52: 0 | I52: 0 | J52: 0 | K52: 0 | L52: 0 | M52: 0 | N52: 0 | O52: 0 | P52: 0 | Q52: 0 | R52: 0 | S52: 0
A53: 37 | B53: Total | C53: GtCO2e | D53: =D$45*D43/D$36 -> 57.52693924 | E53: 60.08918899 | F53: 58.93743685 | G53: 54.76663021 | H53: 49.71755302 | I53: 42.971268 | J53: 37.44183011 | K53: 32.5558791 | L53: 26.1009296 | M53: 21.55401105 | N53: 16.42586808 | O53: 16.65000234 | P53: 17.62045764 | Q53: 18.97727463 | R53: 18.9534495 | S53: 20.11770911
A54: 38 | B54: Temp/RF Ratio (CF) w/o Albedo
A55: 39 | B55: Temp/RF Ratio (CF) w/o Albedo | D55: =Input!AC8 -> 0.455 | E55: =D55+($S55-$D55)/15 -> 0.4620758166 | F55: =E55+($S55-$D55)/15 -> 0.4691516332 | G55: 0.4762274497 | H55: 0.4833032663 | I55: 0.4903790829 | J55: 0.4974548995 | K55: 0.5045307161 | L55: 0.5116065327 | M55: 0.5186823492 | N55: 0.5257581658 | O55: 0.5328339824 | P55: 0.539909799 | Q55: 0.5469856156 | R55: 0.5540614321 | S55: =CFfromRFin2100(S43) -> 0.5611372487 | U55: ="CF for 2100 = CFfromRFIn2100(RF in 2100); other values interpolated " -> CF for 2100 = CFfromRFIn2100(RF in 2100); other values interpolated
A56: 40 | B56: Temperature Increase from RF w/o Albedo | U56: =CFfromRFin2100(4.08) -> 0.5830549424
A57: 41 | B57: Temp Incr w/o Albedo | C57: °C | D57: =D55*D43 -> 1.429245091 | E57: =E55*E43 -> 1.505325755 | F57: =F55*F43 -> 1.671884866 | G57: 1.759499623 | H57: 1.898065702 | I57: 2.018144518 | J57: 2.130036786 | K57: 2.274480654 | L57: 2.386941587 | M57: 2.562729414 | N57: 2.664418077 | O57: 2.859041021 | P57: 2.982790101 | Q57: 3.174321839 | R57: 3.334762547 | S57: 3.497370452 | U57: =CFfromRFin2100(4.54) -> 0.5773272156
A58: 42 | B58: Temperature Increase from RF with Albedo (Calculated based on 'Albedo Adjustment in 2023' and 'Albedo Adjustment per DC of warming')
A59: 43 | B59: Albedo | C59: W/m-2 | D59: =Input!D28 -> 0 | E59: =Input!E28 -> 0 | F59: =Input!F28 -> 0 | G59: =Input!G28 -> 0 | H59: =Input!H28 -> 0 | I59: =Input!I28 -> 0 | J59: =Input!J28 -> 0 | K59: =Input!K28 -> 0 | L59: =Input!L28 -> 0 | M59: =Input!M28 -> 0 | N59: =Input!N28 -> 0 | O59: =Input!O28 -> 0 | P59: =Input!P28 -> 0 | Q59: =Input!Q28 -> 0 | R59: =Input!R28 -> 0 | S59: =Input!S28 -> 0
A60: 44 | B60: Total RF with Albedo | C60: W/m-2 | D60: =D43+D59 -> 3.141198003 | E60: 3.257746241 | F60: 3.56363433 | G60: 3.694662338 | H60: 3.927276794 | I60: 4.115478389 | J60: 4.281869146 | K60: 4.508111362 | L60: 4.665580743 | M60: 4.940845621 | N60: 5.067763566 | O60: 5.365725751 | P60: 5.524608198 | Q60: 5.803300395 | R60: 6.01875957 | S60: 6.23264711
A61: 45 | B61: Temp/RF Ratio (CF) with Albedo | D61: =Input!AC8 -> 0.455 | E61: =D61+($S$61-$D$61)/15 -> 0.4620758166 | F61: =E61+($S$61-$D$61)/15 -> 0.4691516332 | G61: 0.4762274497 | H61: 0.4833032663 | I61: 0.4903790829 | J61: 0.4974548995 | K61: 0.5045307161 | L61: 0.5116065327 | M61: 0.5186823492 | N61: 0.5257581658 | O61: 0.5328339824 | P61: 0.539909799 | Q61: 0.5469856156 | R61: 0.5540614321 | S61: =CFfromRFin2100(S60) -> 0.5611372487
A62: 46 | B62: Temp Incr with Albedo | C62: °C | D62: =D61*D60 -> 1.429245091 | E62: =E61*E60 -> 1.505325755 | F62: 1.671884866 | G62: 1.759499623 | H62: 1.898065702 | I62: 2.018144518 | J62: 2.130036786 | K62: 2.274480654 | L62: 2.386941587 | M62: 2.562729414 | N62: 2.664418077 | O62: 2.859041021 | P62: 2.982790101 | Q62: 3.174321839 | R62: 3.334762547 | S62: 3.497370452
A63: 47 | B63: Temp Incr Due to Albedo | C63: °C | D63: =D62-D57 -> 0 | E63: =E62-E57 -> 0 | F63: 0 | G63: 0 | H63: 0 | I63: 0 | J63: 0 | K63: 0 | L63: 0 | M63: 0 | N63: 0 | O63: 0 | P63: 0 | Q63: 0 | R63: 0 | S63: 0
A64: 48 | B64: Temperature Increase With CDR
A65: 49 | B65: Temp/RF Ratio (CF) | D65: =Input!AC8 -> 0.455 | E65: =D65+($S$78-$D$78)/15 -> 0.4677396282 | F65: 0.4804792564 | G65: 0.4932188846 | H65: 0.5059585127 | I65: 0.5186981409 | J65: 0.5314377691 | K65: 0.5441773973 | L65: 0.5569170255 | M65: 0.5696566536 | N65: 0.5823962818 | O65: 0.59513591 | P65: 0.6078755382 | Q65: 0.6206151664 | R65: 0.6333547946 | S65: =CFfromTempin2100(Input!N6) -> 0.6460944228 | U65: ="CF for 2100 = CFfromTempIn2100(Temp in 2100); other values interpolated " -> CF for 2100 = CFfromTempIn2100(Temp in 2100); other values interpolated
A66: 50 | B66: Carbon Feedbacks For Temp Incr | C66: GtCO2 | D66: =D25 -> 2 | E66: =D66+($S$66-$D$66)/15 -> 2.366666667 | F66: =E66+($S$66-$D$66)/15 -> 2.733333333 | G66: 3.1 | H66: 3.466666667 | I66: 3.833333333 | J66: 4.2 | K66: 4.566666667 | L66: 4.933333333 | M66: 5.3 | N66: 5.666666667 | O66: 6.033333333 | P66: 6.4 | Q66: 6.766666667 | R66: 7.133333333 | S66: =Input!N6*Input!E7 -> 7.5
A67: 51 | B67: Change in Feedback Emissions | C67: GtCO2 | D67: =D25-D66 -> 0 | E67: =E25-E66 -> 0.6118946667 | F67: 1.223789333 | G67: 1.835684 | H67: 2.447578667 | I67: 3.059473333 | J67: 3.671368 | K67: 4.283262667 | L67: 4.895157333 | M67: 5.507052 | N67: 6.118946667 | O67: 6.730841333 | P67: 7.342736 | Q67: 7.954630667 | R67: 8.566525333 | S67: 9.17842
A68: 52 | B68: Carbon Dioxide Removal | C68: GTCO2 | D68: 0 | E68: 0 | F68: 0 | G68: 0 | H68: -15.01851852 | I68: -30.03703704 | J68: -45.05555556 | K68: -60.07407407 | L68: -75.09259259 | M68: -90.11111111 | N68: -90.11111111 | O68: -90.11111111 | P68: -90.11111111 | Q68: -90.11111111 | R68: -90.11111111 | S68: -90.11111111
A69: 53 | B69: Total Net CO2 | C69: GTCO2 | D69: 44 | E69: 45.590456 | F69: 47.180912 | G69: 48.771368 | H69: 34.67663881 | I69: 20.58190963 | J69: 6.487180444 | K69: -7.607548741 | L69: -21.70227793 | M69: -35.79700711 | N69: -34.87321778 | O69: -33.94942844 | P69: -33.02563911 | Q69: -32.10184978 | R69: -31.17806044 | S69: -30.25427111
A70: 54 | B70: CO2 To Atmosphere | C70: GtCO2 | D70: 27.5693 | E70: 22.27296712 | F70: 24.41590113 | G70: 26.60939202 | H70: 11.56166611 | I70: 0.4844880765 | J70: -6.622142086 | K70: -14.04821127 | L70: -21.80139014 | M70: -30.42654511 | N70: -29.8345373 | O70: -29.24627523 | P70: -28.66175889 | Q70: -28.08098829 | R70: -27.50396342 | S70: -26.93068429 | U70: ="=CO2AddedToAtmosphere(Total Net CO2,Year)" -> =CO2AddedToAtmosphere(Total Net CO2,Year)
A71: 55 | B71: PPM Added/Yr | C71: PPM | D71: 3.53 | E71: 2.851852385 | F71: 3.12623574 | G71: 3.407092448 | H71: 1.48036698 | I71: 0.06203432478 | J71: -0.8479055167 | K71: -1.798746641 | L71: -2.791471209 | M71: -3.895844444 | N71: -3.820043189 | O71: -3.74472154 | P71: -3.6698795 | Q71: -3.595517066 | R71: -3.521634241 | S71: -3.448231023 | U71: ="=CO2 To Atmosphere/7.81" -> =CO2 To Atmosphere/7.81
A72: 56 | B72: CO2 PPM | C72: PPM | D72: 428.14 | E72: 444.094631 | F72: 459.0398513 | G72: 475.3731717 | H72: 487.5918203 | I72: 491.4478236 | J72: 489.4831456 | K72: 482.8665152 | L72: 471.3909706 | M72: 454.6726814 | N72: 435.3829624 | O72: 416.4710505 | P72: 397.9345479 | Q72: 379.7710565 | R72: 361.9781783 | S72: 344.5535151
A73: 57 | B73: CO2 RF | C73: W/m-2 | D73: 2.402573716 | E73: 2.604098368 | F73: 2.789507643 | G73: 2.988414527 | H73: 3.134670646 | I73: 3.180374949 | J73: 3.15711516 | K73: 3.078367209 | L73: 2.940277785 | M73: 2.735665518 | N73: 2.494520178 | O73: 2.252832926 | P73: 2.010884554 | Q73: 1.768947077 | R73: 1.527283859 | S73: 1.286149743
A74: 58 | B74: RF Change from CDR | C74: W/m-2 | D74: 0 | E74: 0.001769693106 | F74: 0.008131526752 | G74: 0.0200897961 | H74: -0.02499957524 | I74: -0.1716728338 | J74: -0.3880626035 | K74: -0.6604047157 | L74: -0.9922555744 | M74: -1.390490906 | N74: -1.824806482 | O74: -2.258887792 | P74: -2.692121728 | Q74: -3.123894921 | R74: -3.553593536 | S74: -3.980603061
A75: 59 | B75: Total RF with CDR | C75: W/m-2 | D75: 3.141198003 | E75: 3.259515934 | F75: 3.571765857 | G75: 3.714752134 | H75: 3.902277219 | I75: 3.943805555 | J75: 3.893806543 | K75: 3.847706647 | L75: 3.673325169 | M75: 3.550354715 | N75: 3.242957084 | O75: 3.10683796 | P75: 2.83248647 | Q75: 2.679405474 | R75: 2.465166034 | S75: 2.252044049
A76: 60 | B76: Temp Incr with CDR | C76: °C | D76: 1.429245091 | E76: 1.524604771 | F76: 1.716159403 | G76: 1.832185904 | H76: 1.974390378 | I76: 2.04564461 | J76: 2.069315862 | K76: 2.093834988 | L76: 2.045737327 | M76: 2.022483186 | N76: 1.888686148 | O76: 1.848990836 | P76: 1.721799237 | Q76: 1.662879674 | R76: 1.561324727 | S76: 1.4550331
A77: 61 | B77: Temperature Increase With SRM - Based on RF reduction per year until temperature target met
A78: 62 | B78: Temp/RF Ratio (CF) | D78: =Input!AC8 -> 0.455 | E78: =D78+($S$78-$D$78)/15 -> 0.4677396282 | F78: 0.4804792564 | G78: 0.4932188846 | H78: 0.5059585127 | I78: 0.5186981409 | J78: 0.5314377691 | K78: 0.5441773973 | L78: 0.5569170255 | M78: 0.5696566536 | N78: 0.5823962818 | O78: 0.59513591 | P78: 0.6078755382 | Q78: 0.6206151664 | R78: 0.6333547946 | S78: =CFfromTempin2100(Input!N6) -> 0.6460944228 | U78: ="CF for 2100 = CFfromTempIn2100(Temp in 2100); other values interpolated " -> CF for 2100 = CFfromTempIn2100(Temp in 2100); other values interpolated
A79: 63 | B79: =B66 -> Carbon Feedbacks For Temp Incr | C79: =C66 -> GtCO2 | D79: 2 | E79: 2.366666667 | F79: 2.733333333 | G79: 3.1 | H79: 3.466666667 | I79: 3.833333333 | J79: 4.2 | K79: 4.566666667 | L79: 4.933333333 | M79: 5.3 | N79: 5.666666667 | O79: 6.033333333 | P79: 6.4 | Q79: 6.766666667 | R79: 7.133333333 | S79: 7.5
A80: 64 | B80: =B67 -> Change in Feedback Emissions | C80: GtCO2 | D80: 0 | E80: 0.6118946667 | F80: 1.223789333 | G80: 1.835684 | H80: 2.447578667 | I80: 3.059473333 | J80: 3.671368 | K80: 4.283262667 | L80: 4.895157333 | M80: 5.507052 | N80: 6.118946667 | O80: 6.730841333 | P80: 7.342736 | Q80: 7.954630667 | R80: 8.566525333 | S80: 9.17842
A81: 65 | B81: Total Net CO2 | C81: GTCO2 | D81: =D27+D80 -> 44 | E81: =E27+E80 -> 45.590456 | F81: 47.180912 | G81: 48.771368 | H81: 49.69515733 | I81: 50.61894667 | J81: 51.542736 | K81: 52.46652533 | L81: 53.39031467 | M81: 54.314104 | N81: 55.23789333 | O81: 56.16168267 | P81: 57.085472 | Q81: 58.00926133 | R81: 58.93305067 | S81: 59.85684
A82: 66 | B82: CO2 To Atmosphere | C82: GtCO2 | D82: =D30 -> 27.5693 | E82: =CO2AddedToAtmosphere(E81,E16) -> 22.53963379 | F82: =CO2AddedToAtmosphere(F81,F16) -> 24.6825678 | G82: =CO2AddedToAtmosphere(G81,G16) -> 26.87605869 | H82: =CO2AddedToAtmosphere(H81,H16) -> 28.28509912 | I82: =CO2AddedToAtmosphere(I81,I16) -> 29.71119577 | J82: =CO2AddedToAtmosphere(J81,J16) -> 31.15434864 | K82: =CO2AddedToAtmosphere(K81,K16) -> 32.61455774 | L82: =CO2AddedToAtmosphere(L81,L16) -> 34.09182306 | M82: =CO2AddedToAtmosphere(M81,M16) -> 35.5861446 | N82: =CO2AddedToAtmosphere(N81,N16) -> 37.09752237 | O82: =CO2AddedToAtmosphere(O81,O16) -> 38.62595635 | P82: =CO2AddedToAtmosphere(P81,P16) -> 40.17144656 | Q82: =CO2AddedToAtmosphere(Q81,Q16) -> 41.73399299 | R82: =CO2AddedToAtmosphere(R81,R16) -> 43.31359565 | S82: =CO2AddedToAtmosphere(S81,S16) -> 44.91025452
A83: 67 | B83: PPM Added/Yr | C83: PPM | D83: =D31 -> 3.53 | E83: =E82/Input!$AN$5 -> 2.885996644 | F83: =F82/Input!$AN$5 -> 3.16038 | G83: =G82/Input!$AN$5 -> 3.441236708 | H83: =H82/Input!$AN$5 -> 3.621651616 | I83: =I82/Input!$AN$5 -> 3.804250419 | J83: =J82/Input!$AN$5 -> 3.989033117 | K83: =K82/Input!$AN$5 -> 4.175999711 | L83: =L82/Input!$AN$5 -> 4.3651502 | M83: =M82/Input!$AN$5 -> 4.556484584 | N83: =N82/Input!$AN$5 -> 4.750002864 | O83: =O82/Input!$AN$5 -> 4.945705039 | P83: =P82/Input!$AN$5 -> 5.143591109 | Q83: =Q82/Input!$AN$5 -> 5.343661075 | R83: =R82/Input!$AN$5 -> 5.545914936 | S83: =S82/Input!$AN$5 -> 5.750352692
A84: =A83+1 -> 68 | B84: CO2 PPM | C84: PPM | D84: =D32 -> 428.14 | E84: =D84+(D83+E83)*2.5 -> 444.1799916 | F84: =E84+(E83+F83)*2.5 -> 459.2959332 | G84: 475.799975 | H84: 493.4571958 | I84: 512.0219509 | J84: 531.5051597 | K84: 551.9177418 | L84: 573.2706166 | M84: 595.5747035 | N84: 618.8409222 | O84: 643.0801919 | P84: 668.3034323 | Q84: 694.5215627 | R84: 721.7455028 | S84: 749.9861718
A85: 69 | B85: CO2 RF | C85: W/m-2 | D85: =CO2RFFromCO2PPM(D84) -> 2.402573716 | E85: =CO2RFFromCO2PPM(E84) -> 2.60516659 | F85: =CO2RFFromCO2PPM(F84) -> 2.792656207 | G85: =CO2RFFromCO2PPM(G84) -> 2.99356 | H85: =CO2RFFromCO2PPM(H84) -> 3.204105678 | I85: =CO2RFFromCO2PPM(I84) -> 3.420572351 | J85: =CO2RFFromCO2PPM(J84) -> 3.642346077 | K85: =CO2RFFromCO2PPM(K84) -> 3.86876392 | L85: =CO2RFFromCO2PPM(L84) -> 4.099112473 | M85: =CO2RFFromCO2PPM(M84) -> 4.332626377 | N85: =CO2RFFromCO2PPM(N84) -> 4.56848681 | O85: =CO2RFFromCO2PPM(O84) -> 4.805819969 | P85: =CO2RFFromCO2PPM(P84) -> 5.043695528 | Q85: =CO2RFFromCO2PPM(Q84) -> 5.281125078 | R85: =CO2RFFromCO2PPM(R84) -> 5.517060558 | S85: =CO2RFFromCO2PPM(S84) -> 5.750392659
A86: 70 | B86: RF Change from SRM | C86: W/m-2 | D86: =D85-D36 -> 0 | E86: =E85-E36 -> 0.002837914676 | F86: 0.01128009141 | G86: 0.02523526887 | H86: 0.04443545702 | I86: 0.06852456846 | J86: 0.09716831344 | K86: 0.129991995 | L86: 0.1665791132 | M86: 0.2064699522 | N86: 0.2491601502 | O86: 0.2940992522 | P86: 0.3406892458 | Q86: 0.3882830793 | R86: 0.4361831636 | S86: 0.4836398559
A87: 71 | B87: Total RF with SRM | C87: W/m-2 | D87: =D60+D86 -> 3.141198003 | E87: =E60+E86 -> 3.260584156 | F87: 3.574914422 | G87: 3.719897607 | H87: 3.971712251 | I87: 4.184002957 | J87: 4.37903746 | K87: 4.638103357 | L87: 4.832159857 | M87: 5.147315574 | N87: 5.316923716 | O87: 5.659825004 | P87: 5.865297443 | Q87: 6.191583475 | R87: 6.454942733 | S87: 6.716286966
A88: 72 | B88: RF for Desired Tmp Increase | C88: W/m-2 | D88: =(Input!$N$6)/'Model Calcs'!D78 -> 3.296703297 | E88: =(Input!$N$6)/'Model Calcs'!E78 -> 3.206912371 | F88: =(Input!$N$6)/'Model Calcs'!F78 -> 3.121882954 | G88: =(Input!$N$6)/'Model Calcs'!G78 -> 3.041246082 | H88: =(Input!$N$6)/'Model Calcs'!H78 -> 2.964669953 | I88: =(Input!$N$6)/'Model Calcs'!I78 -> 2.891855362 | J88: =(Input!$N$6)/'Model Calcs'!J78 -> 2.822531794 | K88: =(Input!$N$6)/'Model Calcs'!K78 -> 2.756454067 | L88: =(Input!$N$6)/'Model Calcs'!L78 -> 2.693399432 | M88: =(Input!$N$6)/'Model Calcs'!M78 -> 2.633165066 | N88: =(Input!$N$6)/'Model Calcs'!N78 -> 2.575565894 | O88: =(Input!$N$6)/'Model Calcs'!O78 -> 2.520432686 | P88: =(Input!$N$6)/'Model Calcs'!P78 -> 2.4676104 | Q88: =(Input!$N$6)/'Model Calcs'!Q78 -> 2.416956725 | R88: =(Input!$N$6)/'Model Calcs'!R78 -> 2.368340799 | S88: =(Input!$N$6)/'Model Calcs'!S78 -> 2.321642081
A89: 73 | B89: SRM To Meet Desired Temp Incr | C89: W/m-2 | D89: =D87-D88 -> -0.1555052934 | E89: =E87-E88 -> 0.05367178495 | F89: 0.4530314682 | G89: 0.6786515255 | H89: 1.007042298 | I89: 1.292147595 | J89: 1.556505665 | K89: 1.88164929 | L89: 2.138760425 | M89: 2.514150508 | N89: 2.741357823 | O89: 3.139392318 | P89: 3.397687043 | Q89: 3.77462675 | R89: 4.086601935 | S89: 4.394644885
A90: 74 | B90: SRM Implentation | C90: W/m-2 | D90: =IF(D16<=Input!$N$9,0,IF((D16-$D$16)*Input!$N$10<D89,(D16-$D$16)*Input!$N$10,D89)) -> 0 | E90: =IF(E16<=Input!$N$9,0,IF((E16-$D$16)*Input!$N$10<E89,(E16-$D$16)*Input!$N$10,E89)) -> 0 | F90: =IF(F16<=Input!$N$9,0,IF((F16-$D$16)*Input!$N$10<F89,(F16-$D$16)*Input!$N$10,F89)) -> 0 | G90: =IF(G16<=Input!$N$9,0,IF((G16-$D$16)*Input!$N$10<G89,(G16-$D$16)*Input!$N$10,G89)) -> 0.6786515255 | H90: =IF(H16<=Input!$N$9,0,IF((H16-$D$16)*Input!$N$10<H89,(H16-$D$16)*Input!$N$10,H89)) -> 1.007042298 | I90: =IF(I16<=Input!$N$9,0,IF((I16-$D$16)*Input!$N$10<I89,(I16-$D$16)*Input!$N$10,I89)) -> 1.292147595 | J90: =IF(J16<=Input!$N$9,0,IF((J16-$D$16)*Input!$N$10<J89,(J16-$D$16)*Input!$N$10,J89)) -> 1.556505665 | K90: =IF(K16<=Input!$N$9,0,IF((K16-$D$16)*Input!$N$10<K89,(K16-$D$16)*Input!$N$10,K89)) -> 1.88164929 | L90: =IF(L16<=Input!$N$9,0,IF((L16-$D$16)*Input!$N$10<L89,(L16-$D$16)*Input!$N$10,L89)) -> 2.138760425 | M90: =IF(M16<=Input!$N$9,0,IF((M16-$D$16)*Input!$N$10<M89,(M16-$D$16)*Input!$N$10,M89)) -> 2.514150508 | N90: =IF(N16<=Input!$N$9,0,IF((N16-$D$16)*Input!$N$10<N89,(N16-$D$16)*Input!$N$10,N89)) -> 2.741357823 | O90: =IF(O16<=Input!$N$9,0,IF((O16-$D$16)*Input!$N$10<O89,(O16-$D$16)*Input!$N$10,O89)) -> 3.139392318 | P90: =IF(P16<=Input!$N$9,0,IF((P16-$D$16)*Input!$N$10<P89,(P16-$D$16)*Input!$N$10,P89)) -> 3.397687043 | Q90: =IF(Q16<=Input!$N$9,0,IF((Q16-$D$16)*Input!$N$10<Q89,(Q16-$D$16)*Input!$N$10,Q89)) -> 3.77462675 | R90: =IF(R16<=Input!$N$9,0,IF((R16-$D$16)*Input!$N$10<R89,(R16-$D$16)*Input!$N$10,R89)) -> 4.086601935 | S90: =IF(S16<=Input!$N$9,0,IF((S16-$D$16)*Input!$N$10<S89,(S16-$D$16)*Input!$N$10,S89)) -> 4.394644885
A91: 75 | B91: RF With SRM Implenention | C91: W/m-2 | D91: =D87-D90 -> 3.141198003 | E91: =E87-E90 -> 3.260584156 | F91: 3.574914422 | G91: 3.041246082 | H91: 2.964669953 | I91: 2.891855362 | J91: 2.822531794 | K91: 2.756454067 | L91: 2.693399432 | M91: 2.633165066 | N91: 2.575565894 | O91: 2.520432686 | P91: 2.4676104 | Q91: 2.416956725 | R91: 2.368340799 | S91: 2.321642081
A92: 76 | B92: Temp Incr with SRM | C92: °C | D92: =D78*D91 -> 1.429245091 | E92: =E78*E91 -> 1.525104421 | F92: 1.717672223 | G92: 1.5 | H92: 1.5 | I92: 1.5 | J92: 1.5 | K92: 1.5 | L92: 1.5 | M92: 1.5 | N92: 1.5 | O92: 1.5 | P92: 1.5 | Q92: 1.5 | R92: 1.5 | S92: 1.5
A93: 77 | B93: Temperature Increase With SRM - Based on Temperature Reduction Per Airplane Per Year
A94: 78 | B94: RF With Feedback Reduction | C94: =C88 -> W/m-2 | D94: =D87 -> 3.141198003 | E94: =E87 -> 3.260584156 | F94: 3.574914422 | G94: 3.719897607 | H94: 3.971712251 | I94: 4.184002957 | J94: 4.37903746 | K94: 4.638103357 | L94: 4.832159857 | M94: 5.147315574 | N94: 5.316923716 | O94: 5.659825004 | P94: 5.865297443 | Q94: 6.191583475 | R94: 6.454942733 | S94: 6.716286966
A95: 79 | B95: Temp Increase w/o Planes | C95: °C | D95: =D78*D94 -> 1.429245091 | E95: =E78*E94 -> 1.525104421 | F95: 1.717672223 | G95: 1.834723748 | H95: 2.009521624 | I95: 2.170234556 | J95: 2.327185898 | K95: 2.523951013 | L95: 2.691112094 | M95: 2.932202565 | N95: 3.096556603 | O95: 3.368365104 | P95: 3.56537084 | Q95: 3.842590608 | R95: 4.088268929 | S95: 4.33935555
A96: 80 | B96: Reduction needed by planes | D96: =IF(D16<=Input!$N$9,0,(D95-Input!#REF!)) -> 0 | E96: =IF(E16<=Input!$N$9,0,(E95-Input!#REF!)) -> 0 | F96: =IF(F16<=Input!$N$9,0,(F95-Input!$N$6)) -> 0 | G96: =IF(G16<=Input!$N$9,0,(G95-Input!$N$6)) -> 0.3347237484 | H96: =IF(H16<=Input!$N$9,0,(H95-Input!$N$6)) -> 0.5095216235 | I96: =IF(I16<=Input!$N$9,0,(I95-Input!$N$6)) -> 0.6702345555 | J96: =IF(J16<=Input!$N$9,0,(J95-Input!$N$6)) -> 0.8271858984 | K96: =IF(K16<=Input!$N$9,0,(K95-Input!$N$6)) -> 1.023951013 | L96: =IF(L16<=Input!$N$9,0,(L95-Input!$N$6)) -> 1.191112094 | M96: =IF(M16<=Input!$N$9,0,(M95-Input!$N$6)) -> 1.432202565 | N96: =IF(N16<=Input!$N$9,0,(N95-Input!$N$6)) -> 1.596556603 | O96: =IF(O16<=Input!$N$9,0,(O95-Input!$N$6)) -> 1.868365104 | P96: =IF(P16<=Input!$N$9,0,(P95-Input!$N$6)) -> 2.06537084 | Q96: =IF(Q16<=Input!$N$9,0,(Q95-Input!$N$6)) -> 2.342590608 | R96: =IF(R16<=Input!$N$9,0,(R95-Input!$N$6)) -> 2.588268929 | S96: =IF(S16<=Input!$N$9,0,(S95-Input!$N$6)) -> 2.83935555
A97: 81 | B97: Number of planes to meet target | D97: =D96/Input!$N$11 -> 0 | E97: =E96/Input!$N$11 -> 0 | F97: =F96/Input!$N$11 -> 0 | G97: =G96/Input!$N$11 -> 111.5745828 | H97: =H96/Input!$N$11 -> 169.8405412 | I97: =I96/Input!$N$11 -> 223.4115185 | J97: =J96/Input!$N$11 -> 275.7286328 | K97: =K96/Input!$N$11 -> 341.3170044 | L97: =L96/Input!$N$11 -> 397.0373647 | M97: =M96/Input!$N$11 -> 477.400855 | N97: =N96/Input!$N$11 -> 532.1855344 | O97: =O96/Input!$N$11 -> 622.788368 | P97: =P96/Input!$N$11 -> 688.4569467 | Q97: =Q96/Input!$N$11 -> 780.8635361 | R97: =R96/Input!$N$11 -> 862.7563096 | S97: =S96/Input!$N$11 -> 946.4518501
A98: 82 | B98: Number of planes | D98: 0 | E98: =IF(E16<=Input!$N$9,0,Input!$N$12*(E16-Input!$N$9)) -> 0 | F98: =IF(F16<=Input!$N$9,0,IF(Input!$N$12*(F16-Input!$N$9)>F97,F97,Input!$N$12*(F16-Input!$N$9))) -> 0 | G98: =IF(G16<=Input!$N$9,0,IF(Input!$N$12*(G16-Input!$N$9)>G97,G97,Input!$N$12*(G16-Input!$N$9))) -> 40 | H98: =IF(H16<=Input!$N$9,0,IF(Input!$N$12*(H16-Input!$N$9)>H97,H97,Input!$N$12*(H16-Input!$N$9))) -> 80 | I98: =IF(I16<=Input!$N$9,0,IF(Input!$N$12*(I16-Input!$N$9)>I97,I97,Input!$N$12*(I16-Input!$N$9))) -> 120 | J98: =IF(J16<=Input!$N$9,0,IF(Input!$N$12*(J16-Input!$N$9)>J97,J97,Input!$N$12*(J16-Input!$N$9))) -> 160 | K98: =IF(K16<=Input!$N$9,0,IF(Input!$N$12*(K16-Input!$N$9)>K97,K97,Input!$N$12*(K16-Input!$N$9))) -> 200 | L98: =IF(L16<=Input!$N$9,0,IF(Input!$N$12*(L16-Input!$N$9)>L97,L97,Input!$N$12*(L16-Input!$N$9))) -> 240 | M98: =IF(M16<=Input!$N$9,0,IF(Input!$N$12*(M16-Input!$N$9)>M97,M97,Input!$N$12*(M16-Input!$N$9))) -> 280 | N98: =IF(N16<=Input!$N$9,0,IF(Input!$N$12*(N16-Input!$N$9)>N97,N97,Input!$N$12*(N16-Input!$N$9))) -> 320 | O98: =IF(O16<=Input!$N$9,0,IF(Input!$N$12*(O16-Input!$N$9)>O97,O97,Input!$N$12*(O16-Input!$N$9))) -> 360 | P98: =IF(P16<=Input!$N$9,0,IF(Input!$N$12*(P16-Input!$N$9)>P97,P97,Input!$N$12*(P16-Input!$N$9))) -> 400 | Q98: =IF(Q16<=Input!$N$9,0,IF(Input!$N$12*(Q16-Input!$N$9)>Q97,Q97,Input!$N$12*(Q16-Input!$N$9))) -> 440 | R98: =IF(R16<=Input!$N$9,0,IF(Input!$N$12*(R16-Input!$N$9)>R97,R97,Input!$N$12*(R16-Input!$N$9))) -> 480 | S98: =IF(S16<=Input!$N$9,0,IF(Input!$N$12*(S16-Input!$N$9)>S97,S97,Input!$N$12*(S16-Input!$N$9))) -> 520
A99: 83 | B99: Temp Decrease from planes | C99: °C | D99: =D98*Input!$N$11 -> 0 | E99: =E98*Input!$N$11 -> 0 | F99: =F98*Input!$N$11 -> 0 | G99: =G98*Input!$N$11 -> 0.12 | H99: =H98*Input!$N$11 -> 0.24 | I99: =I98*Input!$N$11 -> 0.36 | J99: =J98*Input!$N$11 -> 0.48 | K99: =K98*Input!$N$11 -> 0.6 | L99: =L98*Input!$N$11 -> 0.72 | M99: =M98*Input!$N$11 -> 0.84 | N99: =N98*Input!$N$11 -> 0.96 | O99: =O98*Input!$N$11 -> 1.08 | P99: =P98*Input!$N$11 -> 1.2 | Q99: =Q98*Input!$N$11 -> 1.32 | R99: =R98*Input!$N$11 -> 1.44 | S99: =S98*Input!$N$11 -> 1.56
A100: 84 | B100: Temp Increase with Planes | C100: °C | D100: =D95-D99 -> 1.429245091 | E100: =E95-E99 -> 1.525104421 | F100: 1.717672223 | G100: 1.714723748 | H100: 1.769521624 | I100: 1.810234556 | J100: 1.847185898 | K100: 1.923951013 | L100: 1.971112094 | M100: 2.092202565 | N100: 2.136556603 | O100: 2.288365104 | P100: 2.36537084 | Q100: 2.522590608 | R100: 2.648268929 | S100: 2.77935555
B101: Cost Calculations
B102: Costs per Item
B103: SLR Cost Per Foot | C103: $Billion | D103: =Input!U8 -> 100 | E103: =D103+($S103-$D103)/15 -> 110 | F103: 120 | G103: 130 | H103: 140 | I103: 150 | J103: 160 | K103: 170 | L103: 180 | M103: 190 | N103: 200 | O103: 210 | P103: 220 | Q103: 230 | R103: 240 | S103: =Input!V8 -> 250
B104: CCS Cost Per Ton | C104: $ | D104: =Input!U9 -> 70 | E104: =D104+($S104-$D104)/15 -> 68 | F104: 66 | G104: 64 | H104: 62 | I104: 60 | J104: 58 | K104: 56 | L104: 54 | M104: 52 | N104: 50 | O104: 48 | P104: 46 | Q104: 44 | R104: 42 | S104: =Input!V9 -> 40
B105: CDR Cost Per Ton | C105: $ | D105: =Input!U10 -> 400 | E105: =D105+($S105-$D105)/15 -> 380 | F105: 360 | G105: 340 | H105: 320 | I105: 300 | J105: 280 | K105: 260 | L105: 240 | M105: 220 | N105: 200 | O105: 180 | P105: 160 | Q105: 140 | R105: 120 | S105: =Input!V10 -> 100
B106: Disasters Cost per °C | C106: $Billion | D106: =Input!U11 -> 150 | E106: =D106+($S106-$D106)/15 -> 153.3333333 | F106: 156.6666667 | G106: 160 | H106: 163.3333333 | I106: 166.6666667 | J106: 170 | K106: 173.3333333 | L106: 176.6666667 | M106: 180 | N106: 183.3333333 | O106: 186.6666667 | P106: 190 | Q106: 193.3333333 | R106: 196.6666667 | S106: =Input!V11 -> 200
B107: Cost Calculations Without Albedo
B108: Sea Level Rise | C108: Feet | D108: 0.7 | E108: =D108+($S108-$D108)/15 -> 1.003070379 | F108: 1.306140757 | G108: 1.609211136 | H108: 1.912281514 | I108: 2.215351893 | J108: 2.518422271 | K108: 2.82149265 | L108: 3.124563028 | M108: 3.427633407 | N108: 3.730703785 | O108: 4.033774164 | P108: 4.336844542 | Q108: 4.639914921 | R108: 4.942985299 | S108: =S57*Input!V7 -> 5.246055678
B109: Sea Level Rise Costs | C109: $Billion | D109: =D103*D108 -> 70 | E109: =E103*E108 -> 110.3377416 | F109: 156.7368908 | G109: 209.1974476 | H109: 267.719412 | I109: 332.3027839 | J109: 402.9475634 | K109: 479.6537504 | L109: 562.421345 | M109: 651.2503472 | N109: 746.140757 | O109: 847.0925743 | P109: 954.1057993 | Q109: 1067.180432 | R109: 1186.316472 | S109: 1311.513919
B110: CCS Costs | C110: $Billion | D110: =0 -D104*'Model Calcs'!D19 -> 0 | E110: =0 -E104*'Model Calcs'!E19 -> 0 | F110: =0 -F104*'Model Calcs'!F19 -> 0 | G110: =0 -G104*'Model Calcs'!G19 -> 0 | H110: =0 -H104*'Model Calcs'!H19 -> 0 | I110: =0 -I104*'Model Calcs'!I19 -> 0 | J110: =0 -J104*'Model Calcs'!J19 -> 0 | K110: =0 -K104*'Model Calcs'!K19 -> 0 | L110: =0 -L104*'Model Calcs'!L19 -> 0 | M110: =0 -M104*'Model Calcs'!M19 -> 0 | N110: =0 -N104*'Model Calcs'!N19 -> 0 | O110: =0 -O104*'Model Calcs'!O19 -> 0 | P110: =0 -P104*'Model Calcs'!P19 -> 0 | Q110: =0 -Q104*'Model Calcs'!Q19 -> 0 | R110: =0 -R104*'Model Calcs'!R19 -> 0 | S110: =0 -S104*'Model Calcs'!S19 -> 0
B111: CDR Costs | C111: $Billion | D111: =0 - D105*'Model Calcs'!D20 -> 0 | E111: =0 - E105*'Model Calcs'!E20 -> 0 | F111: =0 - F105*'Model Calcs'!F20 -> 0 | G111: =0 - G105*'Model Calcs'!G20 -> 0 | H111: =0 - H105*'Model Calcs'!H20 -> 0 | I111: =0 - I105*'Model Calcs'!I20 -> 0 | J111: =0 - J105*'Model Calcs'!J20 -> 0 | K111: =0 - K105*'Model Calcs'!K20 -> 0 | L111: =0 - L105*'Model Calcs'!L20 -> 0 | M111: =0 - M105*'Model Calcs'!M20 -> 0 | N111: =0 - N105*'Model Calcs'!N20 -> 0 | O111: =0 - O105*'Model Calcs'!O20 -> 0 | P111: =0 - P105*'Model Calcs'!P20 -> 0 | Q111: =0 - Q105*'Model Calcs'!Q20 -> 0 | R111: =0 - R105*'Model Calcs'!R20 -> 0 | S111: =0 - S105*'Model Calcs'!S20 -> 0
B112: Disasters | C112: $Billion | D112: =D$57*D106 -> 214.3867637 | E112: =E57*E106 -> 230.8166157 | F112: 261.928629 | G112: 281.5199397 | H112: 310.017398 | I112: 336.3574197 | J112: 362.1062536 | K112: 394.2433133 | L112: 421.6930137 | M112: 461.2912945 | N112: 488.4766475 | O112: 533.6876572 | P112: 566.7301193 | Q112: 613.7022222 | R112: 655.8366342 | S112: 699.4740903
B113: Total Costs | C113: $Billion | D113: =SUM(D108:D112) -> 285.0867637 | E113: =SUM(E108:E112) -> 342.1574277 | F113: 419.9716606 | G113: 492.3265984 | H113: 579.6490915 | I113: 670.8755554 | J113: 767.5722392 | K113: 876.7185564 | L113: 987.2389218 | M113: 1115.969275 | N113: 1238.348108 | O113: 1384.814006 | P113: 1525.172763 | Q113: 1685.522569 | R113: 1847.096091 | S113: 2016.234065
B114: Cost Calculations With Albedo
B115: Sea Level Rise | C115: Feet | D115: 0.7 | E115: =D115+($S115-$D115)/15 -> 1.003070379 | F115: 1.306140757 | G115: 1.609211136 | H115: 1.912281514 | I115: 2.215351893 | J115: 2.518422271 | K115: 2.82149265 | L115: 3.124563028 | M115: 3.427633407 | N115: 3.730703785 | O115: 4.033774164 | P115: 4.336844542 | Q115: 4.639914921 | R115: 4.942985299 | S115: =S62*Input!V7 -> 5.246055678
B116: Sea Level Rise Costs | C116: $Billion | D116: =D103*D115 -> 70 | E116: =E103*E115 -> 110.3377416 | F116: 156.7368908 | G116: 209.1974476 | H116: 267.719412 | I116: 332.3027839 | J116: 402.9475634 | K116: 479.6537504 | L116: 562.421345 | M116: 651.2503472 | N116: 746.140757 | O116: 847.0925743 | P116: 954.1057993 | Q116: 1067.180432 | R116: 1186.316472 | S116: 1311.513919
B117: CCS Costs | C117: $Billion | D117: =0-D104*'Model Calcs'!D19 -> 0 | E117: =0-E104*'Model Calcs'!E19 -> 0 | F117: =0-F104*'Model Calcs'!F19 -> 0 | G117: =0-G104*'Model Calcs'!G19 -> 0 | H117: =0-H104*'Model Calcs'!H19 -> 0 | I117: =0-I104*'Model Calcs'!I19 -> 0 | J117: =0-J104*'Model Calcs'!J19 -> 0 | K117: =0-K104*'Model Calcs'!K19 -> 0 | L117: =0-L104*'Model Calcs'!L19 -> 0 | M117: =0-M104*'Model Calcs'!M19 -> 0 | N117: =0-N104*'Model Calcs'!N19 -> 0 | O117: =0-O104*'Model Calcs'!O19 -> 0 | P117: =0-P104*'Model Calcs'!P19 -> 0 | Q117: =0-Q104*'Model Calcs'!Q19 -> 0 | R117: =0-R104*'Model Calcs'!R19 -> 0 | S117: =0-S104*'Model Calcs'!S19 -> 0
B118: CDR Costs | C118: $Billion | D118: =0-D105*'Model Calcs'!D20 -> 0 | E118: =0-E105*'Model Calcs'!E20 -> 0 | F118: =0-F105*'Model Calcs'!F20 -> 0 | G118: =0-G105*'Model Calcs'!G20 -> 0 | H118: =0-H105*'Model Calcs'!H20 -> 0 | I118: =0-I105*'Model Calcs'!I20 -> 0 | J118: =0-J105*'Model Calcs'!J20 -> 0 | K118: =0-K105*'Model Calcs'!K20 -> 0 | L118: =0-L105*'Model Calcs'!L20 -> 0 | M118: =0-M105*'Model Calcs'!M20 -> 0 | N118: =0-N105*'Model Calcs'!N20 -> 0 | O118: =0-O105*'Model Calcs'!O20 -> 0 | P118: =0-P105*'Model Calcs'!P20 -> 0 | Q118: =0-Q105*'Model Calcs'!Q20 -> 0 | R118: =0-R105*'Model Calcs'!R20 -> 0 | S118: =0-S105*'Model Calcs'!S20 -> 0
B119: Disasters | C119: $Billion | D119: =D$62*D106 -> 214.3867637 | E119: =E$62*E106 -> 230.8166157 | F119: 261.928629 | G119: 281.5199397 | H119: 310.017398 | I119: 336.3574197 | J119: 362.1062536 | K119: 394.2433133 | L119: 421.6930137 | M119: 461.2912945 | N119: 488.4766475 | O119: 533.6876572 | P119: 566.7301193 | Q119: 613.7022222 | R119: 655.8366342 | S119: 699.4740903
B120: Total Costs | C120: $Billion | D120: =SUM(D115:D119) -> 285.0867637 | E120: =SUM(E115:E119) -> 342.1574277 | F120: 419.9716606 | G120: 492.3265984 | H120: 579.6490915 | I120: 670.8755554 | J120: 767.5722392 | K120: 876.7185564 | L120: 987.2389218 | M120: 1115.969275 | N120: 1238.348108 | O120: 1384.814006 | P120: 1525.172763 | Q120: 1685.522569 | R120: 1847.096091 | S120: 2016.234065
B121: Cost Calculations With Albedo and CDR
B122: Total CDR | C122: GTCO2 | D122: =0-(D68+D20) -> 0 | E122: =0-(E68+E20) -> 0 | F122: 0 | G122: 0 | H122: 15.01851852 | I122: 30.03703704 | J122: 45.05555556 | K122: 60.07407407 | L122: 75.09259259 | M122: 90.11111111 | N122: 90.11111111 | O122: 90.11111111 | P122: 90.11111111 | Q122: 90.11111111 | R122: 90.11111111 | S122: 90.11111111
B123: Sea Level Rise | C123: Feet | D123: 0.7 | E123: =D123+($S123-$D123)/15 -> 0.7988366434 | F123: 0.8976732867 | G123: 0.9965099301 | H123: 1.095346573 | I123: 1.194183217 | J123: 1.29301986 | K123: 1.391856503 | L123: 1.490693147 | M123: 1.58952979 | N123: 1.688366434 | O123: 1.787203077 | P123: 1.88603972 | Q123: 1.984876364 | R123: 2.083713007 | S123: =S76*Input!V7 -> 2.18254965
B124: Sea Level Rise Costs | C124: $Billion | D124: =D103*D123 -> 70 | E124: =E103*E123 -> 87.87203077 | F124: 107.7207944 | G124: 129.5462909 | H124: 153.3485203 | I124: 179.1274825 | J124: 206.8831776 | K124: 236.6156056 | L124: 268.3247664 | M124: 302.0106601 | N124: 337.6732867 | O124: 375.3126461 | P124: 414.9287384 | Q124: 456.5215636 | R124: 500.0911217 | S124: 545.6374126
B125: CCS Costs | C125: $Billion | D125: =D117 -> 0 | E125: =E117 -> 0 | F125: 0 | G125: 0 | H125: 0 | I125: 0 | J125: 0 | K125: 0 | L125: 0 | M125: 0 | N125: 0 | O125: 0 | P125: 0 | Q125: 0 | R125: 0 | S125: 0
B126: CDR Costs | C126: $Billion | D126: =D122*D105 -> 0 | E126: =E122*E105 -> 0 | F126: 0 | G126: 0 | H126: 4805.925926 | I126: 9011.111111 | J126: 12615.55556 | K126: 15619.25926 | L126: 18022.22222 | M126: 19824.44444 | N126: 18022.22222 | O126: 16220 | P126: 14417.77778 | Q126: 12615.55556 | R126: 10813.33333 | S126: 9011.111111
B127: Disasters | C127: $Billion | D127: =D$76*D106 -> 214.3867637 | E127: =E$76*E106 -> 233.7727316 | F127: 268.8649731 | G127: 293.1497447 | H127: 322.4837617 | I127: 340.9407683 | J127: 351.7836966 | K127: 362.931398 | L127: 361.4135944 | M127: 364.0469735 | N127: 346.2591271 | O127: 345.1449561 | P127: 327.1418551 | Q127: 321.4900703 | R127: 307.0605296 | S127: 291.00662
B128: Total Costs | C128: $Billion | D128: =SUM(D123:D127) -> 285.0867637 | E128: =SUM(E123:E127) -> 322.443599 | F128: =SUM(F123:F127) -> 377.4834408 | G128: =SUM(G123:G127) -> 423.6925455 | H128: =SUM(H123:H127) -> 5282.853554 | I128: =SUM(I123:I127) -> 9532.373545 | J128: =SUM(J123:J127) -> 13175.51545 | K128: =SUM(K123:K127) -> 16220.19812 | L128: =SUM(L123:L127) -> 18653.45128 | M128: =SUM(M123:M127) -> 20492.09161 | N128: =SUM(N123:N127) -> 18707.843 | O128: =SUM(O123:O127) -> 16942.24481 | P128: =SUM(P123:P127) -> 15161.73441 | Q128: =SUM(Q123:Q127) -> 13395.55207 | R128: =SUM(R123:R127) -> 11622.5687 | S128: =SUM(S123:S127) -> 9849.937693

Sheet Non-CO2 RF Calcs
B1: Radiative Forcing for CO2 Pathway Non-CO2 Elements
B2: CO2 | C2: W/m-2 | D2: =D15+(D14-D15)*($D$12-1)/9 -> 2.359906635 | E2: =E15+(E14-E15)*($D$12-1)/9 -> 2.499513544 | F2: 2.61042806 | G2: 2.698385123 | H2: 2.7728764 | I2: 2.836077231 | J2: 2.888693512 | K2: 2.929715253 | L2: 2.963330806 | M2: 2.994312784 | N2: 3.02205558 | O2: 3.047585219 | P2: 3.074519244 | Q2: 3.100567791 | R2: 3.12859743 | S2: 3.159641737
B3: CH4 | C3: W/m-2 | D3: =D17+(D16-D17)*($D$12-1)/9 -> 0.5939121384 | E3: 0.5904369974 | F3: 0.5843328119 | G3: 0.5754416382 | H3: 0.5674838949 | I3: 0.5595754692 | J3: 0.5521802009 | K3: 0.5454822028 | L3: 0.5387466796 | M3: 0.5329547233 | N3: 0.5272411292 | O3: 0.5222015114 | P3: 0.5174025851 | Q3: 0.5127718845 | R3: 0.5078572167 | S3: 0.502609264 | U3: The radiative forcing of the non-CO2 elements are calculated as decribed below
B4: N2O | C4: W/m-2 | D4: =D19+(D18-D19)*($D$12-1)/9 -> 0.2289707279 | E4: 0.2414303342 | F4: 0.2533580206 | G4: 0.2649161165 | H4: 0.2763394171 | I4: 0.2875554565 | J4: 0.2985091666 | K4: 0.3090556155 | L4: 0.3192846668 | M4: 0.3290963204 | N4: 0.3385630423 | O4: 0.347674696 | P4: 0.3564414179 | Q4: 0.3648806056 | R4: 0.3730473275 | S4: 0.3807140494
B5: Other NonCO2 RF | C5: W/m-2 | D5: =D21+(D20-D21)*($D$12-1)/9 -> 0.4175603619 | E5: =E21+(E20-E21)*($D$12-1)/9 -> 0.3354790676 | F5: 0.3561327142 | G5: 0.2918269068 | H5: 0.2784589156 | I5: 0.2497515977 | J5: 0.2215533425 | K5: 0.2216376898 | L5: 0.1905441116 | M5: 0.2168538455 | N5: 0.1682042709 | O5: 0.2059227764 | P5: 0.1767671599 | Q5: 0.2071275763 | R5: 0.2079477378 | S5: 0.2093128311
B6: Aerosol | C6: W/m-2 | D6: =D23+(D22-D23)*($D$12-1)/9 -> -0.9193793022 | E6: -0.847407901 | F6: -0.7676980465 | G6: -0.6976739609 | H6: -0.6331345704 | I6: -0.5832035148 | J6: -0.5571046702 | K6: -0.5284737602 | L6: -0.5060721859 | M6: -0.4810695378 | N6: -0.453775807 | O6: -0.4277167258 | P6: -0.4057764072 | Q6: -0.3814492459 | R6: -0.3589178444 | S6: -0.3360546686
B7: Other NonGHG RF | C7: W/m-2 | D7: =D25+(D24-D25)*($D$12-1)/9 -> 0.4175603619 | E7: =E25+(E24-E25)*($D$12-1)/9 -> 0.3354790676 | F7: 0.3561327142 | G7: 0.2918269068 | H7: 0.2784589156 | I7: 0.2497515977 | J7: 0.2215533425 | K7: 0.2216376898 | L7: 0.1905441116 | M7: 0.2168538455 | N7: 0.1682042709 | O7: 0.2059227764 | P7: 0.1767671599 | Q7: 0.2071275763 | R7: 0.2079477378 | S7: 0.2093128311
B8: Total RF | C8: W/m-2 | D8: =D27+(D26-D27)*($D$12-1)/9 -> 3.120155577 | E8: =E27+(E26-E27)*($D$12-1)/9 -> 3.23510692 | F8: 3.428678299 | G8: 3.501490425 | H8: 3.607088519 | I8: 3.671290563 | J8: 3.701835737 | K8: 3.751891047 | L8: 3.756777987 | M8: 3.819561905 | N8: 3.806171847 | O8: 3.87602097 | P8: 3.876177354 | Q8: 3.937191827 | R8: 3.968294945 | S8: 4.002456152
B11: AR6 1.5 and AR6 4.5 values for Non-CO2 forcing elements
B12: Mitigation Factor | D12: =Notes!O10*'Model Calcs'!S36*'Model Calcs'!S36+Notes!P10*'Model Calcs'!S36+Notes!Q10 -> 7.521929011 | U12: ="Mitigation Factor = " & C58 & " * TotalRFIn2100 * TotalRFIn2100 " & D57 & " *TotalRFIn2100 + " & E57 -> Mitigation Factor = -0.0745212753583366 * TotalRFIn2100 * TotalRFIn2100 *TotalRFIn2100 +
B13: Climate Variable | C13: Units | D13: 2025 | E13: =D13+5 -> 2030 | F13: =E13+5 -> 2035 | G13: 2040 | H13: 2045 | I13: 2050 | J13: 2055 | K13: 2060 | L13: 2065 | M13: 2070 | N13: 2075 | O13: 2080 | P13: 2085 | Q13: 2090 | R13: =Q13+5 -> 2095 | S13: =R13+5 -> 2100 | U13: "The ""Mitigation Factor "" is a number between 1 and 10 which indicates how aggressively non-CO2 RF values are mitigated relative to the RF values of the AR6 scenarios (where AR6 4.5 is the least aggressive and AR6 1.5 is the most aggressive). For example: If the ""Mitigation Factor"" has a value of 1, the corresponding value for AR6 4.5 will be used If the ""Mitigation Factor"" has a value of 10, the corresponding value for AR6 1.5 will be used If the ""Mitigation Factor"" has a value of 5.5 (=(10 + 1)/2), the value that is halfway between the values for AR6 1.5 and AR6 4.5 will be used"
B14: CO2 RF | C14: W/m-2 | D14: 2.359906635 | E14: 2.463052859 | F14: 2.523299084 | G14: 2.548445308 | H14: 2.552691532 | I14: 2.537937757 | J14: 2.506183981 | K14: 2.458430205 | L14: 2.39817643 | M14: 2.332122654 | N14: 2.262168878 | O14: 2.188515103 | P14: 2.116761327 | Q14: 2.044507551 | R14: 1.973353776 | S14: 1.9075
B15: CO2 RF | C15: W/m-2 | D15: 2.359906635 | E15: 2.595472859 | F15: 2.839739084 | G15: 3.093005308 | H15: 3.352371532 | I15: 3.620737757 | J15: 3.895403981 | K15: 4.170070205 | L15: 4.45073643 | M15: 4.737102654 | N15: 5.021968878 | O15: 5.308535103 | P15: 5.595201327 | Q15: 5.879967551 | R15: 6.169033776 | S15: 6.4551
B16: CH4RF | C16: W/m-2 | D16: 0.5821 | E16: 0.5626 | F16: 0.5397 | G16: 0.5136 | H16: 0.4897 | I16: 0.4664 | J16: 0.4451 | K16: 0.4267 | L16: 0.4103 | M16: 0.396 | N16: 0.3831 | O16: 0.3717 | P16: 0.362 | Q16: 0.3539 | R16: 0.3467 | S16: 0.3398
B17: CH4RF | C17: W/m-2 | D17: 0.625 | E17: 0.6637 | F17: 0.7018 | G17: 0.7382 | H17: 0.7722 | I17: 0.8048 | J17: 0.834 | K17: 0.8581 | L17: 0.8768 | M17: 0.8934 | N17: 0.9066 | O17: 0.9183 | P17: 0.9264 | Q17: 0.9309 | R17: 0.932 | S17: 0.9311
B18: N2ORF | C18: W/m-2 | D18: 0.2289707279 | E18: 0.2398260127 | F18: 0.2496812975 | G18: 0.2588365823 | H18: 0.2676918671 | I18: 0.2761471519 | J18: 0.2842024367 | K18: 0.2916577215 | L18: 0.2987130063 | M18: 0.3052682912 | N18: 0.311423576 | O18: 0.3172788608 | P18: 0.3227341456 | Q18: 0.3278894304 | R18: 0.3327447152 | S18: 0.3371
B19: N2ORF | C19: W/m-2 | D19: 0.2289707279 | E19: 0.2456526794 | F19: 0.2630346308 | G19: 0.2809165823 | H19: 0.2990985338 | I19: 0.3175804853 | J19: 0.3361624367 | K19: 0.3548443882 | L19: 0.3734263397 | M19: 0.3918082912 | N19: 0.4099902426 | O19: 0.4276721941 | P19: 0.4451541456 | Q19: 0.4622360971 | R19: 0.4791180485 | S19: 0.4955
B20: Other NonCO2 RF | C20: W/m-2 | D20: 0.4175603619 | E20: 0.3131030044 | F20: 0.3134456469 | G20: 0.2283882895 | H20: 0.196030932 | I20: 0.1457735746 | J20: 0.1008162171 | K20: 0.08405885965 | L20: 0.0405015022 | M20: 0.05974414474 | N20: 0.005486787284 | O20: 0.03712942983 | P20: -0.0008279276294 | Q20: 0.02191471491 | R20: 0.01935735746 | S20: 0.0174
B21: Other NonCO2 RF | C21: W/m-2 | D21: 0.4175603619 | E21: 0.3943696711 | F21: 0.4684789803 | G21: 0.4587882895 | H21: 0.4953975987 | I21: 0.5234069079 | J21: 0.5393162171 | K21: 0.5837255263 | L21: 0.5854348355 | M21: 0.6303441447 | N21: 0.596453454 | O21: 0.6501627632 | P21: 0.6441720724 | Q21: 0.6945813816 | R21: 0.7042906908 | S21: 0.7144 | U21: It the table at the right the values for all but 'Other NonCO2 RF' and 'Other NonGHG RF' are taken from the average of the AR6 data for the corresponding temperature increase. The vaues for ''Other NonGHG RF" are estimated (the 2025 value is extrapolated from the year 2013 to 2022) and the 'Other NonCO2 RF' values are calculated so that the 'Total RF' value matches the AR6 data
B22: AerosolRF | C22: W/m-2 | D22: -0.9193793022 | E22: -0.8180473488 | F22: -0.7178153953 | G22: -0.6306834418 | H22: -0.5573514883 | I22: -0.4939195348 | J22: -0.4585875813 | K22: -0.4183556279 | L22: -0.3889236744 | M22: -0.3617917209 | N22: -0.3352597674 | O22: -0.3082278139 | P22: -0.2842958604 | Q22: -0.259463907 | R22: -0.2378319535 | S22: -0.2173
B23: AerosolRF | C23: W/m-2 | D23: -0.9193793022 | E23: -0.9246806821 | F23: -0.8989820619 | G23: -0.8739834418 | H23: -0.8325848216 | I23: -0.8181862015 | J23: -0.8163875813 | K23: -0.8182889612 | L23: -0.814390341 | M23: -0.7949917209 | N23: -0.7656931007 | O23: -0.7421944806 | P23: -0.7254958604 | Q23: -0.7024972403 | R23: -0.6775986201 | S23: -0.6486
B24: Other NonGHG RF | C24: W/m-2 | D24: 0.4175603619 | E24: 0.3131030044 | F24: 0.3134456469 | G24: 0.2283882895 | H24: 0.196030932 | I24: 0.1457735746 | J24: 0.1008162171 | K24: 0.08405885965 | L24: 0.0405015022 | M24: 0.05974414474 | N24: 0.005486787284 | O24: 0.03712942983 | P24: -0.0008279276294 | Q24: 0.02191471491 | R24: 0.01935735746 | S24: 0.0174
B25: Other NonGHG RF | C25: W/m-2 | D25: 0.4175603619 | E25: 0.3943696711 | F25: 0.4684789803 | G25: 0.4587882895 | H25: 0.4953975987 | I25: 0.5234069079 | J25: 0.5393162171 | K25: 0.5837255263 | L25: 0.5854348355 | M25: 0.6303441447 | N25: 0.596453454 | O25: 0.6501627632 | P25: 0.6441720724 | Q25: 0.6945813816 | R25: 0.7042906908 | S25: 0.7144
B26: Total RF | C26: W/m-2 | D26: 3.120155577 | E26: 3.188131872 | F26: 3.312508167 | G26: 3.299384461 | H26: 3.306160756 | I26: 3.266337051 | J26: 3.188313346 | K26: 3.129689641 | L26: 3.022565936 | M26: 2.971742231 | N26: 2.843918526 | O26: 2.79999482 | P26: 2.686571115 | Q26: 2.63554741 | R26: 2.557723705 | S26: 2.4845
B27: Total RF | C27: W/m-2 | D27: 3.120155577 | E27: 3.358738538 | F27: 3.7344215 | G27: 4.033404461 | H27: 4.399087423 | I27: 4.737070385 | J27: 5.053353346 | K27: 5.389436308 | L27: 5.689119269 | M27: 6.050902231 | N27: 6.338685192 | O27: 6.707968154 | P27: 7.007051115 | Q27: 7.362934077 | R27: 7.680717038 | S27: 7.9975
D28: Minimum and maximum values for each year based on AR6 data for AR6 1.5 and AR6 4.5
C46: 2100 Values
C47: Temp | D47: CO2 RF | E47: Total RF | F47: Mit Val to reach TotalRF goal | G47: mitg | H47: Clim Fact | J47: Calced Total RF | K47: RF Diff | L47: Mitit Diff | M47: Calc CF | N47: Calc Tmp | O47: TempDiff
B48: AR6 1.5°C | C48: 1.5 | D48: 1.9075 | E48: 2.4845 | F48: 10 | G48: =$C$58*D48*D48+$D$57*D48+$E$57 -> -0.2711498522 | H48: =C48/E48 -> 0.6037432079 | J48: 2.53 | K48: =J48-E48 -> 0.0455 | L48: =F48-G48 -> 10.27114985 | M48: =CFfromRFin2100(J48) -> 0.6065327769 | N48: =M48*J48 -> 1.534527926 | O48: =N48-C48 -> 0.03452792556
B49: AR6 2.0°C | C49: 2 | D49: 2.6952 | E49: 3.3696 | F49: 8.55 | G49: -0.5413302229 | H49: 0.5935422602 | J49: 3.34 | K49: -0.0296 | L49: 9.091330223 | M49: =CFfromRFin2100(J49) -> 0.5934599196 | N49: =M49*J49 -> 1.982156131 | O49: -0.01784386854
B50: AR6 2.5°C | C50: 2.49 | D50: 3.4683 | E50: 4.2445 | F50: 7.12 | G50: -0.8964242378 | H50: 0.5866415361 | J50: 4.18 | K50: -0.0645 | L50: 8.016424238 | M50: =CFfromRFin2100(J50) -> 0.5817615084 | N50: 2.431763105 | O50: -0.05823689489
B51: AR6 3.0°C | C51: 3 | D51: 4.4356 | E51: 5.2834 | F51: 5.41 | G51: -1.466172361 | H51: 0.567816179 | J51: 5.32 | K51: 0.0366 | L51: 6.876172361 | M51: =CFfromRFin2100(J51) -> 0.5689119984 | N51: 3.026611831 | O51: 0.02661183149
B52: AR6 3.5°C | C52: 3.5 | D52: 5.2428 | E52: 6.281 | F52: 3.77 | G52: -2.048362707 | H52: 0.5572361089 | J52: 6.33 | K52: 0.049 | L52: 5.818362707 | M52: =CFfromRFin2100(J52) -> 0.5604397649 | N52: 3.547583712 | O52: 0.04758371182
B53: AR6 4.0°C | C53: 4 | D53: 5.9512 | E53: 7.2543 | F53: 2.18 | G53: -2.639303722 | H53: 0.5513971024 | J53: 7.27 | K53: 0.0157 | L53: 4.819303722 | M53: =CFfromRFin2100(J53) -> 0.5550127689 | N53: 4.03494283 | O53: 0.0349428299
B54: AR6 4.5°C | C54: 4.45 | D54: 6.4551 | E54: 7.9975 | F54: 0.95 | G54: -3.105176051 | H54: 0.5564238825 | J54: 7.96 | K54: -0.0375 | L54: 4.055176051 | M54: =CFfromRFin2100(J54) -> 0.5525373456 | N54: 4.398197271 | O54: -0.05180272902
C56: Mitig from Total RF
C58: =LINEST(F48:F54,D48:D54^{1,2}) -> -0.07452127536 | D58: -1.337973816 | E58: 12.75649374 | G58: `

Sheet Pathways
A1: CO2 Pathways
A2: These values are copied to the 'Input' worksheet when a "CO2 Emissions Pathway" is selected
A4: Scenario | B4: 2025 | C4: 2030 | D4: 2035 | E4: 2040 | F4: 2045 | G4: 2050 | H4: 2055 | I4: 2060 | J4: 2065 | K4: 2070 | L4: 2075 | M4: 2080 | N4: 2085 | O4: 2090 | P4: 2095 | Q4: 2100
A5: CO2 Only 1.5°C | B5: 42 | C5: 32 | D5: 0 | E5: 0 | F5: 0 | G5: 0 | H5: 0 | I5: 0 | J5: 0 | K5: 0 | L5: 0 | M5: 0 | N5: 0 | O5: 0 | P5: 0 | Q5: 0 | S5: Increment
A6: CO2 Only 2.0°C | B6: 42 | C6: 42 | D6: 42 | E6: =F6+$S$6 -> 26.28571429 | F6: =G6+$S$6 -> 21.42857143 | G6: 16.57142857 | H6: 11.71428571 | I6: 6.857142857 | J6: 2 | K6: 1 | L6: 1 | M6: 0 | N6: 0 | O6: 0 | P6: 0 | Q6: 0 | S6: =34/7 -> 4.857142857
A7: CO2 Only 2.5°C | B7: 42 | C7: 42 | D7: 42 | E7: =F7+$S$7 -> 35.90769231 | F7: 32.86153846 | G7: 29.81538462 | H7: 26.76923077 | I7: 23.72307692 | J7: 20.67692308 | K7: 17.63076923 | L7: 14.58461538 | M7: 11.53846154 | N7: 8.492307692 | O7: 5.446153846 | P7: 2.4 | Q7: 0 | S7: =(D7-P7)/13 -> 3.046153846
A8: CO2 Only 3.0°C | B8: 42 | C8: 42 | D8: 42 | E8: =F8+$S$8 -> 40.03846154 | F8: 38.07692308 | G8: 36.11538462 | H8: 34.15384615 | I8: 32.19230769 | J8: 30.23076923 | K8: 28.26923077 | L8: 26.30769231 | M8: 24.34615385 | N8: 22.38461538 | O8: 20.42307692 | P8: 18.46153846 | Q8: 16.5 | S8: =(D8-Q8)/13 -> 1.961538462
A9: CO2 Only 3.5°C | B9: 42 | C9: 42 | D9: 42 | E9: =F9+$S$9 -> 42 | F9: 41.33333333 | G9: 40.66666667 | H9: 40 | I9: 39.33333333 | J9: 38.66666667 | K9: 38 | L9: 37.33333333 | M9: 36.66666667 | N9: 36 | O9: 35.33333333 | P9: 34.66666667 | Q9: 34 | S9: =(D9-Q9)/12 -> 0.6666666667
A10: CO2 Only 4.0°C | B10: 42 | C10: 42 | D10: 42 | E10: =F10+$S$10 -> 41.84615385 | F10: 41.69230769 | G10: 41.53846154 | H10: 41.38461538 | I10: 41.23076923 | J10: 41.07692308 | K10: 40.92307692 | L10: 40.76923077 | M10: 40.61538462 | N10: 40.46153846 | O10: 40.30769231 | P10: =Q10+$S$10 -> 40.15384615 | Q10: 40 | S10: 0.1538461538

Sheet Notes
A1: Notes
A3: Restrictions
B4: The model is valid only for CO2 emission pathways where the CO2 PPM never exceeds 1000.
A7: Mitigation Factor from CO2 RF
B8: "Average" Scenario Values | E8: Mitigation Factor | G8: Emulator Results | J8: Differences | O8: Mitigation From CO2 RF
B9: CO2 RF | C9: Total RF | D9: Temp Incr | E9: From Scenario* | F9: From Polynom. | G9: CO2 RF | H9: Total RF | I9: Temp Incr | J9: CO2 RF | K9: Total RF | L9: Temp Incr | O9: A | P9: B | Q9: C
B10: 1.9075 | C10: 2.4845 | D10: 1.5 | E10: 9.7 | F10: =$O$10*B10*B10+$P$10*B10+$Q$10 -> 9.654947846 | G10: 1.909769252 | H10: 2.470211149 | I10: 1.5 | J10: =B10-G10 -> -0.002269251844 | K10: 0.01428885132 | L10: 0 | O10: =LINEST(E10:E14,B10:B14^{1,2}) -> 0.07990624062 | P10: -1.208235809 | Q10: 11.6689143
B11: 2.6952 | C11: 3.3696 | D11: =D10+0.5 -> 2 | E11: 9 | F11: =$O$10*B11*B11+$P$10*B11+$Q$10 -> 8.992924313 | G11: 2.679804292 | H11: 3.363536072 | I11: 1.99 | J11: 0.01539570831 | K11: 0.006063927924 | L11: 0.01
B12: 3.4683 | C12: 4.2445 | D12: =D11+0.5 -> 2.5 | E12: 8.2 | F12: 8.439590593 | G12: 3.469571916 | H12: 4.261024048 | I12: 2.47 | J12: -0.001271916117 | K12: -0.01652404799 | L12: 0.03
B13: 4.4356 | C13: 5.2834 | D13: 3 | E13: 8.2 | F13: 7.881782661 | G13: 4.438575294 | H13: 5.336284006 | I13: 3.04 | J13: -0.002975294261 | K13: -0.05288400601 | L13: -0.04
B14: 5.2428 | C14: 6.281 | D14: 3.5 | E14: 7.4 | F14: 7.530754588 | G14: 5.24295551 | H14: 6.207181562 | I14: 3.48 | J14: -0.0001555102283 | K14: 0.07381843768 | L14: 0.02
B15: *Calculated by running the emulator to get the temperature increase from CO2 emissions pathway to match the AR6 scenario temperature increase for the same CO2 RF values
A17: Decadal Temperature
A19: The temperature increase in AR6 data for the years 2000-2018 for all secnarios are identical
A21: Average Temperatire icrease for AR6 scenarios within the specified range
B22: 2000 | C22: =B22+1 -> 2001 | D22: =C22+1 -> 2002 | E22: 2003 | F22: 2004 | I22: =F22+1 -> 2005 | J22: 2006 | K22: 2007 | L22: 2008 | M22: 2009 | N22: 2010 | O22: 2011 | P22: 2012 | Q22: 2013 | R22: 2014 | S22: 2015 | T22: 2016 | U22: 2017 | V22: 2018 | W22: 2019 | X22: 2020 | Y22: 2021 | Z22: 2022 | AA22: 2023 | AB22: 2024 | AC22: 2025
A23: 1.5 | B23: 0.803103 | C23: 0.835442 | D23: 0.857742 | E23: 0.877432 | F23: 0.892776 | I23: 0.904936 | J23: 0.919859 | K23: 0.93642 | L23: 0.963562 | M23: 0.990666 | N23: 1.010041 | O23: 1.04414 | P23: 1.072948 | Q23: 1.105838 | R23: 1.13427 | S23: 1.159892639 | T23: 1.181097444 | U23: 1.202741778 | V23: 1.225956194 | W23: 1.252249389 | X23: 1.278052639 | Y23: 1.309090722 | Z23: 1.343049278 | AA23: 1.377371444 | AB23: 1.408011222 | AC23: 1.433948528
A24: 2 | B24: 0.803103 | C24: 0.835442 | D24: 0.857742 | E24: 0.877432 | F24: 0.892776 | I24: 0.904936 | J24: 0.919859 | K24: 0.93642 | L24: 0.963562 | M24: 0.990666 | N24: 1.010041 | O24: 1.04414 | P24: 1.072948 | Q24: 1.105838 | R24: 1.13427 | S24: 1.159846281 | T24: 1.180266031 | U24: 1.20106825 | V24: 1.223568797 | W24: 1.249037578 | X24: 1.274981469 | Y24: 1.307114516 | Z24: 1.342042969 | AA24: 1.377701984 | AB24: 1.409484172 | AC24: 1.437151094
A25: 2.5 | B25: 0.803103 | C25: 0.835442 | D25: 0.857742 | E25: 0.877432 | F25: 0.892776 | I25: 0.904936 | J25: 0.919859 | K25: 0.93642 | L25: 0.963562 | M25: 0.990666 | N25: 1.010041 | O25: 1.04414 | P25: 1.072948 | Q25: 1.105838 | R25: 1.13427 | S25: 1.1599522 | T25: 1.18045792 | U25: 1.20091548 | V25: 1.22295832 | W25: 1.247628 | X25: 1.27227648 | Y25: 1.30220368 | Z25: 1.33609264 | AA25: 1.3705574 | AB25: 1.40273152 | AC25: 1.43035884
A26: 3 | B26: 0.803103 | C26: 0.835442 | D26: 0.857742 | E26: 0.877432 | F26: 0.892776 | I26: 0.904936 | J26: 0.919859 | K26: 0.93642 | L26: 0.963562 | M26: 0.990666 | N26: 1.010041 | O26: 1.04414 | P26: 1.072948 | Q26: 1.105838 | R26: 1.13427 | S26: 1.159950385 | T26: 1.180458 | U26: 1.200811731 | V26: 1.223039115 | W26: 1.247216269 | X26: 1.271884615 | Y26: 1.302032038 | Z26: 1.336053769 | AA26: 1.370944038 | AB26: 1.403646885 | AC26: 1.431486
A27: 3.5 | B27: 0.803103 | C27: 0.835442 | D27: 0.857742 | E27: 0.877432 | F27: 0.892776 | I27: 0.904936 | J27: 0.919859 | K27: 0.93642 | L27: 0.963562 | M27: 0.990666 | N27: 1.010041 | O27: 1.04414 | P27: 1.072948 | Q27: 1.105838 | R27: 1.13427 | S27: 1.159851333 | T27: 1.179704944 | U27: 1.199439611 | V27: 1.220928167 | W27: 1.244217667 | X27: 1.267937556 | Y27: 1.297101444 | Z27: 1.329736167 | AA27: 1.363254278 | AB27: 1.394478944 | AC27: 1.422166889
A28: 4 | B28: 0.803103 | C28: 0.835442 | D28: 0.857742 | E28: 0.877432 | F28: 0.892776 | I28: 0.904936 | J28: 0.919859 | K28: 0.93642 | L28: 0.963562 | M28: 0.990666 | N28: 1.010041 | O28: 1.04414 | P28: 1.072948 | Q28: 1.105838 | R28: 1.13427 | S28: 1.159826667 | T28: 1.179026667 | U28: 1.198316111 | V28: 1.218762278 | W28: 1.241932778 | X28: 1.265183444 | Y28: 1.293831278 | Z28: 1.325261611 | AA28: 1.357682444 | AB28: 1.388033889 | AC28: 1.415161444
A29: 4.5 | B29: 0.803103 | C29: 0.835442 | D29: 0.857742 | E29: 0.877432 | F29: 0.892776 | I29: 0.904936 | J29: 0.919859 | K29: 0.93642 | L29: 0.963562 | M29: 0.990666 | N29: 1.010041 | O29: 1.04414 | P29: 1.072948 | Q29: 1.105838 | R29: 1.13427 | S29: 1.15985045 | T29: 1.17915605 | U29: 1.1987549 | V29: 1.21975865 | W29: 1.24359245 | X29: 1.26811835 | Y29: 1.2973702 | Z29: 1.33042635 | AA29: 1.36395665 | AB29: 1.3953061 | AC29: 1.4240304
A30: Average | B30: =AVERAGE(B23:B29) -> 0.803103 | C30: =AVERAGE(C23:C29) -> 0.835442 | D30: 0.857742 | E30: 0.877432 | F30: 0.892776 | I30: 0.904936 | J30: 0.919859 | K30: 0.93642 | L30: 0.963562 | M30: 0.990666 | N30: 1.010041 | O30: 1.04414 | P30: 1.072948 | Q30: 1.105838 | R30: 1.13427 | S30: 1.159881422 | T30: 1.180023865 | U30: 1.200292552 | V30: 1.222138789 | W30: 1.246553447 | X30: 1.271204936 | Y30: 1.301249126 | Z30: 1.334666112 | AC30: 1.427757599
A31: Difference | B31: =B30-B32 -> 0.153103 | C31: =C30-C32 -> 0.035442 | D31: -0.032258 | E31: -0.002568 | F31: 0.102776 | I31: -0.035064 | J31: 0.019859 | K31: 0.01642 | L31: 0.163562 | M31: 0.070666 | N31: 0.030041 | O31: 0.17414 | P31: 0.162948 | Q31: 0.165838 | R31: 0.12427 | S31: -0.0001185778922 | T31: -0.09997613474 | U31: 0.02029255154 | V31: 0.1121387887 | W31: 0.006553447241 | X31: -0.008795063854 | Y31: 0.1912491255 | Z31: 0.1846661119 | AA31: =AVERAGE(B31:Z31) -> 0.06761674993
A32: NOAA | B32: 0.65 | C32: 0.8 | D32: 0.89 | E32: 0.88 | F32: 0.79 | I32: 0.94 | J32: 0.9 | K32: 0.92 | L32: 0.8 | M32: 0.92 | N32: 0.98 | O32: 0.87 | P32: 0.91 | Q32: 0.94 | R32: 1.01 | S32: 1.16 | T32: 1.28 | U32: 1.18 | V32: 1.11 | W32: 1.24 | X32: 1.28 | Y32: 1.11 | Z32: 1.15
A34: AR6 Incr/yr | C34: =C30-B30 -> 0.032339 | D34: =D30-C30 -> 0.0223 | E34: 0.01969 | F34: 0.015344 | I34: =I30-F30 -> 0.01216 | J34: 0.014923 | K34: 0.016561 | L34: 0.027142 | M34: 0.027104 | N34: 0.019375 | O34: 0.034099 | P34: 0.028808 | Q34: 0.03289 | R34: 0.028432 | S34: 0.02561142211 | T34: 0.02014244315 | U34: 0.02026868628 | V34: 0.0218462372 | W34: 0.02441465851 | X34: 0.0246514889 | Y34: 0.03004418936 | Z34: 0.03341698643
A36: Average Decadal Temperature increase for AR6 after 2015 | F36: =AVERAGE(C34:Z34)*10 -> 0.2416195963

Sheet Feedbacks
A1: Carbon Feedbacks (courtesy of Bruce Melton)
A3: Natali 2019 - Permafrost net emissions of 2.3 Gt CO2eq annually… These emissions are the average from 2003 to 2017. Assuming permafrost was stable in 2003 with zero emissions, the annual in linear trend 2017 was double this 2.3 gigatons, and because warming is increasing nonlinearly, permafrost is plausibly release as many greenhouse gases as all of transportation globally at 7 to 9 gigatons annually, not including the increase in the trend from 2017 to present.
A4: Natali et al., Large loss of CO2 in winter observed across the northern permafrost region, Nature Climate Change, October 21, 2019.
A5: https://www.uarctic.org/media/1600119/natali_et_al_2019_nature_climate_change_s41558-019-0592-8.pdf
A7: Gatti 2021 - Amazon bet emissions of 1 Gt annual CO2eq emissions 2010 to 2018… The Amazon is now emitting 1 Gt CO2eq annually based on a nine year average. All sources are included: drought mortality, drying soils, drought-caused fire, subsistence fire and logging. The current emissions are likely greater because this 1 Gt is an average 2010 through 2018. It is also likely the situation has worsened since. Tropical forests in Africa are a bit behind the Amazon, and tropical forests in Asia and the rest of the Americas are likely not far behind the Amazon, especially as four years of warming have elapses since the Amazon flip.
A8: Gatti et al., Amazonia as a carbon source linked to deforestation and climate change, Nature, July 14, 2021.
A9: https://www.nature.com/articles/s41586-021-03629-6.epdf?sharing_token=lsfPlVRsW05dUMB_VD-zItRgN0jAjWel9jnR3ZoTv0NILaci0q8CXtVe4JKM-xF0Z0ZQpmJpnpSclAjJeIV-vCjviXK_Mb9hvvU5C3CiJVgu82-RGuHR01gFiQZAVMzDCCxiRyvlh0MBQxTvGN2oHmf2jIOC7MEEGXrOPGIblsh57v9qXkkZbM7U0OH8zbdQ4jnVO1zD9R1jeDcUVBS22YVLkjWEvC5vrNMdQ416fmEBL9kIHYs2ptVibFKXLxEuh-TQ08w-QGSFzN6221KgguYTe0Q9FoZ1J-Wksf4tWXrjv-xu34UpgYqxQWwLTTbTgHYTuglT_tSVd4WaweL9fg%3D%3D&tracking_referrer=www.theguardian.com
A11: Canadian Forest Collapse 250 million tons CO2eq annually in 2018… This collapse began in about 2002 when the pine bark beetle attack became extensive. These emissions are largely from native mountain pine beetle mortality and do not include fire emissions since 2018.
A12: The State of Canada's Forests, Adapting to Change, Canadian Forest Service, 2020.
A13: https://www.nrcan.gc.ca/our-natural-resources/forests-forestry/state-canadas-forests-report/16496
A14: (Canada - see also - https://climatediscovery.org/canadas-forests-have-flipped-from-carbon-sink-to-greenhouse-gas-emissions/)
A16: Crowther 2016 - Chronic drying from warming is already reducing biological sequestration in agriculture – Soil carbon loss ongoing...
A17: “If we make the conservative assumption that the full effects of warming are fully realized within a year, then approximately 30 ± 30 PgC would be lost from the surface soil for 1 °C of warming. Given that global average soil surface temperatures are projected to increase by around 2 °C over the next 35 years under a business-as-usual emissions scenario16, this extrapolation would suggest that warming could drive the net loss of approximately 55 ± 50 PgC from the upper soil horizon. If, as expected, this C entered the atmospheric pool, the atmospheric burden of CO2 would increase by approximately 25 parts per million over this period.”
A19: Already lost is 30 PgC (petagrams carbon.) One petagram carbon is equal to 1 gigaton carbon. At 3.667 gigatons CO2 per gigaton carbon, soil loss already, with 1 C warming, is 110 gigatons CO2equivalent (CO2e.). With an additional 1 C warming by 2050, and an additional 25 PgC lost (92 gigatons CO2e), this is a future loss of 3 gigatons CO2e from soils annually.
A21: Crowther et al., Quantifying global soil carbon losses in response to warming, Nature, December 1, 2016.
A22: https://www.researchgate.net/publication/311163076_Quantifying_global_soil_carbon_losses_in_response_to_warming
A24: Bauman 2022 - Australian Tropical Forest Flip from sequestration to emissions between 1984 and 2019… Bauman et al,. analyzed a 49-year record across 24 old-growth tropical forests in Australia and found mortality has doubled across all plots in the last 35 years indicating a halving of life expectancy and carbon residence time. Losses were not offset by gains from growth and regrowth. Thresholds involving atmospheric water stress, driven by global warming, may be a primary cause of increasing tree mortality in moist tropical forests. "Model predictions indicate a doubling in average mortality risk across plots between the 1980s and 2010s, corresponding to a potential halving of tree life expectancy and carbon residence time... Carbon loss from a doubling of tree mortality was not offset by gains, converting these forests into biomass carbon sources."
A25: Bauman et al., state, "Many of the species in our plots are widespread across tropical Southeast Asia, offering a robust assessment of climate niche." A personal communication with Bauman, where I asked if the above statement was one where Australian tropical forest mortality was an analog to Southeast Asian tropical forest mortality, reveals that on hindsight he would have modified this analog with Southeast Asian tropical forests to, "what makes the results of a marked increase in background mortality likely generalizable, to some extent, to other moist tropical regions, is the mechanism highlighted (atmospheric evaporative demand is increasing worldwide); the physiology of atmospheric water stress response is the same across tree species irrespective of their region of origin."
A26: Bauman et al., Tropical tree mortality has increased with rising atmospheric water stress, Nature, May 17, 2022.
A27: (Researchgate, free account required) https://www.researchgate.net/publication/360691427_Tropical_tree_mortality_has_increased_with_rising_atmospheric_water_stress
A28: *Personal Comm with Baumann
A30: Munday, May 12, 2025 - Amazon and boreal forest tipping at 1.5 C and extended overshoot increasing risks…
A31: Munday et al., Risks of unavoidable impacts on forests at 1.5 degrees C with and without overshoot, Nature Climate Change, May 12, 2025.
A32: https://www.nature.com/articles/s41558-025-02327-9

Sheet CCS Costs
A1: Carbon Capture and Storage (from ChatGPT)
A25: The expected cost of Carbon Capture and Storage (CCS) this century depends heavily on the application (e.g., power plants, cement, steel), technology type, and geographic factors. Here's a breakdown by timeframe, application, and estimated cost per ton of CO₂ captured and stored:
A29: 📍 Current Costs (2020s):
A31: Power Plants (coal/gas):
A32: $40–$120/tCO₂
A34: Industrial (cement, steel, hydrogen):
A35: $60–$150/tCO₂
A37: Bioenergy with CCS (BECCS):
A38: $100–$200/tCO₂ (but with potential for net-negative emissions)
A40: Direct Air Capture with CCS:
A41: $600–$1,200/tCO₂ (as seen before)
A45: 📈 Mid-Century (by ~2050):
A47: Assuming broader deployment, policy support (like carbon pricing), and learning-by-doing:
A49: Power sector CCS:
A50: $30–$80/tCO₂
A52: Industrial CCS:
A53: $50–$100/tCO₂
A55: BECCS:
A56: $80–$150/tCO₂
A58: DAC with CCS:
A59: $200–$400/tCO₂
A63: 🔮 End-of-Century (by ~2100):
A65: Power sector CCS:
A66: $20–$60/tCO₂
A68: Industrial CCS:
A69: $40–$80/tCO₂
A71: BECCS:
A72: $60–$120/tCO₂
A74: DAC with CCS:
A75: $50–$200/tCO₂ (in highly optimistic scenarios)
A79: 🔍 Influencing Factors:
A81: Capture technology: Post-combustion, oxy-fuel, pre-combustion all have different costs.
A83: Concentration of CO₂: Cheaper to capture from high-purity sources (e.g., natural gas processing).
A85: Transport & Storage: Proximity to geologic storage lowers cost (~$10–$20/tCO₂ typically).
A87: Infrastructure: Costs drop with integrated CCS hubs, pipelines, and economies of scale.
A89: Regulation & policy: Carbon markets, tax credits (e.g. 45Q in the U.S.), subsidies reduce effective costs.
A93: 📚 Sources:
A95: IEA CCS Technology Roadmap (2023)
A97: NASEM (2021) – Long-term decarbonization pathways
A99: IPCC AR6 WG3 (2022) – Cost ranges across applications
A101: Global CCS Institute (2023) – Project case studies and cost benchmarking

Sheet CDR Costs
A1: Direct Air Capture Costs (from ChatGPT)
A24: he cost of Direct Air Capture (DAC) this century is expected to vary significantly depending on technological advancements, policy support, energy prices, and deployment scale. Here’s a breakdown of current estimates and projections:
A28: 📍 Current Costs (as of 2020s):
A30: Climeworks (Switzerland): $600–$1,200 per ton of CO₂
A32: Carbon Engineering (Canada): $94–$232 per ton (as of 2018; more recent estimates tend toward the upper range when all costs are included)
A34: Global Thermostat: Similar range, though details are less transparent.
A36: These numbers reflect early-stage, small-scale facilities. Costs include capital, operational, and energy inputs.
A40: 📈 Mid-Century Projections (by ~2050):
A42: According to various sources including the IEA, IPCC, NASEM, and academic studies:
A44: Optimistic scenarios (with strong policy support, low-cost renewables, and economies of scale):
A45: $100–$300 per ton of CO₂
A47: Conservative projections:
A48: $300–$500 per ton
A50: High-end scenarios (slower innovation, expensive energy inputs):
A51: $500+ per ton
A55: 🔮 End-of-Century Projections (by ~2100):
A57: If DAC is widely deployed and benefits from scaling, modular design, and energy cost reductions (e.g. via cheap solar/wind or nuclear):
A61: $50–$150 per ton of CO₂ (best-case scenario)
A63: If decarbonization progresses unevenly and DAC remains niche:
A67: $200–$400 per ton, or higher
A71: 🧮 Key Variables Influencing Cost:
A73: Energy source: DAC is energy-intensive; cheap, clean electricity is essential.
A75: Scale: Larger deployment lowers unit costs.
A77: Technology choice: Liquid solvent vs. solid sorbent systems differ in capital and operating costs.
A79: Location: Proximity to sequestration sites or CO₂ utilization hubs affects cost.
A81: Policy incentives: Carbon pricing, tax credits (like the U.S. 45Q), and grants dramatically influence viability.
A85: 📚 References:
A87: NASEM (2021): "Accelerating Decarbonization in the United States" – gives DAC estimates around $100–$300/tCO₂ with potential for lower in long term.
A89: IEA (2022): "Direct Air Capture" technology report – projects similar long-term costs.
A91: Keith et al. (2018): Carbon Engineering’s peer-reviewed estimate of DAC cost around $94–$232/tCO₂.
A93: Realmonte et al. (2019, Nature Communications): Modeling shows costs vary dramatically depending on deployment and policy.

Sheet SLR 2100
A1: Global Sea Level Rise Projections:
A3: Intergovernmental Panel on Climate Change (IPCC) Sixth Assessment Report: Under the highest emissions scenario, the IPCC projects a global mean sea level rise between 0.63 and 1.01 meters (2.1 to 3.3 feet) by 2100. ?
A5: Nanyang Technological University (NTU) Study: A recent study from NTU Singapore and Delft University of Technology introduces a "fusion" approach, projecting a very likely range of 0.5 to 1.9 meters (1.6 to 6.2 feet) of sea level rise by 2100 under high-emission scenarios. This method aims to address uncertainties in current projections. ?(https://www.ntu.edu.sg/news/detail/new-method-projects-very-likely-range-of-future-sea-level-rise)
A7: Because of emissions to date, 2 feet of sea level rise will likely occur along the U.S. coastline between 2020 and 2100. Failing to curb future emissions could cause an additional 1.5 to 5 feet of rise, for a total of 3.5 to 7 feet .(https://sealevel.globalchange.gov/resources/2022-sea-level-rise-technical-report)
A10: Returning Closer to 1°C or Below is Essential for Polar Ice Sheets
A11: (Nature Communications, 20 May 2025)
A12: A study by four senior IPCC authors presents strong evidence that the Paris Agreement's lower temperature limit of 1.5°C above pre-industrial levels is too high to prevent significant sea-level rise from Antarctica and Greenland. Even current warming levels at 1.2°C, if sustained, will likely lead to several meters of sea-level rise over coming centuries, resulting in extensive loss and damage to coastal populations and challenging the implementation of adaptation measures. Currently, around 230 million people live within just one meter of sea level; melting ice represents an existential threat to those communities as well as several low-lying nations. To avoid this future, global mean temperature must return closer to 1°C or below as soon as possible through strong an immediate cuts in greenhouse gas pollution to prevent (in IPCC terminology) "slow-onset, high-impact" losses from both polar ice sheets.
A13: https://iccinet.us4.list-manage.com/track/click?u=115736d705171a61936b7a083&id=5eca4faba1&e=b67f164c80

Sheet SLR Cost
A1: Sea level Rise Cost per Foot
A3: Estimates of the cost per foot of sea level rise vary consideraby. The current model defaults to a cost/foot of $100 Billion in 2025 and $500 Billion in 2100
A5: From ChatGPT:
A7: The expected annual cost per foot of sea level rise varies depending on factors like location, infrastructure, adaptation measures, and population density. However, here are some general estimates based on research and projections:
A9: 1. U.S. National Costs
A11: According to reports from the Union of Concerned Scientists and NOAA, the economic damage in the U.S. could range from $50 billion to $200 billion annually for each foot of sea level rise, depending on the vulnerability of coastal regions, the extent of infrastructure, and how much adaptation is implemented.
A12: This includes damage to coastal properties, infrastructure, transportation, and utilities, as well as indirect costs such as losses in tourism, real estate values, and tax revenue.
A14: 2. Global Costs
A16: Global estimates from organizations like the World Bank and the Intergovernmental Panel on Climate Change (IPCC) suggest that the annual cost of sea level rise could range from $300 billion to $1 trillion globally by 2100. This encompasses damages from coastal flooding, storm surges, ecosystem loss, agricultural disruption, and health costs.
A18: 3. Infrastructure and Property Losses
A20: Coastal cities, such as New York, Miami, and New Orleans, could face significant property losses. The annual cost of property damage due to sea level rise may range from $50 billion to $100 billion per foot of sea level rise for these cities alone, depending on the level of preparedness and mitigation efforts.
A22: 4. Adaptation and Mitigation Costs
A24: Adaptation costs—such as the construction of flood defenses, relocation of communities, or retrofitting infrastructure—are also considerable. It's estimated that $100 million to $1 billion per year, for each foot of sea level rise, could be required to protect vulnerable communities, depending on the scale of adaptation efforts.
A26: 5. Agricultural and Ecosystem Costs
A28: Rising sea levels may also result in agricultural damage, saltwater intrusion into freshwater systems, and ecosystem degradation, with costs potentially amounting to tens of billions of dollars annually for each foot of rise.
A30: Summary of Costs:
A32: $50 billion to $200 billion annually in the U.S. for each foot of sea level rise.
A33: $300 billion to $1 trillion annually globally by the end of the century.
A34: Significant costs for property damage, infrastructure, and adaptation efforts, particularly in large coastal cities.
A36: These estimates underscore the economic and environmental challenges posed by sea level rise, which will vary greatly depending on the region and specific local circumstances. Adaptation measures will be crucial in mitigating the costs, but without action, the financial burden could be very high.

Sheet Disasters
A1: Cost of Disasters
A5: The annual costs for climatological, hydrological, and meteorological natural disasters for 2000 through 2023 were obtained from The Centre for Research on the Epidemiology of Disasters (CRED) (https://public.emdat.be/data) (see Figure 1). Linear projections of this data though 2100 were then made (see Table 1).
A6: https://public.emdat.be/data
B7: Year | C7: Projected Cost
B8: 2025 | C8: 216
B9: 2030 | C9: 243
B10: 2035 | C10: 269
B11: 2040 | C11: 295
B12: 2045 | C12: 321
B13: 2050 | C13: 348
B14: 2055 | C14: 374
B15: 2060 | C15: 400
B16: 2065 | C16: 427
B17: 2070 | C17: 453
B18: 2075 | C18: 479
B19: 2080 | C19: 506
B20: 2085 | C20: 532
B21: 2090 | C21: 558
B22: 2095 | C22: 585
B23: 2100 | C23: 611
B24: Figure 1. Scatter plot of annual natural disaster costs.
C64: Table 1. Linear projections of this data though 2100

Sheet AF Problem
A1: Problem with AR6 CO2 Data?
A3: SSP-Baseline is a typical scenario showing the possible data problem
A4: The"airborne fraction" from 2011 to 2015 lines up reasonably well with historical data
A5: After 2016 the "airborne fraction" beccomes too large, making it impossible to derive the CO2 PPM based on CO2 emissions
C7: Historical Data
E8: 2010 | F8: 2011 | G8: 2012 | H8: 2013 | I8: 2014 | J8: 2015 | K8: 2016 | L8: 2017 | M8: 2018 | N8: 2019 | O8: 2020 | P8: 2021 | Q8: 2022 | R8: 2023
C9: AnthroCO2 (Incl Land Use) | E9: 38.8756196 | F9: 39.81537818 | G9: 40.68519925 | H9: 40.45090215 | I9: 40.8797314 | J9: 40.97000143 | K9: 39.85551529 | L9: 40.25385217 | M9: 40.6083662 | N9: 40.9245025 | O9: 38.59709646 | P9: 40.57771248 | Q9: 40.86830722 | R9: 41.4503847
C10: CO2PPM | E10: 390.1 | F10: 391.85 | G10: 394.06 | H10: 396.74 | I10: 398.81 | J10: 401.01 | K10: 404.41 | L10: 406.76 | M10: 408.72 | N10: 411.65 | O10: 414.21 | P10: 416.41 | Q10: 418.53 | R10: 421.08
C11: Change in PPM (1 year) | F11: =F10-E10 -> 1.75 | G11: =G10-F10 -> 2.21 | H11: =H10-G10 -> 2.68 | I11: =I10-H10 -> 2.07 | J11: =J10-I10 -> 2.2 | K11: =K10-J10 -> 3.4 | L11: =L10-K10 -> 2.35 | M11: =M10-L10 -> 1.96 | N11: =N10-M10 -> 2.93 | O11: =O10-N10 -> 2.56 | P11: =P10-O10 -> 2.2 | Q11: =Q10-P10 -> 2.12 | R11: =R10-Q10 -> 2.55
C12: CO2 to Atmosphere | F12: =F11*7.81 -> 13.6675 | G12: =G11*7.81 -> 17.2601 | H12: =H11*7.81 -> 20.9308 | I12: =I11*7.81 -> 16.1667 | J12: =J11*7.81 -> 17.182 | K12: =K11*7.81 -> 26.554 | L12: =L11*7.81 -> 18.3535 | M12: =M11*7.81 -> 15.3076 | N12: =N11*7.81 -> 22.8833 | O12: =O11*7.81 -> 19.9936 | P12: =P11*7.81 -> 17.182 | Q12: =Q11*7.81 -> 16.5572 | R12: =R11*7.81 -> 19.9155
C13: Airborne Fraction (AnthroCO2) | F13: =F12/F9 -> 0.343271887 | G13: =G12/G9 -> 0.4242353563 | H13: =H12/H9 -> 0.5174371618 | I13: =I12/I9 -> 0.3954698196 | J13: =J12/J9 -> 0.4193800195 | K13: =K12/K9 -> 0.6662565973 | L13: =L12/L9 -> 0.455943941 | M13: =M12/M9 -> 0.3769568055 | N13: =N12/N9 -> 0.5591589049 | O13: =O12/O9 -> 0.5180078772 | P13: =P12/P9 -> 0.4234344163 | Q13: =Q12/Q9 -> 0.4051354491 | R13: =R12/R9 -> 0.4804659871
C14: Average Airborne Fraction (AnthroCO2) | E14: =AVERAGE(E13:R13) -> 0.4603964787
C16: AIM/CGE 2.0 - SSP5-Baseline
E17: 2010 | F17: 2011 | G17: 2012 | H17: 2013 | I17: 2014 | J17: 2015 | K17: 2016 | L17: 2017 | M17: 2018 | N17: 2019 | O17: 2020 | P17: 2021 | Q17: 2022 | R17: 2023
C18: Emissions|CO2 | E18: =E53/1000 -> 37.4032272 | F18: =F53/1000 -> 38.09040314 | G18: 38.77757908 | H18: 39.46475502 | I18: 40.15193096 | J18: 40.8391069 | K18: 41.52628284 | L18: 42.21345878 | M18: 42.90063472 | N18: 43.58781066 | O18: 44.2749866 | P18: 45.27037832 | Q18: 46.26577004 | R18: 47.26116176
C19: Carbon Sequestration | E19: =E54/1000 -> 1.6576233 | F19: =F54/1000 -> 1.65577171 | G19: 1.65392012 | H19: 1.65206853 | I19: 1.65021694 | J19: 1.64836535 | K19: 1.64651376 | L19: 1.64466217 | M19: 1.64281058 | N19: 1.64095899 | O19: 1.6391074 | P19: 1.66581648 | Q19: 1.69252556 | R19: 1.71923464
C20: Feedback - Permafrost | E20: =E52 -> 0.059717 | F20: =F52 -> 0.065655 | G20: 0.071808 | H20: 0.078797 | I20: 0.086125 | J20: 0.092847 | K20: 0.100526 | L20: 0.107132 | M20: 0.114061 | N20: 0.121343 | O20: 0.128544 | P20: 0.136809 | Q20: 0.144363 | R20: 0.153757
C21: Total | E21: =SUM(E18:E20) -> 39.1205675 | F21: =SUM(F18:F20) -> 39.81182985 | G21: 40.5033072 | H21: 41.19562055 | I21: 41.8882729 | J21: 42.58031925 | K21: 43.2733226 | L21: 43.96525295 | M21: 44.6575063 | N21: 45.35011265 | O21: 46.042638 | P21: 47.0730038 | Q21: 48.1026586 | R21: 49.1341534
C23: CO2PPM | E23: =E51 -> 388.717 | F23: =F51 -> 390.944 | G23: 393.016 | H23: 395.725 | I23: 397.547 | J23: 399.949 | K23: 402.815454 | L23: 405.712795 | M23: 408.675225 | N23: 411.693808 | O23: 414.763137 | P23: 417.905369 | Q23: 421.130329 | R23: 424.442458
C24: Change in PPM (1 year) | F24: =F23-E23 -> 2.227 | G24: =G23-F23 -> 2.072 | H24: =H23-G23 -> 2.709 | I24: =I23-H23 -> 1.822 | J24: =J23-I23 -> 2.402 | K24: =K23-J23 -> 2.866454 | L24: =L23-K23 -> 2.897341 | M24: =M23-L23 -> 2.96243 | N24: =N23-M23 -> 3.018583 | O24: =O23-N23 -> 3.069329 | P24: =P23-O23 -> 3.142232 | Q24: =Q23-P23 -> 3.22496 | R24: =R23-Q23 -> 3.312129
C25: CO2 to Atmosphere | F25: =F24*7.81 -> 17.39287 | G25: =G24*7.81 -> 16.18232 | H25: =H24*7.81 -> 21.15729 | I25: =I24*7.81 -> 14.22982 | J25: =J24*7.81 -> 18.75962 | K25: =K24*7.81 -> 22.38700574 | L25: =L24*7.81 -> 22.62823321 | M25: =M24*7.81 -> 23.1365783 | N25: =N24*7.81 -> 23.57513323 | O25: =O24*7.81 -> 23.97145949 | P25: =P24*7.81 -> 24.54083192 | Q25: =Q24*7.81 -> 25.1869376 | R25: =R24*7.81 -> 25.86772749
C26: Airborne Fraction (AnthroCO2) | F26: =F25/F18 -> 0.4566207907 | G26: =G25/G18 -> 0.4173112501 | H26: =H25/H18 -> 0.5361059505 | I26: =I25/I18 -> 0.354399394 | J26: =J25/J18 -> 0.4593543156 | K26: =K25/K18 -> 0.539104495 | L26: =L25/L18 -> 0.5360430977 | M26: =M25/M18 -> 0.5393062003 | N26: =N25/N18 -> 0.5408652757 | O26: =O25/O18 -> 0.5414221738 | P26: =P25/P18 -> 0.5420946948 | Q26: =Q25/Q18 -> 0.5443968095 | R26: =R25/R18 -> 0.5473358362
C27: Average Airborne Fraction (AnthroCO2) | E27: =AVERAGE(E26:R26) -> 0.5041815603
C29: GCAM 4.2 - SSP5-Baseline
E30: 2010 | F30: 2011 | G30: 2012 | H30: 2013 | I30: 2014 | J30: 2015 | K30: 2016 | L30: 2017 | M30: 2018 | N30: 2019 | O30: 2020 | P30: 2021 | Q30: 2022 | R30: 2023
C31: Emissions|CO2 | E31: =E58/1000 -> 35.77543168 | F31: =F58/1000 -> 36.31823604 | G31: 36.8610404 | H31: 37.40384476 | I31: 37.94664913 | J31: 38.48945349 | K31: 39.03225785 | L31: 39.57506221 | M31: 40.11786657 | N31: 40.66067093 | O31: 41.2034753 | P31: 42.59735312 | Q31: 43.99123094 | R31: 45.38510876
C32: Carbon Sequestration | E32: =E55/1000 -> 0 | F32: =F55/1000 -> 0 | G32: 0 | H32: 0 | I32: 0 | J32: 0 | K32: 0 | L32: 0 | M32: 0 | N32: 0 | O32: 0 | P32: 0 | Q32: 0 | R32: 0
C33: Feedback - Permafrost | E33: =E57 -> 0.059717 | F33: =F57 -> 0.065655 | G33: 0.071808 | H33: 0.078797 | I33: 0.086125 | J33: 0.092846 | K33: 0.100506 | L33: 0.107135 | M33: 0.114234 | N33: 0.121137 | O33: 0.127929 | P33: 0.136127 | Q33: 0.14402 | R33: 0.152765
C34: Total | E34: =SUM(E31:E33) -> 35.83514868 | F34: =SUM(F31:F33) -> 36.38389104 | G34: 36.9328484 | H34: 37.48264176 | I34: 38.03277413 | J34: 38.58229949 | K34: 39.13276385 | L34: 39.68219721 | M34: 40.23210057 | N34: 40.78180793 | O34: 41.3314043 | P34: 42.73348012 | Q34: 44.13525094 | R34: 45.53787376
C36: CO2PPM | E36: =E56 -> 388.717 | F36: =F56 -> 390.944 | G36: 393.016 | H36: 395.725 | I36: 397.547 | J36: 399.949 | K36: 402.815458 | L36: 405.67828 | M36: 408.57997 | N36: 411.51463 | O36: 414.481548 | P36: 417.504768 | Q36: 420.680475 | R36: 424.032623
C37: Change in PPM (1 year) | F37: =F36-E36 -> 2.227 | G37: =G36-F36 -> 2.072 | H37: =H36-G36 -> 2.709 | I37: =I36-H36 -> 1.822 | J37: =J36-I36 -> 2.402 | K37: =K36-J36 -> 2.866458 | L37: =L36-K36 -> 2.862822 | M37: =M36-L36 -> 2.90169 | N37: =N36-M36 -> 2.93466 | O37: =O36-N36 -> 2.966918 | P37: =P36-O36 -> 3.02322 | Q37: =Q36-P36 -> 3.175707 | R37: =R36-Q36 -> 3.352148
C38: CO2 to Atmosphere | F38: =F37*7.81 -> 17.39287 | G38: =G37*7.81 -> 16.18232 | H38: =H37*7.81 -> 21.15729 | I38: =I37*7.81 -> 14.22982 | J38: =J37*7.81 -> 18.75962 | K38: =K37*7.81 -> 22.38703698 | L38: =L37*7.81 -> 22.35863982 | M38: =M37*7.81 -> 22.6621989 | N38: =N37*7.81 -> 22.9196946 | O38: =O37*7.81 -> 23.17162958 | P38: =P37*7.81 -> 23.6113482 | Q38: =Q37*7.81 -> 24.80227167 | R38: =R37*7.81 -> 26.18027588
C39: Airborne Fraction (AnthroCO2) | F39: =F38/F31 -> 0.4789018382 | G39: =G38/G31 -> 0.4390087698 | H39: =H38/H31 -> 0.5656447922 | I39: =I38/I31 -> 0.3749954299 | J39: =J38/J31 -> 0.4873963723 | K39: =K38/K31 -> 0.5735521903 | L39: =L38/L31 -> 0.5649679008 | M39: =M38/M31 -> 0.56489043 | N39: =N38/N31 -> 0.5636821546 | O39: =O38/O31 -> 0.5623707567 | P39: =P38/P31 -> 0.55429144 | Q39: =Q38/Q31 -> 0.5638003561 | R39: =R38/R31 -> 0.5768472654
C40: Average Airborne Fraction (AnthroCO2) | E40: =AVERAGE(E39:R39) -> 0.5284884382
A48: Raw Data
A50: Model | B50: Scenario | C50: Variable | D50: Unit | E50: 2010 | F50: 2011 | G50: 2012 | H50: 2013 | I50: 2014 | J50: 2015 | K50: 2016 | L50: 2017 | M50: 2018 | N50: 2019 | O50: 2020 | P50: 2021 | Q50: 2022 | R50: 2023
A51: AIM/CGE 2.0 | B51: SSP5-Baseline | C51: AR6 climate diagnostics|Atmospheric Concentrations|CO2|MAGICCv7.5.3|67.0th Percentile | D51: ppm | E51: 388.717 | F51: 390.944 | G51: 393.016 | H51: 395.725 | I51: 397.547 | J51: 399.949 | K51: 402.815454 | L51: 405.712795 | M51: 408.675225 | N51: 411.693808 | O51: 414.763137 | P51: 417.905369 | Q51: 421.130329 | R51: 424.442458
A52: AIM/CGE 2.0 | B52: SSP5-Baseline | C52: AR6 climate diagnostics|Net Land to Atmosphere Flux due to Permafrost|CO2|MAGICCv7.5.3|67.0th Percentile | D52: GtC/yr | E52: 0.059717 | F52: 0.065655 | G52: 0.071808 | H52: 0.078797 | I52: 0.086125 | J52: 0.092847 | K52: 0.100526 | L52: 0.107132 | M52: 0.114061 | N52: 0.121343 | O52: 0.128544 | P52: 0.136809 | Q52: 0.144363 | R52: 0.153757
A53: AIM/CGE 2.0 | B53: SSP5-Baseline | C53: Emissions|CO2 | D53: Mt CO2/yr | E53: 37403.2272 | F53: 38090.40314 | G53: 38777.57908 | H53: 39464.75502 | I53: 40151.93096 | J53: 40839.1069 | K53: 41526.28284 | L53: 42213.45878 | M53: 42900.63472 | N53: 43587.81066 | O53: 44274.9866 | P53: 45270.37832 | Q53: 46265.77004 | R53: 47261.16176
A54: AIM/CGE 2.0 | B54: SSP5-Baseline | C54: Carbon Sequestration | D54: Mt CO2/yr | E54: 1657.6233 | F54: 1655.77171 | G54: 1653.92012 | H54: 1652.06853 | I54: 1650.21694 | J54: 1648.36535 | K54: 1646.51376 | L54: 1644.66217 | M54: 1642.81058 | N54: 1640.95899 | O54: 1639.1074 | P54: 1665.81648 | Q54: 1692.52556 | R54: 1719.23464
A55: GCAM 4.2 | B55: SSP5-Baseline | C55: Carbon Sequestration | D55: Mt CO2/yr | E55: 0 | F55: 0 | G55: 0 | H55: 0 | I55: 0 | J55: 0 | K55: 0 | L55: 0 | M55: 0 | N55: 0 | O55: 0 | P55: 0 | Q55: 0 | R55: 0
A56: GCAM 4.2 | B56: SSP5-Baseline | C56: AR6 climate diagnostics|Atmospheric Concentrations|CO2|MAGICCv7.5.3|67.0th Percentile | D56: ppm | E56: 388.717 | F56: 390.944 | G56: 393.016 | H56: 395.725 | I56: 397.547 | J56: 399.949 | K56: 402.815458 | L56: 405.67828 | M56: 408.57997 | N56: 411.51463 | O56: 414.481548 | P56: 417.504768 | Q56: 420.680475 | R56: 424.032623
A57: GCAM 4.2 | B57: SSP5-Baseline | C57: AR6 climate diagnostics|Net Land to Atmosphere Flux due to Permafrost|CO2|MAGICCv7.5.3|67.0th Percentile | D57: GtC/yr | E57: 0.059717 | F57: 0.065655 | G57: 0.071808 | H57: 0.078797 | I57: 0.086125 | J57: 0.092846 | K57: 0.100506 | L57: 0.107135 | M57: 0.114234 | N57: 0.121137 | O57: 0.127929 | P57: 0.136127 | Q57: 0.14402 | R57: 0.152765
A58: GCAM 4.2 | B58: SSP5-Baseline | C58: Emissions|CO2 | D58: Mt CO2/yr | E58: 35775.43168 | F58: 36318.23604 | G58: 36861.0404 | H58: 37403.84476 | I58: 37946.64913 | J58: 38489.45349 | K58: 39032.25785 | L58: 39575.06221 | M58: 40117.86657 | N58: 40660.67093 | O58: 41203.4753 | P58: 42597.35312 | Q58: 43991.23094 | R58: 45385.10876

Sheet Validation
A1: Validation
A3: Because CO2 emissions cannot be use to calcuate CO2 PPM (thereby allowing CO2 RF to be calclated), this validation assumes uses the CO2 PPM in 2100 for validation
A4: Since the sum of the RFs oin 2100 determine the tempeature increase in 2100, this validation works as follows (for the year 2100)
A5: 1 | B5: Estimate the CO2 RF
A6: 2 | B6: Estimate the RF of the other major forcing elements based on the CO2 RF
A7: 3 | B7: Sum the 6 RFs
A8: 4 | B8: Calculate the "Climate Facttor" based on total RF
A9: 5 | B9: Estimage the temperatuire increase
A10: 6 | B10: Compare the temperature increase to the AR6 model/scenario | W10: Averages
A11: Results: The average difference between the calculated temperature increase and the AR6 temperature increase is 0.01°C for the 470 AR6 Scenarios
B12: And about half of the calculations are within 0.10 °C for the 470 AR6 Scenarios
N13: =AVERAGE(N16:N485) -> 0.01054906594 | W13: =AVERAGE(W16:W485) -> -0.03044636026 | X13: =AVERAGE(X16:X485) -> 0.04547258209 | Y13: =AVERAGE(Y16:Y485) -> -0.004118993167 | Z13: =AVERAGE(Z16:Z485) -> 0.008722130675 | AA13: =AVERAGE(AA16:AA485) -> -0.01299601342
D14: Calculated Radiative Forcing | L14: Temperature Increase | O14: Mitigation Factor | Q14: AR6 Data | W14: Difference
A15: Model | B15: Scenario | C15: CO2 PPM | D15: CO2 | E15: CH4 | F15: N2O | G15: Other GHG | H15: Aerosol | I15: Other NonGHG | J15: Total | K15: Clim Fact | L15: Calced | M15: AR6 Model | N15: Diff | Q15: CO2RF | R15: CH4RF | S15: N2ORF | T15: AerosolRF | U15: TotalRF | W15: CO2RF | X15: CH4RF | Y15: N2ORF | Z15: AerosolRF | AA15: TotalRF
A16: AIM/CGE 2.0 | B16: ADVANCE_2020_1.5C-2100 | C16: 375.628508 | D16: =CO2RFFromCO2PPM(C16) -> 1.71309499 | E16: ='Non-CO2 RF Calcs'!$S$17+('Non-CO2 RF Calcs'!$S$16-'Non-CO2 RF Calcs'!$S$17)*($O16-1)/9 -> 0.3507330062 | F16: ='Non-CO2 RF Calcs'!$S$19+('Non-CO2 RF Calcs'!$S$18-'Non-CO2 RF Calcs'!$S$19)*($O16-1)/9 -> 0.340028781 | G16: ='Non-CO2 RF Calcs'!$S$21+('Non-CO2 RF Calcs'!$S$20-'Non-CO2 RF Calcs'!$S$21)*($O16-1)/9 -> 0.03028737586 | H16: ='Non-CO2 RF Calcs'!$S$23+('Non-CO2 RF Calcs'!$S$22-'Non-CO2 RF Calcs'!$S$23)*($O16-1)/9 -> -0.2252746416 | I16: ='Non-CO2 RF Calcs'!$S$25+('Non-CO2 RF Calcs'!$S$24-'Non-CO2 RF Calcs'!$S$25)*($O16-1)/9 -> 0.03028737586 | J16: =SUM(D16:I16) -> 2.239156887 | K16: =CFfromRFin2100(J16) -> 0.6116561414 | L16: =K16*J16 -> 1.369594062 | M16: 1.173194 | N16: =L16-M16 -> 0.1964000617 | O16: =MitigationAggressiveness(D16,0) -> 9.83359199 | Q16: 1.643975 | R16: 0.200568 | S16: 0.242274 | T16: -0.169527 | U16: 1.957325 | W16: =Q16-D16 -> -0.06911999007 | X16: =R16-E16 -> -0.1501650062 | Y16: =S16-F16 -> -0.09775478097 | Z16: =T16-H16 -> 0.05574764162 | AA16: =U16-J16 -> -0.2818318874
A17: AIM/CGE 2.0 | B17: ADVANCE_2020_Med2C | C17: 475.384113 | D17: =CO2RFFromCO2PPM(C17) -> 2.988546466 | E17: ='Non-CO2 RF Calcs'!$S$17+('Non-CO2 RF Calcs'!$S$16-'Non-CO2 RF Calcs'!$S$17)*($O17-1)/9 -> 0.4204979407 | F17: ='Non-CO2 RF Calcs'!$S$19+('Non-CO2 RF Calcs'!$S$18-'Non-CO2 RF Calcs'!$S$19)*($O17-1)/9 -> 0.3587177132 | G17: ='Non-CO2 RF Calcs'!$S$21+('Non-CO2 RF Calcs'!$S$20-'Non-CO2 RF Calcs'!$S$21)*($O17-1)/9 -> 0.1125233971 | H17: ='Non-CO2 RF Calcs'!$S$23+('Non-CO2 RF Calcs'!$S$22-'Non-CO2 RF Calcs'!$S$23)*($O17-1)/9 -> -0.2761618668 | I17: ='Non-CO2 RF Calcs'!$S$25+('Non-CO2 RF Calcs'!$S$24-'Non-CO2 RF Calcs'!$S$25)*($O17-1)/9 -> 0.1125233971 | J17: =SUM(D17:I17) -> 3.716647047 | K17: =CFfromRFin2100(J17) -> 0.5879804447 | L17: =K17*J17 -> 2.185315784 | M17: 2.013063 | N17: =L17-M17 -> 0.1722527836 | O17: =MitigationAggressiveness(D17,0) -> 8.771720841 | Q17: 2.971056 | R17: 0.380245 | S17: 0.311364 | T17: -0.240738 | U17: 3.515778 | W17: =Q17-D17 -> -0.01749046609 | X17: =R17-E17 -> -0.04025294074 | Y17: =S17-F17 -> -0.0473537132 | Z17: =T17-H17 -> 0.0354238668 | AA17: =U17-J17 -> -0.2008690474
A18: AIM/CGE 2.0 | B18: ADVANCE_2020_WB2C | C18: 417.556426 | D18: =CO2RFFromCO2PPM(C18) -> 2.266844625 | E18: ='Non-CO2 RF Calcs'!$S$17+('Non-CO2 RF Calcs'!$S$16-'Non-CO2 RF Calcs'!$S$17)*($O18-1)/9 -> 0.3831201868 | F18: ='Non-CO2 RF Calcs'!$S$19+('Non-CO2 RF Calcs'!$S$18-'Non-CO2 RF Calcs'!$S$19)*($O18-1)/9 -> 0.3487047989 | G18: ='Non-CO2 RF Calcs'!$S$21+('Non-CO2 RF Calcs'!$S$20-'Non-CO2 RF Calcs'!$S$21)*($O18-1)/9 -> 0.06846404567 | H18: ='Non-CO2 RF Calcs'!$S$23+('Non-CO2 RF Calcs'!$S$22-'Non-CO2 RF Calcs'!$S$23)*($O18-1)/9 -> -0.2488981677 | I18: ='Non-CO2 RF Calcs'!$S$25+('Non-CO2 RF Calcs'!$S$24-'Non-CO2 RF Calcs'!$S$25)*($O18-1)/9 -> 0.06846404567 | J18: =SUM(D18:I18) -> 2.886699535 | K18: =CFfromRFin2100(J18) -> 0.6005590563 | L18: =K18*J18 -> 1.733633548 | M18: 1.536937 | N18: =L18-M18 -> 0.1966965485 | O18: =MitigationAggressiveness(D18,0) -> 9.340636426 | Q18: 2.239687 | R18: 0.290827 | S18: 0.279341 | T18: -0.248472 | U18: 2.629885 | W18: =Q18-D18 -> -0.02715762532 | X18: =R18-E18 -> -0.0922931868 | Y18: =S18-F18 -> -0.0693637989 | Z18: =T18-H18 -> 0.0004261677124 | AA18: =U18-J18 -> -0.2568145346
A19: AIM/CGE 2.0 | B19: ADVANCE_2030_Med2C | C19: 473.541281 | D19: =CO2RFFromCO2PPM(C19) -> 2.966299387 | E19: ='Non-CO2 RF Calcs'!$S$17+('Non-CO2 RF Calcs'!$S$16-'Non-CO2 RF Calcs'!$S$17)*($O19-1)/9 -> 0.4194274312 | F19: ='Non-CO2 RF Calcs'!$S$19+('Non-CO2 RF Calcs'!$S$18-'Non-CO2 RF Calcs'!$S$19)*($O19-1)/9 -> 0.3584309405 | G19: ='Non-CO2 RF Calcs'!$S$21+('Non-CO2 RF Calcs'!$S$20-'Non-CO2 RF Calcs'!$S$21)*($O19-1)/9 -> 0.1112615247 | H19: ='Non-CO2 RF Calcs'!$S$23+('Non-CO2 RF Calcs'!$S$22-'Non-CO2 RF Calcs'!$S$23)*($O19-1)/9 -> -0.2753810267 | I19: ='Non-CO2 RF Calcs'!$S$25+('Non-CO2 RF Calcs'!$S$24-'Non-CO2 RF Calcs'!$S$25)*($O19-1)/9 -> 0.1112615247 | J19: 3.691299781 | K19: =CFfromRFin2100(J19) -> 0.5883372567 | L19: 2.171729187 | M19: 2.159823 | N19: 0.01190618699 | O19: =MitigationAggressiveness(D19,0) -> 8.788014746 | Q19: 2.948081 | R19: 0.350731 | S19: 0.31356 | T19: -0.240532 | U19: 3.7531 | W19: -0.01821838688 | X19: =R19-E19 -> -0.06869643121 | Y19: =S19-F19 -> -0.04487094048 | Z19: =T19-H19 -> 0.03484902669 | AA19: =U19-J19 -> 0.06180021874
A20: AIM/CGE 2.0 | B20: ADVANCE_2030_Price1.5C | C20: 399.348888 | D20: =CO2RFFromCO2PPM(C20) -> 2.029521757 | E20: ='Non-CO2 RF Calcs'!$S$17+('Non-CO2 RF Calcs'!$S$16-'Non-CO2 RF Calcs'!$S$17)*($O20-1)/9 -> 0.3696341116 | F20: ='Non-CO2 RF Calcs'!$S$19+('Non-CO2 RF Calcs'!$S$18-'Non-CO2 RF Calcs'!$S$19)*($O20-1)/9 -> 0.3450920908 | G20: ='Non-CO2 RF Calcs'!$S$21+('Non-CO2 RF Calcs'!$S$20-'Non-CO2 RF Calcs'!$S$21)*($O20-1)/9 -> 0.05256721761 | H20: ='Non-CO2 RF Calcs'!$S$23+('Non-CO2 RF Calcs'!$S$22-'Non-CO2 RF Calcs'!$S$23)*($O20-1)/9 -> -0.2390612926 | I20: ='Non-CO2 RF Calcs'!$S$25+('Non-CO2 RF Calcs'!$S$24-'Non-CO2 RF Calcs'!$S$25)*($O20-1)/9 -> 0.05256721761 | J20: 2.610321102 | K20: =CFfromRFin2100(J20) -> 0.605157854 | L20: 1.579656316 | M20: 1.52353 | N20: 0.05612631641 | O20: =MitigationAggressiveness(D20,0) -> 9.545903933 | Q20: 1.983932 | R20: 0.242125 | S20: 0.272795 | T20: -0.253085 | U20: 2.604096 | W20: -0.04558975728 | X20: =R20-E20 -> -0.1275091116 | Y20: =S20-F20 -> -0.07229709077 | Z20: =T20-H20 -> -0.01402370738 | AA20: =U20-J20 -> -0.006225102229
A21: AIM/CGE 2.0 | B21: ADVANCE_2030_WB2C | C21: 409.849108 | D21: =CO2RFFromCO2PPM(C21) -> 2.166974747 | E21: ='Non-CO2 RF Calcs'!$S$17+('Non-CO2 RF Calcs'!$S$16-'Non-CO2 RF Calcs'!$S$17)*($O21-1)/9 -> 0.3775170621 | F21: ='Non-CO2 RF Calcs'!$S$19+('Non-CO2 RF Calcs'!$S$18-'Non-CO2 RF Calcs'!$S$19)*($O21-1)/9 -> 0.3472038096 | G21: ='Non-CO2 RF Calcs'!$S$21+('Non-CO2 RF Calcs'!$S$20-'Non-CO2 RF Calcs'!$S$21)*($O21-1)/9 -> 0.0618593139 | H21: ='Non-CO2 RF Calcs'!$S$23+('Non-CO2 RF Calcs'!$S$22-'Non-CO2 RF Calcs'!$S$23)*($O21-1)/9 -> -0.2448111938 | I21: ='Non-CO2 RF Calcs'!$S$25+('Non-CO2 RF Calcs'!$S$24-'Non-CO2 RF Calcs'!$S$25)*($O21-1)/9 -> 0.0618593139 | J21: 2.770603052 | K21: =CFfromRFin2100(J21) -> 0.6024658897 | L21: 1.669193833 | M21: 1.609515 | N21: 0.05967883279 | O21: =MitigationAggressiveness(D21,0) -> 9.425919907 | Q21: 2.125074 | R21: 0.232714 | S21: 0.27393 | T21: -0.254148 | U21: 2.721556 | W21: -0.04190074653 | X21: =R21-E21 -> -0.1448030621 | Y21: =S21-F21 -> -0.07327380964 | Z21: =T21-H21 -> -0.009336806192 | AA21: =U21-J21 -> -0.0490470523
A22: AIM/CGE 2.0 | B22: ADVANCE_INDC | C22: 554.950453 | D22: =CO2RFFromCO2PPM(C22) -> 3.901884811 | E22: ='Non-CO2 RF Calcs'!$S$17+('Non-CO2 RF Calcs'!$S$16-'Non-CO2 RF Calcs'!$S$17)*($O22-1)/9 -> 0.459960944 | F22: ='Non-CO2 RF Calcs'!$S$19+('Non-CO2 RF Calcs'!$S$18-'Non-CO2 RF Calcs'!$S$19)*($O22-1)/9 -> 0.3692892331 | G22: ='Non-CO2 RF Calcs'!$S$21+('Non-CO2 RF Calcs'!$S$20-'Non-CO2 RF Calcs'!$S$21)*($O22-1)/9 -> 0.1590407542 | H22: ='Non-CO2 RF Calcs'!$S$23+('Non-CO2 RF Calcs'!$S$22-'Non-CO2 RF Calcs'!$S$23)*($O22-1)/9 -> -0.3049465671 | I22: ='Non-CO2 RF Calcs'!$S$25+('Non-CO2 RF Calcs'!$S$24-'Non-CO2 RF Calcs'!$S$25)*($O22-1)/9 -> 0.1590407542 | J22: 4.744269929 | K22: =CFfromRFin2100(J22) -> 0.574965693 | L22: 2.727792448 | M22: 2.716326 | N22: 0.01146644777 | O22: =MitigationAggressiveness(D22,0) -> 8.171066302 | Q22: 3.863436 | R22: 0.435682 | S22: 0.346908 | T22: -0.316231 | U22: 4.739526 | W22: -0.03844881098 | X22: =R22-E22 -> -0.02427894396 | Y22: =S22-F22 -> -0.02238123309 | Z22: =T22-H22 -> -0.01128443289 | AA22: =U22-J22 -> -0.004743929272
A23: AIM/CGE 2.0 | B23: ADVANCE_NoPolicy | C23: 805.582896 | D23: =CO2RFFromCO2PPM(C23) -> 6.175780287 | E23: ='Non-CO2 RF Calcs'!$S$17+('Non-CO2 RF Calcs'!$S$16-'Non-CO2 RF Calcs'!$S$17)*($O23-1)/9 -> 0.5201622425 | F23: ='Non-CO2 RF Calcs'!$S$19+('Non-CO2 RF Calcs'!$S$18-'Non-CO2 RF Calcs'!$S$19)*($O23-1)/9 -> 0.3854162172 | G23: ='Non-CO2 RF Calcs'!$S$21+('Non-CO2 RF Calcs'!$S$20-'Non-CO2 RF Calcs'!$S$21)*($O23-1)/9 -> 0.2300035566 | H23: ='Non-CO2 RF Calcs'!$S$23+('Non-CO2 RF Calcs'!$S$22-'Non-CO2 RF Calcs'!$S$23)*($O23-1)/9 -> -0.3488579827 | I23: ='Non-CO2 RF Calcs'!$S$25+('Non-CO2 RF Calcs'!$S$24-'Non-CO2 RF Calcs'!$S$25)*($O23-1)/9 -> 0.2300035566 | J23: 7.192507877 | K23: =CFfromRFin2100(J23) -> 0.5553705327 | L23: 3.994506932 | M23: 4.280924 | N23: -0.2864170684 | O23: =MitigationAggressiveness(D23,0) -> 7.254760388 | Q23: 6.144702 | R23: 0.895297 | S23: 0.481932 | T23: -0.409254 | U23: 7.657628 | W23: -0.03107828725 | X23: =R23-E23 -> 0.3751347575 | Y23: =S23-F23 -> 0.09651578283 | Z23: =T23-H23 -> -0.06039601727 | AA23: =U23-J23 -> 0.4651201226
A24: AIM/CGE 2.0 | B24: ADVANCE_Reference | C24: 765.059134 | D24: =CO2RFFromCO2PPM(C24) -> 5.870171827 | E24: ='Non-CO2 RF Calcs'!$S$17+('Non-CO2 RF Calcs'!$S$16-'Non-CO2 RF Calcs'!$S$17)*($O24-1)/9 -> 0.5152291807 | F24: ='Non-CO2 RF Calcs'!$S$19+('Non-CO2 RF Calcs'!$S$18-'Non-CO2 RF Calcs'!$S$19)*($O24-1)/9 -> 0.3840947273 | G24: ='Non-CO2 RF Calcs'!$S$21+('Non-CO2 RF Calcs'!$S$20-'Non-CO2 RF Calcs'!$S$21)*($O24-1)/9 -> 0.2241886673 | H24: ='Non-CO2 RF Calcs'!$S$23+('Non-CO2 RF Calcs'!$S$22-'Non-CO2 RF Calcs'!$S$23)*($O24-1)/9 -> -0.3452597593 | I24: ='Non-CO2 RF Calcs'!$S$25+('Non-CO2 RF Calcs'!$S$24-'Non-CO2 RF Calcs'!$S$25)*($O24-1)/9 -> 0.2241886673 | J24: 6.87261331 | K24: =CFfromRFin2100(J24) -> 0.557017885 | L24: 3.828168531 | M24: 3.882014 | N24: -0.05384546944 | O24: =MitigationAggressiveness(D24,0) -> 7.329845042 | Q24: 5.80844 | R24: 0.853635 | S24: 0.45932 | T24: -0.380545 | U24: 6.9513 | W24: -0.06173182714 | X24: =R24-E24 -> 0.3384058193 | Y24: =S24-F24 -> 0.07522527274 | Z24: =T24-H24 -> -0.03528524075 | AA24: =U24-J24 -> 0.07868668957
A25: AIM/CGE 2.0 | B25: EMF30_Baseline | C25: 788.265812 | D25: =CO2RFFromCO2PPM(C25) -> 6.048112778 | E25: ='Non-CO2 RF Calcs'!$S$17+('Non-CO2 RF Calcs'!$S$16-'Non-CO2 RF Calcs'!$S$17)*($O25-1)/9 -> 0.5182207249 | F25: ='Non-CO2 RF Calcs'!$S$19+('Non-CO2 RF Calcs'!$S$18-'Non-CO2 RF Calcs'!$S$19)*($O25-1)/9 -> 0.384896115 | G25: ='Non-CO2 RF Calcs'!$S$21+('Non-CO2 RF Calcs'!$S$20-'Non-CO2 RF Calcs'!$S$21)*($O25-1)/9 -> 0.2277149759 | H25: ='Non-CO2 RF Calcs'!$S$23+('Non-CO2 RF Calcs'!$S$22-'Non-CO2 RF Calcs'!$S$23)*($O25-1)/9 -> -0.3474418208 | I25: ='Non-CO2 RF Calcs'!$S$25+('Non-CO2 RF Calcs'!$S$24-'Non-CO2 RF Calcs'!$S$25)*($O25-1)/9 -> 0.2277149759 | J25: 7.059217748 | K25: =CFfromRFin2100(J25) -> 0.5560235792 | L25: 3.925091519 | M25: 4.269715 | N25: -0.3446234812 | O25: =MitigationAggressiveness(D25,0) -> 7.284311646 | Q25: 6.006445 | R25: 0.980034 | S25: 0.491718 | T25: -0.329117 | U25: 7.587404 | W25: -0.04166777756 | X25: =R25-E25 -> 0.4618132751 | Y25: =S25-F25 -> 0.106821885 | Z25: =T25-H25 -> 0.0183248208 | AA25: =U25-J25 -> 0.5281862516
A26: AIM/CGE 2.0 | B26: EMF30_BCOC-EndU | C26: 788.889841 | D26: =CO2RFFromCO2PPM(C26) -> 6.052789248 | E26: ='Non-CO2 RF Calcs'!$S$17+('Non-CO2 RF Calcs'!$S$16-'Non-CO2 RF Calcs'!$S$17)*($O26-1)/9 -> 0.5182948623 | F26: ='Non-CO2 RF Calcs'!$S$19+('Non-CO2 RF Calcs'!$S$18-'Non-CO2 RF Calcs'!$S$19)*($O26-1)/9 -> 0.3849159753 | G26: ='Non-CO2 RF Calcs'!$S$21+('Non-CO2 RF Calcs'!$S$20-'Non-CO2 RF Calcs'!$S$21)*($O26-1)/9 -> 0.227802366 | H26: ='Non-CO2 RF Calcs'!$S$23+('Non-CO2 RF Calcs'!$S$22-'Non-CO2 RF Calcs'!$S$23)*($O26-1)/9 -> -0.3474958974 | I26: ='Non-CO2 RF Calcs'!$S$25+('Non-CO2 RF Calcs'!$S$24-'Non-CO2 RF Calcs'!$S$25)*($O26-1)/9 -> 0.227802366 | J26: 7.06410892 | K26: =CFfromRFin2100(J26) -> 0.555998773 | L26: 3.927635892 | M26: 4.274521 | N26: -0.3468851078 | O26: =MitigationAggressiveness(D26,0) -> 7.283183222 | Q26: 6.01218 | R26: 0.985449 | S26: 0.491546 | T26: -0.327739 | U26: 7.591119 | W26: -0.04060924788 | X26: =R26-E26 -> 0.4671541377 | Y26: =S26-F26 -> 0.1066300247 | Z26: =T26-H26 -> 0.01975689738 | AA26: =U26-J26 -> 0.5270100798
A27: AIM/CGE 2.0 | B27: EMF30_CH4-Only | C27: 755.907213 | D27: =CO2RFFromCO2PPM(C27) -> 5.797839851 | E27: ='Non-CO2 RF Calcs'!$S$17+('Non-CO2 RF Calcs'!$S$16-'Non-CO2 RF Calcs'!$S$17)*($O27-1)/9 -> 0.5139180987 | F27: ='Non-CO2 RF Calcs'!$S$19+('Non-CO2 RF Calcs'!$S$18-'Non-CO2 RF Calcs'!$S$19)*($O27-1)/9 -> 0.3837435089 | G27: ='Non-CO2 RF Calcs'!$S$21+('Non-CO2 RF Calcs'!$S$20-'Non-CO2 RF Calcs'!$S$21)*($O27-1)/9 -> 0.222643218 | H27: ='Non-CO2 RF Calcs'!$S$23+('Non-CO2 RF Calcs'!$S$22-'Non-CO2 RF Calcs'!$S$23)*($O27-1)/9 -> -0.3443034432 | I27: ='Non-CO2 RF Calcs'!$S$25+('Non-CO2 RF Calcs'!$S$24-'Non-CO2 RF Calcs'!$S$25)*($O27-1)/9 -> 0.222643218 | J27: 6.796484451 | K27: =CFfromRFin2100(J27) -> 0.5574503532 | L27: 3.788702658 | M27: 3.669576 | N27: 0.1191266581 | O27: =MitigationAggressiveness(D27,0) -> 7.349800628 | Q27: 5.728065 | R27: 0.440273 | S27: 0.508136 | T27: -0.322006 | U27: 6.634342 | W27: -0.06977485064 | X27: =R27-E27 -> -0.07364509871 | Y27: =S27-F27 -> 0.1243924911 | Z27: =T27-H27 -> 0.02229744321 | AA27: =U27-J27 -> -0.1621424511
A28: AIM/CGE 2.0 | B28: EMF30_ClimPolicy | C28: 433.183047 | D28: =CO2RFFromCO2PPM(C28) -> 2.466673996 | E28: ='Non-CO2 RF Calcs'!$S$17+('Non-CO2 RF Calcs'!$S$16-'Non-CO2 RF Calcs'!$S$17)*($O28-1)/9 -> 0.3940170577 | F28: ='Non-CO2 RF Calcs'!$S$19+('Non-CO2 RF Calcs'!$S$18-'Non-CO2 RF Calcs'!$S$19)*($O28-1)/9 -> 0.3516238998 | G28: ='Non-CO2 RF Calcs'!$S$21+('Non-CO2 RF Calcs'!$S$20-'Non-CO2 RF Calcs'!$S$21)*($O28-1)/9 -> 0.08130882665 | H28: ='Non-CO2 RF Calcs'!$S$23+('Non-CO2 RF Calcs'!$S$22-'Non-CO2 RF Calcs'!$S$23)*($O28-1)/9 -> -0.2568464518 | I28: ='Non-CO2 RF Calcs'!$S$25+('Non-CO2 RF Calcs'!$S$24-'Non-CO2 RF Calcs'!$S$25)*($O28-1)/9 -> 0.08130882665 | J28: 3.118086155 | K28: =CFfromRFin2100(J28) -> 0.5968664539 | L28: 1.861081026 | M28: 1.642899 | N28: 0.2181820264 | O28: =MitigationAggressiveness(D28,0) -> 9.174778422 | Q28: 2.439398 | R28: 0.281849 | S28: 0.298053 | T28: -0.292694 | U28: 2.790014 | W28: -0.02727599631 | X28: =R28-E28 -> -0.1121680577 | Y28: =S28-F28 -> -0.05357089977 | Z28: =T28-H28 -> -0.03584754816 | AA28: =U28-J28 -> -0.3280721552
A29: AIM/CGE 2.0 | B29: EMF30_ClimPolicy+SLCF | C29: 432.821568 | D29: =CO2RFFromCO2PPM(C29) -> 2.462091705 | E29: ='Non-CO2 RF Calcs'!$S$17+('Non-CO2 RF Calcs'!$S$16-'Non-CO2 RF Calcs'!$S$17)*($O29-1)/9 -> 0.3937718782 | F29: ='Non-CO2 RF Calcs'!$S$19+('Non-CO2 RF Calcs'!$S$18-'Non-CO2 RF Calcs'!$S$19)*($O29-1)/9 -> 0.35155822 | G29: ='Non-CO2 RF Calcs'!$S$21+('Non-CO2 RF Calcs'!$S$20-'Non-CO2 RF Calcs'!$S$21)*($O29-1)/9 -> 0.08101981924 | H29: ='Non-CO2 RF Calcs'!$S$23+('Non-CO2 RF Calcs'!$S$22-'Non-CO2 RF Calcs'!$S$23)*($O29-1)/9 -> -0.2566676155 | I29: ='Non-CO2 RF Calcs'!$S$25+('Non-CO2 RF Calcs'!$S$24-'Non-CO2 RF Calcs'!$S$25)*($O29-1)/9 -> 0.08101981924 | J29: 3.112793826 | K29: =CFfromRFin2100(J29) -> 0.5969493074 | L29: 1.858180118 | M29: 1.646184 | N29: 0.2119961184 | O29: =MitigationAggressiveness(D29,0) -> 9.178510225 | Q29: 2.434599 | R29: 0.283319 | S29: 0.296359 | T29: -0.291776 | U29: 2.78732 | W29: -0.02749270474 | X29: =R29-E29 -> -0.1104528782 | Y29: =S29-F29 -> -0.05519922004 | Z29: =T29-H29 -> -0.03510838445 | AA29: =U29-J29 -> -0.3254738259
A30: AIM/CGE 2.0 | B30: EMF30_D_BCOC-Red | C30: 788.602873 | D30: =CO2RFFromCO2PPM(C30) -> 6.050639416 | E30: ='Non-CO2 RF Calcs'!$S$17+('Non-CO2 RF Calcs'!$S$16-'Non-CO2 RF Calcs'!$S$17)*($O30-1)/9 -> 0.5182608089 | F30: ='Non-CO2 RF Calcs'!$S$19+('Non-CO2 RF Calcs'!$S$18-'Non-CO2 RF Calcs'!$S$19)*($O30-1)/9 -> 0.3849068529 | G30: ='Non-CO2 RF Calcs'!$S$21+('Non-CO2 RF Calcs'!$S$20-'Non-CO2 RF Calcs'!$S$21)*($O30-1)/9 -> 0.2277622253 | H30: ='Non-CO2 RF Calcs'!$S$23+('Non-CO2 RF Calcs'!$S$22-'Non-CO2 RF Calcs'!$S$23)*($O30-1)/9 -> -0.3474710585 | I30: ='Non-CO2 RF Calcs'!$S$25+('Non-CO2 RF Calcs'!$S$24-'Non-CO2 RF Calcs'!$S$25)*($O30-1)/9 -> 0.2277622253 | J30: 7.06186047 | K30: =CFfromRFin2100(J30) -> 0.5560101683 | L30: 3.926466229 | M30: 4.281527 | N30: -0.3550607713 | O30: =MitigationAggressiveness(D30,0) -> 7.283701538 | Q30: 6.008557 | R30: 0.979852 | S30: 0.49172 | T30: -0.31979 | U30: 7.599119 | W30: -0.04208241596 | X30: =R30-E30 -> 0.4615911911 | Y30: =S30-F30 -> 0.1068131471 | Z30: =T30-H30 -> 0.0276810585 | AA30: =U30-J30 -> 0.5372585301
A31: AIM/CGE 2.0 | B31: EMF30_D_CH4-ClimPolicy | C31: 745.779928 | D31: =CO2RFFromCO2PPM(C31) -> 5.716376254 | E31: ='Non-CO2 RF Calcs'!$S$17+('Non-CO2 RF Calcs'!$S$16-'Non-CO2 RF Calcs'!$S$17)*($O31-1)/9 -> 0.512375724 | F31: ='Non-CO2 RF Calcs'!$S$19+('Non-CO2 RF Calcs'!$S$18-'Non-CO2 RF Calcs'!$S$19)*($O31-1)/9 -> 0.3833303309 | G31: ='Non-CO2 RF Calcs'!$S$21+('Non-CO2 RF Calcs'!$S$20-'Non-CO2 RF Calcs'!$S$21)*($O31-1)/9 -> 0.2208251304 | H31: ='Non-CO2 RF Calcs'!$S$23+('Non-CO2 RF Calcs'!$S$22-'Non-CO2 RF Calcs'!$S$23)*($O31-1)/9 -> -0.34317842 | I31: ='Non-CO2 RF Calcs'!$S$25+('Non-CO2 RF Calcs'!$S$24-'Non-CO2 RF Calcs'!$S$25)*($O31-1)/9 -> 0.2208251304 | J31: 6.71055415 | K31: =CFfromRFin2100(J31) -> 0.5579571754 | L31: 3.744201839 | M31: 3.449445 | N31: 0.294756839 | O31: =MitigationAggressiveness(D31,0) -> 7.373276652 | Q31: 5.638419 | R31: 0.208138 | S31: 0.51462 | T31: -0.31067 | U31: 6.247907 | W31: -0.07795725407 | X31: =R31-E31 -> -0.304237724 | Y31: =S31-F31 -> 0.1312896691 | Z31: =T31-H31 -> 0.03250842002 | AA31: =U31-J31 -> -0.4626471498
A32: AIM/CGE 2.0 | B32: EMF30_D_CO2-Only | C32: 425.232655 | D32: =CO2RFFromCO2PPM(C32) -> 2.365451095 | E32: ='Non-CO2 RF Calcs'!$S$17+('Non-CO2 RF Calcs'!$S$16-'Non-CO2 RF Calcs'!$S$17)*($O32-1)/9 -> 0.388549684 | F32: ='Non-CO2 RF Calcs'!$S$19+('Non-CO2 RF Calcs'!$S$18-'Non-CO2 RF Calcs'!$S$19)*($O32-1)/9 -> 0.3501592761 | G32: ='Non-CO2 RF Calcs'!$S$21+('Non-CO2 RF Calcs'!$S$20-'Non-CO2 RF Calcs'!$S$21)*($O32-1)/9 -> 0.07486411253 | H32: ='Non-CO2 RF Calcs'!$S$23+('Non-CO2 RF Calcs'!$S$22-'Non-CO2 RF Calcs'!$S$23)*($O32-1)/9 -> -0.252858496 | I32: ='Non-CO2 RF Calcs'!$S$25+('Non-CO2 RF Calcs'!$S$24-'Non-CO2 RF Calcs'!$S$25)*($O32-1)/9 -> 0.07486411253 | J32: 3.001029785 | K32: =CFfromRFin2100(J32) -> 0.5987165609 | L32: 1.796766232 | M32: 2.261383 | N32: -0.4646167682 | O32: =MitigationAggressiveness(D32,0) -> 9.257995678 | Q32: 2.327482 | R32: 0.927666 | S32: 0.462708 | T32: -0.392326 | U32: 3.888031 | W32: -0.03796909549 | X32: =R32-E32 -> 0.539116316 | Y32: =S32-F32 -> 0.1125487239 | Z32: =T32-H32 -> -0.139467504 | AA32: =U32-J32 -> 0.8870012154
A33: AIM/CGE 2.0 | B33: EMF30_D_Frozen-CH4 | C33: 790.478448 | D33: =CO2RFFromCO2PPM(C33) -> 6.064668645 | E33: ='Non-CO2 RF Calcs'!$S$17+('Non-CO2 RF Calcs'!$S$16-'Non-CO2 RF Calcs'!$S$17)*($O33-1)/9 -> 0.5184821574 | F33: ='Non-CO2 RF Calcs'!$S$19+('Non-CO2 RF Calcs'!$S$18-'Non-CO2 RF Calcs'!$S$19)*($O33-1)/9 -> 0.3849661487 | G33: ='Non-CO2 RF Calcs'!$S$21+('Non-CO2 RF Calcs'!$S$20-'Non-CO2 RF Calcs'!$S$21)*($O33-1)/9 -> 0.2280231417 | H33: ='Non-CO2 RF Calcs'!$S$23+('Non-CO2 RF Calcs'!$S$22-'Non-CO2 RF Calcs'!$S$23)*($O33-1)/9 -> -0.3476325122 | I33: ='Non-CO2 RF Calcs'!$S$25+('Non-CO2 RF Calcs'!$S$24-'Non-CO2 RF Calcs'!$S$25)*($O33-1)/9 -> 0.2280231417 | J33: 7.076530723 | K33: =CFfromRFin2100(J33) -> 0.5559360628 | L33: 3.934098628 | M33: 4.343858 | N33: -0.4097593719 | O33: =MitigationAggressiveness(D33,0) -> 7.28033246 | Q33: 6.023276 | R33: 1.063829 | S33: 0.488894 | T33: -0.329117 | U33: 7.699956 | W33: -0.04139264545 | X33: =R33-E33 -> 0.5453468426 | Y33: =S33-F33 -> 0.1039278513 | Z33: =T33-H33 -> 0.01851551223 | AA33: =U33-J33 -> 0.6234252772
A34: AIM/CGE 2.0 | B34: EMF30_D_Frozen-EF | C34: 769.645937 | D34: =CO2RFFromCO2PPM(C34) -> 5.905964274 | E34: ='Non-CO2 RF Calcs'!$S$17+('Non-CO2 RF Calcs'!$S$16-'Non-CO2 RF Calcs'!$S$17)*($O34-1)/9 -> 0.5158576339 | F34: ='Non-CO2 RF Calcs'!$S$19+('Non-CO2 RF Calcs'!$S$18-'Non-CO2 RF Calcs'!$S$19)*($O34-1)/9 -> 0.38426308 | G34: ='Non-CO2 RF Calcs'!$S$21+('Non-CO2 RF Calcs'!$S$20-'Non-CO2 RF Calcs'!$S$21)*($O34-1)/9 -> 0.2249294619 | H34: ='Non-CO2 RF Calcs'!$S$23+('Non-CO2 RF Calcs'!$S$22-'Non-CO2 RF Calcs'!$S$23)*($O34-1)/9 -> -0.3457181591 | I34: ='Non-CO2 RF Calcs'!$S$25+('Non-CO2 RF Calcs'!$S$24-'Non-CO2 RF Calcs'!$S$25)*($O34-1)/9 -> 0.2249294619 | J34: 6.910225752 | K34: =CFfromRFin2100(J34) -> 0.5568099554 | L34: 3.847682493 | M34: 3.207478 | N34: 0.640204493 | O34: =MitigationAggressiveness(D34,0) -> 7.320279545 | Q34: 5.839555 | R34: 0.879764 | S34: 0.497227 | T34: -1.992316 | U34: 6.017296 | W34: -0.06640927374 | X34: =R34-E34 -> 0.3639063661 | Y34: =S34-F34 -> 0.11296392 | Z34: =T34-H34 -> -1.646597841 | AA34: =U34-J34 -> -0.8929297523
A35: AIM/CGE 2.0 | B35: EMF30_D_Frozen-EF-EndU | C35: 787.444518 | D35: =CO2RFFromCO2PPM(C35) -> 6.041949354 | E35: ='Non-CO2 RF Calcs'!$S$17+('Non-CO2 RF Calcs'!$S$16-'Non-CO2 RF Calcs'!$S$17)*($O35-1)/9 -> 0.5181226636 | F35: ='Non-CO2 RF Calcs'!$S$19+('Non-CO2 RF Calcs'!$S$18-'Non-CO2 RF Calcs'!$S$19)*($O35-1)/9 -> 0.3848698459 | G35: ='Non-CO2 RF Calcs'!$S$21+('Non-CO2 RF Calcs'!$S$20-'Non-CO2 RF Calcs'!$S$21)*($O35-1)/9 -> 0.2275993853 | H35: ='Non-CO2 RF Calcs'!$S$23+('Non-CO2 RF Calcs'!$S$22-'Non-CO2 RF Calcs'!$S$23)*($O35-1)/9 -> -0.3473702939 | I35: ='Non-CO2 RF Calcs'!$S$25+('Non-CO2 RF Calcs'!$S$24-'Non-CO2 RF Calcs'!$S$25)*($O35-1)/9 -> 0.2275993853 | J35: 7.05277034 | K35: =CFfromRFin2100(J35) -> 0.556056376 | L35: 3.921737916 | M35: 4.179904 | N35: -0.2581660839 | O35: =MitigationAggressiveness(D35,0) -> 7.285804208 | Q35: 6.010509 | R35: 0.924545 | S35: 0.49356 | T35: -0.530275 | U35: 7.491673 | W35: -0.03144035377 | X35: =R35-E35 -> 0.4064223364 | Y35: =S35-F35 -> 0.1086901541 | Z35: =T35-H35 -> -0.1829047061 | AA35: =U35-J35 -> 0.4389026601
A36: AIM/CGE 2.0 | B36: EMF30_D_Frozen-EF-SLCF | C36: 791.339143 | D36: =CO2RFFromCO2PPM(C36) -> 6.071089448 | E36: ='Non-CO2 RF Calcs'!$S$17+('Non-CO2 RF Calcs'!$S$16-'Non-CO2 RF Calcs'!$S$17)*($O36-1)/9 -> 0.5185827733 | F36: ='Non-CO2 RF Calcs'!$S$19+('Non-CO2 RF Calcs'!$S$18-'Non-CO2 RF Calcs'!$S$19)*($O36-1)/9 -> 0.3849931021 | G36: ='Non-CO2 RF Calcs'!$S$21+('Non-CO2 RF Calcs'!$S$20-'Non-CO2 RF Calcs'!$S$21)*($O36-1)/9 -> 0.2281417436 | H36: ='Non-CO2 RF Calcs'!$S$23+('Non-CO2 RF Calcs'!$S$22-'Non-CO2 RF Calcs'!$S$23)*($O36-1)/9 -> -0.3477059025 | I36: ='Non-CO2 RF Calcs'!$S$25+('Non-CO2 RF Calcs'!$S$24-'Non-CO2 RF Calcs'!$S$25)*($O36-1)/9 -> 0.2281417436 | J36: 7.083242909 | K36: =CFfromRFin2100(J36) -> 0.5559023492 | L36: 3.937591373 | M36: 4.353622 | N36: -0.4160306272 | O36: =MitigationAggressiveness(D36,0) -> 7.278801015 | Q36: 6.032339 | R36: 1.06197 | S36: 0.488831 | T36: -0.343993 | U36: 7.74205 | W36: -0.03875044849 | X36: =R36-E36 -> 0.5433872267 | Y36: =S36-F36 -> 0.1038378979 | Z36: =T36-H36 -> 0.003712902476 | AA36: =U36-J36 -> 0.6588070913
A37: AIM/CGE 2.0 | B37: EMF30_SLCF | C37: 755.929834 | D37: =CO2RFFromCO2PPM(C37) -> 5.79802014 | E37: ='Non-CO2 RF Calcs'!$S$17+('Non-CO2 RF Calcs'!$S$16-'Non-CO2 RF Calcs'!$S$17)*($O37-1)/9 -> 0.5139214349 | F37: ='Non-CO2 RF Calcs'!$S$19+('Non-CO2 RF Calcs'!$S$18-'Non-CO2 RF Calcs'!$S$19)*($O37-1)/9 -> 0.3837444027 | G37: ='Non-CO2 RF Calcs'!$S$21+('Non-CO2 RF Calcs'!$S$20-'Non-CO2 RF Calcs'!$S$21)*($O37-1)/9 -> 0.2226471506 | H37: ='Non-CO2 RF Calcs'!$S$23+('Non-CO2 RF Calcs'!$S$22-'Non-CO2 RF Calcs'!$S$23)*($O37-1)/9 -> -0.3443058767 | I37: ='Non-CO2 RF Calcs'!$S$25+('Non-CO2 RF Calcs'!$S$24-'Non-CO2 RF Calcs'!$S$25)*($O37-1)/9 -> 0.2226471506 | J37: 6.796674402 | K37: =CFfromRFin2100(J37) -> 0.5574492548 | L37: 3.788801081 | M37: 3.674938 | N37: 0.1138630808 | O37: =MitigationAggressiveness(D37,0) -> 7.349749849 | Q37: 5.725764 | R37: 0.444423 | S37: 0.507982 | T37: -0.321291 | U37: 6.635436 | W37: -0.07225614011 | X37: =R37-E37 -> -0.06949843491 | Y37: =S37-F37 -> 0.1242375973 | Z37: =T37-H37 -> 0.02301487667 | AA37: =U37-J37 -> -0.1612384021
A38: AIM/CGE 2.0 | B38: EMF30_Slower-Action | C38: 541.215986 | D38: =CO2RFFromCO2PPM(C38) -> 3.750816606 | E38: ='Non-CO2 RF Calcs'!$S$17+('Non-CO2 RF Calcs'!$S$16-'Non-CO2 RF Calcs'!$S$17)*($O38-1)/9 -> 0.4540382191 | F38: ='Non-CO2 RF Calcs'!$S$19+('Non-CO2 RF Calcs'!$S$18-'Non-CO2 RF Calcs'!$S$19)*($O38-1)/9 -> 0.367702628 | G38: ='Non-CO2 RF Calcs'!$S$21+('Non-CO2 RF Calcs'!$S$20-'Non-CO2 RF Calcs'!$S$21)*($O38-1)/9 -> 0.1520592909 | H38: ='Non-CO2 RF Calcs'!$S$23+('Non-CO2 RF Calcs'!$S$22-'Non-CO2 RF Calcs'!$S$23)*($O38-1)/9 -> -0.3006264737 | I38: ='Non-CO2 RF Calcs'!$S$25+('Non-CO2 RF Calcs'!$S$24-'Non-CO2 RF Calcs'!$S$25)*($O38-1)/9 -> 0.1520592909 | J38: 4.576049561 | K38: =CFfromRFin2100(J38) -> 0.5769023219 | L38: 2.639933617 | M38: 2.567156 | N38: 0.07277761662 | O38: =MitigationAggressiveness(D38,0) -> 8.261214321 | Q38: 3.71648 | R38: 0.44152 | S38: 0.348744 | T38: -0.2985 | U38: 4.425674 | W38: -0.03433660558 | X38: =R38-E38 -> -0.01251821914 | Y38: =S38-F38 -> -0.01895862796 | Z38: =T38-H38 -> 0.002126473724 | AA38: =U38-J38 -> -0.1503755608
A39: AIM/CGE 2.0 | B39: EMF30_Slower-Action+SLCF | C39: 530.078752 | D39: =CO2RFFromCO2PPM(C39) -> 3.626297244 | E39: ='Non-CO2 RF Calcs'!$S$17+('Non-CO2 RF Calcs'!$S$16-'Non-CO2 RF Calcs'!$S$17)*($O39-1)/9 -> 0.4489762051 | F39: ='Non-CO2 RF Calcs'!$S$19+('Non-CO2 RF Calcs'!$S$18-'Non-CO2 RF Calcs'!$S$19)*($O39-1)/9 -> 0.3663465938 | G39: ='Non-CO2 RF Calcs'!$S$21+('Non-CO2 RF Calcs'!$S$20-'Non-CO2 RF Calcs'!$S$21)*($O39-1)/9 -> 0.1460923981 | H39: ='Non-CO2 RF Calcs'!$S$23+('Non-CO2 RF Calcs'!$S$22-'Non-CO2 RF Calcs'!$S$23)*($O39-1)/9 -> -0.2969341912 | I39: ='Non-CO2 RF Calcs'!$S$25+('Non-CO2 RF Calcs'!$S$24-'Non-CO2 RF Calcs'!$S$25)*($O39-1)/9 -> 0.1460923981 | J39: 4.436870648 | K39: =CFfromRFin2100(J39) -> 0.578561985 | L39: 2.567004689 | M39: 2.489771 | N39: 0.07723368944 | O39: =MitigationAggressiveness(D39,0) -> 8.338261718 | Q39: 3.60018 | R39: 0.461157 | S39: 0.343179 | T39: -0.304727 | U39: 4.325249 | W39: -0.02611724423 | X39: =R39-E39 -> 0.01218079487 | Y39: =S39-F39 -> -0.02316759376 | Z39: =T39-H39 -> -0.00779280877 | AA39: =U39-J39 -> -0.111621648
A40: AIM/CGE 2.0 | B40: EMF30_Slower-to-faster | C40: 433.505711 | D40: =CO2RFFromCO2PPM(C40) -> 2.47076264 | E40: ='Non-CO2 RF Calcs'!$S$17+('Non-CO2 RF Calcs'!$S$16-'Non-CO2 RF Calcs'!$S$17)*($O40-1)/9 -> 0.394235638 | F40: ='Non-CO2 RF Calcs'!$S$19+('Non-CO2 RF Calcs'!$S$18-'Non-CO2 RF Calcs'!$S$19)*($O40-1)/9 -> 0.351682454 | G40: ='Non-CO2 RF Calcs'!$S$21+('Non-CO2 RF Calcs'!$S$20-'Non-CO2 RF Calcs'!$S$21)*($O40-1)/9 -> 0.08156648008 | H40: ='Non-CO2 RF Calcs'!$S$23+('Non-CO2 RF Calcs'!$S$22-'Non-CO2 RF Calcs'!$S$23)*($O40-1)/9 -> -0.2570058865 | I40: ='Non-CO2 RF Calcs'!$S$25+('Non-CO2 RF Calcs'!$S$24-'Non-CO2 RF Calcs'!$S$25)*($O40-1)/9 -> 0.08156648008 | J40: 3.122807806 | K40: =CFfromRFin2100(J40) -> 0.596792598 | L40: 1.863668584 | M40: 1.648205 | N40: 0.2154635837 | O40: =MitigationAggressiveness(D40,0) -> 9.171451477 | Q40: 2.44171 | R40: 0.268535 | S40: 0.302366 | T40: -0.294432 | U40: 2.783108 | W40: -0.0290526405 | X40: =R40-E40 -> -0.125700638 | Y40: =S40-F40 -> -0.04931645401 | Z40: =T40-H40 -> -0.03742611354 | AA40: =U40-J40 -> -0.3396998062
A41: AIM/CGE 2.0 | B41: EMF30_Slower-to-faster+SLCF | C41: 408.255166 | D41: =CO2RFFromCO2PPM(C41) -> 2.146212724 | E41: ='Non-CO2 RF Calcs'!$S$17+('Non-CO2 RF Calcs'!$S$16-'Non-CO2 RF Calcs'!$S$17)*($O41-1)/9 -> 0.3763390759 | F41: ='Non-CO2 RF Calcs'!$S$19+('Non-CO2 RF Calcs'!$S$18-'Non-CO2 RF Calcs'!$S$19)*($O41-1)/9 -> 0.3468882456 | G41: ='Non-CO2 RF Calcs'!$S$21+('Non-CO2 RF Calcs'!$S$20-'Non-CO2 RF Calcs'!$S$21)*($O41-1)/9 -> 0.0604707524 | H41: ='Non-CO2 RF Calcs'!$S$23+('Non-CO2 RF Calcs'!$S$22-'Non-CO2 RF Calcs'!$S$23)*($O41-1)/9 -> -0.2439519591 | I41: ='Non-CO2 RF Calcs'!$S$25+('Non-CO2 RF Calcs'!$S$24-'Non-CO2 RF Calcs'!$S$25)*($O41-1)/9 -> 0.0604707524 | J41: 2.746429591 | K41: =CFfromRFin2100(J41) -> 0.6028674751 | L41: 1.655733073 | M41: 1.408653 | N41: 0.2470800733 | O41: =MitigationAggressiveness(D41,0) -> 9.443849682 | Q41: 2.101726 | R41: 0.235591 | S41: 0.281981 | T41: -0.29474 | U41: 2.387175 | W41: -0.04448672414 | X41: =R41-E41 -> -0.1407480759 | Y41: =S41-F41 -> -0.06490724559 | Z41: =T41-H41 -> -0.05078804088 | AA41: =U41-J41 -> -0.3592545913
A42: AIM/CGE 2.0 | B42: EMF30_Slower-to-faster+SLCF+HFC | C42: 408.300956 | D42: =CO2RFFromCO2PPM(C42) -> 2.146809682 | E42: ='Non-CO2 RF Calcs'!$S$17+('Non-CO2 RF Calcs'!$S$16-'Non-CO2 RF Calcs'!$S$17)*($O42-1)/9 -> 0.376373009 | F42: ='Non-CO2 RF Calcs'!$S$19+('Non-CO2 RF Calcs'!$S$18-'Non-CO2 RF Calcs'!$S$19)*($O42-1)/9 -> 0.3468973357 | G42: ='Non-CO2 RF Calcs'!$S$21+('Non-CO2 RF Calcs'!$S$20-'Non-CO2 RF Calcs'!$S$21)*($O42-1)/9 -> 0.06051075137 | H42: ='Non-CO2 RF Calcs'!$S$23+('Non-CO2 RF Calcs'!$S$22-'Non-CO2 RF Calcs'!$S$23)*($O42-1)/9 -> -0.2439767103 | I42: ='Non-CO2 RF Calcs'!$S$25+('Non-CO2 RF Calcs'!$S$24-'Non-CO2 RF Calcs'!$S$25)*($O42-1)/9 -> 0.06051075137 | J42: 2.747124819 | K42: =CFfromRFin2100(J42) -> 0.6028559037 | L42: 1.656120415 | M42: 1.410203 | N42: 0.2459174154 | O42: =MitigationAggressiveness(D42,0) -> 9.443333196 | Q42: 2.102281 | R42: 0.231228 | S42: 0.282106 | T42: -0.301934 | U42: 2.401628 | W42: -0.04452868215 | X42: =R42-E42 -> -0.145145009 | Y42: =S42-F42 -> -0.06479133575 | Z42: =T42-H42 -> -0.05795728972 | AA42: =U42-J42 -> -0.3454968194
A43: AIM/CGE 2.0 | B43: SFCM_SSP2_Bio_1p5Degree | C43: 448.54073 | D43: =CO2RFFromCO2PPM(C43) -> 2.659596519 | E43: ='Non-CO2 RF Calcs'!$S$17+('Non-CO2 RF Calcs'!$S$16-'Non-CO2 RF Calcs'!$S$17)*($O43-1)/9 -> 0.404139508 | F43: ='Non-CO2 RF Calcs'!$S$19+('Non-CO2 RF Calcs'!$S$18-'Non-CO2 RF Calcs'!$S$19)*($O43-1)/9 -> 0.3543355455 | G43: ='Non-CO2 RF Calcs'!$S$21+('Non-CO2 RF Calcs'!$S$20-'Non-CO2 RF Calcs'!$S$21)*($O43-1)/9 -> 0.09324075276 | H43: ='Non-CO2 RF Calcs'!$S$23+('Non-CO2 RF Calcs'!$S$22-'Non-CO2 RF Calcs'!$S$23)*($O43-1)/9 -> -0.2642298661 | I43: ='Non-CO2 RF Calcs'!$S$25+('Non-CO2 RF Calcs'!$S$24-'Non-CO2 RF Calcs'!$S$25)*($O43-1)/9 -> 0.09324075276 | J43: 3.340323212 | K43: =CFfromRFin2100(J43) -> 0.5934550544 | L43: 1.982331693 | M43: 1.739517 | N43: 0.2428146933 | O43: =MitigationAggressiveness(D43,0) -> 9.02070764 | Q43: 2.642796 | R43: 0.249595 | S43: 0.272107 | T43: -0.16636 | U43: 3.020505 | W43: -0.01680051868 | X43: =R43-E43 -> -0.154544508 | Y43: =S43-F43 -> -0.08222854553 | Z43: =T43-H43 -> 0.09786986609 | AA43: =U43-J43 -> -0.3198182117
A44: AIM/CGE 2.0 | B44: SFCM_SSP2_Bio_2Degree | C44: 502.002806 | D44: =CO2RFFromCO2PPM(C44) -> 3.304372196 | E44: ='Non-CO2 RF Calcs'!$S$17+('Non-CO2 RF Calcs'!$S$16-'Non-CO2 RF Calcs'!$S$17)*($O44-1)/9 -> 0.4351346557 | F44: ='Non-CO2 RF Calcs'!$S$19+('Non-CO2 RF Calcs'!$S$18-'Non-CO2 RF Calcs'!$S$19)*($O44-1)/9 -> 0.3626386597 | G44: ='Non-CO2 RF Calcs'!$S$21+('Non-CO2 RF Calcs'!$S$20-'Non-CO2 RF Calcs'!$S$21)*($O44-1)/9 -> 0.1297765517 | H44: ='Non-CO2 RF Calcs'!$S$23+('Non-CO2 RF Calcs'!$S$22-'Non-CO2 RF Calcs'!$S$23)*($O44-1)/9 -> -0.2868380297 | I44: ='Non-CO2 RF Calcs'!$S$25+('Non-CO2 RF Calcs'!$S$24-'Non-CO2 RF Calcs'!$S$25)*($O44-1)/9 -> 0.1297765517 | J44: 4.074860585 | K44: =CFfromRFin2100(J44) -> 0.583122142 | L44: 2.376141433 | M44: 2.178405 | N44: 0.1977364326 | O44: =MitigationAggressiveness(D44,0) -> 8.548939792 | Q44: 3.285735 | R44: 0.325692 | S44: 0.310857 | T44: -0.153424 | U44: 3.796171 | W44: -0.0186371964 | X44: =R44-E44 -> -0.1094426557 | Y44: =S44-F44 -> -0.05178165966 | Z44: =T44-H44 -> 0.1334140297 | AA44: =U44-J44 -> -0.2786895853
A45: AIM/CGE 2.0 | B45: SFCM_SSP2_Bio_Baseline | C45: 803.449533 | D45: =CO2RFFromCO2PPM(C45) -> 6.16028846 | E45: ='Non-CO2 RF Calcs'!$S$17+('Non-CO2 RF Calcs'!$S$16-'Non-CO2 RF Calcs'!$S$17)*($O45-1)/9 -> 0.519935772 | F45: ='Non-CO2 RF Calcs'!$S$19+('Non-CO2 RF Calcs'!$S$18-'Non-CO2 RF Calcs'!$S$19)*($O45-1)/9 -> 0.3853555493 | G45: ='Non-CO2 RF Calcs'!$S$21+('Non-CO2 RF Calcs'!$S$20-'Non-CO2 RF Calcs'!$S$21)*($O45-1)/9 -> 0.2297366026 | H45: ='Non-CO2 RF Calcs'!$S$23+('Non-CO2 RF Calcs'!$S$22-'Non-CO2 RF Calcs'!$S$23)*($O45-1)/9 -> -0.348692793 | I45: ='Non-CO2 RF Calcs'!$S$25+('Non-CO2 RF Calcs'!$S$24-'Non-CO2 RF Calcs'!$S$25)*($O45-1)/9 -> 0.2297366026 | J45: 7.176360193 | K45: =CFfromRFin2100(J45) -> 0.5554471107 | L45: 3.986088535 | M45: 4.387286 | N45: -0.4011974654 | O45: =MitigationAggressiveness(D45,0) -> 7.258207427 | Q45: 6.135379 | R45: 0.964309 | S45: 0.479091 | T45: -0.332171 | U45: 7.804101 | W45: -0.02490945971 | X45: =R45-E45 -> 0.444373228 | Y45: =S45-F45 -> 0.09373545072 | Z45: =T45-H45 -> 0.01652179297 | AA45: =U45-J45 -> 0.6277408067
A46: AIM/CGE 2.0 | B46: SFCM_SSP2_combined_1p5Degree | C46: 431.318477 | D46: =CO2RFFromCO2PPM(C46) -> 2.443017335 | E46: ='Non-CO2 RF Calcs'!$S$17+('Non-CO2 RF Calcs'!$S$16-'Non-CO2 RF Calcs'!$S$17)*($O46-1)/9 -> 0.3927489187 | F46: ='Non-CO2 RF Calcs'!$S$19+('Non-CO2 RF Calcs'!$S$18-'Non-CO2 RF Calcs'!$S$19)*($O46-1)/9 -> 0.3512841852 | G46: ='Non-CO2 RF Calcs'!$S$21+('Non-CO2 RF Calcs'!$S$20-'Non-CO2 RF Calcs'!$S$21)*($O46-1)/9 -> 0.07981399687 | H46: ='Non-CO2 RF Calcs'!$S$23+('Non-CO2 RF Calcs'!$S$22-'Non-CO2 RF Calcs'!$S$23)*($O46-1)/9 -> -0.2559214589 | I46: ='Non-CO2 RF Calcs'!$S$25+('Non-CO2 RF Calcs'!$S$24-'Non-CO2 RF Calcs'!$S$25)*($O46-1)/9 -> 0.07981399687 | J46: 3.090756974 | K46: =CFfromRFin2100(J46) -> 0.5972951105 | L46: 1.846094028 | M46: 1.602776 | N46: 0.2433180282 | O46: =MitigationAggressiveness(D46,0) -> 9.194080385 | Q46: 2.416501 | R46: 0.21978 | S46: 0.261438 | T46: -0.160947 | U46: 2.741645 | W46: -0.02651633502 | X46: =R46-E46 -> -0.1729689187 | Y46: =S46-F46 -> -0.08984618523 | Z46: =T46-H46 -> 0.09497445889 | AA46: =U46-J46 -> -0.3491119738
A47: AIM/CGE 2.0 | B47: SFCM_SSP2_combined_2Degree | C47: 481.813607 | D47: =CO2RFFromCO2PPM(C47) -> 3.065777153 | E47: ='Non-CO2 RF Calcs'!$S$17+('Non-CO2 RF Calcs'!$S$16-'Non-CO2 RF Calcs'!$S$17)*($O47-1)/9 -> 0.4241738791 | F47: ='Non-CO2 RF Calcs'!$S$19+('Non-CO2 RF Calcs'!$S$18-'Non-CO2 RF Calcs'!$S$19)*($O47-1)/9 -> 0.3597024395 | G47: ='Non-CO2 RF Calcs'!$S$21+('Non-CO2 RF Calcs'!$S$20-'Non-CO2 RF Calcs'!$S$21)*($O47-1)/9 -> 0.1168564413 | H47: ='Non-CO2 RF Calcs'!$S$23+('Non-CO2 RF Calcs'!$S$22-'Non-CO2 RF Calcs'!$S$23)*($O47-1)/9 -> -0.2788431322 | I47: ='Non-CO2 RF Calcs'!$S$25+('Non-CO2 RF Calcs'!$S$24-'Non-CO2 RF Calcs'!$S$25)*($O47-1)/9 -> 0.1168564413 | J47: 3.804523222 | K47: =CFfromRFin2100(J47) -> 0.5867567592 | L47: 2.232329716 | M47: 2.063973 | N47: 0.1683567163 | O47: =MitigationAggressiveness(D47,0) -> 8.715770485 | Q47: 3.043923 | R47: 0.321162 | S47: 0.305382 | T47: -0.122539 | U47: 3.562908 | W47: -0.02185415334 | X47: =R47-E47 -> -0.1030118791 | Y47: =S47-F47 -> -0.05432043946 | Z47: =T47-H47 -> 0.1563041322 | AA47: =U47-J47 -> -0.2416152223
A48: AIM/CGE 2.0 | B48: SFCM_SSP2_combined_Baseline | C48: 673.694878 | D48: =CO2RFFromCO2PPM(C48) -> 5.093338366 | E48: ='Non-CO2 RF Calcs'!$S$17+('Non-CO2 RF Calcs'!$S$16-'Non-CO2 RF Calcs'!$S$17)*($O48-1)/9 -> 0.4982752426 | F48: ='Non-CO2 RF Calcs'!$S$19+('Non-CO2 RF Calcs'!$S$18-'Non-CO2 RF Calcs'!$S$19)*($O48-1)/9 -> 0.379553033 | G48: ='Non-CO2 RF Calcs'!$S$21+('Non-CO2 RF Calcs'!$S$20-'Non-CO2 RF Calcs'!$S$21)*($O48-1)/9 -> 0.2042040658 | H48: ='Non-CO2 RF Calcs'!$S$23+('Non-CO2 RF Calcs'!$S$22-'Non-CO2 RF Calcs'!$S$23)*($O48-1)/9 -> -0.3328933911 | I48: ='Non-CO2 RF Calcs'!$S$25+('Non-CO2 RF Calcs'!$S$24-'Non-CO2 RF Calcs'!$S$25)*($O48-1)/9 -> 0.2042040658 | J48: 6.046681382 | K48: =CFfromRFin2100(J48) -> 0.5625402524 | L48: 3.401501671 | M48: 3.805815 | N48: -0.4043133295 | O48: =MitigationAggressiveness(D48,0) -> 7.587895851 | Q48: 5.033182 | R48: 0.910782 | S48: 0.45581 | T48: -0.221661 | U48: 6.716798 | W48: -0.0601563656 | X48: =R48-E48 -> 0.4125067574 | Y48: =S48-F48 -> 0.07625696698 | Z48: =T48-H48 -> 0.1112323911 | AA48: =U48-J48 -> 0.6701166183
A49: AIM/CGE 2.0 | B49: SFCM_SSP2_EEEI_1p5Degree | C49: 429.364238 | D49: =CO2RFFromCO2PPM(C49) -> 2.418168616 | E49: ='Non-CO2 RF Calcs'!$S$17+('Non-CO2 RF Calcs'!$S$16-'Non-CO2 RF Calcs'!$S$17)*($O49-1)/9 -> 0.3914105507 | F49: ='Non-CO2 RF Calcs'!$S$19+('Non-CO2 RF Calcs'!$S$18-'Non-CO2 RF Calcs'!$S$19)*($O49-1)/9 -> 0.3509256574 | G49: ='Non-CO2 RF Calcs'!$S$21+('Non-CO2 RF Calcs'!$S$20-'Non-CO2 RF Calcs'!$S$21)*($O49-1)/9 -> 0.07823638398 | H49: ='Non-CO2 RF Calcs'!$S$23+('Non-CO2 RF Calcs'!$S$22-'Non-CO2 RF Calcs'!$S$23)*($O49-1)/9 -> -0.2549452402 | I49: ='Non-CO2 RF Calcs'!$S$25+('Non-CO2 RF Calcs'!$S$24-'Non-CO2 RF Calcs'!$S$25)*($O49-1)/9 -> 0.07823638398 | J49: 3.062032352 | K49: =CFfromRFin2100(J49) -> 0.5977478137 | L49: 1.830323144 | M49: 1.574002 | N49: 0.2563211438 | O49: =MitigationAggressiveness(D49,0) -> 9.214451283 | Q49: 2.392071 | R49: 0.220586 | S49: 0.263219 | T49: -0.186624 | U49: 2.703489 | W49: -0.02609761605 | X49: =R49-E49 -> -0.1708245507 | Y49: =S49-F49 -> -0.08770665742 | Z49: =T49-H49 -> 0.06832124019 | AA49: =U49-J49 -> -0.358543352
A50: AIM/CGE 2.0 | B50: SFCM_SSP2_EEEI_2Degree | C50: 482.268442 | D50: =CO2RFFromCO2PPM(C50) -> 3.071217785 | E50: ='Non-CO2 RF Calcs'!$S$17+('Non-CO2 RF Calcs'!$S$16-'Non-CO2 RF Calcs'!$S$17)*($O50-1)/9 -> 0.4244304748 | F50: ='Non-CO2 RF Calcs'!$S$19+('Non-CO2 RF Calcs'!$S$18-'Non-CO2 RF Calcs'!$S$19)*($O50-1)/9 -> 0.3597711774 | G50: ='Non-CO2 RF Calcs'!$S$21+('Non-CO2 RF Calcs'!$S$20-'Non-CO2 RF Calcs'!$S$21)*($O50-1)/9 -> 0.1171589057 | H50: ='Non-CO2 RF Calcs'!$S$23+('Non-CO2 RF Calcs'!$S$22-'Non-CO2 RF Calcs'!$S$23)*($O50-1)/9 -> -0.2790302956 | I50: ='Non-CO2 RF Calcs'!$S$25+('Non-CO2 RF Calcs'!$S$24-'Non-CO2 RF Calcs'!$S$25)*($O50-1)/9 -> 0.1171589057 | J50: 3.810706953 | K50: =CFfromRFin2100(J50) -> 0.5866714301 | L50: 2.235632897 | M50: 2.059655 | N50: 0.1759778974 | O50: =MitigationAggressiveness(D50,0) -> 8.711864919 | Q50: 3.051608 | R50: 0.315058 | S50: 0.306927 | T50: -0.151223 | U50: 3.547968 | W50: -0.01960978458 | X50: =R50-E50 -> -0.1093724748 | Y50: =S50-F50 -> -0.05284417742 | Z50: =T50-H50 -> 0.1278072956 | AA50: =U50-J50 -> -0.2627389526
A51: AIM/CGE 2.0 | B51: SFCM_SSP2_EEEI_Baseline | C51: 714.452369 | D51: =CO2RFFromCO2PPM(C51) -> 5.454914124 | E51: ='Non-CO2 RF Calcs'!$S$17+('Non-CO2 RF Calcs'!$S$16-'Non-CO2 RF Calcs'!$S$17)*($O51-1)/9 -> 0.5069546714 | F51: ='Non-CO2 RF Calcs'!$S$19+('Non-CO2 RF Calcs'!$S$18-'Non-CO2 RF Calcs'!$S$19)*($O51-1)/9 -> 0.3818781159 | G51: ='Non-CO2 RF Calcs'!$S$21+('Non-CO2 RF Calcs'!$S$20-'Non-CO2 RF Calcs'!$S$21)*($O51-1)/9 -> 0.2144350177 | H51: ='Non-CO2 RF Calcs'!$S$23+('Non-CO2 RF Calcs'!$S$22-'Non-CO2 RF Calcs'!$S$23)*($O51-1)/9 -> -0.3392242513 | I51: ='Non-CO2 RF Calcs'!$S$25+('Non-CO2 RF Calcs'!$S$24-'Non-CO2 RF Calcs'!$S$25)*($O51-1)/9 -> 0.2144350177 | J51: 6.433392696 | K51: =CFfromRFin2100(J51) -> 0.5597268422 | L51: 3.600942578 | M51: 4.016042 | N51: -0.4150994216 | O51: =MitigationAggressiveness(D51,0) -> 7.455788867 | Q51: 5.396745 | R51: 0.958378 | S51: 0.476547 | T51: -0.276044 | U51: 7.108726 | W51: -0.05816912416 | X51: =R51-E51 -> 0.4514233286 | Y51: =S51-F51 -> 0.09466888406 | Z51: =T51-H51 -> 0.06318025128 | AA51: =U51-J51 -> 0.6753333043
A52: AIM/CGE 2.0 | B52: SFCM_SSP2_LifeStyle_1p5Degree | C52: 437.387409 | D52: =CO2RFFromCO2PPM(C52) -> 2.519830732 | E52: ='Non-CO2 RF Calcs'!$S$17+('Non-CO2 RF Calcs'!$S$16-'Non-CO2 RF Calcs'!$S$17)*($O52-1)/9 -> 0.3968451417 | F52: ='Non-CO2 RF Calcs'!$S$19+('Non-CO2 RF Calcs'!$S$18-'Non-CO2 RF Calcs'!$S$19)*($O52-1)/9 -> 0.3523814991 | G52: ='Non-CO2 RF Calcs'!$S$21+('Non-CO2 RF Calcs'!$S$20-'Non-CO2 RF Calcs'!$S$21)*($O52-1)/9 -> 0.08464245521 | H52: ='Non-CO2 RF Calcs'!$S$23+('Non-CO2 RF Calcs'!$S$22-'Non-CO2 RF Calcs'!$S$23)*($O52-1)/9 -> -0.258909284 | I52: ='Non-CO2 RF Calcs'!$S$25+('Non-CO2 RF Calcs'!$S$24-'Non-CO2 RF Calcs'!$S$25)*($O52-1)/9 -> 0.08464245521 | J52: 3.179433 | K52: =CFfromRFin2100(J52) -> 0.5959115273 | L52: 1.894660775 | M52: 1.62984 | N52: 0.2648207746 | O52: =MitigationAggressiveness(D52,0) -> 9.131733003 | Q52: 2.497959 | R52: 0.213907 | S52: 0.260381 | T52: -0.162943 | U52: 2.812957 | W52: -0.02187173227 | X52: =R52-E52 -> -0.1829381417 | Y52: =S52-F52 -> -0.09200049915 | Z52: =T52-H52 -> 0.09596628398 | AA52: =U52-J52 -> -0.3664759996
A53: AIM/CGE 2.0 | B53: SFCM_SSP2_LifeStyle_2Degree | C53: 489.195148 | D53: =CO2RFFromCO2PPM(C53) -> 3.153700834 | E53: ='Non-CO2 RF Calcs'!$S$17+('Non-CO2 RF Calcs'!$S$16-'Non-CO2 RF Calcs'!$S$17)*($O53-1)/9 -> 0.4282825376 | F53: ='Non-CO2 RF Calcs'!$S$19+('Non-CO2 RF Calcs'!$S$18-'Non-CO2 RF Calcs'!$S$19)*($O53-1)/9 -> 0.3608030847 | G53: ='Non-CO2 RF Calcs'!$S$21+('Non-CO2 RF Calcs'!$S$20-'Non-CO2 RF Calcs'!$S$21)*($O53-1)/9 -> 0.1216995581 | H53: ='Non-CO2 RF Calcs'!$S$23+('Non-CO2 RF Calcs'!$S$22-'Non-CO2 RF Calcs'!$S$23)*($O53-1)/9 -> -0.2818400278 | I53: ='Non-CO2 RF Calcs'!$S$25+('Non-CO2 RF Calcs'!$S$24-'Non-CO2 RF Calcs'!$S$25)*($O53-1)/9 -> 0.1216995581 | J53: 3.904345545 | K53: =CFfromRFin2100(J53) -> 0.585391848 | L53: 2.285572053 | M53: 2.076935 | N53: 0.2086370535 | O53: =MitigationAggressiveness(D53,0) -> 8.653233827 | Q53: 3.133032 | R53: 0.294071 | S53: 0.299022 | T53: -0.140835 | U53: 3.599096 | W53: -0.02066883399 | X53: =R53-E53 -> -0.1342115376 | Y53: =S53-F53 -> -0.06178108465 | Z53: =T53-H53 -> 0.1410050278 | AA53: =U53-J53 -> -0.3052495446
A54: AIM/CGE 2.0 | B54: SFCM_SSP2_LifeStyle_Baseline | C54: 755.55494 | D54: =CO2RFFromCO2PPM(C54) -> 5.795031271 | E54: ='Non-CO2 RF Calcs'!$S$17+('Non-CO2 RF Calcs'!$S$16-'Non-CO2 RF Calcs'!$S$17)*($O54-1)/9 -> 0.5138660828 | F54: ='Non-CO2 RF Calcs'!$S$19+('Non-CO2 RF Calcs'!$S$18-'Non-CO2 RF Calcs'!$S$19)*($O54-1)/9 -> 0.3837295747 | G54: ='Non-CO2 RF Calcs'!$S$21+('Non-CO2 RF Calcs'!$S$20-'Non-CO2 RF Calcs'!$S$21)*($O54-1)/9 -> 0.2225819037 | H54: ='Non-CO2 RF Calcs'!$S$23+('Non-CO2 RF Calcs'!$S$22-'Non-CO2 RF Calcs'!$S$23)*($O54-1)/9 -> -0.3442655023 | I54: ='Non-CO2 RF Calcs'!$S$25+('Non-CO2 RF Calcs'!$S$24-'Non-CO2 RF Calcs'!$S$25)*($O54-1)/9 -> 0.2225819037 | J54: 6.793525233 | K54: =CFfromRFin2100(J54) -> 0.5574674776 | L54: 3.787169376 | M54: 4.159808 | N54: -0.3726386238 | O54: =MitigationAggressiveness(D54,0) -> 7.350592348 | Q54: 5.745034 | R54: 0.926441 | S54: 0.459111 | T54: -0.28036 | U54: 7.386615 | W54: -0.04999727081 | X54: =R54-E54 -> 0.4125749172 | Y54: =S54-F54 -> 0.07538142532 | Z54: =T54-H54 -> 0.06390550227 | AA54: =U54-J54 -> 0.5930897665
A55: AIM/CGE 2.0 | B55: SFCM_SSP2_Ref_1p5Degree | C55: 440.354571 | D55: =CO2RFFromCO2PPM(C55) -> 2.557190187 | E55: ='Non-CO2 RF Calcs'!$S$17+('Non-CO2 RF Calcs'!$S$16-'Non-CO2 RF Calcs'!$S$17)*($O55-1)/9 -> 0.398815014 | F55: ='Non-CO2 RF Calcs'!$S$19+('Non-CO2 RF Calcs'!$S$18-'Non-CO2 RF Calcs'!$S$19)*($O55-1)/9 -> 0.3529091971 | G55: ='Non-CO2 RF Calcs'!$S$21+('Non-CO2 RF Calcs'!$S$20-'Non-CO2 RF Calcs'!$S$21)*($O55-1)/9 -> 0.08696445928 | H55: ='Non-CO2 RF Calcs'!$S$23+('Non-CO2 RF Calcs'!$S$22-'Non-CO2 RF Calcs'!$S$23)*($O55-1)/9 -> -0.2603461281 | I55: ='Non-CO2 RF Calcs'!$S$25+('Non-CO2 RF Calcs'!$S$24-'Non-CO2 RF Calcs'!$S$25)*($O55-1)/9 -> 0.08696445928 | J55: 3.222497188 | K55: =CFfromRFin2100(J55) -> 0.5952472186 | L55: 1.918182488 | M55: 1.664186 | N55: 0.2539964883 | O55: =MitigationAggressiveness(D55,0) -> 9.101750167 | Q55: 2.535157 | R55: 0.233609 | S55: 0.267792 | T55: -0.174835 | U55: 2.877999 | W55: -0.02203318688 | X55: =R55-E55 -> -0.165206014 | Y55: =S55-F55 -> -0.08511719706 | Z55: =T55-H55 -> 0.08551112811 | AA55: =U55-J55 -> -0.3444981884
A56: AIM/CGE 2.0 | B56: SFCM_SSP2_Ref_2Degree | C56: 494.194707 | D56: =CO2RFFromCO2PPM(C56) -> 3.212800938 | E56: ='Non-CO2 RF Calcs'!$S$17+('Non-CO2 RF Calcs'!$S$16-'Non-CO2 RF Calcs'!$S$17)*($O56-1)/9 -> 0.4309986588 | F56: ='Non-CO2 RF Calcs'!$S$19+('Non-CO2 RF Calcs'!$S$18-'Non-CO2 RF Calcs'!$S$19)*($O56-1)/9 -> 0.3615306909 | G56: ='Non-CO2 RF Calcs'!$S$21+('Non-CO2 RF Calcs'!$S$20-'Non-CO2 RF Calcs'!$S$21)*($O56-1)/9 -> 0.1249012095 | H56: ='Non-CO2 RF Calcs'!$S$23+('Non-CO2 RF Calcs'!$S$22-'Non-CO2 RF Calcs'!$S$23)*($O56-1)/9 -> -0.2838211932 | I56: ='Non-CO2 RF Calcs'!$S$25+('Non-CO2 RF Calcs'!$S$24-'Non-CO2 RF Calcs'!$S$25)*($O56-1)/9 -> 0.1249012095 | J56: 3.971311514 | K56: =CFfromRFin2100(J56) -> 0.5844911728 | L56: 2.321196524 | M56: 2.121768 | N56: 0.1994285243 | O56: =MitigationAggressiveness(D56,0) -> 8.61189256 | Q56: 3.195518 | R56: 0.312702 | S56: 0.307958 | T56: -0.1587 | U56: 3.684542 | W56: -0.01728293806 | X56: =R56-E56 -> -0.1182966588 | Y56: =S56-F56 -> -0.05357269094 | Z56: =T56-H56 -> 0.1251211932 | AA56: =U56-J56 -> -0.2867695136
A57: AIM/CGE 2.0 | B57: SFCM_SSP2_Ref_Baseline | C57: 799.753177 | D57: =CO2RFFromCO2PPM(C57) -> 6.13328962 | E57: ='Non-CO2 RF Calcs'!$S$17+('Non-CO2 RF Calcs'!$S$16-'Non-CO2 RF Calcs'!$S$17)*($O57-1)/9 -> 0.5195350614 | F57: ='Non-CO2 RF Calcs'!$S$19+('Non-CO2 RF Calcs'!$S$18-'Non-CO2 RF Calcs'!$S$19)*($O57-1)/9 -> 0.3852482052 | G57: ='Non-CO2 RF Calcs'!$S$21+('Non-CO2 RF Calcs'!$S$20-'Non-CO2 RF Calcs'!$S$21)*($O57-1)/9 -> 0.2292642614 | H57: ='Non-CO2 RF Calcs'!$S$23+('Non-CO2 RF Calcs'!$S$22-'Non-CO2 RF Calcs'!$S$23)*($O57-1)/9 -> -0.3484005107 | I57: ='Non-CO2 RF Calcs'!$S$25+('Non-CO2 RF Calcs'!$S$24-'Non-CO2 RF Calcs'!$S$25)*($O57-1)/9 -> 0.2292642614 | J57: 7.148200899 | K57: =CFfromRFin2100(J57) -> 0.555582325 | L57: 3.971414075 | M57: 4.370742 | N57: -0.3993279253 | O57: =MitigationAggressiveness(D57,0) -> 7.264306524 | Q57: 6.104371 | R57: 0.965742 | S57: 0.479998 | T57: -0.33762 | U57: 7.771409 | W57: -0.02891862031 | X57: =R57-E57 -> 0.4462069386 | Y57: =S57-F57 -> 0.09474979483 | Z57: =T57-H57 -> 0.01078051068 | AA57: =U57-J57 -> 0.623208101
A58: AIM/CGE 2.0 | B58: SFCM_SSP2_ST_bio_1p5Degree | C58: 444.32033 | D58: =CO2RFFromCO2PPM(C58) -> 2.606922584 | E58: ='Non-CO2 RF Calcs'!$S$17+('Non-CO2 RF Calcs'!$S$16-'Non-CO2 RF Calcs'!$S$17)*($O58-1)/9 -> 0.4014145427 | F58: ='Non-CO2 RF Calcs'!$S$19+('Non-CO2 RF Calcs'!$S$18-'Non-CO2 RF Calcs'!$S$19)*($O58-1)/9 -> 0.35360557 | G58: ='Non-CO2 RF Calcs'!$S$21+('Non-CO2 RF Calcs'!$S$20-'Non-CO2 RF Calcs'!$S$21)*($O58-1)/9 -> 0.09002867621 | H58: ='Non-CO2 RF Calcs'!$S$23+('Non-CO2 RF Calcs'!$S$22-'Non-CO2 RF Calcs'!$S$23)*($O58-1)/9 -> -0.2622422497 | I58: ='Non-CO2 RF Calcs'!$S$25+('Non-CO2 RF Calcs'!$S$24-'Non-CO2 RF Calcs'!$S$25)*($O58-1)/9 -> 0.09002867621 | J58: 3.279757799 | K58: =CFfromRFin2100(J58) -> 0.5943716193 | L58: 1.949394954 | M58: 1.701632 | N58: 0.2477629542 | O58: =MitigationAggressiveness(D58,0) -> 9.062183521 | Q58: 2.586682 | R58: 0.24137 | S58: 0.269622 | T58: -0.17114 | U58: 2.944826 | W58: -0.02024058401 | X58: =R58-E58 -> -0.1600445427 | Y58: =S58-F58 -> -0.08398357003 | Z58: =T58-H58 -> 0.09110224971 | AA58: =U58-J58 -> -0.3349317994
A59: AIM/CGE 2.0 | B59: SFCM_SSP2_ST_bio_2Degree | C59: 498.415324 | D59: =CO2RFFromCO2PPM(C59) -> 3.262409528 | E59: ='Non-CO2 RF Calcs'!$S$17+('Non-CO2 RF Calcs'!$S$16-'Non-CO2 RF Calcs'!$S$17)*($O59-1)/9 -> 0.4332502574 | F59: ='Non-CO2 RF Calcs'!$S$19+('Non-CO2 RF Calcs'!$S$18-'Non-CO2 RF Calcs'!$S$19)*($O59-1)/9 -> 0.3621338589 | G59: ='Non-CO2 RF Calcs'!$S$21+('Non-CO2 RF Calcs'!$S$20-'Non-CO2 RF Calcs'!$S$21)*($O59-1)/9 -> 0.1275553009 | H59: ='Non-CO2 RF Calcs'!$S$23+('Non-CO2 RF Calcs'!$S$22-'Non-CO2 RF Calcs'!$S$23)*($O59-1)/9 -> -0.2854635312 | I59: ='Non-CO2 RF Calcs'!$S$25+('Non-CO2 RF Calcs'!$S$24-'Non-CO2 RF Calcs'!$S$25)*($O59-1)/9 -> 0.1275553009 | J59: 4.027440714 | K59: =CFfromRFin2100(J59) -> 0.5837455148 | L59: 2.351000453 | M59: 2.153621 | N59: 0.197379453 | O59: =MitigationAggressiveness(D59,0) -> 8.577621653 | Q59: 3.244096 | R59: 0.320383 | S59: 0.309376 | T59: -0.156351 | U59: 3.745296 | W59: -0.0183135275 | X59: =R59-E59 -> -0.1128672574 | Y59: =S59-F59 -> -0.05275785891 | Z59: =T59-H59 -> 0.1291125312 | AA59: =U59-J59 -> -0.2821447144
A60: AIM/CGE 2.0 | B60: SFCM_SSP2_ST_bio_Baseline | C60: 801.912172 | D60: =CO2RFFromCO2PPM(C60) -> 6.149083491 | E60: ='Non-CO2 RF Calcs'!$S$17+('Non-CO2 RF Calcs'!$S$16-'Non-CO2 RF Calcs'!$S$17)*($O60-1)/9 -> 0.5197703995 | F60: ='Non-CO2 RF Calcs'!$S$19+('Non-CO2 RF Calcs'!$S$18-'Non-CO2 RF Calcs'!$S$19)*($O60-1)/9 -> 0.3853112486 | G60: ='Non-CO2 RF Calcs'!$S$21+('Non-CO2 RF Calcs'!$S$20-'Non-CO2 RF Calcs'!$S$21)*($O60-1)/9 -> 0.2295416683 | H60: ='Non-CO2 RF Calcs'!$S$23+('Non-CO2 RF Calcs'!$S$22-'Non-CO2 RF Calcs'!$S$23)*($O60-1)/9 -> -0.3485721686 | I60: ='Non-CO2 RF Calcs'!$S$25+('Non-CO2 RF Calcs'!$S$24-'Non-CO2 RF Calcs'!$S$25)*($O60-1)/9 -> 0.2295416683 | J60: 7.164676307 | K60: =CFfromRFin2100(J60) -> 0.5555029558 | L60: 3.979998866 | M60: 4.380835 | N60: -0.4008361342 | O60: =MitigationAggressiveness(D60,0) -> 7.260724513 | Q60: 6.123136 | R60: 0.964675 | S60: 0.479106 | T60: -0.333284 | U60: 7.790524 | W60: -0.02594749081 | X60: =R60-E60 -> 0.4449046005 | Y60: =S60-F60 -> 0.09379475143 | Z60: =T60-H60 -> 0.01528816861 | AA60: =U60-J60 -> 0.6258476932
A61: AIM/CGE 2.0 | B61: SFCM_SSP2_ST_CCS_1p5Degree | C61: 444.841276 | D61: =CO2RFFromCO2PPM(C61) -> 2.613438447 | E61: ='Non-CO2 RF Calcs'!$S$17+('Non-CO2 RF Calcs'!$S$16-'Non-CO2 RF Calcs'!$S$17)*($O61-1)/9 -> 0.4017532049 | F61: ='Non-CO2 RF Calcs'!$S$19+('Non-CO2 RF Calcs'!$S$18-'Non-CO2 RF Calcs'!$S$19)*($O61-1)/9 -> 0.3536962923 | G61: ='Non-CO2 RF Calcs'!$S$21+('Non-CO2 RF Calcs'!$S$20-'Non-CO2 RF Calcs'!$S$21)*($O61-1)/9 -> 0.09042787721 | H61: ='Non-CO2 RF Calcs'!$S$23+('Non-CO2 RF Calcs'!$S$22-'Non-CO2 RF Calcs'!$S$23)*($O61-1)/9 -> -0.2624892732 | I61: ='Non-CO2 RF Calcs'!$S$25+('Non-CO2 RF Calcs'!$S$24-'Non-CO2 RF Calcs'!$S$25)*($O61-1)/9 -> 0.09042787721 | J61: 3.287254426 | K61: =CFfromRFin2100(J61) -> 0.5942576359 | L61: 1.953476043 | M61: 1.707939 | N61: 0.2455370434 | O61: =MitigationAggressiveness(D61,0) -> 9.057028845 | Q61: 2.593653 | R61: 0.243417 | S61: 0.27091 | T61: -0.170514 | U61: 2.956817 | W61: -0.01978544728 | X61: =R61-E61 -> -0.1583362049 | Y61: =S61-F61 -> -0.08278629233 | Z61: =T61-H61 -> 0.09197527323 | AA61: =U61-J61 -> -0.3304374257
A62: AIM/CGE 2.0 | B62: SFCM_SSP2_ST_CCS_2Degree | C62: 498.428485 | D62: =CO2RFFromCO2PPM(C62) -> 3.262563814 | E62: ='Non-CO2 RF Calcs'!$S$17+('Non-CO2 RF Calcs'!$S$16-'Non-CO2 RF Calcs'!$S$17)*($O62-1)/9 -> 0.4332572198 | F62: ='Non-CO2 RF Calcs'!$S$19+('Non-CO2 RF Calcs'!$S$18-'Non-CO2 RF Calcs'!$S$19)*($O62-1)/9 -> 0.362135724 | G62: ='Non-CO2 RF Calcs'!$S$21+('Non-CO2 RF Calcs'!$S$20-'Non-CO2 RF Calcs'!$S$21)*($O62-1)/9 -> 0.1275635078 | H62: ='Non-CO2 RF Calcs'!$S$23+('Non-CO2 RF Calcs'!$S$22-'Non-CO2 RF Calcs'!$S$23)*($O62-1)/9 -> -0.2854686096 | I62: ='Non-CO2 RF Calcs'!$S$25+('Non-CO2 RF Calcs'!$S$24-'Non-CO2 RF Calcs'!$S$25)*($O62-1)/9 -> 0.1275635078 | J62: 4.027615164 | K62: =CFfromRFin2100(J62) -> 0.5837432104 | L62: 2.351093006 | M62: 2.155682 | N62: 0.1954110061 | O62: =MitigationAggressiveness(D62,0) -> 8.577515681 | Q62: 3.24568 | R62: 0.321058 | S62: 0.31126 | T62: -0.155511 | U62: 3.749715 | W62: -0.01688381414 | X62: =R62-E62 -> -0.1121992198 | Y62: =S62-F62 -> -0.05087572402 | Z62: =T62-H62 -> 0.1299576096 | AA62: =U62-J62 -> -0.2779001639
A63: AIM/CGE 2.0 | B63: SFCM_SSP2_ST_CCS_Baseline | C63: 799.753177 | D63: =CO2RFFromCO2PPM(C63) -> 6.13328962 | E63: ='Non-CO2 RF Calcs'!$S$17+('Non-CO2 RF Calcs'!$S$16-'Non-CO2 RF Calcs'!$S$17)*($O63-1)/9 -> 0.5195350614 | F63: ='Non-CO2 RF Calcs'!$S$19+('Non-CO2 RF Calcs'!$S$18-'Non-CO2 RF Calcs'!$S$19)*($O63-1)/9 -> 0.3852482052 | G63: ='Non-CO2 RF Calcs'!$S$21+('Non-CO2 RF Calcs'!$S$20-'Non-CO2 RF Calcs'!$S$21)*($O63-1)/9 -> 0.2292642614 | H63: ='Non-CO2 RF Calcs'!$S$23+('Non-CO2 RF Calcs'!$S$22-'Non-CO2 RF Calcs'!$S$23)*($O63-1)/9 -> -0.3484005107 | I63: ='Non-CO2 RF Calcs'!$S$25+('Non-CO2 RF Calcs'!$S$24-'Non-CO2 RF Calcs'!$S$25)*($O63-1)/9 -> 0.2292642614 | J63: 7.148200899 | K63: =CFfromRFin2100(J63) -> 0.555582325 | L63: 3.971414075 | M63: 4.370742 | N63: -0.3993279253 | O63: =MitigationAggressiveness(D63,0) -> 7.264306524 | Q63: 6.104371 | R63: 0.965742 | S63: 0.479998 | T63: -0.33762 | U63: 7.771409 | W63: -0.02891862031 | X63: =R63-E63 -> 0.4462069386 | Y63: =S63-F63 -> 0.09474979483 | Z63: =T63-H63 -> 0.01078051068 | AA63: =U63-J63 -> 0.623208101
A64: AIM/CGE 2.0 | B64: SFCM_SSP2_ST_nuclear_1p5Degree | C64: 438.817294 | D64: =CO2RFFromCO2PPM(C64) -> 2.537850394 | E64: ='Non-CO2 RF Calcs'!$S$17+('Non-CO2 RF Calcs'!$S$16-'Non-CO2 RF Calcs'!$S$17)*($O64-1)/9 -> 0.3977971038 | F64: ='Non-CO2 RF Calcs'!$S$19+('Non-CO2 RF Calcs'!$S$18-'Non-CO2 RF Calcs'!$S$19)*($O64-1)/9 -> 0.3526365149 | G64: ='Non-CO2 RF Calcs'!$S$21+('Non-CO2 RF Calcs'!$S$20-'Non-CO2 RF Calcs'!$S$21)*($O64-1)/9 -> 0.08576458873 | H64: ='Non-CO2 RF Calcs'!$S$23+('Non-CO2 RF Calcs'!$S$22-'Non-CO2 RF Calcs'!$S$23)*($O64-1)/9 -> -0.2596036544 | I64: ='Non-CO2 RF Calcs'!$S$25+('Non-CO2 RF Calcs'!$S$24-'Non-CO2 RF Calcs'!$S$25)*($O64-1)/9 -> 0.08576458873 | J64: 3.200209535 | K64: =CFfromRFin2100(J64) -> 0.5955904072 | L64: 1.9060141 | M64: 1.653264 | N64: 0.2527501003 | O64: =MitigationAggressiveness(D64,0) -> 9.117243474 | Q64: 2.516371 | R64: 0.232128 | S64: 0.267461 | T64: -0.176408 | U64: 2.855666 | W64: -0.02147939359 | X64: =R64-E64 -> -0.1656691038 | Y64: =S64-F64 -> -0.08517551486 | Z64: =T64-H64 -> 0.0831956544 | AA64: =U64-J64 -> -0.3445435353
A65: AIM/CGE 2.0 | B65: SFCM_SSP2_ST_nuclear_2Degree | C65: 492.959016 | D65: =CO2RFFromCO2PPM(C65) -> 3.19822765 | E65: ='Non-CO2 RF Calcs'!$S$17+('Non-CO2 RF Calcs'!$S$16-'Non-CO2 RF Calcs'!$S$17)*($O65-1)/9 -> 0.4303323066 | F65: ='Non-CO2 RF Calcs'!$S$19+('Non-CO2 RF Calcs'!$S$18-'Non-CO2 RF Calcs'!$S$19)*($O65-1)/9 -> 0.3613521856 | G65: ='Non-CO2 RF Calcs'!$S$21+('Non-CO2 RF Calcs'!$S$20-'Non-CO2 RF Calcs'!$S$21)*($O65-1)/9 -> 0.1241157411 | H65: ='Non-CO2 RF Calcs'!$S$23+('Non-CO2 RF Calcs'!$S$22-'Non-CO2 RF Calcs'!$S$23)*($O65-1)/9 -> -0.2833351494 | I65: ='Non-CO2 RF Calcs'!$S$25+('Non-CO2 RF Calcs'!$S$24-'Non-CO2 RF Calcs'!$S$25)*($O65-1)/9 -> 0.1241157411 | J65: 3.954808475 | K65: =CFfromRFin2100(J65) -> 0.5847120177 | L65: 2.312424043 | M65: 2.116859 | N65: 0.1955650433 | O65: =MitigationAggressiveness(D65,0) -> 8.622034907 | Q65: 3.181253 | R65: 0.314162 | S65: 0.308363 | T65: -0.156647 | U65: 3.672988 | W65: -0.01697465037 | X65: =R65-E65 -> -0.1161703066 | Y65: =S65-F65 -> -0.05298918564 | Z65: =T65-H65 -> 0.1266881494 | AA65: =U65-J65 -> -0.2818204754
A66: AIM/CGE 2.0 | B66: SFCM_SSP2_ST_nuclear_Baseline | C66: 799.796289 | D66: =CO2RFFromCO2PPM(C66) -> 6.133605666 | E66: ='Non-CO2 RF Calcs'!$S$17+('Non-CO2 RF Calcs'!$S$16-'Non-CO2 RF Calcs'!$S$17)*($O66-1)/9 -> 0.5195397963 | F66: ='Non-CO2 RF Calcs'!$S$19+('Non-CO2 RF Calcs'!$S$18-'Non-CO2 RF Calcs'!$S$19)*($O66-1)/9 -> 0.3852494736 | G66: ='Non-CO2 RF Calcs'!$S$21+('Non-CO2 RF Calcs'!$S$20-'Non-CO2 RF Calcs'!$S$21)*($O66-1)/9 -> 0.2292698428 | H66: ='Non-CO2 RF Calcs'!$S$23+('Non-CO2 RF Calcs'!$S$22-'Non-CO2 RF Calcs'!$S$23)*($O66-1)/9 -> -0.3484039644 | I66: ='Non-CO2 RF Calcs'!$S$25+('Non-CO2 RF Calcs'!$S$24-'Non-CO2 RF Calcs'!$S$25)*($O66-1)/9 -> 0.2292698428 | J66: 7.148530657 | K66: =CFfromRFin2100(J66) -> 0.5555807292 | L66: 3.971585875 | M66: 4.373959 | N66: -0.4023731248 | O66: =MitigationAggressiveness(D66,0) -> 7.264234455 | Q66: 6.104239 | R66: 0.964783 | S66: 0.480038 | T66: -0.33435 | U66: 7.771831 | W66: -0.02936666577 | X66: =R66-E66 -> 0.4452432037 | Y66: =S66-F66 -> 0.09478852641 | Z66: =T66-H66 -> 0.0140539644 | AA66: =U66-J66 -> 0.6233003432
A67: AIM/CGE 2.0 | B67: SFCM_SSP2_ST_solar_1p5Degree | C67: 437.946008 | D67: =CO2RFFromCO2PPM(C67) -> 2.526873842 | E67: ='Non-CO2 RF Calcs'!$S$17+('Non-CO2 RF Calcs'!$S$16-'Non-CO2 RF Calcs'!$S$17)*($O67-1)/9 -> 0.3972176285 | F67: ='Non-CO2 RF Calcs'!$S$19+('Non-CO2 RF Calcs'!$S$18-'Non-CO2 RF Calcs'!$S$19)*($O67-1)/9 -> 0.3524812825 | G67: ='Non-CO2 RF Calcs'!$S$21+('Non-CO2 RF Calcs'!$S$20-'Non-CO2 RF Calcs'!$S$21)*($O67-1)/9 -> 0.08508152727 | H67: ='Non-CO2 RF Calcs'!$S$23+('Non-CO2 RF Calcs'!$S$22-'Non-CO2 RF Calcs'!$S$23)*($O67-1)/9 -> -0.2591809795 | I67: ='Non-CO2 RF Calcs'!$S$25+('Non-CO2 RF Calcs'!$S$24-'Non-CO2 RF Calcs'!$S$25)*($O67-1)/9 -> 0.08508152727 | J67: 3.187554828 | K67: =CFfromRFin2100(J67) -> 0.5957858593 | L67: 1.899100092 | M67: 1.64361 | N67: 0.255490092 | O67: =MitigationAggressiveness(D67,0) -> 9.126063493 | Q67: 2.504963 | R67: 0.229865 | S67: 0.266762 | T67: -0.178295 | U67: 2.840868 | W67: -0.02191084157 | X67: =R67-E67 -> -0.1673526285 | Y67: =S67-F67 -> -0.08571928252 | Z67: =T67-H67 -> 0.0808859795 | AA67: =U67-J67 -> -0.3466868277
A68: AIM/CGE 2.0 | B68: SFCM_SSP2_ST_solar_2Degree | C68: 492.53095 | D68: =CO2RFFromCO2PPM(C68) -> 3.193174006 | E68: ='Non-CO2 RF Calcs'!$S$17+('Non-CO2 RF Calcs'!$S$16-'Non-CO2 RF Calcs'!$S$17)*($O68-1)/9 -> 0.430100712 | F68: ='Non-CO2 RF Calcs'!$S$19+('Non-CO2 RF Calcs'!$S$18-'Non-CO2 RF Calcs'!$S$19)*($O68-1)/9 -> 0.3612901451 | G68: ='Non-CO2 RF Calcs'!$S$21+('Non-CO2 RF Calcs'!$S$20-'Non-CO2 RF Calcs'!$S$21)*($O68-1)/9 -> 0.1238427469 | H68: ='Non-CO2 RF Calcs'!$S$23+('Non-CO2 RF Calcs'!$S$22-'Non-CO2 RF Calcs'!$S$23)*($O68-1)/9 -> -0.283166222 | I68: ='Non-CO2 RF Calcs'!$S$25+('Non-CO2 RF Calcs'!$S$24-'Non-CO2 RF Calcs'!$S$25)*($O68-1)/9 -> 0.1238427469 | J68: 3.949084135 | K68: =CFfromRFin2100(J68) -> 0.5847887919 | L68: 2.30938014 | M68: 2.111998 | N68: 0.1973821405 | O68: =MitigationAggressiveness(D68,0) -> 8.625559939 | Q68: 3.176209 | R68: 0.31175 | S68: 0.30758 | T68: -0.158379 | U68: 3.663277 | W68: -0.01696500639 | X68: =R68-E68 -> -0.118350712 | Y68: =S68-F68 -> -0.05371014507 | Z68: =T68-H68 -> 0.124787222 | AA68: =U68-J68 -> -0.2858071353
A69: AIM/CGE 2.0 | B69: SFCM_SSP2_ST_solar_Baseline | C69: 797.826244 | D69: =CO2RFFromCO2PPM(C69) -> 6.119135995 | E69: ='Non-CO2 RF Calcs'!$S$17+('Non-CO2 RF Calcs'!$S$16-'Non-CO2 RF Calcs'!$S$17)*($O69-1)/9 -> 0.5193219386 | F69: ='Non-CO2 RF Calcs'!$S$19+('Non-CO2 RF Calcs'!$S$18-'Non-CO2 RF Calcs'!$S$19)*($O69-1)/9 -> 0.3851911129 | G69: ='Non-CO2 RF Calcs'!$S$21+('Non-CO2 RF Calcs'!$S$20-'Non-CO2 RF Calcs'!$S$21)*($O69-1)/9 -> 0.2290130412 | H69: ='Non-CO2 RF Calcs'!$S$23+('Non-CO2 RF Calcs'!$S$22-'Non-CO2 RF Calcs'!$S$23)*($O69-1)/9 -> -0.3482450569 | I69: ='Non-CO2 RF Calcs'!$S$25+('Non-CO2 RF Calcs'!$S$24-'Non-CO2 RF Calcs'!$S$25)*($O69-1)/9 -> 0.2290130412 | J69: 7.133430072 | K69: =CFfromRFin2100(J69) -> 0.5556541013 | L69: 3.963719676 | M69: 4.36308 | N69: -0.399360324 | O69: =MitigationAggressiveness(D69,0) -> 7.267550401 | Q69: 6.08966 | R69: 0.965541 | S69: 0.479917 | T69: -0.336387 | U69: 7.757427 | W69: -0.02947599495 | X69: =R69-E69 -> 0.4462190614 | Y69: =S69-F69 -> 0.09472588706 | Z69: =T69-H69 -> 0.01185805689 | AA69: =U69-J69 -> 0.623996928
A70: AIM/CGE 2.0 | B70: SFCM_SSP2_ST_wind_1p5Degree | C70: 436.900602 | D70: =CO2RFFromCO2PPM(C70) -> 2.513689105 | E70: ='Non-CO2 RF Calcs'!$S$17+('Non-CO2 RF Calcs'!$S$16-'Non-CO2 RF Calcs'!$S$17)*($O70-1)/9 -> 0.3965199062 | F70: ='Non-CO2 RF Calcs'!$S$19+('Non-CO2 RF Calcs'!$S$18-'Non-CO2 RF Calcs'!$S$19)*($O70-1)/9 -> 0.3522943737 | G70: ='Non-CO2 RF Calcs'!$S$21+('Non-CO2 RF Calcs'!$S$20-'Non-CO2 RF Calcs'!$S$21)*($O70-1)/9 -> 0.08425908106 | H70: ='Non-CO2 RF Calcs'!$S$23+('Non-CO2 RF Calcs'!$S$22-'Non-CO2 RF Calcs'!$S$23)*($O70-1)/9 -> -0.258672054 | I70: ='Non-CO2 RF Calcs'!$S$25+('Non-CO2 RF Calcs'!$S$24-'Non-CO2 RF Calcs'!$S$25)*($O70-1)/9 -> 0.08425908106 | J70: 3.172349493 | K70: =CFfromRFin2100(J70) -> 0.5960212739 | L70: 1.890787786 | M70: 1.635328 | N70: 0.2554597862 | O70: =MitigationAggressiveness(D70,0) -> 9.136683315 | Q70: 2.491426 | R70: 0.228342 | S70: 0.266476 | T70: -0.178895 | U70: 2.824222 | W70: -0.02226310548 | X70: =R70-E70 -> -0.1681779062 | Y70: =S70-F70 -> -0.08581837366 | Z70: =T70-H70 -> 0.07977705403 | AA70: =U70-J70 -> -0.3481274934
A71: AIM/CGE 2.0 | B71: SFCM_SSP2_ST_wind_2Degree | C71: 492.40088 | D71: =CO2RFFromCO2PPM(C71) -> 3.191637902 | E71: ='Non-CO2 RF Calcs'!$S$17+('Non-CO2 RF Calcs'!$S$16-'Non-CO2 RF Calcs'!$S$17)*($O71-1)/9 -> 0.4300302634 | F71: ='Non-CO2 RF Calcs'!$S$19+('Non-CO2 RF Calcs'!$S$18-'Non-CO2 RF Calcs'!$S$19)*($O71-1)/9 -> 0.361271273 | G71: ='Non-CO2 RF Calcs'!$S$21+('Non-CO2 RF Calcs'!$S$20-'Non-CO2 RF Calcs'!$S$21)*($O71-1)/9 -> 0.123759705 | H71: ='Non-CO2 RF Calcs'!$S$23+('Non-CO2 RF Calcs'!$S$22-'Non-CO2 RF Calcs'!$S$23)*($O71-1)/9 -> -0.2831148361 | I71: ='Non-CO2 RF Calcs'!$S$25+('Non-CO2 RF Calcs'!$S$24-'Non-CO2 RF Calcs'!$S$25)*($O71-1)/9 -> 0.123759705 | J71: 3.947344013 | K71: =CFfromRFin2100(J71) -> 0.5848121476 | L71: 2.308454729 | M71: 2.111852 | N71: 0.1966027294 | O71: =MitigationAggressiveness(D71,0) -> 8.626632216 | Q71: 3.174798 | R71: 0.312787 | S71: 0.307992 | T71: -0.158609 | U71: 3.663776 | W71: -0.01683990229 | X71: =R71-E71 -> -0.1172432634 | Y71: =S71-F71 -> -0.053279273 | Z71: =T71-H71 -> 0.1245058361 | AA71: =U71-J71 -> -0.2835680126
A72: AIM/CGE 2.0 | B72: SFCM_SSP2_ST_wind_Baseline | C72: 796.804129 | D72: =CO2RFFromCO2PPM(C72) -> 6.111606433 | E72: ='Non-CO2 RF Calcs'!$S$17+('Non-CO2 RF Calcs'!$S$16-'Non-CO2 RF Calcs'!$S$17)*($O72-1)/9 -> 0.5192077028 | F72: ='Non-CO2 RF Calcs'!$S$19+('Non-CO2 RF Calcs'!$S$18-'Non-CO2 RF Calcs'!$S$19)*($O72-1)/9 -> 0.3851605109 | G72: ='Non-CO2 RF Calcs'!$S$21+('Non-CO2 RF Calcs'!$S$20-'Non-CO2 RF Calcs'!$S$21)*($O72-1)/9 -> 0.2288783846 | H72: ='Non-CO2 RF Calcs'!$S$23+('Non-CO2 RF Calcs'!$S$22-'Non-CO2 RF Calcs'!$S$23)*($O72-1)/9 -> -0.3481617321 | I72: ='Non-CO2 RF Calcs'!$S$25+('Non-CO2 RF Calcs'!$S$24-'Non-CO2 RF Calcs'!$S$25)*($O72-1)/9 -> 0.2288783846 | J72: 7.125569684 | K72: =CFfromRFin2100(J72) -> 0.5556925361 | L72: 3.959625889 | M72: 4.358636 | N72: -0.399010111 | O72: =MitigationAggressiveness(D72,0) -> 7.269289151 | Q72: 6.081647 | R72: 0.965289 | S72: 0.479878 | T72: -0.336802 | U72: 7.748683 | W72: -0.02995943337 | X72: =R72-E72 -> 0.4460812972 | Y72: =S72-F72 -> 0.09471748906 | Z72: =T72-H72 -> 0.01135973212 | AA72: =U72-J72 -> 0.6231133158
A73: AIM/CGE 2.0 | B73: SFCM_SSP2_SupTech_1p5Degree | C73: 442.765949 | D73: =CO2RFFromCO2PPM(C73) -> 2.587457264 | E73: ='Non-CO2 RF Calcs'!$S$17+('Non-CO2 RF Calcs'!$S$16-'Non-CO2 RF Calcs'!$S$17)*($O73-1)/9 -> 0.400400177 | F73: ='Non-CO2 RF Calcs'!$S$19+('Non-CO2 RF Calcs'!$S$18-'Non-CO2 RF Calcs'!$S$19)*($O73-1)/9 -> 0.3533338374 | G73: ='Non-CO2 RF Calcs'!$S$21+('Non-CO2 RF Calcs'!$S$20-'Non-CO2 RF Calcs'!$S$21)*($O73-1)/9 -> 0.0888329839 | H73: ='Non-CO2 RF Calcs'!$S$23+('Non-CO2 RF Calcs'!$S$22-'Non-CO2 RF Calcs'!$S$23)*($O73-1)/9 -> -0.2615023615 | I73: ='Non-CO2 RF Calcs'!$S$25+('Non-CO2 RF Calcs'!$S$24-'Non-CO2 RF Calcs'!$S$25)*($O73-1)/9 -> 0.0888329839 | J73: 3.257354885 | K73: =CFfromRFin2100(J73) -> 0.5947131458 | L73: 1.93719177 | M73: 1.696911 | N73: 0.2402807703 | O73: =MitigationAggressiveness(D73,0) -> 9.077622876 | Q73: 2.566738 | R73: 0.244959 | S73: 0.271151 | T73: -0.169654 | U73: 2.931914 | W73: -0.02071926389 | X73: =R73-E73 -> -0.155441177 | Y73: =S73-F73 -> -0.08218283737 | Z73: =T73-H73 -> 0.09184836149 | AA73: =U73-J73 -> -0.3254408846
A74: AIM/CGE 2.0 | B74: SFCM_SSP2_SupTech_2Degree | C74: 498.492444 | D74: =CO2RFFromCO2PPM(C74) -> 3.263313571 | E74: ='Non-CO2 RF Calcs'!$S$17+('Non-CO2 RF Calcs'!$S$16-'Non-CO2 RF Calcs'!$S$17)*($O74-1)/9 -> 0.4332910497 | F74: ='Non-CO2 RF Calcs'!$S$19+('Non-CO2 RF Calcs'!$S$18-'Non-CO2 RF Calcs'!$S$19)*($O74-1)/9 -> 0.3621447865 | G74: ='Non-CO2 RF Calcs'!$S$21+('Non-CO2 RF Calcs'!$S$20-'Non-CO2 RF Calcs'!$S$21)*($O74-1)/9 -> 0.1276033852 | H74: ='Non-CO2 RF Calcs'!$S$23+('Non-CO2 RF Calcs'!$S$22-'Non-CO2 RF Calcs'!$S$23)*($O74-1)/9 -> -0.2854932856 | I74: ='Non-CO2 RF Calcs'!$S$25+('Non-CO2 RF Calcs'!$S$24-'Non-CO2 RF Calcs'!$S$25)*($O74-1)/9 -> 0.1276033852 | J74: 4.028462892 | K74: =CFfromRFin2100(J74) -> 0.5837320138 | L74: 2.351542756 | M74: 2.163512 | N74: 0.1880307564 | O74: =MitigationAggressiveness(D74,0) -> 8.577000765 | Q74: 3.245377 | R74: 0.33119 | S74: 0.313584 | T74: -0.150132 | U74: 3.76661 | W74: -0.01793657069 | X74: =R74-E74 -> -0.1021010497 | Y74: =S74-F74 -> -0.04856078654 | Z74: =T74-H74 -> 0.1353612856 | AA74: =U74-J74 -> -0.2618528918
A75: AIM/CGE 2.0 | B75: SFCM_SSP2_SupTech_Baseline | C75: 797.011401 | D75: =CO2RFFromCO2PPM(C75) -> 6.113134564 | E75: ='Non-CO2 RF Calcs'!$S$17+('Non-CO2 RF Calcs'!$S$16-'Non-CO2 RF Calcs'!$S$17)*($O75-1)/9 -> 0.5192309352 | F75: ='Non-CO2 RF Calcs'!$S$19+('Non-CO2 RF Calcs'!$S$18-'Non-CO2 RF Calcs'!$S$19)*($O75-1)/9 -> 0.3851667345 | G75: ='Non-CO2 RF Calcs'!$S$21+('Non-CO2 RF Calcs'!$S$20-'Non-CO2 RF Calcs'!$S$21)*($O75-1)/9 -> 0.22890577 | H75: ='Non-CO2 RF Calcs'!$S$23+('Non-CO2 RF Calcs'!$S$22-'Non-CO2 RF Calcs'!$S$23)*($O75-1)/9 -> -0.3481786781 | I75: ='Non-CO2 RF Calcs'!$S$25+('Non-CO2 RF Calcs'!$S$24-'Non-CO2 RF Calcs'!$S$25)*($O75-1)/9 -> 0.22890577 | J75: 7.127165096 | K75: =CFfromRFin2100(J75) -> 0.5556847217 | L75: 3.960456752 | M75: 4.364682 | N75: -0.4042252476 | O75: =MitigationAggressiveness(D75,0) -> 7.268935538 | Q75: 6.083655 | R75: 0.963041 | S75: 0.478949 | T75: -0.327843 | U75: 7.753964 | W75: -0.02947956408 | X75: =R75-E75 -> 0.4438100648 | Y75: =S75-F75 -> 0.09378226546 | Z75: =T75-H75 -> 0.02033567807 | AA75: =U75-J75 -> 0.6267989042
A76: AIM/CGE 2.0 | B76: SSP1-19 | C76: 394.358324 | D76: =CO2RFFromCO2PPM(C76) -> 1.963629466 | E76: ='Non-CO2 RF Calcs'!$S$17+('Non-CO2 RF Calcs'!$S$16-'Non-CO2 RF Calcs'!$S$17)*($O76-1)/9 -> 0.3657848363 | F76: ='Non-CO2 RF Calcs'!$S$19+('Non-CO2 RF Calcs'!$S$18-'Non-CO2 RF Calcs'!$S$19)*($O76-1)/9 -> 0.3440609303 | G76: ='Non-CO2 RF Calcs'!$S$21+('Non-CO2 RF Calcs'!$S$20-'Non-CO2 RF Calcs'!$S$21)*($O76-1)/9 -> 0.048029851 | H76: ='Non-CO2 RF Calcs'!$S$23+('Non-CO2 RF Calcs'!$S$22-'Non-CO2 RF Calcs'!$S$23)*($O76-1)/9 -> -0.2362535936 | I76: ='Non-CO2 RF Calcs'!$S$25+('Non-CO2 RF Calcs'!$S$24-'Non-CO2 RF Calcs'!$S$25)*($O76-1)/9 -> 0.048029851 | J76: 2.533281341 | K76: =CFfromRFin2100(J76) -> 0.6064762685 | L76: 1.536375015 | M76: 1.253722 | N76: 0.2826530146 | O76: =MitigationAggressiveness(D76,0) -> 9.604492598 | Q76: 1.911414 | R76: 0.050741 | S76: 0.230937 | T76: -0.014618 | U76: 2.092674 | W76: -0.05221546587 | X76: =R76-E76 -> -0.3150438363 | Y76: =S76-F76 -> -0.1131239303 | Z76: =T76-H76 -> 0.2216355936 | AA76: =U76-J76 -> -0.4406073408
A77: AIM/CGE 2.0 | B77: SSP1-26 | C77: 445.921349 | D77: =CO2RFFromCO2PPM(C77) -> 2.626935131 | E77: ='Non-CO2 RF Calcs'!$S$17+('Non-CO2 RF Calcs'!$S$16-'Non-CO2 RF Calcs'!$S$17)*($O77-1)/9 -> 0.4024532774 | F77: ='Non-CO2 RF Calcs'!$S$19+('Non-CO2 RF Calcs'!$S$18-'Non-CO2 RF Calcs'!$S$19)*($O77-1)/9 -> 0.3538838308 | G77: ='Non-CO2 RF Calcs'!$S$21+('Non-CO2 RF Calcs'!$S$20-'Non-CO2 RF Calcs'!$S$21)*($O77-1)/9 -> 0.09125309381 | H77: ='Non-CO2 RF Calcs'!$S$23+('Non-CO2 RF Calcs'!$S$22-'Non-CO2 RF Calcs'!$S$23)*($O77-1)/9 -> -0.262999913 | I77: ='Non-CO2 RF Calcs'!$S$25+('Non-CO2 RF Calcs'!$S$24-'Non-CO2 RF Calcs'!$S$25)*($O77-1)/9 -> 0.09125309381 | J77: 3.302778513 | K77: =CFfromRFin2100(J77) -> 0.594022077 | L77: 1.961923352 | M77: 1.789941 | N77: 0.1719823524 | O77: =MitigationAggressiveness(D77,0) -> 9.046373251 | Q77: 2.605898 | R77: 0.178514 | S77: 0.259822 | T77: 0.016851 | U77: 2.99671 | W77: -0.02103713061 | X77: =R77-E77 -> -0.2239392774 | Y77: =S77-F77 -> -0.09406183079 | Z77: =T77-H77 -> 0.279850913 | AA77: =U77-J77 -> -0.3060685134
A78: AIM/CGE 2.0 | B78: SSP1-34 | C78: 514.259807 | D78: =CO2RFFromCO2PPM(C78) -> 3.446326693 | E78: ='Non-CO2 RF Calcs'!$S$17+('Non-CO2 RF Calcs'!$S$16-'Non-CO2 RF Calcs'!$S$17)*($O78-1)/9 -> 0.4413722787 | F78: ='Non-CO2 RF Calcs'!$S$19+('Non-CO2 RF Calcs'!$S$18-'Non-CO2 RF Calcs'!$S$19)*($O78-1)/9 -> 0.3643096211 | G78: ='Non-CO2 RF Calcs'!$S$21+('Non-CO2 RF Calcs'!$S$20-'Non-CO2 RF Calcs'!$S$21)*($O78-1)/9 -> 0.1371292038 | H78: ='Non-CO2 RF Calcs'!$S$23+('Non-CO2 RF Calcs'!$S$22-'Non-CO2 RF Calcs'!$S$23)*($O78-1)/9 -> -0.2913878129 | I78: ='Non-CO2 RF Calcs'!$S$25+('Non-CO2 RF Calcs'!$S$24-'Non-CO2 RF Calcs'!$S$25)*($O78-1)/9 -> 0.1371292038 | J78: 4.234879187 | K78: =CFfromRFin2100(J78) -> 0.5810630804 | L78: 2.460731945 | M78: 2.320239 | N78: 0.1404929455 | O78: =MitigationAggressiveness(D78,0) -> 8.453998803 | Q78: 3.423387 | R78: 0.244904 | S78: 0.293151 | T78: 0.020619 | U78: 3.93492 | W78: -0.02293969279 | X78: =R78-E78 -> -0.1964682787 | Y78: =S78-F78 -> -0.07115862107 | Z78: =T78-H78 -> 0.3120068129 | AA78: =U78-J78 -> -0.2999591873
A79: AIM/CGE 2.0 | B79: SSP1-45 | C79: 581.328128 | D79: =CO2RFFromCO2PPM(C79) -> 4.184307592 | E79: ='Non-CO2 RF Calcs'!$S$17+('Non-CO2 RF Calcs'!$S$16-'Non-CO2 RF Calcs'!$S$17)*($O79-1)/9 -> 0.4703907823 | F79: ='Non-CO2 RF Calcs'!$S$19+('Non-CO2 RF Calcs'!$S$18-'Non-CO2 RF Calcs'!$S$19)*($O79-1)/9 -> 0.3720832233 | G79: ='Non-CO2 RF Calcs'!$S$21+('Non-CO2 RF Calcs'!$S$20-'Non-CO2 RF Calcs'!$S$21)*($O79-1)/9 -> 0.1713350165 | H79: ='Non-CO2 RF Calcs'!$S$23+('Non-CO2 RF Calcs'!$S$22-'Non-CO2 RF Calcs'!$S$23)*($O79-1)/9 -> -0.3125541931 | I79: ='Non-CO2 RF Calcs'!$S$25+('Non-CO2 RF Calcs'!$S$24-'Non-CO2 RF Calcs'!$S$25)*($O79-1)/9 -> 0.1713350165 | J79: 5.056897438 | K79: =CFfromRFin2100(J79) -> 0.5715681715 | L79: 2.890361622 | M79: 2.918825 | N79: -0.02846337803 | O79: =MitigationAggressiveness(D79,0) -> 8.01231686 | Q79: 4.14484 | R79: 0.342279 | S79: 0.351666 | T79: 0.007967 | U79: 4.970572 | W79: -0.03946759233 | X79: =R79-E79 -> -0.1281117823 | Y79: =S79-F79 -> -0.02041722326 | Z79: =T79-H79 -> 0.3205211931 | AA79: =U79-J79 -> -0.0863254377
A80: AIM/CGE 2.0 | B80: SSP1-Baseline | C80: 636.163645 | D80: =CO2RFFromCO2PPM(C80) -> 4.738971353 | E80: ='Non-CO2 RF Calcs'!$S$17+('Non-CO2 RF Calcs'!$S$16-'Non-CO2 RF Calcs'!$S$17)*($O80-1)/9 -> 0.4884369372 | F80: ='Non-CO2 RF Calcs'!$S$19+('Non-CO2 RF Calcs'!$S$18-'Non-CO2 RF Calcs'!$S$19)*($O80-1)/9 -> 0.3769175053 | G80: ='Non-CO2 RF Calcs'!$S$21+('Non-CO2 RF Calcs'!$S$20-'Non-CO2 RF Calcs'!$S$21)*($O80-1)/9 -> 0.1926070781 | H80: ='Non-CO2 RF Calcs'!$S$23+('Non-CO2 RF Calcs'!$S$22-'Non-CO2 RF Calcs'!$S$23)*($O80-1)/9 -> -0.325717235 | I80: ='Non-CO2 RF Calcs'!$S$25+('Non-CO2 RF Calcs'!$S$24-'Non-CO2 RF Calcs'!$S$25)*($O80-1)/9 -> 0.1926070781 | J80: 5.663822717 | K80: =CFfromRFin2100(J80) -> 0.5657207412 | L80: 3.204141986 | M80: 3.707952 | N80: -0.5038100145 | O80: =MitigationAggressiveness(D80,0) -> 7.737641747 | Q80: 4.685127 | R80: 0.814327 | S80: 0.43859 | T80: -0.037338 | U80: 6.428922 | W80: -0.05384435301 | X80: =R80-E80 -> 0.3258900628 | Y80: =S80-F80 -> 0.06167249474 | Z80: =T80-H80 -> 0.288379235 | AA80: =U80-J80 -> 0.7650992833
A81: AIM/CGE 2.0 | B81: SSP2-19 | C81: 378.567603 | D81: =CO2RFFromCO2PPM(C81) -> 1.75274724 | E81: ='Non-CO2 RF Calcs'!$S$17+('Non-CO2 RF Calcs'!$S$16-'Non-CO2 RF Calcs'!$S$17)*($O81-1)/9 -> 0.3531591678 | F81: ='Non-CO2 RF Calcs'!$S$19+('Non-CO2 RF Calcs'!$S$18-'Non-CO2 RF Calcs'!$S$19)*($O81-1)/9 -> 0.3406787116 | G81: ='Non-CO2 RF Calcs'!$S$21+('Non-CO2 RF Calcs'!$S$20-'Non-CO2 RF Calcs'!$S$21)*($O81-1)/9 -> 0.03314723487 | H81: ='Non-CO2 RF Calcs'!$S$23+('Non-CO2 RF Calcs'!$S$22-'Non-CO2 RF Calcs'!$S$23)*($O81-1)/9 -> -0.2270443076 | I81: ='Non-CO2 RF Calcs'!$S$25+('Non-CO2 RF Calcs'!$S$24-'Non-CO2 RF Calcs'!$S$25)*($O81-1)/9 -> 0.03314723487 | J81: 2.285835282 | K81: =CFfromRFin2100(J81) -> 0.6108185916 | L81: 1.396230688 | M81: 1.171109 | N81: 0.2251216875 | O81: =MitigationAggressiveness(D81,0) -> 9.796664112 | Q81: 1.693315 | R81: 0.13305 | S81: 0.273268 | T81: -0.15126 | U81: 1.947519 | W81: -0.05943224019 | X81: =R81-E81 -> -0.2201091678 | Y81: =S81-F81 -> -0.06741071163 | Z81: =T81-H81 -> 0.0757843076 | AA81: =U81-J81 -> -0.3383162818
A82: AIM/CGE 2.0 | B82: SSP2-26 | C82: 426.953222 | D82: =CO2RFFromCO2PPM(C82) -> 2.387435146 | E82: ='Non-CO2 RF Calcs'!$S$17+('Non-CO2 RF Calcs'!$S$16-'Non-CO2 RF Calcs'!$S$17)*($O82-1)/9 -> 0.3897462582 | F82: ='Non-CO2 RF Calcs'!$S$19+('Non-CO2 RF Calcs'!$S$18-'Non-CO2 RF Calcs'!$S$19)*($O82-1)/9 -> 0.3504798196 | G82: ='Non-CO2 RF Calcs'!$S$21+('Non-CO2 RF Calcs'!$S$20-'Non-CO2 RF Calcs'!$S$21)*($O82-1)/9 -> 0.07627458481 | H82: ='Non-CO2 RF Calcs'!$S$23+('Non-CO2 RF Calcs'!$S$22-'Non-CO2 RF Calcs'!$S$23)*($O82-1)/9 -> -0.253731289 | I82: ='Non-CO2 RF Calcs'!$S$25+('Non-CO2 RF Calcs'!$S$24-'Non-CO2 RF Calcs'!$S$25)*($O82-1)/9 -> 0.07627458481 | J82: =SUM(D82:I82) -> 3.026479104 | K82: =CFfromRFin2100(J82) -> 0.5983112013 | L82: =K82*J82 -> 1.810776349 | M82: 1.698709 | N82: =L82-M82 -> 0.1120673485 | O82: =MitigationAggressiveness(D82,0) -> 9.23978298 | Q82: 2.349994 | R82: 0.297336 | S82: 0.295002 | T82: -0.135053 | U82: 2.850038 | W82: =Q82-D82 -> -0.03744114554 | X82: =R82-E82 -> -0.09241025825 | Y82: =S82-F82 -> -0.05547781956 | Z82: =T82-H82 -> 0.118678289 | AA82: =U82-J82 -> -0.176441104
A83: AIM/CGE 2.0 | B83: SSP2-34 | C83: 492.175083 | D83: =CO2RFFromCO2PPM(C83) -> 3.188970693 | E83: ='Non-CO2 RF Calcs'!$S$17+('Non-CO2 RF Calcs'!$S$16-'Non-CO2 RF Calcs'!$S$17)*($O83-1)/9 -> 0.4299078814 | F83: ='Non-CO2 RF Calcs'!$S$19+('Non-CO2 RF Calcs'!$S$18-'Non-CO2 RF Calcs'!$S$19)*($O83-1)/9 -> 0.3612384888 | G83: ='Non-CO2 RF Calcs'!$S$21+('Non-CO2 RF Calcs'!$S$20-'Non-CO2 RF Calcs'!$S$21)*($O83-1)/9 -> 0.1236154462 | H83: ='Non-CO2 RF Calcs'!$S$23+('Non-CO2 RF Calcs'!$S$22-'Non-CO2 RF Calcs'!$S$23)*($O83-1)/9 -> -0.2830255695 | I83: ='Non-CO2 RF Calcs'!$S$25+('Non-CO2 RF Calcs'!$S$24-'Non-CO2 RF Calcs'!$S$25)*($O83-1)/9 -> 0.1236154462 | J83: 3.944322386 | K83: =CFfromRFin2100(J83) -> 0.5848527228 | L83: 2.306847687 | M83: 2.215131 | N83: 0.09171668746 | O83: =MitigationAggressiveness(D83,0) -> 8.628494956 | Q83: 3.168106 | R83: 0.375166 | S83: 0.326455 | T83: -0.135859 | U83: 3.783822 | W83: -0.02086469336 | X83: =R83-E83 -> -0.05474188141 | Y83: =S83-F83 -> -0.03478348878 | Z83: =T83-H83 -> 0.1471665695 | AA83: =U83-J83 -> -0.1605003865
A84: AIM/CGE 2.0 | B84: SSP2-45 | C84: 570.48041 | D84: =CO2RFFromCO2PPM(C84) -> 4.069389989 | E84: ='Non-CO2 RF Calcs'!$S$17+('Non-CO2 RF Calcs'!$S$16-'Non-CO2 RF Calcs'!$S$17)*($O84-1)/9 -> 0.4662479451 | F84: ='Non-CO2 RF Calcs'!$S$19+('Non-CO2 RF Calcs'!$S$18-'Non-CO2 RF Calcs'!$S$19)*($O84-1)/9 -> 0.3709734221 | G84: ='Non-CO2 RF Calcs'!$S$21+('Non-CO2 RF Calcs'!$S$20-'Non-CO2 RF Calcs'!$S$21)*($O84-1)/9 -> 0.1664516113 | H84: ='Non-CO2 RF Calcs'!$S$23+('Non-CO2 RF Calcs'!$S$22-'Non-CO2 RF Calcs'!$S$23)*($O84-1)/9 -> -0.3095323672 | I84: ='Non-CO2 RF Calcs'!$S$25+('Non-CO2 RF Calcs'!$S$24-'Non-CO2 RF Calcs'!$S$25)*($O84-1)/9 -> 0.1664516113 | J84: 4.929982212 | K84: =CFfromRFin2100(J84) -> 0.5729158328 | L84: 2.824464865 | M84: 2.768252 | N84: 0.05621286452 | O84: =MitigationAggressiveness(D84,0) -> 8.075373742 | Q84: 4.032743 | R84: 0.412783 | S84: 0.354522 | T84: -0.150385 | U84: 4.753144 | W84: -0.03664698895 | X84: =R84-E84 -> -0.05346494514 | Y84: =S84-F84 -> -0.01645142214 | Z84: =T84-H84 -> 0.1591473672 | AA84: =U84-J84 -> -0.1768382116
A85: AIM/CGE 2.0 | B85: SSP2-60 | C85: 687.441759 | D85: =CO2RFFromCO2PPM(C85) -> 5.217998296 | E85: ='Non-CO2 RF Calcs'!$S$17+('Non-CO2 RF Calcs'!$S$16-'Non-CO2 RF Calcs'!$S$17)*($O85-1)/9 -> 0.5014226845 | F85: ='Non-CO2 RF Calcs'!$S$19+('Non-CO2 RF Calcs'!$S$18-'Non-CO2 RF Calcs'!$S$19)*($O85-1)/9 -> 0.3803961834 | G85: ='Non-CO2 RF Calcs'!$S$21+('Non-CO2 RF Calcs'!$S$20-'Non-CO2 RF Calcs'!$S$21)*($O85-1)/9 -> 0.2079141402 | H85: ='Non-CO2 RF Calcs'!$S$23+('Non-CO2 RF Calcs'!$S$22-'Non-CO2 RF Calcs'!$S$23)*($O85-1)/9 -> -0.335189166 | I85: ='Non-CO2 RF Calcs'!$S$25+('Non-CO2 RF Calcs'!$S$24-'Non-CO2 RF Calcs'!$S$25)*($O85-1)/9 -> 0.2079141402 | J85: 6.180456278 | K85: =CFfromRFin2100(J85) -> 0.5615216357 | L85: 3.470459919 | M85: 3.548139 | N85: -0.07767908132 | O85: =MitigationAggressiveness(D85,0) -> 7.539989581 | Q85: 5.151557 | R85: 0.613455 | S85: 0.41015 | T85: -0.241846 | U85: 6.268077 | W85: -0.06644129595 | X85: =R85-E85 -> 0.1120323155 | Y85: =S85-F85 -> 0.02975381663 | Z85: =T85-H85 -> 0.09334316596 | AA85: =U85-J85 -> 0.08762072168
A86: AIM/CGE 2.0 | B86: SSP2-Baseline | C86: 803.00443 | D86: =CO2RFFromCO2PPM(C86) -> 6.157047895 | E86: ='Non-CO2 RF Calcs'!$S$17+('Non-CO2 RF Calcs'!$S$16-'Non-CO2 RF Calcs'!$S$17)*($O86-1)/9 -> 0.5198880805 | F86: ='Non-CO2 RF Calcs'!$S$19+('Non-CO2 RF Calcs'!$S$18-'Non-CO2 RF Calcs'!$S$19)*($O86-1)/9 -> 0.3853427735 | G86: ='Non-CO2 RF Calcs'!$S$21+('Non-CO2 RF Calcs'!$S$20-'Non-CO2 RF Calcs'!$S$21)*($O86-1)/9 -> 0.2296803858 | H86: ='Non-CO2 RF Calcs'!$S$23+('Non-CO2 RF Calcs'!$S$22-'Non-CO2 RF Calcs'!$S$23)*($O86-1)/9 -> -0.3486580063 | I86: ='Non-CO2 RF Calcs'!$S$25+('Non-CO2 RF Calcs'!$S$24-'Non-CO2 RF Calcs'!$S$25)*($O86-1)/9 -> 0.2296803858 | J86: 7.172981514 | K86: =CFfromRFin2100(J86) -> 0.555463222 | L86: 3.984327423 | M86: 4.436758 | N86: -0.4524305768 | O86: =MitigationAggressiveness(D86,0) -> 7.258933326 | Q86: 6.122296 | R86: 0.970188 | S86: 0.484773 | T86: -0.338564 | U86: 7.885372 | W86: -0.03475189456 | X86: =R86-E86 -> 0.4502999195 | Y86: =S86-F86 -> 0.09943022653 | Z86: =T86-H86 -> 0.01009400629 | AA86: =U86-J86 -> 0.7123904862
A87: AIM/CGE 2.0 | B87: SSP3-34 | C87: 479.590731 | D87: =CO2RFFromCO2PPM(C87) -> 3.039144247 | E87: ='Non-CO2 RF Calcs'!$S$17+('Non-CO2 RF Calcs'!$S$16-'Non-CO2 RF Calcs'!$S$17)*($O87-1)/9 -> 0.4229133109 | F87: ='Non-CO2 RF Calcs'!$S$19+('Non-CO2 RF Calcs'!$S$18-'Non-CO2 RF Calcs'!$S$19)*($O87-1)/9 -> 0.359364753 | G87: ='Non-CO2 RF Calcs'!$S$21+('Non-CO2 RF Calcs'!$S$20-'Non-CO2 RF Calcs'!$S$21)*($O87-1)/9 -> 0.1153705355 | H87: ='Non-CO2 RF Calcs'!$S$23+('Non-CO2 RF Calcs'!$S$22-'Non-CO2 RF Calcs'!$S$23)*($O87-1)/9 -> -0.2779236614 | I87: ='Non-CO2 RF Calcs'!$S$25+('Non-CO2 RF Calcs'!$S$24-'Non-CO2 RF Calcs'!$S$25)*($O87-1)/9 -> 0.1153705355 | J87: 3.774239721 | K87: =CFfromRFin2100(J87) -> 0.5871761215 | L87: 2.216143441 | M87: 2.216191 | N87: -4.755925831e-05 | O87: =MitigationAggressiveness(D87,0) -> 8.734957217 | Q87: 3.011493 | R87: 0.532257 | S87: 0.384184 | T87: -0.355645 | U87: 3.791687 | W87: -0.02765124716 | X87: =R87-E87 -> 0.1093436891 | Y87: =S87-F87 -> 0.02481924702 | Z87: =T87-H87 -> -0.07772133863 | AA87: =U87-J87 -> 0.01744727929
A88: AIM/CGE 2.0 | B88: SSP3-45 | C88: 542.852269 | D88: =CO2RFFromCO2PPM(C88) -> 3.76895868 | E88: ='Non-CO2 RF Calcs'!$S$17+('Non-CO2 RF Calcs'!$S$16-'Non-CO2 RF Calcs'!$S$17)*($O88-1)/9 -> 0.454762151 | F88: ='Non-CO2 RF Calcs'!$S$19+('Non-CO2 RF Calcs'!$S$18-'Non-CO2 RF Calcs'!$S$19)*($O88-1)/9 -> 0.3678965579 | G88: ='Non-CO2 RF Calcs'!$S$21+('Non-CO2 RF Calcs'!$S$20-'Non-CO2 RF Calcs'!$S$21)*($O88-1)/9 -> 0.1529126319 | H88: ='Non-CO2 RF Calcs'!$S$23+('Non-CO2 RF Calcs'!$S$22-'Non-CO2 RF Calcs'!$S$23)*($O88-1)/9 -> -0.3011545167 | I88: ='Non-CO2 RF Calcs'!$S$25+('Non-CO2 RF Calcs'!$S$24-'Non-CO2 RF Calcs'!$S$25)*($O88-1)/9 -> 0.1529126319 | J88: 4.596288136 | K88: =CFfromRFin2100(J88) -> 0.57666531 | L88: 2.650519923 | M88: 2.693593 | N88: -0.04307307711 | O88: =MitigationAggressiveness(D88,0) -> 8.250195571 | Q88: 3.734445 | R88: 0.60499 | S88: 0.408635 | T88: -0.399557 | U88: 4.679447 | W88: -0.03451367995 | X88: =R88-E88 -> 0.150227849 | Y88: =S88-F88 -> 0.04073844206 | Z88: =T88-H88 -> -0.09840248333 | AA88: =U88-J88 -> 0.08315886412
A89: AIM/CGE 2.0 | B89: SSP3-60 | C89: 653.849257 | D89: =CO2RFFromCO2PPM(C89) -> 4.908515321 | E89: ='Non-CO2 RF Calcs'!$S$17+('Non-CO2 RF Calcs'!$S$16-'Non-CO2 RF Calcs'!$S$17)*($O89-1)/9 -> 0.4933085002 | F89: ='Non-CO2 RF Calcs'!$S$19+('Non-CO2 RF Calcs'!$S$18-'Non-CO2 RF Calcs'!$S$19)*($O89-1)/9 -> 0.3782225206 | G89: ='Non-CO2 RF Calcs'!$S$21+('Non-CO2 RF Calcs'!$S$20-'Non-CO2 RF Calcs'!$S$21)*($O89-1)/9 -> 0.1983494751 | H89: ='Non-CO2 RF Calcs'!$S$23+('Non-CO2 RF Calcs'!$S$22-'Non-CO2 RF Calcs'!$S$23)*($O89-1)/9 -> -0.3292706006 | I89: ='Non-CO2 RF Calcs'!$S$25+('Non-CO2 RF Calcs'!$S$24-'Non-CO2 RF Calcs'!$S$25)*($O89-1)/9 -> 0.1983494751 | J89: 5.847474691 | K89: =CFfromRFin2100(J89) -> 0.5641460449 | L89: 3.29882972 | M89: 3.463566 | N89: -0.1647362802 | O89: =MitigationAggressiveness(D89,0) -> 7.663493148 | Q89: 4.841115 | R89: 0.709941 | S89: 0.437961 | T89: -0.527151 | U89: 6.164922 | W89: -0.06740032094 | X89: =R89-E89 -> 0.2166324998 | Y89: =S89-F89 -> 0.05973847941 | Z89: =T89-H89 -> -0.1978803994 | AA89: =U89-J89 -> 0.3174473087
A90: AIM/CGE 2.0 | B90: SSP3-Baseline | C90: 846.372635 | D90: =CO2RFFromCO2PPM(C90) -> 6.45922374 | E90: ='Non-CO2 RF Calcs'!$S$17+('Non-CO2 RF Calcs'!$S$16-'Non-CO2 RF Calcs'!$S$17)*($O90-1)/9 -> 0.5238609933 | F90: ='Non-CO2 RF Calcs'!$S$19+('Non-CO2 RF Calcs'!$S$18-'Non-CO2 RF Calcs'!$S$19)*($O90-1)/9 -> 0.3864070545 | G90: ='Non-CO2 RF Calcs'!$S$21+('Non-CO2 RF Calcs'!$S$20-'Non-CO2 RF Calcs'!$S$21)*($O90-1)/9 -> 0.2343634911 | H90: ='Non-CO2 RF Calcs'!$S$23+('Non-CO2 RF Calcs'!$S$22-'Non-CO2 RF Calcs'!$S$23)*($O90-1)/9 -> -0.3515558877 | I90: ='Non-CO2 RF Calcs'!$S$25+('Non-CO2 RF Calcs'!$S$24-'Non-CO2 RF Calcs'!$S$25)*($O90-1)/9 -> 0.2343634911 | J90: 7.486662883 | K90: =CFfromRFin2100(J90) -> 0.5540979499 | L90: 4.148344555 | M90: 4.311785 | N90: -0.1634404449 | O90: =MitigationAggressiveness(D90,0) -> 7.198462812 | Q90: 6.444816 | R90: 1.039092 | S90: 0.512709 | T90: -0.822738 | U90: 7.825582 | W90: -0.01440774024 | X90: =R90-E90 -> 0.5152310067 | Y90: =S90-F90 -> 0.1263019455 | Z90: =T90-H90 -> -0.4711821123 | AA90: =U90-J90 -> 0.3389191175
A91: AIM/CGE 2.0 | B91: SSP4-26 | C91: 441.030273 | D91: =CO2RFFromCO2PPM(C91) -> 2.565679994 | E91: ='Non-CO2 RF Calcs'!$S$17+('Non-CO2 RF Calcs'!$S$16-'Non-CO2 RF Calcs'!$S$17)*($O91-1)/9 -> 0.3992606172 | F91: ='Non-CO2 RF Calcs'!$S$19+('Non-CO2 RF Calcs'!$S$18-'Non-CO2 RF Calcs'!$S$19)*($O91-1)/9 -> 0.3530285672 | G91: ='Non-CO2 RF Calcs'!$S$21+('Non-CO2 RF Calcs'!$S$20-'Non-CO2 RF Calcs'!$S$21)*($O91-1)/9 -> 0.08748971789 | H91: ='Non-CO2 RF Calcs'!$S$23+('Non-CO2 RF Calcs'!$S$22-'Non-CO2 RF Calcs'!$S$23)*($O91-1)/9 -> -0.2606711554 | I91: ='Non-CO2 RF Calcs'!$S$25+('Non-CO2 RF Calcs'!$S$24-'Non-CO2 RF Calcs'!$S$25)*($O91-1)/9 -> 0.08748971789 | J91: 3.232277459 | K91: =CFfromRFin2100(J91) -> 0.5950970411 | L91: 1.923518752 | M91: 1.666061 | N91: 0.2574577517 | O91: =MitigationAggressiveness(D91,0) -> 9.094967775 | Q91: 2.534178 | R91: 0.261528 | S91: 0.285223 | T91: -0.321684 | U91: 2.854721 | W91: -0.03150199395 | X91: =R91-E91 -> -0.1377326172 | Y91: =S91-F91 -> -0.06780556716 | Z91: =T91-H91 -> -0.06101284458 | AA91: =U91-J91 -> -0.3775564587
A92: AIM/CGE 2.0 | B92: SSP4-34 | C92: 511.906909 | D92: =CO2RFFromCO2PPM(C92) -> 3.41924642 | E92: ='Non-CO2 RF Calcs'!$S$17+('Non-CO2 RF Calcs'!$S$16-'Non-CO2 RF Calcs'!$S$17)*($O92-1)/9 -> 0.4401986756 | F92: ='Non-CO2 RF Calcs'!$S$19+('Non-CO2 RF Calcs'!$S$18-'Non-CO2 RF Calcs'!$S$19)*($O92-1)/9 -> 0.3639952312 | G92: ='Non-CO2 RF Calcs'!$S$21+('Non-CO2 RF Calcs'!$S$20-'Non-CO2 RF Calcs'!$S$21)*($O92-1)/9 -> 0.1357458091 | H92: ='Non-CO2 RF Calcs'!$S$23+('Non-CO2 RF Calcs'!$S$22-'Non-CO2 RF Calcs'!$S$23)*($O92-1)/9 -> -0.2905317754 | I92: ='Non-CO2 RF Calcs'!$S$25+('Non-CO2 RF Calcs'!$S$24-'Non-CO2 RF Calcs'!$S$25)*($O92-1)/9 -> 0.1357458091 | J92: 4.20440017 | K92: =CFfromRFin2100(J92) -> 0.5814499788 | L92: 2.444648389 | M92: 2.196264 | N92: 0.2483843894 | O92: =MitigationAggressiveness(D92,0) -> 8.471861862 | Q92: 3.388943 | R92: 0.343069 | S92: 0.314178 | T92: -0.329632 | U92: 3.815235 | W92: -0.03030342018 | X92: =R92-E92 -> -0.09712967564 | Y92: =S92-F92 -> -0.04981723122 | Z92: =T92-H92 -> -0.03910022458 | AA92: =U92-J92 -> -0.3891651698
A93: AIM/CGE 2.0 | B93: SSP4-45 | C93: 585.767237 | D93: =CO2RFFromCO2PPM(C93) -> 4.230839707 | E93: ='Non-CO2 RF Calcs'!$S$17+('Non-CO2 RF Calcs'!$S$16-'Non-CO2 RF Calcs'!$S$17)*($O93-1)/9 -> 0.4720288484 | F93: ='Non-CO2 RF Calcs'!$S$19+('Non-CO2 RF Calcs'!$S$18-'Non-CO2 RF Calcs'!$S$19)*($O93-1)/9 -> 0.3725220355 | G93: ='Non-CO2 RF Calcs'!$S$21+('Non-CO2 RF Calcs'!$S$20-'Non-CO2 RF Calcs'!$S$21)*($O93-1)/9 -> 0.1732659011 | H93: ='Non-CO2 RF Calcs'!$S$23+('Non-CO2 RF Calcs'!$S$22-'Non-CO2 RF Calcs'!$S$23)*($O93-1)/9 -> -0.3137490145 | I93: ='Non-CO2 RF Calcs'!$S$25+('Non-CO2 RF Calcs'!$S$24-'Non-CO2 RF Calcs'!$S$25)*($O93-1)/9 -> 0.1732659011 | J93: 5.108173378 | K93: =CFfromRFin2100(J93) -> 0.5710359457 | L93: 2.916950616 | M93: 2.710889 | N93: 0.2060616159 | O93: =MitigationAggressiveness(D93,0) -> 7.987384347 | Q93: 4.189 | R93: 0.394067 | S93: 0.355511 | T93: -0.361291 | U93: 4.724921 | W93: -0.0418397069 | X93: =R93-E93 -> -0.07796184837 | Y93: =S93-F93 -> -0.01701103548 | Z93: =T93-H93 -> -0.04754198545 | AA93: =U93-J93 -> -0.3832523784
A94: AIM/CGE 2.0 | B94: SSP4-Baseline | C94: 665.164764 | D94: =CO2RFFromCO2PPM(C94) -> 5.014600488 | E94: ='Non-CO2 RF Calcs'!$S$17+('Non-CO2 RF Calcs'!$S$16-'Non-CO2 RF Calcs'!$S$17)*($O94-1)/9 -> 0.4962031742 | F94: ='Non-CO2 RF Calcs'!$S$19+('Non-CO2 RF Calcs'!$S$18-'Non-CO2 RF Calcs'!$S$19)*($O94-1)/9 -> 0.3789979584 | G94: ='Non-CO2 RF Calcs'!$S$21+('Non-CO2 RF Calcs'!$S$20-'Non-CO2 RF Calcs'!$S$21)*($O94-1)/9 -> 0.2017615972 | H94: ='Non-CO2 RF Calcs'!$S$23+('Non-CO2 RF Calcs'!$S$22-'Non-CO2 RF Calcs'!$S$23)*($O94-1)/9 -> -0.3313820041 | I94: ='Non-CO2 RF Calcs'!$S$25+('Non-CO2 RF Calcs'!$S$24-'Non-CO2 RF Calcs'!$S$25)*($O94-1)/9 -> 0.2017615972 | J94: 5.961942811 | K94: =CFfromRFin2100(J94) -> 0.5632103171 | L94: 3.357827701 | M94: 3.60729 | N94: -0.2494622986 | O94: =MitigationAggressiveness(D94,0) -> 7.619434182 | Q94: 4.952687 | R94: 0.88683 | S94: 0.453902 | T94: -0.461778 | U94: 6.416773 | W94: -0.06191348844 | X94: =R94-E94 -> 0.3906268258 | Y94: =S94-F94 -> 0.07490404161 | Z94: =T94-H94 -> -0.1303959959 | AA94: =U94-J94 -> 0.4548301887
A95: AIM/CGE 2.0 | B95: SSP5-26 | C95: 424.259871 | D95: =CO2RFFromCO2PPM(C95) -> 2.353002534 | E95: ='Non-CO2 RF Calcs'!$S$17+('Non-CO2 RF Calcs'!$S$16-'Non-CO2 RF Calcs'!$S$17)*($O95-1)/9 -> 0.3878698685 | F95: ='Non-CO2 RF Calcs'!$S$19+('Non-CO2 RF Calcs'!$S$18-'Non-CO2 RF Calcs'!$S$19)*($O95-1)/9 -> 0.3499771642 | G95: ='Non-CO2 RF Calcs'!$S$21+('Non-CO2 RF Calcs'!$S$20-'Non-CO2 RF Calcs'!$S$21)*($O95-1)/9 -> 0.0740627741 | H95: ='Non-CO2 RF Calcs'!$S$23+('Non-CO2 RF Calcs'!$S$22-'Non-CO2 RF Calcs'!$S$23)*($O95-1)/9 -> -0.2523626319 | I95: ='Non-CO2 RF Calcs'!$S$25+('Non-CO2 RF Calcs'!$S$24-'Non-CO2 RF Calcs'!$S$25)*($O95-1)/9 -> 0.0740627741 | J95: 2.986612483 | K95: =CFfromRFin2100(J95) -> 0.5989469721 | L95: 1.788822503 | M95: 1.836613 | N95: -0.04779049665 | O95: =MitigationAggressiveness(D95,0) -> 9.268342946 | Q95: 2.318011 | R95: 0.376093 | S95: 0.33088 | T95: -0.009694 | U95: 3.032193 | W95: -0.03499153408 | X95: =R95-E95 -> -0.01177686847 | Y95: =S95-F95 -> -0.01909716416 | Z95: =T95-H95 -> 0.2426686319 | AA95: =U95-J95 -> 0.04558051705
A96: AIM/CGE 2.0 | B96: SSP5-34 | C96: 496.600131 | D96: =CO2RFFromCO2PPM(C96) -> 3.241105802 | E96: ='Non-CO2 RF Calcs'!$S$17+('Non-CO2 RF Calcs'!$S$16-'Non-CO2 RF Calcs'!$S$17)*($O96-1)/9 -> 0.4322865051 | F96: ='Non-CO2 RF Calcs'!$S$19+('Non-CO2 RF Calcs'!$S$18-'Non-CO2 RF Calcs'!$S$19)*($O96-1)/9 -> 0.3618756848 | G96: ='Non-CO2 RF Calcs'!$S$21+('Non-CO2 RF Calcs'!$S$20-'Non-CO2 RF Calcs'!$S$21)*($O96-1)/9 -> 0.1264192694 | H96: ='Non-CO2 RF Calcs'!$S$23+('Non-CO2 RF Calcs'!$S$22-'Non-CO2 RF Calcs'!$S$23)*($O96-1)/9 -> -0.2847605608 | I96: ='Non-CO2 RF Calcs'!$S$25+('Non-CO2 RF Calcs'!$S$24-'Non-CO2 RF Calcs'!$S$25)*($O96-1)/9 -> 0.1264192694 | J96: 4.00334597 | K96: =CFfromRFin2100(J96) -> 0.5840645705 | L96: 2.338212544 | M96: 2.371219 | N96: -0.03300645563 | O96: =MitigationAggressiveness(D96,0) -> 8.592290638 | Q96: 3.217755 | R96: 0.426467 | S96: 0.356975 | T96: -0.019453 | U96: 3.997443 | W96: -0.02335080189 | X96: =R96-E96 -> -0.005819505051 | Y96: =S96-F96 -> -0.004900684763 | Z96: =T96-H96 -> 0.2653075608 | AA96: =U96-J96 -> -0.005902969744
A97: AIM/CGE 2.0 | B97: SSP5-45 | C97: 562.62721 | D97: =CO2RFFromCO2PPM(C97) -> 3.98512519 | E97: ='Non-CO2 RF Calcs'!$S$17+('Non-CO2 RF Calcs'!$S$16-'Non-CO2 RF Calcs'!$S$17)*($O97-1)/9 -> 0.4631220433 | F97: ='Non-CO2 RF Calcs'!$S$19+('Non-CO2 RF Calcs'!$S$18-'Non-CO2 RF Calcs'!$S$19)*($O97-1)/9 -> 0.370136042 | G97: ='Non-CO2 RF Calcs'!$S$21+('Non-CO2 RF Calcs'!$S$20-'Non-CO2 RF Calcs'!$S$21)*($O97-1)/9 -> 0.1627669274 | H97: ='Non-CO2 RF Calcs'!$S$23+('Non-CO2 RF Calcs'!$S$22-'Non-CO2 RF Calcs'!$S$23)*($O97-1)/9 -> -0.3072523039 | I97: ='Non-CO2 RF Calcs'!$S$25+('Non-CO2 RF Calcs'!$S$24-'Non-CO2 RF Calcs'!$S$25)*($O97-1)/9 -> 0.1627669274 | J97: 4.836664827 | K97: =CFfromRFin2100(J97) -> 0.5739342919 | L97: 2.775927802 | M97: 2.840875 | N97: -0.06494719757 | O97: =MitigationAggressiveness(D97,0) -> 8.122952157 | Q97: 3.943956 | R97: 0.485358 | S97: 0.379737 | T97: -0.030231 | U97: 4.861087 | W97: -0.0411691905 | X97: =R97-E97 -> 0.02223595669 | Y97: =S97-F97 -> 0.009600957957 | Z97: =T97-H97 -> 0.2770213039 | AA97: =U97-J97 -> 0.02442217317
A98: AIM/CGE 2.0 | B98: SSP5-60 | C98: 657.883203 | D98: =CO2RFFromCO2PPM(C98) -> 4.94654844 | E98: ='Non-CO2 RF Calcs'!$S$17+('Non-CO2 RF Calcs'!$S$16-'Non-CO2 RF Calcs'!$S$17)*($O98-1)/9 -> 0.4943598719 | F98: ='Non-CO2 RF Calcs'!$S$19+('Non-CO2 RF Calcs'!$S$18-'Non-CO2 RF Calcs'!$S$19)*($O98-1)/9 -> 0.3785041666 | G98: ='Non-CO2 RF Calcs'!$S$21+('Non-CO2 RF Calcs'!$S$20-'Non-CO2 RF Calcs'!$S$21)*($O98-1)/9 -> 0.1995887886 | H98: ='Non-CO2 RF Calcs'!$S$23+('Non-CO2 RF Calcs'!$S$22-'Non-CO2 RF Calcs'!$S$23)*($O98-1)/9 -> -0.3300374814 | I98: ='Non-CO2 RF Calcs'!$S$25+('Non-CO2 RF Calcs'!$S$24-'Non-CO2 RF Calcs'!$S$25)*($O98-1)/9 -> 0.1995887886 | J98: 5.888552574 | K98: =CFfromRFin2100(J98) -> 0.5638062081 | L98: 3.320002498 | M98: 3.422306 | N98: -0.1023035021 | O98: =MitigationAggressiveness(D98,0) -> 7.647490534 | Q98: 4.892389 | R98: 0.544002 | S98: 0.394036 | T98: -0.077632 | U98: 6.006671 | W98: -0.05415943967 | X98: =R98-E98 -> 0.0496421281 | Y98: =S98-F98 -> 0.0155318334 | Z98: =T98-H98 -> 0.2524054814 | AA98: =U98-J98 -> 0.118118426
A99: AIM/CGE 2.0 | B99: SSP5-Baseline | C99: 978.743468 | D99: =CO2RFFromCO2PPM(C99) -> 7.21201447 | E99: ='Non-CO2 RF Calcs'!$S$17+('Non-CO2 RF Calcs'!$S$16-'Non-CO2 RF Calcs'!$S$17)*($O99-1)/9 -> 0.5295891879 | F99: ='Non-CO2 RF Calcs'!$S$19+('Non-CO2 RF Calcs'!$S$18-'Non-CO2 RF Calcs'!$S$19)*($O99-1)/9 -> 0.3879415481 | G99: ='Non-CO2 RF Calcs'!$S$21+('Non-CO2 RF Calcs'!$S$20-'Non-CO2 RF Calcs'!$S$21)*($O99-1)/9 -> 0.2411156502 | H99: ='Non-CO2 RF Calcs'!$S$23+('Non-CO2 RF Calcs'!$S$22-'Non-CO2 RF Calcs'!$S$23)*($O99-1)/9 -> -0.3557340889 | I99: ='Non-CO2 RF Calcs'!$S$25+('Non-CO2 RF Calcs'!$S$24-'Non-CO2 RF Calcs'!$S$25)*($O99-1)/9 -> 0.2411156502 | J99: 8.256042418 | K99: =CFfromRFin2100(J99) -> 0.5518667245 | L99: 4.556235087 | M99: 5.211388 | N99: -0.6551529134 | O99: =MitigationAggressiveness(D99,0) -> 7.111275678 | Q99: 7.383661 | R99: 0.957594 | S99: 0.501683 | T99: -0.235439 | U99: 9.230568 | W99: 0.1716465299 | X99: =R99-E99 -> 0.4280048121 | Y99: =S99-F99 -> 0.1137414519 | Z99: =T99-H99 -> 0.1202950889 | AA99: =U99-J99 -> 0.9745255823
A100: AIM/CGE 2.1 | B100: CD-LINKS_INDC2030i_1600 | C100: 479.50078 | D100: =CO2RFFromCO2PPM(C100) -> 3.038065003 | E100: ='Non-CO2 RF Calcs'!$S$17+('Non-CO2 RF Calcs'!$S$16-'Non-CO2 RF Calcs'!$S$17)*($O100-1)/9 -> 0.4228620719 | F100: ='Non-CO2 RF Calcs'!$S$19+('Non-CO2 RF Calcs'!$S$18-'Non-CO2 RF Calcs'!$S$19)*($O100-1)/9 -> 0.3593510269 | G100: ='Non-CO2 RF Calcs'!$S$21+('Non-CO2 RF Calcs'!$S$20-'Non-CO2 RF Calcs'!$S$21)*($O100-1)/9 -> 0.1153101371 | H100: ='Non-CO2 RF Calcs'!$S$23+('Non-CO2 RF Calcs'!$S$22-'Non-CO2 RF Calcs'!$S$23)*($O100-1)/9 -> -0.2778862872 | I100: ='Non-CO2 RF Calcs'!$S$25+('Non-CO2 RF Calcs'!$S$24-'Non-CO2 RF Calcs'!$S$25)*($O100-1)/9 -> 0.1153101371 | J100: 3.773012089 | K100: =CFfromRFin2100(J100) -> 0.5871931735 | L100: 2.215486942 | M100: 2.353675 | N100: -0.1381880582 | O100: =MitigationAggressiveness(D100,0) -> 8.73573711 | Q100: 3.025067 | R100: 0.514845 | S100: 0.388832 | T100: -0.027539 | U100: 4.033175 | W100: -0.01299800269 | X100: =R100-E100 -> 0.09198292813 | Y100: =S100-F100 -> 0.02948097314 | Z100: =T100-H100 -> 0.2503472872 | AA100: =U100-J100 -> 0.2601629115
A101: AIM/CGE 2.1 | B101: CD-LINKS_INDCi | C101: 682.454323 | D101: =CO2RFFromCO2PPM(C101) -> 5.173089431 | E101: ='Non-CO2 RF Calcs'!$S$17+('Non-CO2 RF Calcs'!$S$16-'Non-CO2 RF Calcs'!$S$17)*($O101-1)/9 -> 0.5003076179 | F101: ='Non-CO2 RF Calcs'!$S$19+('Non-CO2 RF Calcs'!$S$18-'Non-CO2 RF Calcs'!$S$19)*($O101-1)/9 -> 0.3800974745 | G101: ='Non-CO2 RF Calcs'!$S$21+('Non-CO2 RF Calcs'!$S$20-'Non-CO2 RF Calcs'!$S$21)*($O101-1)/9 -> 0.2065997457 | H101: ='Non-CO2 RF Calcs'!$S$23+('Non-CO2 RF Calcs'!$S$22-'Non-CO2 RF Calcs'!$S$23)*($O101-1)/9 -> -0.3343758254 | I101: ='Non-CO2 RF Calcs'!$S$25+('Non-CO2 RF Calcs'!$S$24-'Non-CO2 RF Calcs'!$S$25)*($O101-1)/9 -> 0.2065997457 | J101: 6.132318189 | K101: =CFfromRFin2100(J101) -> 0.5618826506 | L101: 3.445643199 | M101: 3.633502 | N101: -0.1878588014 | O101: =MitigationAggressiveness(D101,0) -> 7.556961676 | Q101: 5.108601 | R101: 0.826127 | S101: 0.428179 | T101: -0.322042 | U101: 6.504926 | W101: -0.06448843071 | X101: =R101-E101 -> 0.3258193821 | Y101: =S101-F101 -> 0.0480815255 | Z101: =T101-H101 -> 0.01233382544 | AA101: =U101-J101 -> 0.3726078109
A102: AIM/CGE 2.1 | B102: CD-LINKS_NDC2030i_1000 | C102: 432.744338 | D102: =CO2RFFromCO2PPM(C102) -> 2.461112451 | E102: ='Non-CO2 RF Calcs'!$S$17+('Non-CO2 RF Calcs'!$S$16-'Non-CO2 RF Calcs'!$S$17)*($O102-1)/9 -> 0.3937194538 | F102: ='Non-CO2 RF Calcs'!$S$19+('Non-CO2 RF Calcs'!$S$18-'Non-CO2 RF Calcs'!$S$19)*($O102-1)/9 -> 0.3515441764 | G102: ='Non-CO2 RF Calcs'!$S$21+('Non-CO2 RF Calcs'!$S$20-'Non-CO2 RF Calcs'!$S$21)*($O102-1)/9 -> 0.08095802352 | H102: ='Non-CO2 RF Calcs'!$S$23+('Non-CO2 RF Calcs'!$S$22-'Non-CO2 RF Calcs'!$S$23)*($O102-1)/9 -> -0.2566293767 | I102: ='Non-CO2 RF Calcs'!$S$25+('Non-CO2 RF Calcs'!$S$24-'Non-CO2 RF Calcs'!$S$25)*($O102-1)/9 -> 0.08095802352 | J102: 3.111662752 | K102: =CFfromRFin2100(J102) -> 0.5969670245 | L102: 1.857560054 | M102: 2.012016 | N102: -0.1544559458 | O102: =MitigationAggressiveness(D102,0) -> 9.179308161 | Q102: 2.435819 | R102: 0.483911 | S102: 0.377782 | T102: -0.024417 | U102: 3.385916 | W102: -0.02529345109 | X102: =R102-E102 -> 0.09019154619 | Y102: =S102-F102 -> 0.02623782364 | Z102: =T102-H102 -> 0.2322123767 | AA102: =U102-J102 -> 0.2742532484
A103: AIM/CGE 2.1 | B103: CD-LINKS_NoPolicy | C103: 789.728567 | D103: =CO2RFFromCO2PPM(C103) -> 6.059065716 | E103: ='Non-CO2 RF Calcs'!$S$17+('Non-CO2 RF Calcs'!$S$16-'Non-CO2 RF Calcs'!$S$17)*($O103-1)/9 -> 0.5183940041 | F103: ='Non-CO2 RF Calcs'!$S$19+('Non-CO2 RF Calcs'!$S$18-'Non-CO2 RF Calcs'!$S$19)*($O103-1)/9 -> 0.3849425338 | G103: ='Non-CO2 RF Calcs'!$S$21+('Non-CO2 RF Calcs'!$S$20-'Non-CO2 RF Calcs'!$S$21)*($O103-1)/9 -> 0.2279192303 | H103: ='Non-CO2 RF Calcs'!$S$23+('Non-CO2 RF Calcs'!$S$22-'Non-CO2 RF Calcs'!$S$23)*($O103-1)/9 -> -0.3475682124 | I103: ='Non-CO2 RF Calcs'!$S$25+('Non-CO2 RF Calcs'!$S$24-'Non-CO2 RF Calcs'!$S$25)*($O103-1)/9 -> 0.2279192303 | J103: 7.070672502 | K103: =CFfromRFin2100(J103) -> 0.5559655859 | L103: 3.93105058 | M103: 4.217969 | N103: -0.28691842 | O103: =MitigationAggressiveness(D103,0) -> 7.281674215 | Q103: 6.017933 | R103: 0.929545 | S103: 0.482783 | T103: -0.354106 | U103: 7.554477 | W103: -0.04113271581 | X103: =R103-E103 -> 0.4111509959 | Y103: =S103-F103 -> 0.09784046618 | Z103: =T103-H103 -> -0.006537787637 | AA103: =U103-J103 -> 0.4838044981
A104: AIM/CGE 2.1 | B104: CD-LINKS_NPi | C104: 757.433863 | D104: =CO2RFFromCO2PPM(C104) -> 5.809990525 | E104: ='Non-CO2 RF Calcs'!$S$17+('Non-CO2 RF Calcs'!$S$16-'Non-CO2 RF Calcs'!$S$17)*($O104-1)/9 -> 0.5141421795 | F104: ='Non-CO2 RF Calcs'!$S$19+('Non-CO2 RF Calcs'!$S$18-'Non-CO2 RF Calcs'!$S$19)*($O104-1)/9 -> 0.3838035367 | G104: ='Non-CO2 RF Calcs'!$S$21+('Non-CO2 RF Calcs'!$S$20-'Non-CO2 RF Calcs'!$S$21)*($O104-1)/9 -> 0.2229073552 | H104: ='Non-CO2 RF Calcs'!$S$23+('Non-CO2 RF Calcs'!$S$22-'Non-CO2 RF Calcs'!$S$23)*($O104-1)/9 -> -0.3444668899 | I104: ='Non-CO2 RF Calcs'!$S$25+('Non-CO2 RF Calcs'!$S$24-'Non-CO2 RF Calcs'!$S$25)*($O104-1)/9 -> 0.2229073552 | J104: 6.809284062 | K104: =CFfromRFin2100(J104) -> 0.557376555 | L104: 3.795335292 | M104: 4.316428 | N104: -0.5210927078 | O104: =MitigationAggressiveness(D104,0) -> 7.346389962 | Q104: 5.759691 | R104: 0.910907 | S104: 0.479133 | T104: -0.365987 | U104: 7.701758 | W104: -0.05029952502 | X104: =R104-E104 -> 0.3967648205 | Y104: =S104-F104 -> 0.09532946333 | Z104: =T104-H104 -> -0.02152011006 | AA104: =U104-J104 -> 0.8924739384
A105: AIM/CGE 2.1 | B105: CD-LINKS_NPi2020_1000 | C105: 431.196275 | D105: =CO2RFFromCO2PPM(C105) -> 2.441465132 | E105: ='Non-CO2 RF Calcs'!$S$17+('Non-CO2 RF Calcs'!$S$16-'Non-CO2 RF Calcs'!$S$17)*($O105-1)/9 -> 0.3926655059 | F105: ='Non-CO2 RF Calcs'!$S$19+('Non-CO2 RF Calcs'!$S$18-'Non-CO2 RF Calcs'!$S$19)*($O105-1)/9 -> 0.3512618402 | G105: ='Non-CO2 RF Calcs'!$S$21+('Non-CO2 RF Calcs'!$S$20-'Non-CO2 RF Calcs'!$S$21)*($O105-1)/9 -> 0.07971567332 | H105: ='Non-CO2 RF Calcs'!$S$23+('Non-CO2 RF Calcs'!$S$22-'Non-CO2 RF Calcs'!$S$23)*($O105-1)/9 -> -0.2558606168 | I105: ='Non-CO2 RF Calcs'!$S$25+('Non-CO2 RF Calcs'!$S$24-'Non-CO2 RF Calcs'!$S$25)*($O105-1)/9 -> 0.07971567332 | J105: 3.088963208 | K105: =CFfromRFin2100(J105) -> 0.5973233157 | L105: 1.845109746 | M105: 1.776776 | N105: 0.06833374563 | O105: =MitigationAggressiveness(D105,0) -> 9.195349986 | Q105: 2.412608 | R105: 0.302848 | S105: 0.2939 | T105: -0.032479 | U105: 3.033068 | W105: -0.02885713245 | X105: =R105-E105 -> -0.08981750593 | Y105: =S105-F105 -> -0.05736184025 | Z105: =T105-H105 -> 0.2233816168 | AA105: =U105-J105 -> -0.05589520848
A106: AIM/CGE 2.1 | B106: CD-LINKS_NPi2020_1600 | C106: 487.70286 | D106: =CO2RFFromCO2PPM(C106) -> 3.135989804 | E106: ='Non-CO2 RF Calcs'!$S$17+('Non-CO2 RF Calcs'!$S$16-'Non-CO2 RF Calcs'!$S$17)*($O106-1)/9 -> 0.4274614326 | F106: ='Non-CO2 RF Calcs'!$S$19+('Non-CO2 RF Calcs'!$S$18-'Non-CO2 RF Calcs'!$S$19)*($O106-1)/9 -> 0.3605831235 | G106: ='Non-CO2 RF Calcs'!$S$21+('Non-CO2 RF Calcs'!$S$20-'Non-CO2 RF Calcs'!$S$21)*($O106-1)/9 -> 0.1207316734 | H106: ='Non-CO2 RF Calcs'!$S$23+('Non-CO2 RF Calcs'!$S$22-'Non-CO2 RF Calcs'!$S$23)*($O106-1)/9 -> -0.2812411058 | I106: ='Non-CO2 RF Calcs'!$S$25+('Non-CO2 RF Calcs'!$S$24-'Non-CO2 RF Calcs'!$S$25)*($O106-1)/9 -> 0.1207316734 | J106: 3.884256601 | K106: =CFfromRFin2100(J106) -> 0.5856643843 | L106: 2.274870751 | M106: 2.393339 | N106: -0.1184682493 | O106: =MitigationAggressiveness(D106,0) -> 8.66573162 | Q106: 3.126884 | R106: 0.519938 | S106: 0.386871 | T106: -0.027745 | U106: 4.130579 | W106: -0.009105803733 | X106: =R106-E106 -> 0.09247656743 | Y106: =S106-F106 -> 0.02628787651 | Z106: =T106-H106 -> 0.2534961058 | AA106: =U106-J106 -> 0.2463223991
A107: AIM/CGE 2.1 | B107: CD-LINKS_NPi2020_400 | C107: 389.445487 | D107: =CO2RFFromCO2PPM(C107) -> 1.898408869 | E107: ='Non-CO2 RF Calcs'!$S$17+('Non-CO2 RF Calcs'!$S$16-'Non-CO2 RF Calcs'!$S$17)*($O107-1)/9 -> 0.3619299071 | F107: ='Non-CO2 RF Calcs'!$S$19+('Non-CO2 RF Calcs'!$S$18-'Non-CO2 RF Calcs'!$S$19)*($O107-1)/9 -> 0.3430282552 | G107: ='Non-CO2 RF Calcs'!$S$21+('Non-CO2 RF Calcs'!$S$20-'Non-CO2 RF Calcs'!$S$21)*($O107-1)/9 -> 0.04348581977 | H107: ='Non-CO2 RF Calcs'!$S$23+('Non-CO2 RF Calcs'!$S$22-'Non-CO2 RF Calcs'!$S$23)*($O107-1)/9 -> -0.2334417705 | I107: ='Non-CO2 RF Calcs'!$S$25+('Non-CO2 RF Calcs'!$S$24-'Non-CO2 RF Calcs'!$S$25)*($O107-1)/9 -> 0.04348581977 | J107: 2.4568969 | K107: =CFfromRFin2100(J107) -> 0.6077991837 | L107: 1.49329993 | M107: 1.375203 | N107: 0.1180969301 | O107: =MitigationAggressiveness(D107,0) -> 9.66316732 | Q107: 1.84888 | R107: 0.181342 | S107: 0.25397 | T107: -0.001642 | U107: 2.31641 | W107: -0.04952886871 | X107: =R107-E107 -> -0.1805879071 | Y107: =S107-F107 -> -0.08905825517 | Z107: =T107-H107 -> 0.2317997705 | AA107: =U107-J107 -> -0.1404869
A108: AIM/CGE 2.1 | B108: CO_Bridge | C108: 444.041621 | D108: =CO2RFFromCO2PPM(C108) -> 2.603434937 | E108: ='Non-CO2 RF Calcs'!$S$17+('Non-CO2 RF Calcs'!$S$16-'Non-CO2 RF Calcs'!$S$17)*($O108-1)/9 -> 0.4012330889 | F108: ='Non-CO2 RF Calcs'!$S$19+('Non-CO2 RF Calcs'!$S$18-'Non-CO2 RF Calcs'!$S$19)*($O108-1)/9 -> 0.3535569614 | G108: ='Non-CO2 RF Calcs'!$S$21+('Non-CO2 RF Calcs'!$S$20-'Non-CO2 RF Calcs'!$S$21)*($O108-1)/9 -> 0.08981478604 | H108: ='Non-CO2 RF Calcs'!$S$23+('Non-CO2 RF Calcs'!$S$22-'Non-CO2 RF Calcs'!$S$23)*($O108-1)/9 -> -0.2621098956 | I108: ='Non-CO2 RF Calcs'!$S$25+('Non-CO2 RF Calcs'!$S$24-'Non-CO2 RF Calcs'!$S$25)*($O108-1)/9 -> 0.08981478604 | J108: 3.275744664 | K108: =CFfromRFin2100(J108) -> 0.5944326995 | L108: 1.947209743 | M108: 1.680507 | N108: 0.2667027434 | O108: =MitigationAggressiveness(D108,0) -> 9.064945374 | Q108: 2.576026 | R108: 0.270831 | S108: 0.267074 | T108: -0.292905 | U108: 2.895674 | W108: -0.02740893684 | X108: =R108-E108 -> -0.1304020889 | Y108: =S108-F108 -> -0.08648296142 | Z108: =T108-H108 -> -0.03079510442 | AA108: =U108-J108 -> -0.3800706637
A109: AIM/CGE 2.1 | B109: CO_CurPol | C109: 702.533804 | D109: =CO2RFFromCO2PPM(C109) -> 5.351684688 | E109: ='Non-CO2 RF Calcs'!$S$17+('Non-CO2 RF Calcs'!$S$16-'Non-CO2 RF Calcs'!$S$17)*($O109-1)/9 -> 0.5046167128 | F109: ='Non-CO2 RF Calcs'!$S$19+('Non-CO2 RF Calcs'!$S$18-'Non-CO2 RF Calcs'!$S$19)*($O109-1)/9 -> 0.3812518135 | G109: ='Non-CO2 RF Calcs'!$S$21+('Non-CO2 RF Calcs'!$S$20-'Non-CO2 RF Calcs'!$S$21)*($O109-1)/9 -> 0.2116791288 | H109: ='Non-CO2 RF Calcs'!$S$23+('Non-CO2 RF Calcs'!$S$22-'Non-CO2 RF Calcs'!$S$23)*($O109-1)/9 -> -0.3375189214 | I109: ='Non-CO2 RF Calcs'!$S$25+('Non-CO2 RF Calcs'!$S$24-'Non-CO2 RF Calcs'!$S$25)*($O109-1)/9 -> 0.2116791288 | J109: 6.323392551 | K109: =CFfromRFin2100(J109) -> 0.5604862998 | L109: 3.544174893 | M109: 3.700062 | N109: -0.1558871068 | O109: =MitigationAggressiveness(D109,0) -> 7.491374234 | Q109: 5.288716 | R109: 0.877946 | S109: 0.464804 | T109: -0.49376 | U109: 6.585874 | W109: -0.06296868828 | X109: =R109-E109 -> 0.3733292872 | Y109: =S109-F109 -> 0.08355218652 | Z109: =T109-H109 -> -0.1562410786 | AA109: =U109-J109 -> 0.2624814493
A110: AIM/CGE 2.1 | B110: EMF33_Baseline | C110: 814.849877 | D110: =CO2RFFromCO2PPM(C110) -> 6.242304359 | E110: ='Non-CO2 RF Calcs'!$S$17+('Non-CO2 RF Calcs'!$S$16-'Non-CO2 RF Calcs'!$S$17)*($O110-1)/9 -> 0.521106095 | F110: ='Non-CO2 RF Calcs'!$S$19+('Non-CO2 RF Calcs'!$S$18-'Non-CO2 RF Calcs'!$S$19)*($O110-1)/9 -> 0.3856690605 | G110: ='Non-CO2 RF Calcs'!$S$21+('Non-CO2 RF Calcs'!$S$20-'Non-CO2 RF Calcs'!$S$21)*($O110-1)/9 -> 0.2311161309 | H110: ='Non-CO2 RF Calcs'!$S$23+('Non-CO2 RF Calcs'!$S$22-'Non-CO2 RF Calcs'!$S$23)*($O110-1)/9 -> -0.349546438 | I110: ='Non-CO2 RF Calcs'!$S$25+('Non-CO2 RF Calcs'!$S$24-'Non-CO2 RF Calcs'!$S$25)*($O110-1)/9 -> 0.2311161309 | J110: 7.261765338 | K110: =CFfromRFin2100(J110) -> 0.5550500217 | L110: 4.030643009 | M110: 4.260423 | N110: -0.2297799913 | O110: =MitigationAggressiveness(D110,0) -> 7.240394292 | Q110: 6.213233 | R110: 0.870102 | S110: 0.487188 | T110: -0.555213 | U110: 7.662146 | W110: -0.02907135907 | X110: =R110-E110 -> 0.348995905 | Y110: =S110-F110 -> 0.1015189395 | Z110: =T110-H110 -> -0.205666562 | AA110: =U110-J110 -> 0.4003806616
A111: AIM/CGE 2.1 | B111: EMF33_Med2C_cost100 | C111: 462.860625 | D111: =CO2RFFromCO2PPM(C111) -> 2.836385355 | E111: ='Non-CO2 RF Calcs'!$S$17+('Non-CO2 RF Calcs'!$S$16-'Non-CO2 RF Calcs'!$S$17)*($O111-1)/9 -> 0.4130723062 | F111: ='Non-CO2 RF Calcs'!$S$19+('Non-CO2 RF Calcs'!$S$18-'Non-CO2 RF Calcs'!$S$19)*($O111-1)/9 -> 0.3567285021 | G111: ='Non-CO2 RF Calcs'!$S$21+('Non-CO2 RF Calcs'!$S$20-'Non-CO2 RF Calcs'!$S$21)*($O111-1)/9 -> 0.103770366 | H111: ='Non-CO2 RF Calcs'!$S$23+('Non-CO2 RF Calcs'!$S$22-'Non-CO2 RF Calcs'!$S$23)*($O111-1)/9 -> -0.2707455364 | I111: ='Non-CO2 RF Calcs'!$S$25+('Non-CO2 RF Calcs'!$S$24-'Non-CO2 RF Calcs'!$S$25)*($O111-1)/9 -> 0.103770366 | J111: 3.542981359 | K111: =CFfromRFin2100(J111) -> 0.590459668 | L111: 2.091987597 | M111: 1.832802 | N111: 0.2591855966 | O111: =MitigationAggressiveness(D111,0) -> 8.884744198 | Q111: 2.816051 | R111: 0.322787 | S111: 0.300972 | T111: -0.35956 | U111: 3.220799 | W111: -0.02033435461 | X111: =R111-E111 -> -0.09028530619 | Y111: =S111-F111 -> -0.05575650212 | Z111: =T111-H111 -> -0.08881446362 | AA111: =U111-J111 -> -0.3221823585
A112: AIM/CGE 2.1 | B112: EMF33_Med2C_full | C112: 464.901743 | D112: =CO2RFFromCO2PPM(C112) -> 2.861340979 | E112: ='Non-CO2 RF Calcs'!$S$17+('Non-CO2 RF Calcs'!$S$16-'Non-CO2 RF Calcs'!$S$17)*($O112-1)/9 -> 0.4143068345 | F112: ='Non-CO2 RF Calcs'!$S$19+('Non-CO2 RF Calcs'!$S$18-'Non-CO2 RF Calcs'!$S$19)*($O112-1)/9 -> 0.3570592129 | G112: ='Non-CO2 RF Calcs'!$S$21+('Non-CO2 RF Calcs'!$S$20-'Non-CO2 RF Calcs'!$S$21)*($O112-1)/9 -> 0.105225577 | H112: ='Non-CO2 RF Calcs'!$S$23+('Non-CO2 RF Calcs'!$S$22-'Non-CO2 RF Calcs'!$S$23)*($O112-1)/9 -> -0.2716460134 | I112: ='Non-CO2 RF Calcs'!$S$25+('Non-CO2 RF Calcs'!$S$24-'Non-CO2 RF Calcs'!$S$25)*($O112-1)/9 -> 0.105225577 | J112: 3.571512167 | K112: =CFfromRFin2100(J112) -> 0.5900468139 | L112: 2.107359375 | M112: 1.853577 | N112: 0.2537823751 | O112: =MitigationAggressiveness(D112,0) -> 8.865953813 | Q112: 2.837812 | R112: 0.330819 | S112: 0.304105 | T112: -0.357355 | U112: 3.256906 | W112: -0.02352897922 | X112: =R112-E112 -> -0.08348783451 | Y112: =S112-F112 -> -0.0529542129 | Z112: =T112-H112 -> -0.0857089866 | AA112: =U112-J112 -> -0.3146061671
A113: AIM/CGE 2.1 | B113: EMF33_Med2C_nobeccs | C113: 459.929895 | D113: =CO2RFFromCO2PPM(C113) -> 2.800446747 | E113: ='Non-CO2 RF Calcs'!$S$17+('Non-CO2 RF Calcs'!$S$16-'Non-CO2 RF Calcs'!$S$17)*($O113-1)/9 -> 0.4112829723 | F113: ='Non-CO2 RF Calcs'!$S$19+('Non-CO2 RF Calcs'!$S$18-'Non-CO2 RF Calcs'!$S$19)*($O113-1)/9 -> 0.3562491676 | G113: ='Non-CO2 RF Calcs'!$S$21+('Non-CO2 RF Calcs'!$S$20-'Non-CO2 RF Calcs'!$S$21)*($O113-1)/9 -> 0.1016611732 | H113: ='Non-CO2 RF Calcs'!$S$23+('Non-CO2 RF Calcs'!$S$22-'Non-CO2 RF Calcs'!$S$23)*($O113-1)/9 -> -0.2694403788 | I113: ='Non-CO2 RF Calcs'!$S$25+('Non-CO2 RF Calcs'!$S$24-'Non-CO2 RF Calcs'!$S$25)*($O113-1)/9 -> 0.1016611732 | J113: 3.501860855 | K113: =CFfromRFin2100(J113) -> 0.5910585415 | L113: 2.069804769 | M113: 1.757461 | N113: 0.3123437694 | O113: =MitigationAggressiveness(D113,0) -> 8.911979112 | Q113: 2.780256 | R113: 0.264776 | S113: 0.284857 | T113: -0.351328 | U113: 3.091986 | W113: -0.02019074728 | X113: =R113-E113 -> -0.1465069723 | Y113: =S113-F113 -> -0.07139216762 | Z113: =T113-H113 -> -0.08188762124 | AA113: =U113-J113 -> -0.4098748548
A114: AIM/CGE 2.1 | B114: EMF33_Med2C_nofuel | C114: 457.696681 | D114: =CO2RFFromCO2PPM(C114) -> 2.772977515 | E114: ='Non-CO2 RF Calcs'!$S$17+('Non-CO2 RF Calcs'!$S$16-'Non-CO2 RF Calcs'!$S$17)*($O114-1)/9 -> 0.409906173 | F114: ='Non-CO2 RF Calcs'!$S$19+('Non-CO2 RF Calcs'!$S$18-'Non-CO2 RF Calcs'!$S$19)*($O114-1)/9 -> 0.3558803447 | G114: ='Non-CO2 RF Calcs'!$S$21+('Non-CO2 RF Calcs'!$S$20-'Non-CO2 RF Calcs'!$S$21)*($O114-1)/9 -> 0.1000382591 | H114: ='Non-CO2 RF Calcs'!$S$23+('Non-CO2 RF Calcs'!$S$22-'Non-CO2 RF Calcs'!$S$23)*($O114-1)/9 -> -0.2684361279 | I114: ='Non-CO2 RF Calcs'!$S$25+('Non-CO2 RF Calcs'!$S$24-'Non-CO2 RF Calcs'!$S$25)*($O114-1)/9 -> 0.1000382591 | J114: 3.470404423 | K114: =CFfromRFin2100(J114) -> 0.5915197303 | L114: 2.052812688 | M114: 1.73416 | N114: 0.3186526885 | O114: =MitigationAggressiveness(D114,0) -> 8.932934962 | Q114: 2.754655 | R114: 0.256672 | S114: 0.285604 | T114: -0.352104 | U114: 3.063616 | W114: -0.01832251535 | X114: =R114-E114 -> -0.153234173 | Y114: =S114-F114 -> -0.07027634468 | Z114: =T114-H114 -> -0.0836678721 | AA114: =U114-J114 -> -0.4067884233
A115: AIM/CGE 2.1 | B115: EMF33_Med2C_none | C115: 458.161713 | D115: =CO2RFFromCO2PPM(C115) -> 2.778703547 | E115: ='Non-CO2 RF Calcs'!$S$17+('Non-CO2 RF Calcs'!$S$16-'Non-CO2 RF Calcs'!$S$17)*($O115-1)/9 -> 0.410193824 | F115: ='Non-CO2 RF Calcs'!$S$19+('Non-CO2 RF Calcs'!$S$18-'Non-CO2 RF Calcs'!$S$19)*($O115-1)/9 -> 0.3559574019 | G115: ='Non-CO2 RF Calcs'!$S$21+('Non-CO2 RF Calcs'!$S$20-'Non-CO2 RF Calcs'!$S$21)*($O115-1)/9 -> 0.1003773301 | H115: ='Non-CO2 RF Calcs'!$S$23+('Non-CO2 RF Calcs'!$S$22-'Non-CO2 RF Calcs'!$S$23)*($O115-1)/9 -> -0.2686459433 | I115: ='Non-CO2 RF Calcs'!$S$25+('Non-CO2 RF Calcs'!$S$24-'Non-CO2 RF Calcs'!$S$25)*($O115-1)/9 -> 0.1003773301 | J115: 3.47696349 | K115: =CFfromRFin2100(J115) -> 0.5914233476 | L115: 2.056357386 | M115: 1.724553 | N115: 0.3318043864 | O115: =MitigationAggressiveness(D115,0) -> 8.928556713 | Q115: 2.762437 | R115: 0.246915 | S115: 0.278215 | T115: -0.342304 | U115: 3.042826 | W115: -0.01626654689 | X115: =R115-E115 -> -0.163278824 | Y115: =S115-F115 -> -0.07774240185 | Z115: =T115-H115 -> -0.07365805669 | AA115: =U115-J115 -> -0.4341374897
A116: AIM/CGE 2.1 | B116: EMF33_tax_hi_full | C116: 467.567734 | D116: =CO2RFFromCO2PPM(C116) -> 2.89384513 | E116: ='Non-CO2 RF Calcs'!$S$17+('Non-CO2 RF Calcs'!$S$16-'Non-CO2 RF Calcs'!$S$17)*($O116-1)/9 -> 0.4159049754 | F116: ='Non-CO2 RF Calcs'!$S$19+('Non-CO2 RF Calcs'!$S$18-'Non-CO2 RF Calcs'!$S$19)*($O116-1)/9 -> 0.3574873298 | G116: ='Non-CO2 RF Calcs'!$S$21+('Non-CO2 RF Calcs'!$S$20-'Non-CO2 RF Calcs'!$S$21)*($O116-1)/9 -> 0.1071093994 | H116: ='Non-CO2 RF Calcs'!$S$23+('Non-CO2 RF Calcs'!$S$22-'Non-CO2 RF Calcs'!$S$23)*($O116-1)/9 -> -0.272811713 | I116: ='Non-CO2 RF Calcs'!$S$25+('Non-CO2 RF Calcs'!$S$24-'Non-CO2 RF Calcs'!$S$25)*($O116-1)/9 -> 0.1071093994 | J116: 3.608644521 | K116: =CFfromRFin2100(J116) -> 0.5895127612 | L116: 2.127341996 | M116: 1.913559 | N116: 0.2137829956 | O116: =MitigationAggressiveness(D116,0) -> 8.84162899 | Q116: 2.865379 | R116: 0.260824 | S116: 0.300278 | T116: -0.330517 | U116: 3.265048 | W116: -0.02846612989 | X116: =R116-E116 -> -0.1550809754 | Y116: =S116-F116 -> -0.05720932978 | Z116: =T116-H116 -> -0.05770528702 | AA116: =U116-J116 -> -0.3435965208
A117: AIM/CGE 2.1 | B117: EMF33_tax_hi_none | C117: 493.058227 | D117: =CO2RFFromCO2PPM(C117) -> 3.19939853 | E117: ='Non-CO2 RF Calcs'!$S$17+('Non-CO2 RF Calcs'!$S$16-'Non-CO2 RF Calcs'!$S$17)*($O117-1)/9 -> 0.4303859266 | F117: ='Non-CO2 RF Calcs'!$S$19+('Non-CO2 RF Calcs'!$S$18-'Non-CO2 RF Calcs'!$S$19)*($O117-1)/9 -> 0.3613665496 | G117: ='Non-CO2 RF Calcs'!$S$21+('Non-CO2 RF Calcs'!$S$20-'Non-CO2 RF Calcs'!$S$21)*($O117-1)/9 -> 0.1241789461 | H117: ='Non-CO2 RF Calcs'!$S$23+('Non-CO2 RF Calcs'!$S$22-'Non-CO2 RF Calcs'!$S$23)*($O117-1)/9 -> -0.2833742603 | I117: ='Non-CO2 RF Calcs'!$S$25+('Non-CO2 RF Calcs'!$S$24-'Non-CO2 RF Calcs'!$S$25)*($O117-1)/9 -> 0.1241789461 | J117: 3.956134638 | K117: =CFfromRFin2100(J117) -> 0.5846942439 | L117: 2.313129151 | M117: 2.028423 | N117: 0.2847061512 | O117: =MitigationAggressiveness(D117,0) -> 8.621218774 | Q117: 3.17583 | R117: 0.267147 | S117: 0.302509 | T117: -0.303635 | U117: 3.508857 | W117: -0.02356853029 | X117: =R117-E117 -> -0.1632389266 | Y117: =S117-F117 -> -0.05885754958 | Z117: =T117-H117 -> -0.02026073967 | AA117: =U117-J117 -> -0.4472776383
A118: AIM/CGE 2.1 | B118: EMF33_tax_lo_full | C118: 555.427087 | D118: =CO2RFFromCO2PPM(C118) -> 3.907078044 | E118: ='Non-CO2 RF Calcs'!$S$17+('Non-CO2 RF Calcs'!$S$16-'Non-CO2 RF Calcs'!$S$17)*($O118-1)/9 -> 0.4601602877 | F118: ='Non-CO2 RF Calcs'!$S$19+('Non-CO2 RF Calcs'!$S$18-'Non-CO2 RF Calcs'!$S$19)*($O118-1)/9 -> 0.3693426341 | G118: ='Non-CO2 RF Calcs'!$S$21+('Non-CO2 RF Calcs'!$S$20-'Non-CO2 RF Calcs'!$S$21)*($O118-1)/9 -> 0.1592757323 | H118: ='Non-CO2 RF Calcs'!$S$23+('Non-CO2 RF Calcs'!$S$22-'Non-CO2 RF Calcs'!$S$23)*($O118-1)/9 -> -0.3050919704 | I118: ='Non-CO2 RF Calcs'!$S$25+('Non-CO2 RF Calcs'!$S$24-'Non-CO2 RF Calcs'!$S$25)*($O118-1)/9 -> 0.1592757323 | J118: 4.75004046 | K118: =CFfromRFin2100(J118) -> 0.5749006065 | L118: 2.730801141 | M118: 2.525963 | N118: 0.2048381411 | O118: =MitigationAggressiveness(D118,0) -> 8.168032151 | Q118: 3.873936 | R118: 0.349222 | S118: 0.333295 | T118: -0.347806 | U118: 4.392922 | W118: -0.03314204378 | X118: =R118-E118 -> -0.1109382877 | Y118: =S118-F118 -> -0.03604763415 | Z118: =T118-H118 -> -0.04271402962 | AA118: =U118-J118 -> -0.3571184599
A119: AIM/CGE 2.1 | B119: EMF33_tax_lo_none | C119: 578.845501 | D119: =CO2RFFromCO2PPM(C119) -> 4.158158699 | E119: ='Non-CO2 RF Calcs'!$S$17+('Non-CO2 RF Calcs'!$S$16-'Non-CO2 RF Calcs'!$S$17)*($O119-1)/9 -> 0.4694602875 | F119: ='Non-CO2 RF Calcs'!$S$19+('Non-CO2 RF Calcs'!$S$18-'Non-CO2 RF Calcs'!$S$19)*($O119-1)/9 -> 0.3718339583 | G119: ='Non-CO2 RF Calcs'!$S$21+('Non-CO2 RF Calcs'!$S$20-'Non-CO2 RF Calcs'!$S$21)*($O119-1)/9 -> 0.1702381877 | H119: ='Non-CO2 RF Calcs'!$S$23+('Non-CO2 RF Calcs'!$S$22-'Non-CO2 RF Calcs'!$S$23)*($O119-1)/9 -> -0.3118754811 | I119: ='Non-CO2 RF Calcs'!$S$25+('Non-CO2 RF Calcs'!$S$24-'Non-CO2 RF Calcs'!$S$25)*($O119-1)/9 -> 0.1702381877 | J119: 5.028053839 | K119: =CFfromRFin2100(J119) -> 0.5718706566 | L119: 2.87539645 | M119: 2.658342 | N119: 0.2170544504 | O119: =MitigationAggressiveness(D119,0) -> 8.026479642 | Q119: 4.115904 | R119: 0.352915 | S119: 0.33557 | T119: -0.334494 | U119: 4.651284 | W119: -0.04225469863 | X119: =R119-E119 -> -0.1165452875 | Y119: =S119-F119 -> -0.0362639583 | Z119: =T119-H119 -> -0.02261851885 | AA119: =U119-J119 -> -0.3767698387
A120: AIM/CGE 2.1 | B120: EMF33_WB2C_cost100 | C120: 411.362866 | D120: =CO2RFFromCO2PPM(C120) -> 2.186658043 | E120: ='Non-CO2 RF Calcs'!$S$17+('Non-CO2 RF Calcs'!$S$16-'Non-CO2 RF Calcs'!$S$17)*($O120-1)/9 -> 0.3786296647 | F120: ='Non-CO2 RF Calcs'!$S$19+('Non-CO2 RF Calcs'!$S$18-'Non-CO2 RF Calcs'!$S$19)*($O120-1)/9 -> 0.3475018584 | G120: ='Non-CO2 RF Calcs'!$S$21+('Non-CO2 RF Calcs'!$S$20-'Non-CO2 RF Calcs'!$S$21)*($O120-1)/9 -> 0.06317080386 | H120: ='Non-CO2 RF Calcs'!$S$23+('Non-CO2 RF Calcs'!$S$22-'Non-CO2 RF Calcs'!$S$23)*($O120-1)/9 -> -0.245622737 | I120: ='Non-CO2 RF Calcs'!$S$25+('Non-CO2 RF Calcs'!$S$24-'Non-CO2 RF Calcs'!$S$25)*($O120-1)/9 -> 0.06317080386 | J120: 2.793508437 | K120: =CFfromRFin2100(J120) -> 0.6020868164 | L120: 1.681934601 | M120: 1.392183 | N120: 0.2897516013 | O120: =MitigationAggressiveness(D120,0) -> 9.408985316 | Q120: 2.156248 | R120: 0.231559 | S120: 0.267059 | T120: -0.349006 | U120: 2.420104 | W120: -0.03041004301 | X120: =R120-E120 -> -0.1470706647 | Y120: =S120-F120 -> -0.08044285844 | Z120: =T120-H120 -> -0.103383263 | AA120: =U120-J120 -> -0.3734044369
A121: AIM/CGE 2.1 | B121: EMF33_WB2C_full | C121: 415.509666 | D121: =CO2RFFromCO2PPM(C121) -> 2.240407552 | E121: ='Non-CO2 RF Calcs'!$S$17+('Non-CO2 RF Calcs'!$S$16-'Non-CO2 RF Calcs'!$S$17)*($O121-1)/9 -> 0.3816471464 | F121: ='Non-CO2 RF Calcs'!$S$19+('Non-CO2 RF Calcs'!$S$18-'Non-CO2 RF Calcs'!$S$19)*($O121-1)/9 -> 0.3483101945 | G121: ='Non-CO2 RF Calcs'!$S$21+('Non-CO2 RF Calcs'!$S$20-'Non-CO2 RF Calcs'!$S$21)*($O121-1)/9 -> 0.06672768651 | H121: ='Non-CO2 RF Calcs'!$S$23+('Non-CO2 RF Calcs'!$S$22-'Non-CO2 RF Calcs'!$S$23)*($O121-1)/9 -> -0.2478237176 | I121: ='Non-CO2 RF Calcs'!$S$25+('Non-CO2 RF Calcs'!$S$24-'Non-CO2 RF Calcs'!$S$25)*($O121-1)/9 -> 0.06672768651 | J121: 2.855996548 | K121: =CFfromRFin2100(J121) -> 0.6010598234 | L121: 1.716624781 | M121: 1.444244 | N121: 0.2723807809 | O121: =MitigationAggressiveness(D121,0) -> 9.363057133 | Q121: 2.212348 | R121: 0.253244 | S121: 0.274579 | T121: -0.350093 | U121: 2.512118 | W121: -0.02805955183 | X121: =R121-E121 -> -0.1284031464 | Y121: =S121-F121 -> -0.07373119447 | Z121: =T121-H121 -> -0.1022692824 | AA121: =U121-J121 -> -0.3438785481
A122: AIM/CGE 2.1 | B122: TERL_15D_LowCarbonTransportPolicy | C122: 394.689308 | D122: =CO2RFFromCO2PPM(C122) -> 1.968010811 | E122: ='Non-CO2 RF Calcs'!$S$17+('Non-CO2 RF Calcs'!$S$16-'Non-CO2 RF Calcs'!$S$17)*($O122-1)/9 -> 0.3660421992 | F122: ='Non-CO2 RF Calcs'!$S$19+('Non-CO2 RF Calcs'!$S$18-'Non-CO2 RF Calcs'!$S$19)*($O122-1)/9 -> 0.3441298738 | G122: ='Non-CO2 RF Calcs'!$S$21+('Non-CO2 RF Calcs'!$S$20-'Non-CO2 RF Calcs'!$S$21)*($O122-1)/9 -> 0.04833321974 | H122: ='Non-CO2 RF Calcs'!$S$23+('Non-CO2 RF Calcs'!$S$22-'Non-CO2 RF Calcs'!$S$23)*($O122-1)/9 -> -0.2364413166 | I122: ='Non-CO2 RF Calcs'!$S$25+('Non-CO2 RF Calcs'!$S$24-'Non-CO2 RF Calcs'!$S$25)*($O122-1)/9 -> 0.04833321974 | J122: 2.538408007 | K122: =CFfromRFin2100(J122) -> 0.6063880392 | L122: 1.539260254 | M122: 1.32455 | N122: 0.2147102541 | O122: =MitigationAggressiveness(D122,0) -> 9.600575355 | Q122: 1.914985 | R122: 0.249026 | S122: 0.27603 | T122: -0.301502 | U122: 2.223912 | W122: -0.05302581109 | X122: =R122-E122 -> -0.1170161992 | Y122: =S122-F122 -> -0.06809987375 | Z122: =T122-H122 -> -0.0650606834 | AA122: =U122-J122 -> -0.3144960069
A123: AIM/CGE 2.1 | B123: TERL_15D_NoTransportPolicy | C123: 398.879497 | D123: =CO2RFFromCO2PPM(C123) -> 2.023339677 | E123: ='Non-CO2 RF Calcs'!$S$17+('Non-CO2 RF Calcs'!$S$16-'Non-CO2 RF Calcs'!$S$17)*($O123-1)/9 -> 0.3692749066 | F123: ='Non-CO2 RF Calcs'!$S$19+('Non-CO2 RF Calcs'!$S$18-'Non-CO2 RF Calcs'!$S$19)*($O123-1)/9 -> 0.3449958654 | G123: ='Non-CO2 RF Calcs'!$S$21+('Non-CO2 RF Calcs'!$S$20-'Non-CO2 RF Calcs'!$S$21)*($O123-1)/9 -> 0.05214380167 | H123: ='Non-CO2 RF Calcs'!$S$23+('Non-CO2 RF Calcs'!$S$22-'Non-CO2 RF Calcs'!$S$23)*($O123-1)/9 -> -0.238799285 | I123: ='Non-CO2 RF Calcs'!$S$25+('Non-CO2 RF Calcs'!$S$24-'Non-CO2 RF Calcs'!$S$25)*($O123-1)/9 -> 0.05214380167 | J123: 2.603098767 | K123: =CFfromRFin2100(J123) -> 0.6052807767 | L123: 1.575605644 | M123: 1.328267 | N123: 0.2473386438 | O123: =MitigationAggressiveness(D123,0) -> 9.551371284 | Q123: 1.980778 | R123: 0.209045 | S123: 0.2694 | T123: -0.29125 | U123: 2.224064 | W123: -0.04256167708 | X123: =R123-E123 -> -0.1602299066 | Y123: =S123-F123 -> -0.0755958654 | Z123: =T123-H123 -> -0.05245071498 | AA123: =U123-J123 -> -0.3790347674
A124: AIM/CGE 2.1 | B124: TERL_2D_LowCarbonTransportPolicy | C124: 430.43663 | D124: =CO2RFFromCO2PPM(C124) -> 2.431811285 | E124: ='Non-CO2 RF Calcs'!$S$17+('Non-CO2 RF Calcs'!$S$16-'Non-CO2 RF Calcs'!$S$17)*($O124-1)/9 -> 0.3921461562 | F124: ='Non-CO2 RF Calcs'!$S$19+('Non-CO2 RF Calcs'!$S$18-'Non-CO2 RF Calcs'!$S$19)*($O124-1)/9 -> 0.3511227146 | G124: ='Non-CO2 RF Calcs'!$S$21+('Non-CO2 RF Calcs'!$S$20-'Non-CO2 RF Calcs'!$S$21)*($O124-1)/9 -> 0.07910348537 | H124: ='Non-CO2 RF Calcs'!$S$23+('Non-CO2 RF Calcs'!$S$22-'Non-CO2 RF Calcs'!$S$23)*($O124-1)/9 -> -0.255481798 | I124: ='Non-CO2 RF Calcs'!$S$25+('Non-CO2 RF Calcs'!$S$24-'Non-CO2 RF Calcs'!$S$25)*($O124-1)/9 -> 0.07910348537 | J124: 3.077805328 | K124: =CFfromRFin2100(J124) -> 0.5974989559 | L124: 1.83898547 | M124: 1.795302 | N124: 0.04368347018 | O124: =MitigationAggressiveness(D124,0) -> 9.203254852 | Q124: 2.39551 | R124: 0.306784 | S124: 0.297492 | T124: -0.283838 | U124: 3.060971 | W124: -0.03630128485 | X124: =R124-E124 -> -0.08536215624 | Y124: =S124-F124 -> -0.05363071461 | Z124: =T124-H124 -> -0.02835620195 | AA124: =U124-J124 -> -0.01683432839
A125: AIM/CGE 2.1 | B125: TERL_2D_NoTransportPolicy | C125: 435.954617 | D125: =CO2RFFromCO2PPM(C125) -> 2.501744546 | E125: ='Non-CO2 RF Calcs'!$S$17+('Non-CO2 RF Calcs'!$S$16-'Non-CO2 RF Calcs'!$S$17)*($O125-1)/9 -> 0.395886237 | F125: ='Non-CO2 RF Calcs'!$S$19+('Non-CO2 RF Calcs'!$S$18-'Non-CO2 RF Calcs'!$S$19)*($O125-1)/9 -> 0.3521246236 | G125: ='Non-CO2 RF Calcs'!$S$21+('Non-CO2 RF Calcs'!$S$20-'Non-CO2 RF Calcs'!$S$21)*($O125-1)/9 -> 0.08351213793 | H125: ='Non-CO2 RF Calcs'!$S$23+('Non-CO2 RF Calcs'!$S$22-'Non-CO2 RF Calcs'!$S$23)*($O125-1)/9 -> -0.2582098495 | I125: ='Non-CO2 RF Calcs'!$S$25+('Non-CO2 RF Calcs'!$S$24-'Non-CO2 RF Calcs'!$S$25)*($O125-1)/9 -> 0.08351213793 | J125: 3.158569833 | K125: =CFfromRFin2100(J125) -> 0.5962351512 | L125: 1.883250362 | M125: 1.811416 | N125: 0.07183436198 | O125: =MitigationAggressiveness(D125,0) -> 9.146328205 | Q125: 2.473259 | R125: 0.273773 | S125: 0.295421 | T125: -0.285558 | U125: 3.08041 | W125: -0.02848554586 | X125: =R125-E125 -> -0.122113237 | Y125: =S125-F125 -> -0.0567036236 | Z125: =T125-H125 -> -0.02734815052 | AA125: =U125-J125 -> -0.07815983278
A126: AIM/CGE 2.1 | B126: TERL_Baseline_LowCarbonTransportPolicy | C126: 740.216091 | D126: =CO2RFFromCO2PPM(C126) -> 5.670984686 | E126: ='Non-CO2 RF Calcs'!$S$17+('Non-CO2 RF Calcs'!$S$16-'Non-CO2 RF Calcs'!$S$17)*($O126-1)/9 -> 0.5114860824 | F126: ='Non-CO2 RF Calcs'!$S$19+('Non-CO2 RF Calcs'!$S$18-'Non-CO2 RF Calcs'!$S$19)*($O126-1)/9 -> 0.3830920099 | G126: ='Non-CO2 RF Calcs'!$S$21+('Non-CO2 RF Calcs'!$S$20-'Non-CO2 RF Calcs'!$S$21)*($O126-1)/9 -> 0.2197764577 | H126: ='Non-CO2 RF Calcs'!$S$23+('Non-CO2 RF Calcs'!$S$22-'Non-CO2 RF Calcs'!$S$23)*($O126-1)/9 -> -0.3425295068 | I126: ='Non-CO2 RF Calcs'!$S$25+('Non-CO2 RF Calcs'!$S$24-'Non-CO2 RF Calcs'!$S$25)*($O126-1)/9 -> 0.2197764577 | J126: 6.662586187 | K126: =CFfromRFin2100(J126) -> 0.5582487064 | L126: 3.71938012 | M126: 3.935861 | N126: -0.2164808798 | O126: =MitigationAggressiveness(D126,0) -> 7.386817619 | Q126: 5.614219 | R126: 0.910785 | S126: 0.471846 | T126: -0.45909 | U126: 7.042366 | W126: -0.05676568576 | X126: =R126-E126 -> 0.3992989176 | Y126: =S126-F126 -> 0.0887539901 | Z126: =T126-H126 -> -0.1165604932 | AA126: =U126-J126 -> 0.3797798132
A127: AIM/CGE 2.1 | B127: TERL_Baseline_NoTransportPolicy | C127: 771.5129 | D127: =CO2RFFromCO2PPM(C127) -> 5.92044504 | E127: ='Non-CO2 RF Calcs'!$S$17+('Non-CO2 RF Calcs'!$S$16-'Non-CO2 RF Calcs'!$S$17)*($O127-1)/9 -> 0.5161080691 | F127: ='Non-CO2 RF Calcs'!$S$19+('Non-CO2 RF Calcs'!$S$18-'Non-CO2 RF Calcs'!$S$19)*($O127-1)/9 -> 0.3843301677 | G127: ='Non-CO2 RF Calcs'!$S$21+('Non-CO2 RF Calcs'!$S$20-'Non-CO2 RF Calcs'!$S$21)*($O127-1)/9 -> 0.2252246646 | H127: ='Non-CO2 RF Calcs'!$S$23+('Non-CO2 RF Calcs'!$S$22-'Non-CO2 RF Calcs'!$S$23)*($O127-1)/9 -> -0.345900829 | I127: ='Non-CO2 RF Calcs'!$S$25+('Non-CO2 RF Calcs'!$S$24-'Non-CO2 RF Calcs'!$S$25)*($O127-1)/9 -> 0.2252246646 | J127: 6.925431777 | K127: =CFfromRFin2100(J127) -> 0.5567269703 | L127: 3.855574651 | M127: 4.083424 | N127: -0.2278493488 | O127: =MitigationAggressiveness(D127,0) -> 7.316467746 | Q127: 5.868872 | R127: 0.911349 | S127: 0.478207 | T127: -0.468713 | U127: 7.317544 | W127: -0.05157303988 | X127: =R127-E127 -> 0.3952409309 | Y127: =S127-F127 -> 0.09387683233 | Z127: =T127-H127 -> -0.122812171 | AA127: =U127-J127 -> 0.3921122232
A128: AIM/CGE 2.2 | B128: EN_INDCi2030_1000f | C128: 446.337713 | D128: =CO2RFFromCO2PPM(C128) -> 2.63213351 | E128: ='Non-CO2 RF Calcs'!$S$17+('Non-CO2 RF Calcs'!$S$16-'Non-CO2 RF Calcs'!$S$17)*($O128-1)/9 -> 0.402722407 | F128: ='Non-CO2 RF Calcs'!$S$19+('Non-CO2 RF Calcs'!$S$18-'Non-CO2 RF Calcs'!$S$19)*($O128-1)/9 -> 0.3539559264 | G128: ='Non-CO2 RF Calcs'!$S$21+('Non-CO2 RF Calcs'!$S$20-'Non-CO2 RF Calcs'!$S$21)*($O128-1)/9 -> 0.09157033261 | H128: ='Non-CO2 RF Calcs'!$S$23+('Non-CO2 RF Calcs'!$S$22-'Non-CO2 RF Calcs'!$S$23)*($O128-1)/9 -> -0.2631962187 | I128: ='Non-CO2 RF Calcs'!$S$25+('Non-CO2 RF Calcs'!$S$24-'Non-CO2 RF Calcs'!$S$25)*($O128-1)/9 -> 0.09157033261 | J128: 3.30875629 | K128: =CFfromRFin2100(J128) -> 0.593931544 | L128: 1.965174732 | M128: 1.849259 | N128: 0.1159157317 | O128: =MitigationAggressiveness(D128,0) -> 9.04227691 | Q128: 2.596101 | R128: 0.33493 | S128: 0.314562 | T128: -0.203044 | U128: 3.089245 | W128: -0.03603250972 | X128: =R128-E128 -> -0.06779240699 | Y128: =S128-F128 -> -0.03939392638 | Z128: =T128-H128 -> 0.06015221873 | AA128: =U128-J128 -> -0.2195112896
A129: AIM/CGE 2.2 | B129: EN_INDCi2030_1200 | C129: 464.116687 | D129: =CO2RFFromCO2PPM(C129) -> 2.851749718 | E129: ='Non-CO2 RF Calcs'!$S$17+('Non-CO2 RF Calcs'!$S$16-'Non-CO2 RF Calcs'!$S$17)*($O129-1)/9 -> 0.4138331386 | F129: ='Non-CO2 RF Calcs'!$S$19+('Non-CO2 RF Calcs'!$S$18-'Non-CO2 RF Calcs'!$S$19)*($O129-1)/9 -> 0.3569323172 | G129: ='Non-CO2 RF Calcs'!$S$21+('Non-CO2 RF Calcs'!$S$20-'Non-CO2 RF Calcs'!$S$21)*($O129-1)/9 -> 0.1046672038 | H129: ='Non-CO2 RF Calcs'!$S$23+('Non-CO2 RF Calcs'!$S$22-'Non-CO2 RF Calcs'!$S$23)*($O129-1)/9 -> -0.271300495 | I129: ='Non-CO2 RF Calcs'!$S$25+('Non-CO2 RF Calcs'!$S$24-'Non-CO2 RF Calcs'!$S$25)*($O129-1)/9 -> 0.1046672038 | J129: 3.560549087 | K129: =CFfromRFin2100(J129) -> 0.5902051965 | L129: 2.101454573 | M129: 1.961281 | N129: 0.1401735735 | O129: =MitigationAggressiveness(D129,0) -> 8.873163796 | Q129: 2.825682 | R129: 0.3494 | S129: 0.318759 | T129: -0.214843 | U129: 3.329007 | W129: -0.02606771833 | X129: =R129-E129 -> -0.06443313863 | Y129: =S129-F129 -> -0.0381733172 | Z129: =T129-H129 -> 0.05645749499 | AA129: =U129-J129 -> -0.2315420868
A130: AIM/CGE 2.2 | B130: EN_INDCi2030_1200f | C130: 460.45411 | D130: =CO2RFFromCO2PPM(C130) -> 2.806884222 | E130: ='Non-CO2 RF Calcs'!$S$17+('Non-CO2 RF Calcs'!$S$16-'Non-CO2 RF Calcs'!$S$17)*($O130-1)/9 -> 0.4116044824 | F130: ='Non-CO2 RF Calcs'!$S$19+('Non-CO2 RF Calcs'!$S$18-'Non-CO2 RF Calcs'!$S$19)*($O130-1)/9 -> 0.3563352951 | G130: ='Non-CO2 RF Calcs'!$S$21+('Non-CO2 RF Calcs'!$S$20-'Non-CO2 RF Calcs'!$S$21)*($O130-1)/9 -> 0.1020401559 | H130: ='Non-CO2 RF Calcs'!$S$23+('Non-CO2 RF Calcs'!$S$22-'Non-CO2 RF Calcs'!$S$23)*($O130-1)/9 -> -0.2696748913 | I130: ='Non-CO2 RF Calcs'!$S$25+('Non-CO2 RF Calcs'!$S$24-'Non-CO2 RF Calcs'!$S$25)*($O130-1)/9 -> 0.1020401559 | J130: 3.50922942 | K130: =CFfromRFin2100(J130) -> 0.5909508932 | L130: 2.07378226 | M130: 1.954925 | N130: 0.1188572602 | O130: =MitigationAggressiveness(D130,0) -> 8.907085505 | Q130: 2.775284 | R130: 0.334577 | S130: 0.31861 | T130: -0.200862 | U130: 3.275822 | W130: -0.03160022205 | X130: =R130-E130 -> -0.07702748235 | Y130: =S130-F130 -> -0.03772529512 | Z130: =T130-H130 -> 0.06881289132 | AA130: =U130-J130 -> -0.2334074201
A131: AIM/CGE 2.2 | B131: EN_INDCi2030_1400 | C131: 479.247608 | D131: =CO2RFFromCO2PPM(C131) -> 3.035026777 | E131: ='Non-CO2 RF Calcs'!$S$17+('Non-CO2 RF Calcs'!$S$16-'Non-CO2 RF Calcs'!$S$17)*($O131-1)/9 -> 0.4227177612 | F131: ='Non-CO2 RF Calcs'!$S$19+('Non-CO2 RF Calcs'!$S$18-'Non-CO2 RF Calcs'!$S$19)*($O131-1)/9 -> 0.3593123683 | G131: ='Non-CO2 RF Calcs'!$S$21+('Non-CO2 RF Calcs'!$S$20-'Non-CO2 RF Calcs'!$S$21)*($O131-1)/9 -> 0.1151400297 | H131: ='Non-CO2 RF Calcs'!$S$23+('Non-CO2 RF Calcs'!$S$22-'Non-CO2 RF Calcs'!$S$23)*($O131-1)/9 -> -0.2777810256 | I131: ='Non-CO2 RF Calcs'!$S$25+('Non-CO2 RF Calcs'!$S$24-'Non-CO2 RF Calcs'!$S$25)*($O131-1)/9 -> 0.1151400297 | J131: 3.769555941 | K131: =CFfromRFin2100(J131) -> 0.5872412015 | L131: 2.21363856 | M131: 2.075716 | N131: 0.1379225597 | O131: =MitigationAggressiveness(D131,0) -> 8.737933619 | Q131: 3.008617 | R131: 0.349182 | S131: 0.323441 | T131: -0.211066 | U131: 3.518596 | W131: -0.02640977713 | X131: =R131-E131 -> -0.07353576122 | Y131: =S131-F131 -> -0.0358713683 | Z131: =T131-H131 -> 0.06671502556 | AA131: =U131-J131 -> -0.2509599405
A132: AIM/CGE 2.2 | B132: EN_INDCi2030_1400f | C132: 477.913635 | D132: =CO2RFFromCO2PPM(C132) -> 3.019002821 | E132: ='Non-CO2 RF Calcs'!$S$17+('Non-CO2 RF Calcs'!$S$16-'Non-CO2 RF Calcs'!$S$17)*($O132-1)/9 -> 0.4219550464 | F132: ='Non-CO2 RF Calcs'!$S$19+('Non-CO2 RF Calcs'!$S$18-'Non-CO2 RF Calcs'!$S$19)*($O132-1)/9 -> 0.359108049 | G132: ='Non-CO2 RF Calcs'!$S$21+('Non-CO2 RF Calcs'!$S$20-'Non-CO2 RF Calcs'!$S$21)*($O132-1)/9 -> 0.1142409731 | H132: ='Non-CO2 RF Calcs'!$S$23+('Non-CO2 RF Calcs'!$S$22-'Non-CO2 RF Calcs'!$S$23)*($O132-1)/9 -> -0.2772246939 | I132: ='Non-CO2 RF Calcs'!$S$25+('Non-CO2 RF Calcs'!$S$24-'Non-CO2 RF Calcs'!$S$25)*($O132-1)/9 -> 0.1142409731 | J132: 3.751323168 | K132: =CFfromRFin2100(J132) -> 0.587495102 | L132: 2.203883987 | M132: 2.088273 | N132: 0.1156109875 | O132: =MitigationAggressiveness(D132,0) -> 8.749542672 | Q132: 2.992119 | R132: 0.336775 | S132: 0.323798 | T132: -0.192452 | U132: 3.492281 | W132: -0.02688382074 | X132: =R132-E132 -> -0.08518004644 | Y132: =S132-F132 -> -0.03531004897 | Z132: =T132-H132 -> 0.08477269395 | AA132: =U132-J132 -> -0.2590421683
A133: AIM/CGE 2.2 | B133: EN_INDCi2030_1600 | C133: 493.33153 | D133: =CO2RFFromCO2PPM(C133) -> 3.202623287 | E133: ='Non-CO2 RF Calcs'!$S$17+('Non-CO2 RF Calcs'!$S$16-'Non-CO2 RF Calcs'!$S$17)*($O133-1)/9 -> 0.4305335286 | F133: ='Non-CO2 RF Calcs'!$S$19+('Non-CO2 RF Calcs'!$S$18-'Non-CO2 RF Calcs'!$S$19)*($O133-1)/9 -> 0.3614060898 | G133: ='Non-CO2 RF Calcs'!$S$21+('Non-CO2 RF Calcs'!$S$20-'Non-CO2 RF Calcs'!$S$21)*($O133-1)/9 -> 0.1243529332 | H133: ='Non-CO2 RF Calcs'!$S$23+('Non-CO2 RF Calcs'!$S$22-'Non-CO2 RF Calcs'!$S$23)*($O133-1)/9 -> -0.2834819227 | I133: ='Non-CO2 RF Calcs'!$S$25+('Non-CO2 RF Calcs'!$S$24-'Non-CO2 RF Calcs'!$S$25)*($O133-1)/9 -> 0.1243529332 | J133: 3.95978685 | K133: =CFfromRFin2100(J133) -> 0.5846453198 | L133: 2.315070849 | M133: 2.176055 | N133: 0.1390158491 | O133: =MitigationAggressiveness(D133,0) -> 8.618972168 | Q133: 3.171918 | R133: 0.350259 | S133: 0.327527 | T133: -0.202311 | U133: 3.689934 | W133: -0.0307052875 | X133: =R133-E133 -> -0.08027452856 | Y133: =S133-F133 -> -0.03387908984 | Z133: =T133-H133 -> 0.08117092266 | AA133: =U133-J133 -> -0.2698528496
A134: AIM/CGE 2.2 | B134: EN_INDCi2030_1600f | C134: 494.637638 | D134: =CO2RFFromCO2PPM(C134) -> 3.218019286 | E134: ='Non-CO2 RF Calcs'!$S$17+('Non-CO2 RF Calcs'!$S$16-'Non-CO2 RF Calcs'!$S$17)*($O134-1)/9 -> 0.4312367215 | F134: ='Non-CO2 RF Calcs'!$S$19+('Non-CO2 RF Calcs'!$S$18-'Non-CO2 RF Calcs'!$S$19)*($O134-1)/9 -> 0.3615944642 | G134: ='Non-CO2 RF Calcs'!$S$21+('Non-CO2 RF Calcs'!$S$20-'Non-CO2 RF Calcs'!$S$21)*($O134-1)/9 -> 0.125181828 | H134: ='Non-CO2 RF Calcs'!$S$23+('Non-CO2 RF Calcs'!$S$22-'Non-CO2 RF Calcs'!$S$23)*($O134-1)/9 -> -0.2839948384 | I134: ='Non-CO2 RF Calcs'!$S$25+('Non-CO2 RF Calcs'!$S$24-'Non-CO2 RF Calcs'!$S$25)*($O134-1)/9 -> 0.125181828 | J134: 3.977219289 | K134: =CFfromRFin2100(J134) -> 0.5844122921 | L134: 2.324335841 | M134: 2.194631 | N134: 0.1297048409 | O134: =MitigationAggressiveness(D134,0) -> 8.608269079 | Q134: 3.186414 | R134: 0.345564 | S134: 0.328235 | T134: -0.195193 | U134: 3.705293 | W134: -0.03160528592 | X134: =R134-E134 -> -0.08567272148 | Y134: =S134-F134 -> -0.0333594642 | Z134: =T134-H134 -> 0.08880183845 | AA134: =U134-J134 -> -0.2719262891
A135: AIM/CGE 2.2 | B135: EN_INDCi2030_1800 | C135: 509.641522 | D135: =CO2RFFromCO2PPM(C135) -> 3.393097097 | E135: ='Non-CO2 RF Calcs'!$S$17+('Non-CO2 RF Calcs'!$S$16-'Non-CO2 RF Calcs'!$S$17)*($O135-1)/9 -> 0.4390581107 | F135: ='Non-CO2 RF Calcs'!$S$19+('Non-CO2 RF Calcs'!$S$18-'Non-CO2 RF Calcs'!$S$19)*($O135-1)/9 -> 0.3636896918 | G135: ='Non-CO2 RF Calcs'!$S$21+('Non-CO2 RF Calcs'!$S$20-'Non-CO2 RF Calcs'!$S$21)*($O135-1)/9 -> 0.1344013583 | H135: ='Non-CO2 RF Calcs'!$S$23+('Non-CO2 RF Calcs'!$S$22-'Non-CO2 RF Calcs'!$S$23)*($O135-1)/9 -> -0.2896998362 | I135: ='Non-CO2 RF Calcs'!$S$25+('Non-CO2 RF Calcs'!$S$24-'Non-CO2 RF Calcs'!$S$25)*($O135-1)/9 -> 0.1344013583 | J135: 4.17494778 | K135: =CFfromRFin2100(J135) -> 0.5818262123 | L135: 2.429094053 | M135: 2.289656 | N135: 0.1394380531 | O135: =MitigationAggressiveness(D135,0) -> 8.489222059 | Q135: 3.365941 | R135: 0.353974 | S135: 0.331794 | T135: -0.200525 | U135: 3.879776 | W135: -0.02715609698 | X135: =R135-E135 -> -0.0850841107 | Y135: =S135-F135 -> -0.03189569176 | Z135: =T135-H135 -> 0.0891748362 | AA135: =U135-J135 -> -0.2951717798
A136: AIM/CGE 2.2 | B136: EN_INDCi2030_1800f | C136: 509.641522 | D136: =CO2RFFromCO2PPM(C136) -> 3.393097097 | E136: ='Non-CO2 RF Calcs'!$S$17+('Non-CO2 RF Calcs'!$S$16-'Non-CO2 RF Calcs'!$S$17)*($O136-1)/9 -> 0.4390581107 | F136: ='Non-CO2 RF Calcs'!$S$19+('Non-CO2 RF Calcs'!$S$18-'Non-CO2 RF Calcs'!$S$19)*($O136-1)/9 -> 0.3636896918 | G136: ='Non-CO2 RF Calcs'!$S$21+('Non-CO2 RF Calcs'!$S$20-'Non-CO2 RF Calcs'!$S$21)*($O136-1)/9 -> 0.1344013583 | H136: ='Non-CO2 RF Calcs'!$S$23+('Non-CO2 RF Calcs'!$S$22-'Non-CO2 RF Calcs'!$S$23)*($O136-1)/9 -> -0.2896998362 | I136: ='Non-CO2 RF Calcs'!$S$25+('Non-CO2 RF Calcs'!$S$24-'Non-CO2 RF Calcs'!$S$25)*($O136-1)/9 -> 0.1344013583 | J136: 4.17494778 | K136: =CFfromRFin2100(J136) -> 0.5818262123 | L136: 2.429094053 | M136: 2.289656 | N136: 0.1394380531 | O136: =MitigationAggressiveness(D136,0) -> 8.489222059 | Q136: 3.365941 | R136: 0.353974 | S136: 0.331794 | T136: -0.200525 | U136: 3.879776 | W136: -0.02715609698 | X136: =R136-E136 -> -0.0850841107 | Y136: =S136-F136 -> -0.03189569176 | Z136: =T136-H136 -> 0.0891748362 | AA136: =U136-J136 -> -0.2951717798
A137: AIM/CGE 2.2 | B137: EN_INDCi2030_800f | C137: 432.971041 | D137: =CO2RFFromCO2PPM(C137) -> 2.463986731 | E137: ='Non-CO2 RF Calcs'!$S$17+('Non-CO2 RF Calcs'!$S$16-'Non-CO2 RF Calcs'!$S$17)*($O137-1)/9 -> 0.3938733 | F137: ='Non-CO2 RF Calcs'!$S$19+('Non-CO2 RF Calcs'!$S$18-'Non-CO2 RF Calcs'!$S$19)*($O137-1)/9 -> 0.3515853893 | G137: ='Non-CO2 RF Calcs'!$S$21+('Non-CO2 RF Calcs'!$S$20-'Non-CO2 RF Calcs'!$S$21)*($O137-1)/9 -> 0.08113937103 | H137: ='Non-CO2 RF Calcs'!$S$23+('Non-CO2 RF Calcs'!$S$22-'Non-CO2 RF Calcs'!$S$23)*($O137-1)/9 -> -0.2567415936 | I137: ='Non-CO2 RF Calcs'!$S$25+('Non-CO2 RF Calcs'!$S$24-'Non-CO2 RF Calcs'!$S$25)*($O137-1)/9 -> 0.08113937103 | J137: 3.114982569 | K137: =CFfromRFin2100(J137) -> 0.5969150326 | L137: 1.859379922 | M137: 1.738895 | N137: 0.1204849219 | O137: =MitigationAggressiveness(D137,0) -> 9.176966515 | Q137: 2.428936 | R137: 0.335618 | S137: 0.310405 | T137: -0.216125 | U137: 2.912998 | W137: -0.03505073141 | X137: =R137-E137 -> -0.05825529998 | Y137: =S137-F137 -> -0.04118038934 | Z137: =T137-H137 -> 0.04061659358 | AA137: =U137-J137 -> -0.2019845692
A138: AIM/CGE 2.2 | B138: EN_INDCi2030_900f | C138: 438.995935 | D138: =CO2RFFromCO2PPM(C138) -> 2.540099565 | E138: ='Non-CO2 RF Calcs'!$S$17+('Non-CO2 RF Calcs'!$S$16-'Non-CO2 RF Calcs'!$S$17)*($O138-1)/9 -> 0.3979156861 | F138: ='Non-CO2 RF Calcs'!$S$19+('Non-CO2 RF Calcs'!$S$18-'Non-CO2 RF Calcs'!$S$19)*($O138-1)/9 -> 0.3526682812 | G138: ='Non-CO2 RF Calcs'!$S$21+('Non-CO2 RF Calcs'!$S$20-'Non-CO2 RF Calcs'!$S$21)*($O138-1)/9 -> 0.08590436865 | H138: ='Non-CO2 RF Calcs'!$S$23+('Non-CO2 RF Calcs'!$S$22-'Non-CO2 RF Calcs'!$S$23)*($O138-1)/9 -> -0.2596901495 | I138: ='Non-CO2 RF Calcs'!$S$25+('Non-CO2 RF Calcs'!$S$24-'Non-CO2 RF Calcs'!$S$25)*($O138-1)/9 -> 0.08590436865 | J138: 3.20280212 | K138: =CFfromRFin2100(J138) -> 0.5955504177 | L138: 1.90743014 | M138: 1.789948 | N138: 0.1174821404 | O138: =MitigationAggressiveness(D138,0) -> 9.115438568 | Q138: 2.505485 | R138: 0.335337 | S138: 0.312416 | T138: -0.210705 | U138: 2.995499 | W138: -0.03461456472 | X138: =R138-E138 -> -0.06257868606 | Y138: =S138-F138 -> -0.0402522812 | Z138: =T138-H138 -> 0.04898514949 | AA138: =U138-J138 -> -0.2073031198
A139: AIM/CGE 2.2 | B139: EN_INDCi2100 | C139: 565.102637 | D139: =CO2RFFromCO2PPM(C139) -> 4.011783524 | E139: ='Non-CO2 RF Calcs'!$S$17+('Non-CO2 RF Calcs'!$S$16-'Non-CO2 RF Calcs'!$S$17)*($O139-1)/9 -> 0.4641190277 | F139: ='Non-CO2 RF Calcs'!$S$19+('Non-CO2 RF Calcs'!$S$18-'Non-CO2 RF Calcs'!$S$19)*($O139-1)/9 -> 0.3704031185 | G139: ='Non-CO2 RF Calcs'!$S$21+('Non-CO2 RF Calcs'!$S$20-'Non-CO2 RF Calcs'!$S$21)*($O139-1)/9 -> 0.1639421314 | H139: ='Non-CO2 RF Calcs'!$S$23+('Non-CO2 RF Calcs'!$S$22-'Non-CO2 RF Calcs'!$S$23)*($O139-1)/9 -> -0.307979514 | I139: ='Non-CO2 RF Calcs'!$S$25+('Non-CO2 RF Calcs'!$S$24-'Non-CO2 RF Calcs'!$S$25)*($O139-1)/9 -> 0.1639421314 | J139: 4.866210419 | K139: =CFfromRFin2100(J139) -> 0.5736093068 | L139: 2.791303585 | M139: 2.754728 | N139: 0.0365755849 | O139: =MitigationAggressiveness(D139,0) -> 8.107777357 | Q139: 3.972957 | R139: 0.398252 | S139: 0.348714 | T139: -0.245559 | U139: 4.777176 | W139: -0.03882652365 | X139: =R139-E139 -> -0.06586702768 | Y139: =S139-F139 -> -0.02168911853 | Z139: =T139-H139 -> 0.06242051402 | AA139: =U139-J139 -> -0.08903441862
A140: AIM/CGE 2.2 | B140: EN_NPi2020_1000 | C140: 449.103916 | D140: =CO2RFFromCO2PPM(C140) -> 2.666605893 | E140: ='Non-CO2 RF Calcs'!$S$17+('Non-CO2 RF Calcs'!$S$16-'Non-CO2 RF Calcs'!$S$17)*($O140-1)/9 -> 0.4044999257 | F140: ='Non-CO2 RF Calcs'!$S$19+('Non-CO2 RF Calcs'!$S$18-'Non-CO2 RF Calcs'!$S$19)*($O140-1)/9 -> 0.3544320958 | G140: ='Non-CO2 RF Calcs'!$S$21+('Non-CO2 RF Calcs'!$S$20-'Non-CO2 RF Calcs'!$S$21)*($O140-1)/9 -> 0.09366559825 | H140: ='Non-CO2 RF Calcs'!$S$23+('Non-CO2 RF Calcs'!$S$22-'Non-CO2 RF Calcs'!$S$23)*($O140-1)/9 -> -0.2644927583 | I140: ='Non-CO2 RF Calcs'!$S$25+('Non-CO2 RF Calcs'!$S$24-'Non-CO2 RF Calcs'!$S$25)*($O140-1)/9 -> 0.09366559825 | J140: 3.348376353 | K140: =CFfromRFin2100(J140) -> 0.5933339234 | L140: 1.986705279 | M140: 1.841506 | N140: 0.1451992786 | O140: =MitigationAggressiveness(D140,0) -> 9.01522183 | Q140: 2.639969 | R140: 0.350775 | S140: 0.313785 | T140: -0.22275 | U140: 3.139298 | W140: -0.02663689313 | X140: =R140-E140 -> -0.05372492575 | Y140: =S140-F140 -> -0.04064709579 | Z140: =T140-H140 -> 0.04174275829 | AA140: =U140-J140 -> -0.2090783529
A141: AIM/CGE 2.2 | B141: EN_NPi2020_1000f | C141: 447.476766 | D141: =CO2RFFromCO2PPM(C141) -> 2.646341879 | E141: ='Non-CO2 RF Calcs'!$S$17+('Non-CO2 RF Calcs'!$S$16-'Non-CO2 RF Calcs'!$S$17)*($O141-1)/9 -> 0.4034565526 | F141: ='Non-CO2 RF Calcs'!$S$19+('Non-CO2 RF Calcs'!$S$18-'Non-CO2 RF Calcs'!$S$19)*($O141-1)/9 -> 0.3541525925 | G141: ='Non-CO2 RF Calcs'!$S$21+('Non-CO2 RF Calcs'!$S$20-'Non-CO2 RF Calcs'!$S$21)*($O141-1)/9 -> 0.09243571312 | H141: ='Non-CO2 RF Calcs'!$S$23+('Non-CO2 RF Calcs'!$S$22-'Non-CO2 RF Calcs'!$S$23)*($O141-1)/9 -> -0.2637317117 | I141: ='Non-CO2 RF Calcs'!$S$25+('Non-CO2 RF Calcs'!$S$24-'Non-CO2 RF Calcs'!$S$25)*($O141-1)/9 -> 0.09243571312 | J141: 3.325090739 | K141: =CFfromRFin2100(J141) -> 0.5936846486 | L141: 1.974055327 | M141: 1.860042 | N141: 0.1140133267 | O141: =MitigationAggressiveness(D141,0) -> 9.0311027 | Q141: 2.607765 | R141: 0.319593 | S141: 0.313297 | T141: -0.191994 | U141: 3.087128 | W141: -0.03857687913 | X141: =R141-E141 -> -0.08386355261 | Y141: =S141-F141 -> -0.04085559248 | Z141: =T141-H141 -> 0.07173771172 | AA141: =U141-J141 -> -0.2379627387
A142: AIM/CGE 2.2 | B142: EN_NPi2020_1200 | C142: 462.757656 | D142: =CO2RFFromCO2PPM(C142) -> 2.835124801 | E142: ='Non-CO2 RF Calcs'!$S$17+('Non-CO2 RF Calcs'!$S$16-'Non-CO2 RF Calcs'!$S$17)*($O142-1)/9 -> 0.4130097744 | F142: ='Non-CO2 RF Calcs'!$S$19+('Non-CO2 RF Calcs'!$S$18-'Non-CO2 RF Calcs'!$S$19)*($O142-1)/9 -> 0.3567117508 | G142: ='Non-CO2 RF Calcs'!$S$21+('Non-CO2 RF Calcs'!$S$20-'Non-CO2 RF Calcs'!$S$21)*($O142-1)/9 -> 0.1036966561 | H142: ='Non-CO2 RF Calcs'!$S$23+('Non-CO2 RF Calcs'!$S$22-'Non-CO2 RF Calcs'!$S$23)*($O142-1)/9 -> -0.2706999251 | I142: ='Non-CO2 RF Calcs'!$S$25+('Non-CO2 RF Calcs'!$S$24-'Non-CO2 RF Calcs'!$S$25)*($O142-1)/9 -> 0.1036966561 | J142: 3.541539713 | K142: =CFfromRFin2100(J142) -> 0.5904805872 | L142: 2.091210449 | M142: 1.946185 | N142: 0.1450254493 | O142: =MitigationAggressiveness(D142,0) -> 8.885695975 | Q142: 2.804243 | R142: 0.350342 | S142: 0.31777 | T142: -0.215303 | U142: 3.310549 | W142: -0.03088180052 | X142: =R142-E142 -> -0.06266777443 | Y142: =S142-F142 -> -0.03894175084 | Z142: =T142-H142 -> 0.0553969251 | AA142: =U142-J142 -> -0.230990713
A143: AIM/CGE 2.2 | B143: EN_NPi2020_1200f | C143: 463.481652 | D143: =CO2RFFromCO2PPM(C143) -> 2.843984736 | E143: ='Non-CO2 RF Calcs'!$S$17+('Non-CO2 RF Calcs'!$S$16-'Non-CO2 RF Calcs'!$S$17)*($O143-1)/9 -> 0.413448932 | F143: ='Non-CO2 RF Calcs'!$S$19+('Non-CO2 RF Calcs'!$S$18-'Non-CO2 RF Calcs'!$S$19)*($O143-1)/9 -> 0.3568293943 | G143: ='Non-CO2 RF Calcs'!$S$21+('Non-CO2 RF Calcs'!$S$20-'Non-CO2 RF Calcs'!$S$21)*($O143-1)/9 -> 0.1042143169 | H143: ='Non-CO2 RF Calcs'!$S$23+('Non-CO2 RF Calcs'!$S$22-'Non-CO2 RF Calcs'!$S$23)*($O143-1)/9 -> -0.2710202509 | I143: ='Non-CO2 RF Calcs'!$S$25+('Non-CO2 RF Calcs'!$S$24-'Non-CO2 RF Calcs'!$S$25)*($O143-1)/9 -> 0.1042143169 | J143: 3.551671446 | K143: =CFfromRFin2100(J143) -> 0.5903336872 | L143: 2.0966713 | M143: 1.977736 | N143: 0.1189353001 | O143: =MitigationAggressiveness(D143,0) -> 8.87901169 | Q143: 2.810444 | R143: 0.333865 | S143: 0.318899 | T143: -0.193998 | U143: 3.314049 | W143: -0.03354073635 | X143: =R143-E143 -> -0.07958393199 | Y143: =S143-F143 -> -0.03793039426 | Z143: =T143-H143 -> 0.07702225092 | AA143: =U143-J143 -> -0.2376224455
A144: AIM/CGE 2.2 | B144: EN_NPi2020_1400 | C144: 478.527129 | D144: =CO2RFFromCO2PPM(C144) -> 3.026375457 | E144: ='Non-CO2 RF Calcs'!$S$17+('Non-CO2 RF Calcs'!$S$16-'Non-CO2 RF Calcs'!$S$17)*($O144-1)/9 -> 0.422306307 | F144: ='Non-CO2 RF Calcs'!$S$19+('Non-CO2 RF Calcs'!$S$18-'Non-CO2 RF Calcs'!$S$19)*($O144-1)/9 -> 0.3592021462 | G144: ='Non-CO2 RF Calcs'!$S$21+('Non-CO2 RF Calcs'!$S$20-'Non-CO2 RF Calcs'!$S$21)*($O144-1)/9 -> 0.1146550245 | H144: ='Non-CO2 RF Calcs'!$S$23+('Non-CO2 RF Calcs'!$S$22-'Non-CO2 RF Calcs'!$S$23)*($O144-1)/9 -> -0.2774809069 | I144: ='Non-CO2 RF Calcs'!$S$25+('Non-CO2 RF Calcs'!$S$24-'Non-CO2 RF Calcs'!$S$25)*($O144-1)/9 -> 0.1146550245 | J144: 3.759713053 | K144: =CFfromRFin2100(J144) -> 0.5873781579 | L144: 2.208373327 | M144: 2.066699 | N144: 0.1416743272 | O144: =MitigationAggressiveness(D144,0) -> 8.74419624 | Q144: 2.99336 | R144: 0.350686 | S144: 0.32236 | T144: -0.208486 | U144: 3.515214 | W144: -0.03301545723 | X144: =R144-E144 -> -0.07162030704 | Y144: =S144-F144 -> -0.03684214618 | Z144: =T144-H144 -> 0.06899490686 | AA144: =U144-J144 -> -0.2444990527
A145: AIM/CGE 2.2 | B145: EN_NPi2020_1400f | C145: 477.325747 | D145: =CO2RFFromCO2PPM(C145) -> 3.011932756 | E145: ='Non-CO2 RF Calcs'!$S$17+('Non-CO2 RF Calcs'!$S$16-'Non-CO2 RF Calcs'!$S$17)*($O145-1)/9 -> 0.4216176655 | F145: ='Non-CO2 RF Calcs'!$S$19+('Non-CO2 RF Calcs'!$S$18-'Non-CO2 RF Calcs'!$S$19)*($O145-1)/9 -> 0.3590176699 | G145: ='Non-CO2 RF Calcs'!$S$21+('Non-CO2 RF Calcs'!$S$20-'Non-CO2 RF Calcs'!$S$21)*($O145-1)/9 -> 0.1138432823 | H145: ='Non-CO2 RF Calcs'!$S$23+('Non-CO2 RF Calcs'!$S$22-'Non-CO2 RF Calcs'!$S$23)*($O145-1)/9 -> -0.276978605 | I145: ='Non-CO2 RF Calcs'!$S$25+('Non-CO2 RF Calcs'!$S$24-'Non-CO2 RF Calcs'!$S$25)*($O145-1)/9 -> 0.1138432823 | J145: 3.743276051 | K145: =CFfromRFin2100(J145) -> 0.5876074457 | L145: 2.199576879 | M145: 2.074513 | N145: 0.1250638792 | O145: =MitigationAggressiveness(D145,0) -> 8.754677847 | Q145: 2.981637 | R145: 0.342548 | S145: 0.322526 | T145: -0.198312 | U145: 3.493218 | W145: -0.03029575619 | X145: =R145-E145 -> -0.07906966547 | Y145: =S145-F145 -> -0.0364916699 | Z145: =T145-H145 -> 0.07866660497 | AA145: =U145-J145 -> -0.2500580512
A146: AIM/CGE 2.2 | B146: EN_NPi2020_1600 | C146: 495.38207 | D146: =CO2RFFromCO2PPM(C146) -> 3.226783297 | E146: ='Non-CO2 RF Calcs'!$S$17+('Non-CO2 RF Calcs'!$S$16-'Non-CO2 RF Calcs'!$S$17)*($O146-1)/9 -> 0.4316358951 | F146: ='Non-CO2 RF Calcs'!$S$19+('Non-CO2 RF Calcs'!$S$18-'Non-CO2 RF Calcs'!$S$19)*($O146-1)/9 -> 0.3617013966 | G146: ='Non-CO2 RF Calcs'!$S$21+('Non-CO2 RF Calcs'!$S$20-'Non-CO2 RF Calcs'!$S$21)*($O146-1)/9 -> 0.1256523573 | H146: ='Non-CO2 RF Calcs'!$S$23+('Non-CO2 RF Calcs'!$S$22-'Non-CO2 RF Calcs'!$S$23)*($O146-1)/9 -> -0.2842859996 | I146: ='Non-CO2 RF Calcs'!$S$25+('Non-CO2 RF Calcs'!$S$24-'Non-CO2 RF Calcs'!$S$25)*($O146-1)/9 -> 0.1256523573 | J146: =SUM(D146:I146) -> 3.987139303 | K146: =CFfromRFin2100(J146) -> 0.5842800504 | L146: =K146*J146 -> 2.329605953 | M146: 2.187732 | N146: =L146-M146 -> 0.1418739532 | O146: =MitigationAggressiveness(D146,0) -> 8.602193378 | Q146: 3.19701 | R146: 0.352903 | S146: 0.326927 | T146: -0.198619 | U146: 3.717549 | W146: =Q146-D146 -> -0.02977329654 | X146: =R146-E146 -> -0.07873289508 | Y146: =S146-F146 -> -0.03477439655 | Z146: =T146-H146 -> 0.08566699958 | AA146: =U146-J146 -> -0.2695903032
A147: AIM/CGE 2.2 | B147: EN_NPi2020_1600f | C147: 494.560208 | D147: =CO2RFFromCO2PPM(C147) -> 3.217107258 | E147: ='Non-CO2 RF Calcs'!$S$17+('Non-CO2 RF Calcs'!$S$16-'Non-CO2 RF Calcs'!$S$17)*($O147-1)/9 -> 0.4311951351 | F147: ='Non-CO2 RF Calcs'!$S$19+('Non-CO2 RF Calcs'!$S$18-'Non-CO2 RF Calcs'!$S$19)*($O147-1)/9 -> 0.3615833239 | G147: ='Non-CO2 RF Calcs'!$S$21+('Non-CO2 RF Calcs'!$S$20-'Non-CO2 RF Calcs'!$S$21)*($O147-1)/9 -> 0.1251328077 | H147: ='Non-CO2 RF Calcs'!$S$23+('Non-CO2 RF Calcs'!$S$22-'Non-CO2 RF Calcs'!$S$23)*($O147-1)/9 -> -0.2839645049 | I147: ='Non-CO2 RF Calcs'!$S$25+('Non-CO2 RF Calcs'!$S$24-'Non-CO2 RF Calcs'!$S$25)*($O147-1)/9 -> 0.1251328077 | J147: 3.976186828 | K147: =CFfromRFin2100(J147) -> 0.5844260708 | L147: 2.323787244 | M147: 2.183883 | N147: 0.1399042445 | O147: =MitigationAggressiveness(D147,0) -> 8.608902053 | Q147: 3.18737 | R147: 0.351673 | S147: 0.326771 | T147: -0.196993 | U147: 3.707259 | W147: -0.02973725826 | X147: =R147-E147 -> -0.07952213511 | Y147: =S147-F147 -> -0.03481232386 | Z147: =T147-H147 -> 0.08697150494 | AA147: =U147-J147 -> -0.2689278276
A148: AIM/CGE 2.2 | B148: EN_NPi2020_1800 | C148: 509.051742 | D148: =CO2RFFromCO2PPM(C148) -> 3.386277005 | E148: ='Non-CO2 RF Calcs'!$S$17+('Non-CO2 RF Calcs'!$S$16-'Non-CO2 RF Calcs'!$S$17)*($O148-1)/9 -> 0.4387594557 | F148: ='Non-CO2 RF Calcs'!$S$19+('Non-CO2 RF Calcs'!$S$18-'Non-CO2 RF Calcs'!$S$19)*($O148-1)/9 -> 0.3636096868 | G148: ='Non-CO2 RF Calcs'!$S$21+('Non-CO2 RF Calcs'!$S$20-'Non-CO2 RF Calcs'!$S$21)*($O148-1)/9 -> 0.1340493161 | H148: ='Non-CO2 RF Calcs'!$S$23+('Non-CO2 RF Calcs'!$S$22-'Non-CO2 RF Calcs'!$S$23)*($O148-1)/9 -> -0.2894819943 | I148: ='Non-CO2 RF Calcs'!$S$25+('Non-CO2 RF Calcs'!$S$24-'Non-CO2 RF Calcs'!$S$25)*($O148-1)/9 -> 0.1340493161 | J148: 4.167262785 | K148: =CFfromRFin2100(J148) -> 0.5819247654 | L148: 2.425033419 | M148: 2.276734 | N148: 0.1482994186 | O148: =MitigationAggressiveness(D148,0) -> 8.493767797 | Q148: 3.359271 | R148: 0.360583 | S148: 0.330146 | T148: -0.202352 | U148: 3.881625 | W148: -0.02700600501 | X148: =R148-E148 -> -0.07817645572 | Y148: =S148-F148 -> -0.03346368677 | Z148: =T148-H148 -> 0.08712999434 | AA148: =U148-J148 -> -0.2856377855
A149: AIM/CGE 2.2 | B149: EN_NPi2020_1800f | C149: 509.051742 | D149: =CO2RFFromCO2PPM(C149) -> 3.386277005 | E149: ='Non-CO2 RF Calcs'!$S$17+('Non-CO2 RF Calcs'!$S$16-'Non-CO2 RF Calcs'!$S$17)*($O149-1)/9 -> 0.4387594557 | F149: ='Non-CO2 RF Calcs'!$S$19+('Non-CO2 RF Calcs'!$S$18-'Non-CO2 RF Calcs'!$S$19)*($O149-1)/9 -> 0.3636096868 | G149: ='Non-CO2 RF Calcs'!$S$21+('Non-CO2 RF Calcs'!$S$20-'Non-CO2 RF Calcs'!$S$21)*($O149-1)/9 -> 0.1340493161 | H149: ='Non-CO2 RF Calcs'!$S$23+('Non-CO2 RF Calcs'!$S$22-'Non-CO2 RF Calcs'!$S$23)*($O149-1)/9 -> -0.2894819943 | I149: ='Non-CO2 RF Calcs'!$S$25+('Non-CO2 RF Calcs'!$S$24-'Non-CO2 RF Calcs'!$S$25)*($O149-1)/9 -> 0.1340493161 | J149: 4.167262785 | K149: =CFfromRFin2100(J149) -> 0.5819247654 | L149: 2.425033419 | M149: 2.276734 | N149: 0.1482994186 | O149: =MitigationAggressiveness(D149,0) -> 8.493767797 | Q149: 3.359271 | R149: 0.360583 | S149: 0.330146 | T149: -0.202352 | U149: 3.881625 | W149: -0.02700600501 | X149: =R149-E149 -> -0.07817645572 | Y149: =S149-F149 -> -0.03346368677 | Z149: =T149-H149 -> 0.08712999434 | AA149: =U149-J149 -> -0.2856377855
A150: AIM/CGE 2.2 | B150: EN_NPi2020_300f | C150: 395.544838 | D150: =CO2RFFromCO2PPM(C150) -> 1.979328349 | E150: ='Non-CO2 RF Calcs'!$S$17+('Non-CO2 RF Calcs'!$S$16-'Non-CO2 RF Calcs'!$S$17)*($O150-1)/9 -> 0.3667060655 | F150: ='Non-CO2 RF Calcs'!$S$19+('Non-CO2 RF Calcs'!$S$18-'Non-CO2 RF Calcs'!$S$19)*($O150-1)/9 -> 0.3443077131 | G150: ='Non-CO2 RF Calcs'!$S$21+('Non-CO2 RF Calcs'!$S$20-'Non-CO2 RF Calcs'!$S$21)*($O150-1)/9 -> 0.04911575789 | H150: ='Non-CO2 RF Calcs'!$S$23+('Non-CO2 RF Calcs'!$S$22-'Non-CO2 RF Calcs'!$S$23)*($O150-1)/9 -> -0.2369255472 | I150: ='Non-CO2 RF Calcs'!$S$25+('Non-CO2 RF Calcs'!$S$24-'Non-CO2 RF Calcs'!$S$25)*($O150-1)/9 -> 0.04911575789 | J150: 2.551648096 | K150: =CFfromRFin2100(J150) -> 0.6061605052 | L150: 1.546708299 | M150: 1.428395 | N150: 0.1183132988 | O150: =MitigationAggressiveness(D150,0) -> 9.590470845 | Q150: 1.918173 | R150: 0.316977 | S150: 0.295933 | T150: -0.214076 | U150: 2.384968 | W150: -0.06115534853 | X150: =R150-E150 -> -0.04972906548 | Y150: =S150-F150 -> -0.04837471313 | Z150: =T150-H150 -> 0.02284954717 | AA150: =U150-J150 -> -0.1666800958
A151: AIM/CGE 2.2 | B151: EN_NPi2020_400f | C151: 402.594919 | D151: =CO2RFFromCO2PPM(C151) -> 2.072185484 | E151: ='Non-CO2 RF Calcs'!$S$17+('Non-CO2 RF Calcs'!$S$16-'Non-CO2 RF Calcs'!$S$17)*($O151-1)/9 -> 0.3721021137 | F151: ='Non-CO2 RF Calcs'!$S$19+('Non-CO2 RF Calcs'!$S$18-'Non-CO2 RF Calcs'!$S$19)*($O151-1)/9 -> 0.3457532298 | G151: ='Non-CO2 RF Calcs'!$S$21+('Non-CO2 RF Calcs'!$S$20-'Non-CO2 RF Calcs'!$S$21)*($O151-1)/9 -> 0.05547639648 | H151: ='Non-CO2 RF Calcs'!$S$23+('Non-CO2 RF Calcs'!$S$22-'Non-CO2 RF Calcs'!$S$23)*($O151-1)/9 -> -0.2408614775 | I151: ='Non-CO2 RF Calcs'!$S$25+('Non-CO2 RF Calcs'!$S$24-'Non-CO2 RF Calcs'!$S$25)*($O151-1)/9 -> 0.05547639648 | J151: 2.660132143 | K151: =CFfromRFin2100(J151) -> 0.6043138895 | L151: 1.607554802 | M151: 1.493802 | N151: 0.1137528017 | O151: =MitigationAggressiveness(D151,0) -> 9.508339213 | Q151: 2.01471 | R151: 0.317958 | S151: 0.298813 | T151: -0.20821 | U151: 2.485083 | W151: -0.05747548371 | X151: =R151-E151 -> -0.05414411369 | Y151: =S151-F151 -> -0.04694022985 | Z151: =T151-H151 -> 0.03265147748 | AA151: =U151-J151 -> -0.1750491427
A152: AIM/CGE 2.2 | B152: EN_NPi2020_500f | C152: 409.784088 | D152: =CO2RFFromCO2PPM(C152) -> 2.166128548 | E152: ='Non-CO2 RF Calcs'!$S$17+('Non-CO2 RF Calcs'!$S$16-'Non-CO2 RF Calcs'!$S$17)*($O152-1)/9 -> 0.3774691394 | F152: ='Non-CO2 RF Calcs'!$S$19+('Non-CO2 RF Calcs'!$S$18-'Non-CO2 RF Calcs'!$S$19)*($O152-1)/9 -> 0.3471909719 | G152: ='Non-CO2 RF Calcs'!$S$21+('Non-CO2 RF Calcs'!$S$20-'Non-CO2 RF Calcs'!$S$21)*($O152-1)/9 -> 0.06180282451 | H152: ='Non-CO2 RF Calcs'!$S$23+('Non-CO2 RF Calcs'!$S$22-'Non-CO2 RF Calcs'!$S$23)*($O152-1)/9 -> -0.2447762385 | I152: ='Non-CO2 RF Calcs'!$S$25+('Non-CO2 RF Calcs'!$S$24-'Non-CO2 RF Calcs'!$S$25)*($O152-1)/9 -> 0.06180282451 | J152: 2.769618069 | K152: =CFfromRFin2100(J152) -> 0.6024822222 | L152: 1.668645649 | M152: 1.558601 | N152: 0.1100446492 | O152: =MitigationAggressiveness(D152,0) -> 9.426649325 | Q152: 2.114818 | R152: 0.317972 | S152: 0.301186 | T152: -0.205287 | U152: 2.579883 | W152: -0.05131054763 | X152: =R152-E152 -> -0.05949713936 | Y152: =S152-F152 -> -0.04600497188 | Z152: =T152-H152 -> 0.03948923847 | AA152: =U152-J152 -> -0.1897350694
A153: AIM/CGE 2.2 | B153: EN_NPi2020_600 | C153: 422.133392 | D153: =CO2RFFromCO2PPM(C153) -> 2.325742294 | E153: ='Non-CO2 RF Calcs'!$S$17+('Non-CO2 RF Calcs'!$S$16-'Non-CO2 RF Calcs'!$S$17)*($O153-1)/9 -> 0.3863755049 | F153: ='Non-CO2 RF Calcs'!$S$19+('Non-CO2 RF Calcs'!$S$18-'Non-CO2 RF Calcs'!$S$19)*($O153-1)/9 -> 0.3495768476 | G153: ='Non-CO2 RF Calcs'!$S$21+('Non-CO2 RF Calcs'!$S$20-'Non-CO2 RF Calcs'!$S$21)*($O153-1)/9 -> 0.07230128005 | H153: ='Non-CO2 RF Calcs'!$S$23+('Non-CO2 RF Calcs'!$S$22-'Non-CO2 RF Calcs'!$S$23)*($O153-1)/9 -> -0.2512726285 | I153: ='Non-CO2 RF Calcs'!$S$25+('Non-CO2 RF Calcs'!$S$24-'Non-CO2 RF Calcs'!$S$25)*($O153-1)/9 -> 0.07230128005 | J153: 2.955024578 | K153: =CFfromRFin2100(J153) -> 0.5994537452 | L153: 1.77140055 | M153: 1.615572 | N153: 0.1558285502 | O153: =MitigationAggressiveness(D153,0) -> 9.291088206 | Q153: 2.298108 | R153: 0.351575 | S153: 0.304606 | T153: -0.253394 | U153: 2.782139 | W153: -0.02763429369 | X153: =R153-E153 -> -0.03480050487 | Y153: =S153-F153 -> -0.04497084758 | Z153: =T153-H153 -> -0.002121371468 | AA153: =U153-J153 -> -0.1728855777
A154: AIM/CGE 2.2 | B154: EN_NPi2020_600f | C154: 416.823883 | D154: =CO2RFFromCO2PPM(C154) -> 2.257389714 | E154: ='Non-CO2 RF Calcs'!$S$17+('Non-CO2 RF Calcs'!$S$16-'Non-CO2 RF Calcs'!$S$17)*($O154-1)/9 -> 0.382594214 | F154: ='Non-CO2 RF Calcs'!$S$19+('Non-CO2 RF Calcs'!$S$18-'Non-CO2 RF Calcs'!$S$19)*($O154-1)/9 -> 0.348563899 | G154: ='Non-CO2 RF Calcs'!$S$21+('Non-CO2 RF Calcs'!$S$20-'Non-CO2 RF Calcs'!$S$21)*($O154-1)/9 -> 0.06784405069 | H154: ='Non-CO2 RF Calcs'!$S$23+('Non-CO2 RF Calcs'!$S$22-'Non-CO2 RF Calcs'!$S$23)*($O154-1)/9 -> -0.248514518 | I154: ='Non-CO2 RF Calcs'!$S$25+('Non-CO2 RF Calcs'!$S$24-'Non-CO2 RF Calcs'!$S$25)*($O154-1)/9 -> 0.06784405069 | J154: 2.875721411 | K154: =CFfromRFin2100(J154) -> 0.6007378196 | L154: 1.72755461 | M154: 1.61893 | N154: 0.1086246103 | O154: =MitigationAggressiveness(D154,0) -> 9.3486421 | Q154: 2.210874 | R154: 0.317566 | S154: 0.303584 | T154: -0.2022 | U154: 2.679814 | W154: -0.04651571443 | X154: =R154-E154 -> -0.06502821402 | Y154: =S154-F154 -> -0.04497989904 | Z154: =T154-H154 -> 0.04631451803 | AA154: =U154-J154 -> -0.1959074109
A155: AIM/CGE 2.2 | B155: EN_NPi2020_700 | C155: 428.022376 | D155: =CO2RFFromCO2PPM(C155) -> 2.401074217 | E155: ='Non-CO2 RF Calcs'!$S$17+('Non-CO2 RF Calcs'!$S$16-'Non-CO2 RF Calcs'!$S$17)*($O155-1)/9 -> 0.3904860713 | F155: ='Non-CO2 RF Calcs'!$S$19+('Non-CO2 RF Calcs'!$S$18-'Non-CO2 RF Calcs'!$S$19)*($O155-1)/9 -> 0.3506780039 | G155: ='Non-CO2 RF Calcs'!$S$21+('Non-CO2 RF Calcs'!$S$20-'Non-CO2 RF Calcs'!$S$21)*($O155-1)/9 -> 0.07714664585 | H155: ='Non-CO2 RF Calcs'!$S$23+('Non-CO2 RF Calcs'!$S$22-'Non-CO2 RF Calcs'!$S$23)*($O155-1)/9 -> -0.2542709159 | I155: ='Non-CO2 RF Calcs'!$S$25+('Non-CO2 RF Calcs'!$S$24-'Non-CO2 RF Calcs'!$S$25)*($O155-1)/9 -> 0.07714664585 | J155: 3.042260668 | K155: =CFfromRFin2100(J155) -> 0.5980607034 | L155: 1.819456555 | M155: 1.669271 | N155: 0.1501855552 | O155: =MitigationAggressiveness(D155,0) -> 9.228522507 | Q155: 2.372255 | R155: 0.351133 | S155: 0.306604 | T155: -0.244059 | U155: 2.860807 | W155: -0.02881921731 | X155: =R155-E155 -> -0.03935307129 | Y155: =S155-F155 -> -0.04407400388 | Z155: =T155-H155 -> 0.01021191586 | AA155: =U155-J155 -> -0.1814536683
A156: AIM/CGE 2.2 | B156: EN_NPi2020_700f | C156: 423.983041 | D156: =CO2RFFromCO2PPM(C156) -> 2.349457464 | E156: ='Non-CO2 RF Calcs'!$S$17+('Non-CO2 RF Calcs'!$S$16-'Non-CO2 RF Calcs'!$S$17)*($O156-1)/9 -> 0.3876759746 | F156: ='Non-CO2 RF Calcs'!$S$19+('Non-CO2 RF Calcs'!$S$18-'Non-CO2 RF Calcs'!$S$19)*($O156-1)/9 -> 0.349925223 | G156: ='Non-CO2 RF Calcs'!$S$21+('Non-CO2 RF Calcs'!$S$20-'Non-CO2 RF Calcs'!$S$21)*($O156-1)/9 -> 0.07383422007 | H156: ='Non-CO2 RF Calcs'!$S$23+('Non-CO2 RF Calcs'!$S$22-'Non-CO2 RF Calcs'!$S$23)*($O156-1)/9 -> -0.2522212039 | I156: ='Non-CO2 RF Calcs'!$S$25+('Non-CO2 RF Calcs'!$S$24-'Non-CO2 RF Calcs'!$S$25)*($O156-1)/9 -> 0.07383422007 | J156: 2.982505898 | K156: =CFfromRFin2100(J156) -> 0.5990127037 | L156: 1.786558922 | M156: 1.678619 | N156: 0.1079399218 | O156: =MitigationAggressiveness(D156,0) -> 9.271294145 | Q156: 2.306977 | R156: 0.316942 | S156: 0.306012 | T156: -0.199542 | U156: 2.779898 | W156: -0.04248046383 | X156: =R156-E156 -> -0.07073397465 | Y156: =S156-F156 -> -0.04391322304 | Z156: =T156-H156 -> 0.0526792039 | AA156: =U156-J156 -> -0.2026078978
A157: AIM/CGE 2.2 | B157: EN_NPi2020_800 | C157: 434.409546 | D157: =CO2RFFromCO2PPM(C157) -> 2.482207528 | E157: ='Non-CO2 RF Calcs'!$S$17+('Non-CO2 RF Calcs'!$S$16-'Non-CO2 RF Calcs'!$S$17)*($O157-1)/9 -> 0.3948465522 | F157: ='Non-CO2 RF Calcs'!$S$19+('Non-CO2 RF Calcs'!$S$18-'Non-CO2 RF Calcs'!$S$19)*($O157-1)/9 -> 0.3518461084 | G157: ='Non-CO2 RF Calcs'!$S$21+('Non-CO2 RF Calcs'!$S$20-'Non-CO2 RF Calcs'!$S$21)*($O157-1)/9 -> 0.08228660054 | H157: ='Non-CO2 RF Calcs'!$S$23+('Non-CO2 RF Calcs'!$S$22-'Non-CO2 RF Calcs'!$S$23)*($O157-1)/9 -> -0.2574514933 | I157: ='Non-CO2 RF Calcs'!$S$25+('Non-CO2 RF Calcs'!$S$24-'Non-CO2 RF Calcs'!$S$25)*($O157-1)/9 -> 0.08228660054 | J157: 3.136021896 | K157: =CFfromRFin2100(J157) -> 0.5965862216 | L157: 1.870907454 | M157: 1.72366 | N157: 0.1472474537 | O157: =MitigationAggressiveness(D157,0) -> 9.162152934 | Q157: 2.454552 | R157: 0.35123 | S157: 0.308903 | T157: -0.231371 | U157: 2.946766 | W157: -0.02765552762 | X157: =R157-E157 -> -0.04361655223 | Y157: =S157-F157 -> -0.04294310836 | Z157: =T157-H157 -> 0.02608049328 | AA157: =U157-J157 -> -0.189255896
A158: AIM/CGE 2.2 | B158: EN_NPi2020_800f | C158: 431.606422 | D158: =CO2RFFromCO2PPM(C158) -> 2.446673935 | E158: ='Non-CO2 RF Calcs'!$S$17+('Non-CO2 RF Calcs'!$S$16-'Non-CO2 RF Calcs'!$S$17)*($O158-1)/9 -> 0.3929453183 | F158: ='Non-CO2 RF Calcs'!$S$19+('Non-CO2 RF Calcs'!$S$18-'Non-CO2 RF Calcs'!$S$19)*($O158-1)/9 -> 0.3513367976 | G158: ='Non-CO2 RF Calcs'!$S$21+('Non-CO2 RF Calcs'!$S$20-'Non-CO2 RF Calcs'!$S$21)*($O158-1)/9 -> 0.08004550461 | H158: ='Non-CO2 RF Calcs'!$S$23+('Non-CO2 RF Calcs'!$S$22-'Non-CO2 RF Calcs'!$S$23)*($O158-1)/9 -> -0.2560647147 | I158: ='Non-CO2 RF Calcs'!$S$25+('Non-CO2 RF Calcs'!$S$24-'Non-CO2 RF Calcs'!$S$25)*($O158-1)/9 -> 0.08004550461 | J158: 3.094982345 | K158: =CFfromRFin2100(J158) -> 0.5972287049 | L158: 1.848412298 | M158: 1.737521 | N158: 0.1108912976 | O158: =MitigationAggressiveness(D158,0) -> 9.191091045 | Q158: 2.408643 | R158: 0.316795 | S158: 0.308519 | T158: -0.19641 | U158: 2.88069 | W158: -0.03803093469 | X158: =R158-E158 -> -0.07615031833 | Y158: =S158-F158 -> -0.0428177976 | Z158: =T158-H158 -> 0.05965471469 | AA158: =U158-J158 -> -0.2142923452
A159: AIM/CGE 2.2 | B159: EN_NPi2020_900 | C159: 441.439412 | D159: =CO2RFFromCO2PPM(C159) -> 2.570817356 | E159: ='Non-CO2 RF Calcs'!$S$17+('Non-CO2 RF Calcs'!$S$16-'Non-CO2 RF Calcs'!$S$17)*($O159-1)/9 -> 0.3995298936 | F159: ='Non-CO2 RF Calcs'!$S$19+('Non-CO2 RF Calcs'!$S$18-'Non-CO2 RF Calcs'!$S$19)*($O159-1)/9 -> 0.3531007021 | G159: ='Non-CO2 RF Calcs'!$S$21+('Non-CO2 RF Calcs'!$S$20-'Non-CO2 RF Calcs'!$S$21)*($O159-1)/9 -> 0.08780712975 | H159: ='Non-CO2 RF Calcs'!$S$23+('Non-CO2 RF Calcs'!$S$22-'Non-CO2 RF Calcs'!$S$23)*($O159-1)/9 -> -0.2608675682 | I159: ='Non-CO2 RF Calcs'!$S$25+('Non-CO2 RF Calcs'!$S$24-'Non-CO2 RF Calcs'!$S$25)*($O159-1)/9 -> 0.08780712975 | J159: 3.238194643 | K159: =CFfromRFin2100(J159) -> 0.5950063064 | L159: 1.926746234 | M159: 1.78191 | N159: 0.1448362338 | O159: =MitigationAggressiveness(D159,0) -> 9.0908692 | Q159: 2.54685 | R159: 0.350822 | S159: 0.311247 | T159: -0.226115 | U159: 3.043514 | W159: -0.02396735564 | X159: =R159-E159 -> -0.04870789357 | Y159: =S159-F159 -> -0.04185370208 | Z159: =T159-H159 -> 0.03475256824 | AA159: =U159-J159 -> -0.1946806426
A160: AIM/CGE 2.2 | B160: EN_NPi2020_900f | C160: 439.272796 | D160: =CO2RFFromCO2PPM(C160) -> 2.543584451 | E160: ='Non-CO2 RF Calcs'!$S$17+('Non-CO2 RF Calcs'!$S$16-'Non-CO2 RF Calcs'!$S$17)*($O160-1)/9 -> 0.3980993137 | F160: ='Non-CO2 RF Calcs'!$S$19+('Non-CO2 RF Calcs'!$S$18-'Non-CO2 RF Calcs'!$S$19)*($O160-1)/9 -> 0.3527174722 | G160: ='Non-CO2 RF Calcs'!$S$21+('Non-CO2 RF Calcs'!$S$20-'Non-CO2 RF Calcs'!$S$21)*($O160-1)/9 -> 0.08612082128 | H160: ='Non-CO2 RF Calcs'!$S$23+('Non-CO2 RF Calcs'!$S$22-'Non-CO2 RF Calcs'!$S$23)*($O160-1)/9 -> -0.2598240893 | I160: ='Non-CO2 RF Calcs'!$S$25+('Non-CO2 RF Calcs'!$S$24-'Non-CO2 RF Calcs'!$S$25)*($O160-1)/9 -> 0.08612082128 | J160: 3.20681879 | K160: =CFfromRFin2100(J160) -> 0.595488498 | L160: 1.909623705 | M160: 1.798282 | N160: 0.1113417046 | O160: =MitigationAggressiveness(D160,0) -> 9.112643628 | Q160: 2.506919 | R160: 0.31792 | S160: 0.310837 | T160: -0.194806 | U160: 2.982736 | W160: -0.03666545112 | X160: =R160-E160 -> -0.08017931366 | Y160: =S160-F160 -> -0.04188047215 | Z160: =T160-H160 -> 0.06501808926 | AA160: =U160-J160 -> -0.2240827902
A161: AIM/CGE 2.2 | B161: EN_NPi2100 | C161: 787.349337 | D161: =CO2RFFromCO2PPM(C161) -> 6.04123443 | E161: ='Non-CO2 RF Calcs'!$S$17+('Non-CO2 RF Calcs'!$S$16-'Non-CO2 RF Calcs'!$S$17)*($O161-1)/9 -> 0.5181112632 | F161: ='Non-CO2 RF Calcs'!$S$19+('Non-CO2 RF Calcs'!$S$18-'Non-CO2 RF Calcs'!$S$19)*($O161-1)/9 -> 0.384866792 | G161: ='Non-CO2 RF Calcs'!$S$21+('Non-CO2 RF Calcs'!$S$20-'Non-CO2 RF Calcs'!$S$21)*($O161-1)/9 -> 0.2275859469 | H161: ='Non-CO2 RF Calcs'!$S$23+('Non-CO2 RF Calcs'!$S$22-'Non-CO2 RF Calcs'!$S$23)*($O161-1)/9 -> -0.3473619784 | I161: ='Non-CO2 RF Calcs'!$S$25+('Non-CO2 RF Calcs'!$S$24-'Non-CO2 RF Calcs'!$S$25)*($O161-1)/9 -> 0.2275859469 | J161: 7.0520224 | K161: =CFfromRFin2100(J161) -> 0.5560601879 | L161: 3.921348901 | M161: 4.264886 | N161: -0.3435370992 | O161: =MitigationAggressiveness(D161,0) -> 7.28597773 | Q161: 6.003641 | R161: 0.981307 | S161: 0.487546 | T161: -0.370007 | U161: 7.585881 | W161: -0.03759342959 | X161: =R161-E161 -> 0.4631957368 | Y161: =S161-F161 -> 0.102679208 | Z161: =T161-H161 -> -0.02264502164 | AA161: =U161-J161 -> 0.5338585998
A162: AIM/Hub-Global 2.0 | B162: 1.5C | C162: 395.97212 | D162: =CO2RFFromCO2PPM(C162) -> 1.984976733 | E162: ='Non-CO2 RF Calcs'!$S$17+('Non-CO2 RF Calcs'!$S$16-'Non-CO2 RF Calcs'!$S$17)*($O162-1)/9 -> 0.3670368864 | F162: ='Non-CO2 RF Calcs'!$S$19+('Non-CO2 RF Calcs'!$S$18-'Non-CO2 RF Calcs'!$S$19)*($O162-1)/9 -> 0.3443963349 | G162: ='Non-CO2 RF Calcs'!$S$21+('Non-CO2 RF Calcs'!$S$20-'Non-CO2 RF Calcs'!$S$21)*($O162-1)/9 -> 0.04950571596 | H162: ='Non-CO2 RF Calcs'!$S$23+('Non-CO2 RF Calcs'!$S$22-'Non-CO2 RF Calcs'!$S$23)*($O162-1)/9 -> -0.2371668512 | I162: ='Non-CO2 RF Calcs'!$S$25+('Non-CO2 RF Calcs'!$S$24-'Non-CO2 RF Calcs'!$S$25)*($O162-1)/9 -> 0.04950571596 | J162: 2.558254535 | K162: =CFfromRFin2100(J162) -> 0.6060471478 | L162: 1.550422865 | M162: 1.375733 | N162: 0.1746898646 | O162: =MitigationAggressiveness(D162,0) -> 9.585435518 | Q162: 1.931532 | R162: 0.269031 | S162: 0.275004 | T162: -0.202904 | U162: 2.324656 | W162: -0.05344473336 | X162: =R162-E162 -> -0.09800588644 | Y162: =S162-F162 -> -0.06939233488 | Z162: =T162-H162 -> 0.03426285121 | AA162: =U162-J162 -> -0.2335985354
A163: AIM/Hub-Global 2.0 | B163: 2.5C | C163: 585.372795 | D163: =CO2RFFromCO2PPM(C163) -> 4.22671667 | E163: ='Non-CO2 RF Calcs'!$S$17+('Non-CO2 RF Calcs'!$S$16-'Non-CO2 RF Calcs'!$S$17)*($O163-1)/9 -> 0.4718846234 | F163: ='Non-CO2 RF Calcs'!$S$19+('Non-CO2 RF Calcs'!$S$18-'Non-CO2 RF Calcs'!$S$19)*($O163-1)/9 -> 0.3724833999 | G163: ='Non-CO2 RF Calcs'!$S$21+('Non-CO2 RF Calcs'!$S$20-'Non-CO2 RF Calcs'!$S$21)*($O163-1)/9 -> 0.1730958947 | H163: ='Non-CO2 RF Calcs'!$S$23+('Non-CO2 RF Calcs'!$S$22-'Non-CO2 RF Calcs'!$S$23)*($O163-1)/9 -> -0.3136438155 | I163: ='Non-CO2 RF Calcs'!$S$25+('Non-CO2 RF Calcs'!$S$24-'Non-CO2 RF Calcs'!$S$25)*($O163-1)/9 -> 0.1730958947 | J163: 5.103632667 | K163: =CFfromRFin2100(J163) -> 0.5710827921 | L163: 2.914596793 | M163: 2.76898 | N163: 0.1456167934 | O163: =MitigationAggressiveness(D163,0) -> 7.989579552 | Q163: 4.18262 | R163: 0.405665 | S163: 0.361592 | T163: -0.259431 | U163: 4.802983 | W163: -0.04409667014 | X163: =R163-E163 -> -0.06621962341 | Y163: =S163-F163 -> -0.01089139988 | Z163: =T163-H163 -> 0.05421281545 | AA163: =U163-J163 -> -0.3006496673
A164: AIM/Hub-Global 2.0 | B164: 2C | C164: 512.530345 | D164: =CO2RFFromCO2PPM(C164) -> 3.426429606 | E164: ='Non-CO2 RF Calcs'!$S$17+('Non-CO2 RF Calcs'!$S$16-'Non-CO2 RF Calcs'!$S$17)*($O164-1)/9 -> 0.4405107304 | F164: ='Non-CO2 RF Calcs'!$S$19+('Non-CO2 RF Calcs'!$S$18-'Non-CO2 RF Calcs'!$S$19)*($O164-1)/9 -> 0.3640788258 | G164: ='Non-CO2 RF Calcs'!$S$21+('Non-CO2 RF Calcs'!$S$20-'Non-CO2 RF Calcs'!$S$21)*($O164-1)/9 -> 0.1361136464 | H164: ='Non-CO2 RF Calcs'!$S$23+('Non-CO2 RF Calcs'!$S$22-'Non-CO2 RF Calcs'!$S$23)*($O164-1)/9 -> -0.2907593912 | I164: ='Non-CO2 RF Calcs'!$S$25+('Non-CO2 RF Calcs'!$S$24-'Non-CO2 RF Calcs'!$S$25)*($O164-1)/9 -> 0.1361136464 | J164: 4.212487064 | K164: =CFfromRFin2100(J164) -> 0.5813470815 | L164: 2.448917061 | M164: 2.264103 | N164: 0.1848140606 | O164: =MitigationAggressiveness(D164,0) -> 8.46711217 | Q164: 3.401068 | R164: 0.357726 | S164: 0.320983 | T164: -0.232751 | U164: 3.911118 | W164: -0.02536160645 | X164: =R164-E164 -> -0.08278473041 | Y164: =S164-F164 -> -0.0430958258 | Z164: =T164-H164 -> 0.05800839122 | AA164: =U164-J164 -> -0.3013690642
A165: AIM/Hub-Global 2.0 | B165: 450ppmCancunP | C165: 447.912894 | D165: =CO2RFFromCO2PPM(C165) -> 2.651777065 | E165: ='Non-CO2 RF Calcs'!$S$17+('Non-CO2 RF Calcs'!$S$16-'Non-CO2 RF Calcs'!$S$17)*($O165-1)/9 -> 0.4037368279 | F165: ='Non-CO2 RF Calcs'!$S$19+('Non-CO2 RF Calcs'!$S$18-'Non-CO2 RF Calcs'!$S$19)*($O165-1)/9 -> 0.3542276738 | G165: ='Non-CO2 RF Calcs'!$S$21+('Non-CO2 RF Calcs'!$S$20-'Non-CO2 RF Calcs'!$S$21)*($O165-1)/9 -> 0.09276609 | H165: ='Non-CO2 RF Calcs'!$S$23+('Non-CO2 RF Calcs'!$S$22-'Non-CO2 RF Calcs'!$S$23)*($O165-1)/9 -> -0.2639361472 | I165: ='Non-CO2 RF Calcs'!$S$25+('Non-CO2 RF Calcs'!$S$24-'Non-CO2 RF Calcs'!$S$25)*($O165-1)/9 -> 0.09276609 | J165: 3.3313376 | K165: =CFfromRFin2100(J165) -> 0.5935904164 | L165: 1.977450073 | M165: 1.832451 | N165: 0.144999073 | O165: =MitigationAggressiveness(D165,0) -> 9.026836715 | Q165: 2.621414 | R165: 0.29097 | S165: 0.300545 | T165: -0.149171 | U165: 3.100657 | W165: -0.03036306539 | X165: =R165-E165 -> -0.1127668279 | Y165: =S165-F165 -> -0.05368267382 | Z165: =T165-H165 -> 0.1147651472 | AA165: =U165-J165 -> -0.2306805998
A166: AIM/Hub-Global 2.0 | B166: 450ppmeINDC | C166: 448.998336 | D166: =CO2RFFromCO2PPM(C166) -> 2.665292204 | E166: ='Non-CO2 RF Calcs'!$S$17+('Non-CO2 RF Calcs'!$S$16-'Non-CO2 RF Calcs'!$S$17)*($O166-1)/9 -> 0.4044324159 | F166: ='Non-CO2 RF Calcs'!$S$19+('Non-CO2 RF Calcs'!$S$18-'Non-CO2 RF Calcs'!$S$19)*($O166-1)/9 -> 0.354414011 | G166: ='Non-CO2 RF Calcs'!$S$21+('Non-CO2 RF Calcs'!$S$20-'Non-CO2 RF Calcs'!$S$21)*($O166-1)/9 -> 0.09358602047 | H166: ='Non-CO2 RF Calcs'!$S$23+('Non-CO2 RF Calcs'!$S$22-'Non-CO2 RF Calcs'!$S$23)*($O166-1)/9 -> -0.264443516 | I166: ='Non-CO2 RF Calcs'!$S$25+('Non-CO2 RF Calcs'!$S$24-'Non-CO2 RF Calcs'!$S$25)*($O166-1)/9 -> 0.09358602047 | J166: 3.346867156 | K166: =CFfromRFin2100(J166) -> 0.5933566107 | L166: 1.985885752 | M166: 1.831334 | N166: 0.154551752 | O166: =MitigationAggressiveness(D166,0) -> 9.016249377 | Q166: 2.629025 | R166: 0.225186 | S166: 0.301086 | T166: -0.137314 | U166: 3.021374 | W166: -0.03626720376 | X166: =R166-E166 -> -0.1792464159 | Y166: =S166-F166 -> -0.05332801097 | Z166: =T166-H166 -> 0.127129516 | AA166: =U166-J166 -> -0.3254931556
A167: AIM/Hub-Global 2.0 | B167: 450ppmRCP | C167: 445.938875 | D167: =CO2RFFromCO2PPM(C167) -> 2.627153997 | E167: ='Non-CO2 RF Calcs'!$S$17+('Non-CO2 RF Calcs'!$S$16-'Non-CO2 RF Calcs'!$S$17)*($O167-1)/9 -> 0.4024646143 | F167: ='Non-CO2 RF Calcs'!$S$19+('Non-CO2 RF Calcs'!$S$18-'Non-CO2 RF Calcs'!$S$19)*($O167-1)/9 -> 0.3538868677 | G167: ='Non-CO2 RF Calcs'!$S$21+('Non-CO2 RF Calcs'!$S$20-'Non-CO2 RF Calcs'!$S$21)*($O167-1)/9 -> 0.09126645718 | H167: ='Non-CO2 RF Calcs'!$S$23+('Non-CO2 RF Calcs'!$S$22-'Non-CO2 RF Calcs'!$S$23)*($O167-1)/9 -> -0.2630081822 | I167: ='Non-CO2 RF Calcs'!$S$25+('Non-CO2 RF Calcs'!$S$24-'Non-CO2 RF Calcs'!$S$25)*($O167-1)/9 -> 0.09126645718 | J167: 3.303030211 | K167: =CFfromRFin2100(J167) -> 0.5940182631 | L167: 1.962060269 | M167: 1.816491 | N167: 0.1455692689 | O167: =MitigationAggressiveness(D167,0) -> 9.046200696 | Q167: 2.599482 | R167: 0.307243 | S167: 0.296512 | T167: -0.149095 | U167: 3.103497 | W167: -0.0276719968 | X167: =R167-E167 -> -0.09522161425 | Y167: =S167-F167 -> -0.05737486774 | Z167: =T167-H167 -> 0.1139131822 | AA167: =U167-J167 -> -0.199533211
A168: AIM/Hub-Global 2.0 | B168: Baseline | C168: 730.74464 | D168: =CO2RFFromCO2PPM(C168) -> 5.592675764 | E168: ='Non-CO2 RF Calcs'!$S$17+('Non-CO2 RF Calcs'!$S$16-'Non-CO2 RF Calcs'!$S$17)*($O168-1)/9 -> 0.5099004304 | F168: ='Non-CO2 RF Calcs'!$S$19+('Non-CO2 RF Calcs'!$S$18-'Non-CO2 RF Calcs'!$S$19)*($O168-1)/9 -> 0.3826672386 | G168: ='Non-CO2 RF Calcs'!$S$21+('Non-CO2 RF Calcs'!$S$20-'Non-CO2 RF Calcs'!$S$21)*($O168-1)/9 -> 0.2179073566 | H168: ='Non-CO2 RF Calcs'!$S$23+('Non-CO2 RF Calcs'!$S$22-'Non-CO2 RF Calcs'!$S$23)*($O168-1)/9 -> -0.3413729166 | I168: ='Non-CO2 RF Calcs'!$S$25+('Non-CO2 RF Calcs'!$S$24-'Non-CO2 RF Calcs'!$S$25)*($O168-1)/9 -> 0.2179073566 | J168: 6.57968523 | K168: =CFfromRFin2100(J168) -> 0.5587670956 | L168: 3.676511606 | M168: 3.951759 | N168: -0.2752473944 | O168: =MitigationAggressiveness(D168,0) -> 7.410952354 | Q168: 5.529349 | R168: 0.922058 | S168: 0.47713 | T168: -0.362399 | U168: 7.036776 | W168: -0.06332676438 | X168: =R168-E168 -> 0.4121575696 | Y168: =S168-F168 -> 0.09446276143 | Z168: =T168-H168 -> -0.02102608335 | AA168: =U168-J168 -> 0.4570907701
A169: AIM/Hub-Global 2.0 | B169: INDCSamePrice | C169: 686.598046 | D169: =CO2RFFromCO2PPM(C169) -> 5.210426645 | E169: ='Non-CO2 RF Calcs'!$S$17+('Non-CO2 RF Calcs'!$S$16-'Non-CO2 RF Calcs'!$S$17)*($O169-1)/9 -> 0.501236168 | F169: ='Non-CO2 RF Calcs'!$S$19+('Non-CO2 RF Calcs'!$S$18-'Non-CO2 RF Calcs'!$S$19)*($O169-1)/9 -> 0.3803462185 | G169: ='Non-CO2 RF Calcs'!$S$21+('Non-CO2 RF Calcs'!$S$20-'Non-CO2 RF Calcs'!$S$21)*($O169-1)/9 -> 0.2076942823 | H169: ='Non-CO2 RF Calcs'!$S$23+('Non-CO2 RF Calcs'!$S$22-'Non-CO2 RF Calcs'!$S$23)*($O169-1)/9 -> -0.335053119 | I169: ='Non-CO2 RF Calcs'!$S$25+('Non-CO2 RF Calcs'!$S$24-'Non-CO2 RF Calcs'!$S$25)*($O169-1)/9 -> 0.2076942823 | J169: 6.172344477 | K169: =CFfromRFin2100(J169) -> 0.5615820353 | L169: 3.466277774 | M169: 3.734093 | N169: -0.2678152259 | O169: =MitigationAggressiveness(D169,0) -> 7.542828493 | Q169: 5.146284 | R169: 0.8636 | S169: 0.443771 | T169: -0.246256 | U169: 6.661399 | W169: -0.06414264512 | X169: =R169-E169 -> 0.362363832 | Y169: =S169-F169 -> 0.06342478147 | Z169: =T169-H169 -> 0.08879711901 | AA169: =U169-J169 -> 0.4890545227
A170: AIM/Hub-Global 2.0 | B170: WB2C | C170: 435.360676 | D170: =CO2RFFromCO2PPM(C170) -> 2.494238434 | E170: ='Non-CO2 RF Calcs'!$S$17+('Non-CO2 RF Calcs'!$S$16-'Non-CO2 RF Calcs'!$S$17)*($O170-1)/9 -> 0.3954872647 | F170: ='Non-CO2 RF Calcs'!$S$19+('Non-CO2 RF Calcs'!$S$18-'Non-CO2 RF Calcs'!$S$19)*($O170-1)/9 -> 0.3520177452 | G170: ='Non-CO2 RF Calcs'!$S$21+('Non-CO2 RF Calcs'!$S$20-'Non-CO2 RF Calcs'!$S$21)*($O170-1)/9 -> 0.08304184598 | H170: ='Non-CO2 RF Calcs'!$S$23+('Non-CO2 RF Calcs'!$S$22-'Non-CO2 RF Calcs'!$S$23)*($O170-1)/9 -> -0.2579188353 | I170: ='Non-CO2 RF Calcs'!$S$25+('Non-CO2 RF Calcs'!$S$24-'Non-CO2 RF Calcs'!$S$25)*($O170-1)/9 -> 0.08304184598 | J170: 3.149908301 | K170: =CFfromRFin2100(J170) -> 0.5963698496 | L170: 1.87851034 | M170: 1.696499 | N170: 0.1820113396 | O170: =MitigationAggressiveness(D170,0) -> 9.152400841 | Q170: 2.461649 | R170: 0.269447 | S170: 0.290244 | T170: -0.213931 | U170: 2.840586 | W170: -0.03258943425 | X170: =R170-E170 -> -0.1260402647 | Y170: =S170-F170 -> -0.0617737452 | Z170: =T170-H170 -> 0.04398783525 | AA170: =U170-J170 -> -0.3093223009
A171: BET EMF33 | B171: EMF33_1.5C_cost100 | C171: 406.488711 | D171: =CO2RFFromCO2PPM(C171) -> 2.123160361 | E171: ='Non-CO2 RF Calcs'!$S$17+('Non-CO2 RF Calcs'!$S$16-'Non-CO2 RF Calcs'!$S$17)*($O171-1)/9 -> 0.3750258388 | F171: ='Non-CO2 RF Calcs'!$S$19+('Non-CO2 RF Calcs'!$S$18-'Non-CO2 RF Calcs'!$S$19)*($O171-1)/9 -> 0.34653645 | G171: ='Non-CO2 RF Calcs'!$S$21+('Non-CO2 RF Calcs'!$S$20-'Non-CO2 RF Calcs'!$S$21)*($O171-1)/9 -> 0.05892276285 | H171: ='Non-CO2 RF Calcs'!$S$23+('Non-CO2 RF Calcs'!$S$22-'Non-CO2 RF Calcs'!$S$23)*($O171-1)/9 -> -0.2429940712 | I171: ='Non-CO2 RF Calcs'!$S$25+('Non-CO2 RF Calcs'!$S$24-'Non-CO2 RF Calcs'!$S$25)*($O171-1)/9 -> 0.05892276285 | J171: 2.719574104 | K171: =CFfromRFin2100(J171) -> 0.6033154539 | L171: 1.640761085 | M171: 1.546987 | N171: 0.09377408516 | O171: =MitigationAggressiveness(D171,0) -> 9.463838069 | Q171: 2.131376 | R171: 0.284542 | S171: 0.316929 | T171: -0.164089 | U171: 2.619962 | W171: 0.008215639022 | X171: =R171-E171 -> -0.09048383884 | Y171: =S171-F171 -> -0.02960744998 | Z171: =T171-H171 -> 0.07890507119 | AA171: =U171-J171 -> -0.09961210432
A172: BET EMF33 | B172: EMF33_1.5C_full | C172: 407.297924 | D172: =CO2RFFromCO2PPM(C172) -> 2.133726293 | E172: ='Non-CO2 RF Calcs'!$S$17+('Non-CO2 RF Calcs'!$S$16-'Non-CO2 RF Calcs'!$S$17)*($O172-1)/9 -> 0.3756284469 | F172: ='Non-CO2 RF Calcs'!$S$19+('Non-CO2 RF Calcs'!$S$18-'Non-CO2 RF Calcs'!$S$19)*($O172-1)/9 -> 0.3466978792 | G172: ='Non-CO2 RF Calcs'!$S$21+('Non-CO2 RF Calcs'!$S$20-'Non-CO2 RF Calcs'!$S$21)*($O172-1)/9 -> 0.05963309232 | H172: ='Non-CO2 RF Calcs'!$S$23+('Non-CO2 RF Calcs'!$S$22-'Non-CO2 RF Calcs'!$S$23)*($O172-1)/9 -> -0.2434336194 | I172: ='Non-CO2 RF Calcs'!$S$25+('Non-CO2 RF Calcs'!$S$24-'Non-CO2 RF Calcs'!$S$25)*($O172-1)/9 -> 0.05963309232 | J172: 2.731885184 | K172: =CFfromRFin2100(J172) -> 0.6031098516 | L172: 1.647626868 | M172: 1.553344 | N172: 0.09428286807 | O172: =MitigationAggressiveness(D172,0) -> 9.454665953 | Q172: 2.138979 | R172: 0.284315 | S172: 0.317009 | T172: -0.161942 | U172: 2.631222 | W172: 0.00525270693 | X172: =R172-E172 -> -0.0913134469 | Y172: =S172-F172 -> -0.02968887923 | Z172: =T172-H172 -> 0.0814916194 | AA172: =U172-J172 -> -0.1006631845
A173: BET EMF33 | B173: EMF33_1.5C_nofuel | C173: 406.796627 | D173: =CO2RFFromCO2PPM(C173) -> 2.12718196 | E173: ='Non-CO2 RF Calcs'!$S$17+('Non-CO2 RF Calcs'!$S$16-'Non-CO2 RF Calcs'!$S$17)*($O173-1)/9 -> 0.3752553413 | F173: ='Non-CO2 RF Calcs'!$S$19+('Non-CO2 RF Calcs'!$S$18-'Non-CO2 RF Calcs'!$S$19)*($O173-1)/9 -> 0.3465979301 | G173: ='Non-CO2 RF Calcs'!$S$21+('Non-CO2 RF Calcs'!$S$20-'Non-CO2 RF Calcs'!$S$21)*($O173-1)/9 -> 0.05919329088 | H173: ='Non-CO2 RF Calcs'!$S$23+('Non-CO2 RF Calcs'!$S$22-'Non-CO2 RF Calcs'!$S$23)*($O173-1)/9 -> -0.2431614725 | I173: ='Non-CO2 RF Calcs'!$S$25+('Non-CO2 RF Calcs'!$S$24-'Non-CO2 RF Calcs'!$S$25)*($O173-1)/9 -> 0.05919329088 | J173: 2.72426034 | K173: =CFfromRFin2100(J173) -> 0.6032371431 | L173: 1.643375025 | M173: 1.549122 | N173: 0.09425302456 | O173: =MitigationAggressiveness(D173,0) -> 9.460344881 | Q173: 2.135141 | R173: 0.284582 | S173: 0.317005 | T173: -0.161342 | U173: 2.62565 | W173: 0.00795904049 | X173: =R173-E173 -> -0.09067334132 | Y173: =S173-F173 -> -0.02959293009 | Z173: =T173-H173 -> 0.08181947254 | AA173: =U173-J173 -> -0.09861034016
A174: BET EMF33 | B174: EMF33_Baseline | C174: 859.887066 | D174: =CO2RFFromCO2PPM(C174) -> 6.547785826 | E174: ='Non-CO2 RF Calcs'!$S$17+('Non-CO2 RF Calcs'!$S$16-'Non-CO2 RF Calcs'!$S$17)*($O174-1)/9 -> 0.5248437112 | F174: ='Non-CO2 RF Calcs'!$S$19+('Non-CO2 RF Calcs'!$S$18-'Non-CO2 RF Calcs'!$S$19)*($O174-1)/9 -> 0.3866703092 | G174: ='Non-CO2 RF Calcs'!$S$21+('Non-CO2 RF Calcs'!$S$20-'Non-CO2 RF Calcs'!$S$21)*($O174-1)/9 -> 0.2355218784 | H174: ='Non-CO2 RF Calcs'!$S$23+('Non-CO2 RF Calcs'!$S$22-'Non-CO2 RF Calcs'!$S$23)*($O174-1)/9 -> -0.3522726918 | I174: ='Non-CO2 RF Calcs'!$S$25+('Non-CO2 RF Calcs'!$S$24-'Non-CO2 RF Calcs'!$S$25)*($O174-1)/9 -> 0.2355218784 | J174: 7.578070912 | K174: =CFfromRFin2100(J174) -> 0.5537497592 | L174: 4.196354943 | M174: 4.454404 | N174: -0.2580490574 | O174: =MitigationAggressiveness(D174,0) -> 7.183505157 | Q174: 6.55058 | R174: 0.652252 | S174: 0.411855 | T174: -0.3121 | U174: 7.91679 | W174: 0.002794173967 | X174: =R174-E174 -> 0.1274082888 | Y174: =S174-F174 -> 0.02518469076 | Z174: =T174-H174 -> 0.04017269176 | AA174: =U174-J174 -> 0.3387190885
A175: BET EMF33 | B175: EMF33_Med2C_cost100 | C175: 482.873786 | D175: =CO2RFFromCO2PPM(C175) -> 3.078454093 | E175: ='Non-CO2 RF Calcs'!$S$17+('Non-CO2 RF Calcs'!$S$16-'Non-CO2 RF Calcs'!$S$17)*($O175-1)/9 -> 0.4247712781 | F175: ='Non-CO2 RF Calcs'!$S$19+('Non-CO2 RF Calcs'!$S$18-'Non-CO2 RF Calcs'!$S$19)*($O175-1)/9 -> 0.3598624733 | G175: ='Non-CO2 RF Calcs'!$S$21+('Non-CO2 RF Calcs'!$S$20-'Non-CO2 RF Calcs'!$S$21)*($O175-1)/9 -> 0.1175606306 | H175: ='Non-CO2 RF Calcs'!$S$23+('Non-CO2 RF Calcs'!$S$22-'Non-CO2 RF Calcs'!$S$23)*($O175-1)/9 -> -0.2792788809 | I175: ='Non-CO2 RF Calcs'!$S$25+('Non-CO2 RF Calcs'!$S$24-'Non-CO2 RF Calcs'!$S$25)*($O175-1)/9 -> 0.1175606306 | J175: 3.818930224 | K175: =CFfromRFin2100(J175) -> 0.5865581162 | L175: 2.240024518 | M175: 2.161673 | N175: 0.0783515184 | O175: =MitigationAggressiveness(D175,0) -> 8.706677654 | Q175: 3.073383 | R175: 0.262452 | S175: 0.316601 | T175: -0.067754 | U175: 3.639415 | W175: -0.005071092791 | X175: =R175-E175 -> -0.1623192781 | Y175: =S175-F175 -> -0.04326147329 | Z175: =T175-H175 -> 0.2115248809 | AA175: =U175-J175 -> -0.1795152245
A176: BET EMF33 | B176: EMF33_Med2C_full | C176: 483.091802 | D176: =CO2RFFromCO2PPM(C176) -> 3.081058957 | E176: ='Non-CO2 RF Calcs'!$S$17+('Non-CO2 RF Calcs'!$S$16-'Non-CO2 RF Calcs'!$S$17)*($O176-1)/9 -> 0.424893823 | F176: ='Non-CO2 RF Calcs'!$S$19+('Non-CO2 RF Calcs'!$S$18-'Non-CO2 RF Calcs'!$S$19)*($O176-1)/9 -> 0.3598953011 | G176: ='Non-CO2 RF Calcs'!$S$21+('Non-CO2 RF Calcs'!$S$20-'Non-CO2 RF Calcs'!$S$21)*($O176-1)/9 -> 0.1177050814 | H176: ='Non-CO2 RF Calcs'!$S$23+('Non-CO2 RF Calcs'!$S$22-'Non-CO2 RF Calcs'!$S$23)*($O176-1)/9 -> -0.2793682663 | I176: ='Non-CO2 RF Calcs'!$S$25+('Non-CO2 RF Calcs'!$S$24-'Non-CO2 RF Calcs'!$S$25)*($O176-1)/9 -> 0.1177050814 | J176: 3.821889978 | K176: =CFfromRFin2100(J176) -> 0.5865173762 | L176: 2.241604882 | M176: 2.161938 | N176: 0.07966688204 | O176: =MitigationAggressiveness(D176,0) -> 8.704812435 | Q176: 3.076453 | R176: 0.262312 | S176: 0.316459 | T176: -0.067901 | U176: 3.642356 | W176: -0.004605957285 | X176: =R176-E176 -> -0.162581823 | Y176: =S176-F176 -> -0.04343630115 | Z176: =T176-H176 -> 0.2114672663 | AA176: =U176-J176 -> -0.179533978
A177: BET EMF33 | B177: EMF33_Med2C_limbio | C177: 479.095805 | D177: =CO2RFFromCO2PPM(C177) -> 3.033204596 | E177: ='Non-CO2 RF Calcs'!$S$17+('Non-CO2 RF Calcs'!$S$16-'Non-CO2 RF Calcs'!$S$17)*($O177-1)/9 -> 0.4226311642 | F177: ='Non-CO2 RF Calcs'!$S$19+('Non-CO2 RF Calcs'!$S$18-'Non-CO2 RF Calcs'!$S$19)*($O177-1)/9 -> 0.3592891703 | G177: ='Non-CO2 RF Calcs'!$S$21+('Non-CO2 RF Calcs'!$S$20-'Non-CO2 RF Calcs'!$S$21)*($O177-1)/9 -> 0.1150379527 | H177: ='Non-CO2 RF Calcs'!$S$23+('Non-CO2 RF Calcs'!$S$22-'Non-CO2 RF Calcs'!$S$23)*($O177-1)/9 -> -0.2777178608 | I177: ='Non-CO2 RF Calcs'!$S$25+('Non-CO2 RF Calcs'!$S$24-'Non-CO2 RF Calcs'!$S$25)*($O177-1)/9 -> 0.1150379527 | J177: 3.767482975 | K177: =CFfromRFin2100(J177) -> 0.5872700237 | L177: 2.212529816 | M177: 2.10082 | N177: 0.1117098161 | O177: =MitigationAggressiveness(D177,0) -> 8.739251687 | Q177: 3.022102 | R177: 0.263249 | S177: 0.315265 | T177: -0.066018 | U177: 3.536187 | W177: -0.01110259626 | X177: =R177-E177 -> -0.1593821642 | Y177: =S177-F177 -> -0.04402417031 | Z177: =T177-H177 -> 0.2116998608 | AA177: =U177-J177 -> -0.2312959753
A178: BET EMF33 | B178: EMF33_Med2C_nofuel | C178: 483.413591 | D178: =CO2RFFromCO2PPM(C178) -> 3.08490244 | E178: ='Non-CO2 RF Calcs'!$S$17+('Non-CO2 RF Calcs'!$S$16-'Non-CO2 RF Calcs'!$S$17)*($O178-1)/9 -> 0.4250745082 | F178: ='Non-CO2 RF Calcs'!$S$19+('Non-CO2 RF Calcs'!$S$18-'Non-CO2 RF Calcs'!$S$19)*($O178-1)/9 -> 0.3599437039 | G178: ='Non-CO2 RF Calcs'!$S$21+('Non-CO2 RF Calcs'!$S$20-'Non-CO2 RF Calcs'!$S$21)*($O178-1)/9 -> 0.1179180656 | H178: ='Non-CO2 RF Calcs'!$S$23+('Non-CO2 RF Calcs'!$S$22-'Non-CO2 RF Calcs'!$S$23)*($O178-1)/9 -> -0.2795000598 | I178: ='Non-CO2 RF Calcs'!$S$25+('Non-CO2 RF Calcs'!$S$24-'Non-CO2 RF Calcs'!$S$25)*($O178-1)/9 -> 0.1179180656 | J178: 3.826256724 | K178: =CFfromRFin2100(J178) -> 0.5864573123 | L178: 2.243936234 | M178: 2.164316 | N178: 0.07962023442 | O178: =MitigationAggressiveness(D178,0) -> 8.702062281 | Q178: 3.081283 | R178: 0.262339 | S178: 0.316528 | T178: -0.06776 | U178: 3.648143 | W178: -0.003619440159 | X178: =R178-E178 -> -0.1627355082 | Y178: =S178-F178 -> -0.04341570386 | Z178: =T178-H178 -> 0.2117400598 | AA178: =U178-J178 -> -0.1781137236
A179: BET EMF33 | B179: EMF33_tax_hi_full | C179: 508.110194 | D179: =CO2RFFromCO2PPM(C179) -> 3.375378635 | E179: ='Non-CO2 RF Calcs'!$S$17+('Non-CO2 RF Calcs'!$S$16-'Non-CO2 RF Calcs'!$S$17)*($O179-1)/9 -> 0.4382811973 | F179: ='Non-CO2 RF Calcs'!$S$19+('Non-CO2 RF Calcs'!$S$18-'Non-CO2 RF Calcs'!$S$19)*($O179-1)/9 -> 0.3634815688 | G179: ='Non-CO2 RF Calcs'!$S$21+('Non-CO2 RF Calcs'!$S$20-'Non-CO2 RF Calcs'!$S$21)*($O179-1)/9 -> 0.1334855649 | H179: ='Non-CO2 RF Calcs'!$S$23+('Non-CO2 RF Calcs'!$S$22-'Non-CO2 RF Calcs'!$S$23)*($O179-1)/9 -> -0.289133148 | I179: ='Non-CO2 RF Calcs'!$S$25+('Non-CO2 RF Calcs'!$S$24-'Non-CO2 RF Calcs'!$S$25)*($O179-1)/9 -> 0.1334855649 | J179: 4.154979382 | K179: =CFfromRFin2100(J179) -> 0.5820826178 | L179: 2.418541276 | M179: 2.285619 | N179: 0.1329222759 | O179: =MitigationAggressiveness(D179,0) -> 8.501047226 | Q179: 3.352203 | R179: 0.261432 | S179: 0.32178 | T179: -0.116535 | U179: 3.797493 | W179: -0.02317563456 | X179: =R179-E179 -> -0.1768491973 | Y179: =S179-F179 -> -0.04170156883 | Z179: =T179-H179 -> 0.172598148 | AA179: =U179-J179 -> -0.3574863824
